Workbook

Sheet INPUTS (hidden)

Sheet CLIENT NAME (hidden)
B2: SCHOOL NAME: | C2: Health Sciences High
B3: CDS CODE: | C3: 37 68338 0114462
B4: Charter #: | C4: 0876
B5: Authorizer: | C5: San Diego Unified

Sheet Student Info (hidden)
B2: GRADE | C2: 2022-2023 REFORECASTED | D2: 2021-2022 REFORECASTED | E2: 22-23 | F2: 23-24 | G2: 24-25
B3: ENROLLMENT BY GRADE
B4: TK | C4: 0 | D4: 0 | E4: 0 | F4: 0 | G4: 0
B5: K | C5: 0 | D5: 0 | E5: 0 | F5: 0 | G5: 0
B6: 1 | C6: 0 | D6: 0 | E6: 0 | F6: 0 | G6: 0
B7: =B6+1 -> 2 | C7: 0 | D7: 0 | E7: 0 | F7: 0 | G7: 0
B8: =B7+1 -> 3 | C8: 0 | D8: 0 | E8: 0 | F8: 0 | G8: 0
B9: 4 | C9: 0 | D9: 0 | E9: 0 | F9: 0 | G9: 0
B10: 5 | C10: 0 | D10: 0 | E10: 0 | F10: 0 | G10: 0
B11: 6 | C11: 0 | D11: 0 | E11: 0 | F11: 0 | G11: 0
B12: 7 | C12: 0 | D12: 0 | E12: 0 | F12: 0 | G12: 0
B13: 8 | C13: 0 | D13: 0 | E13: 0 | F13: 0 | G13: 0
B14: 9 | C14: 128 | D14: 150 | E14: 0 | F14: 0 | G14: 0
B15: 10 | C15: 148 | D15: 150 | E15: 0 | F15: 0 | G15: 0
B16: 11 | C16: 155 | D16: 150 | E16: 0 | F16: 0 | G16: 0
B17: 12 | C17: 167 | D17: 150 | E17: 0 | F17: 0 | G17: 0
B18: OTHER (CTC) | C18: 0 | D18: 0 | E18: 0 | F18: 0 | G18: 0
B19: TOTAL | C19: =SUM(C4:C18) -> 598 | D19: =SUM(D4:D18) -> 600 | E19: =SUM(E4:E18) -> 0 | F19: =SUM(F4:F18) -> 0 | G19: 0
B21: DAILY ATTENDANCE RATE
B22: K | C22: 0 | D22: 0 | E22: 0 | F22: 0 | G22: =E22 -> 0
B23: 1 | C23: 0 | D23: 0 | E23: 0 | F23: 0 | G23: 0
B24: =B23+1 -> 2 | C24: 0 | D24: 0 | E24: 0 | F24: 0 | G24: 0
B25: =B24+1 -> 3 | C25: 0 | D25: 0 | E25: 0 | F25: 0 | G25: 0
B26: 4 | C26: 0 | D26: 0 | E26: 0 | F26: 0 | G26: 0
B27: 5 | C27: 0 | D27: 0 | E27: 0 | F27: 0 | G27: 0
B28: 6 | C28: 0 | D28: 0 | E28: 0 | F28: 0 | G28: 0
B29: 7 | C29: 0 | D29: 0 | E29: 0 | F29: 0 | G29: 0
B30: 8 | C30: 0 | D30: 0 | E30: 0 | F30: 0 | G30: 0
B31: 9 | C31: 0.895 | D31: 0.95 | E31: 0.96 | F31: 0.96 | G31: 0.96
B32: 10 | C32: 0.896 | D32: 0.95 | E32: 0.96 | F32: 0.96 | G32: 0.96
B33: 11 | C33: 0.9 | D33: 0.95 | E33: 0.96 | F33: 0.96 | G33: 0.96
B34: 12 | C34: 0.9 | D34: 0.95 | E34: 0.96 | F34: 0.96 | G34: 0.96
B35: OTHER (CTC) | C35: 0 | D35: 0 | E35: 0 | F35: 0 | G35: 0
B36: TOTAL | C36: =IFERROR(C54/C19,0) -> 0.8979397993 | D36: =IFERROR(D54/D19,0) -> 0.95 | E36: =IFERROR(E54/E19,0) -> 0 | F36: =IFERROR(F54/F19,0) -> 0 | G36: =IFERROR(G54/G19,0) -> 0
B38: AVG DAILY ATTENDANCE BY GRADE
B39: TK | C39: =C4*C22 -> 0 | D39: =D4*D22 -> 0 | E39: =E4*E22 -> 0 | F39: =F4*F22 -> 0 | G39: 0
B40: K | C40: =C5*C22 -> 0 | D40: 0 | E40: 0 | F40: =F5*F22 -> 0 | G40: 0
B41: 1 | C41: 0 | D41: 0 | E41: 0 | F41: =F6*F23 -> 0 | G41: 0
B42: =B41+1 -> 2 | C42: 0 | D42: 0 | E42: 0 | F42: =F7*F24 -> 0 | G42: 0
B43: =B42+1 -> 3 | C43: 0 | D43: 0 | E43: 0 | F43: =F8*F25 -> 0 | G43: 0
B44: 4 | C44: 0 | D44: 0 | E44: 0 | F44: =F9*F26 -> 0 | G44: 0
B45: 5 | C45: 0 | D45: 0 | E45: 0 | F45: =F10*F27 -> 0 | G45: 0
B46: 6 | C46: 0 | D46: 0 | E46: 0 | F46: =F11*F28 -> 0 | G46: 0
B47: 7 | C47: 0 | D47: 0 | E47: 0 | F47: =F12*F29 -> 0 | G47: 0
B48: 8 | C48: 0 | D48: 0 | E48: 0 | F48: =F13*F30 -> 0 | G48: 0
B49: 9 | C49: 114.56 | D49: =D14*D31 -> 142.5 | E49: 0 | F49: =F14*F31 -> 0 | G49: 0
B50: 10 | C50: 132.608 | D50: =D15*D32 -> 142.5 | E50: 0 | F50: =F15*F32 -> 0 | G50: 0
B51: 11 | C51: 139.5 | D51: =D16*D33 -> 142.5 | E51: 0 | F51: =F16*F33 -> 0 | G51: 0
B52: 12 | C52: 150.3 | D52: =D17*D34 -> 142.5 | E52: 0 | F52: =F17*F34 -> 0 | G52: 0
B53: OTHER (CTC) | C53: 0 | D53: 0 | E53: 0 | F53: =F18*F35 -> 0 | G53: 0
B54: TOTAL | C54: =SUM(C39:C53) -> 536.968 | D54: =SUM(D39:D53) -> 570 | E54: =SUM(E39:E53) -> 0 | F54: =SUM(F39:F53) -> 0 | G54: 0
B56: AVG DAILY ATTENDANCE BY GRADE RANGE
B57: TK-3 | C57: =SUM(C39:C43) -> 0 | D57: =SUM(D39:D43) -> 0 | E57: =SUM(E40:E43) -> 0 | F57: =SUM(F40:F43) -> 0 | G57: =SUM(G40:G43) -> 0
B58: 4-6 | C58: =SUM(C44:C46) -> 0 | D58: =SUM(D44:D46) -> 0 | E58: =SUM(E44:E46) -> 0 | F58: =SUM(F44:F46) -> 0 | G58: =SUM(G44:G46) -> 0
B59: 7-8 | C59: =SUM(C47:C48) -> 0 | D59: =SUM(D47:D48) -> 0 | E59: =SUM(E47:E48) -> 0 | F59: =SUM(F47:F48) -> 0 | G59: =SUM(G47:G48) -> 0
B60: 9-12 | C60: =SUM(C49:C53) -> 536.968 | D60: =SUM(D49:D53) -> 570 | E60: =SUM(E49:E53) -> 0 | F60: =SUM(F49:F53) -> 0 | G60: =SUM(G49:G53) -> 0
B61: TOTAL | C61: =SUM(C57:C60) -> 536.968 | D61: =SUM(D57:D60) -> 570 | E61: =SUM(E57:E60) -> 0 | F61: =SUM(F57:F60) -> 0 | G61: =SUM(G57:G60) -> 0
B63: UNDUPLICATED % | C63: 0.7496 | D63: 0.7496 | E63: =D63 -> 0.7496 | F63: =E63 -> 0.7496 | G63: =E63 -> 0.7496

Sheet Assumptions
H2: Current Year (CY) | J2: OutYear 1 | L2: OutYear 2 | N2: OutYear 3 | P2: OutYear 4 | R2: OutYear 5
B3: BEGINNING FUND BALANCE | H3: 4903338
B5: EXPENSE ESCALATOR | J5: 0 | L5: =J5 -> 0 | N5: =L5 -> 0 | P5: =N5 -> 0 | R5: =P5 -> 0
B7: BENEFITS ASSUMPTIONS
B8: STRS % BY TOTAL SALARY | D8: Per SSC Dartboard | H8: 0.1692 | J8: 0.191 | L8: 0.181 | N8: =L8 -> 0.181 | P8: =N8 -> 0.181 | R8: =P8 -> 0.181
B9: PERS % BY TOTAL SALARY | D9: Per SSC Dartboard | H9: 0.23 | J9: 0.261 | L9: 0.249 | N9: 0.259 | P9: 0.266 | R9: =P9 -> 0.266
B10: OASDI % BY TOTAL SALARY | D10: 2018-19 Rate | H10: 0.062 | J10: 0.062 | L10: 0.062 | N10: 0.062 | P10: 0.062 | R10: 0.062
B11: MEDICARE % BY TOTAL SALARY | D11: 2018-19 Rate | H11: 0.0145 | J11: 0.0145 | L11: 0.0145 | N11: 0.0145 | P11: 0.0145 | R11: 0.0145
B12: SUI $$ COST PER FTE | D12: 2018-19 Rate | H12: 7000 | J12: 7000 | L12: 7000 | N12: 7000 | P12: 7000 | R12: 7000
B13: SUI % OF TOTAL BY FTE | D13: 2018-19 Rate | H13: 0.06 | J13: 0.06 | L13: 0.06 | N13: 0.06 | P13: 0.06 | R13: 0.06
B14: WORKER'S COMP % BY TOTAL SALARY | D14: 2018-19 Rate | H14: 0.01 | J14: 0.011 | L14: =J14 -> 0.011 | N14: =L14 -> 0.011 | P14: =N14 -> 0.011 | R14: =P14 -> 0.011
B16: REVENUE ASSUMPTIONS
B17: 8011 | C17: LCFF - State Aid | D17: LCFF Calculator | H17: 2140807 | J17: 2893732 | L17: 2031952
B18: 8012 | C18: EPA | D18: LCFF Calculator | H18: 107400 | J18: 114000 | L18: 116470
B19: 8019 | C19: Prior Year Income/Adjustments | D19: 2019-20 P1 CDE Apportionment Website
B20: 8096 | C20: IN LIEU OF PROPERTY TAXES | D20: Rate*Estimated P2 | H20: 4026220 | J20: 4007653 | L20: 3817036 | N20: =N21*N22 -> 0 | P20: =P21*P22 -> 0 | R20: =R21*R22 -> 0
D21: 2019-20 P1 ILPT Rate from CDE Website | H21: 6954.67 | J21: =H21 -> 6954.67 | L21: =J21 -> 6954.67 | N21: =L21 -> 6954.67 | P21: =N21 -> 6954.67 | R21: =P21 -> 6954.67
D22: *CY P2 ADA | H22: ='Student Info'!C54 -> 536.968 | J22: ='Student Info'!D54 -> 570 | L22: ='Student Info'!F61 -> 0 | N22: ='Student Info'!G61 -> 0
B23: 8181 | C23: SPECIAL EDUCATION - FEDERAL IDEA | D23: Rate*PY Enrollment | H23: =H24*H25 -> 107393.6 | J23: =J24*J25 -> 119700 | L23: =L24*L25 -> 0 | N23: =N24*N25 -> 0 | P23: =P24*P25 -> 0 | R23: =R24*R25 -> 0
D24: 2019-20 Desert Mountain SELPA Rate | H24: 200 | J24: 210 | L24: =J24 -> 210 | N24: =L24 -> 210 | P24: =N24 -> 210 | R24: =P24 -> 210
D25: * CY P2 ADA | H25: ='Student Info'!C61 -> 536.968 | J25: ='Student Info'!D61 -> 570 | L25: ='Student Info'!F61 -> 0 | N25: ='Student Info'!F19 -> 0 | P25: ='Student Info'!G19 -> 0
B26: 8220 | C26: FEDERAL CHILD NUTRITION | D26: 2018-19 Actuals - lower to be conservative | H26: =F26 -> 0 | J26: =H26 -> 0 | L26: =J26 -> 0 | N26: =L26 -> 0 | P26: =N26 -> 0 | R26: =P26 -> 0
B27: 8290-16 | C27: Department of Rehab (We Can Work) | D27: Reimbursement (1 for 1) | H27: 20000 | J27: 20000
B28: 8290-19 | C28: California Career Innovation | D28: Reimbursement (1 for 1) | H28: 149800 | J28: 149800
B29: 8290-3210 | C29: ESSER I | D29: Dec -2020 CDE ESSER I
B30: 8290-3212 | C30: ESSER II | D30: Dec -2020 CDE ESSER II | H30: 319750 | J30: 319750
B31: 8290-3213 | C31: ESSER III | H31: 762000 | J31: 762000
B32: 8290-35 | C32: Perkins | D32: CTEIG | H32: 12636 | J32: 11000
B33: 8290-71 | C33: LLMF - Governor's Emergency Education Relief (GEER) | D33: 20-21 CDE LLMF Apportionment
B34: 8290-72 | C34: LLMF - Coronavirus Relief (CR) | D34: 20-21 CDE LLMF Apportionment
B35: 8291 | C35: TITLE I | D35: 03.04.2020 Title I CDE Apportionment | H35: 173141 | J35: =H35 -> 173141 | L35: =J35 -> 173141 | N35: =L35 -> 173141 | P35: =N35 -> 173141 | R35: =P35 -> 173141
B36: 8292 | C36: TITLE II | D36: 03.04.2020 Title II CDE Apportionment | H36: 24800 | J36: =H36 -> 24800 | L36: =J36 -> 24800 | N36: =L36 -> 24800 | P36: =N36 -> 24800 | R36: =P36 -> 24800
B37: 8293 | C37: TITLE III | D37: 03.04.2020 Title III CDE Apportionment (Consortium) | H37: 10294 | J37: 10294 | L37: 10294 | N37: 10294 | P37: 10294 | R37: 10294
B38: 8294 | C38: TITLE IV | D38: 03.04.2020 Title IV CDE Apportionment | H38: 11853 | J38: 11853 | L38: 11853 | N38: 11853 | P38: 11853 | R38: 11853
B39: 8296 | C39: All Other Federal Revenue - PPP Loan Forgiveness | L39: 0 | N39: 0 | P39: 0 | R39: 0
B40: 8520 | C40: STATE CHILD NUTRITION | D40: 2018-19 Actuals - lower to be conservative | H40: =F40 -> 0 | J40: =H40 -> 0 | L40: =J40 -> 0 | N40: =L40 -> 0 | P40: =N40 -> 0 | R40: =P40 -> 0
B41: 8550-K8 | C41: MANDATE BLOCK GRANT K-8 | D41: Rate*PY P2 ADA | H41: =H42*H43 -> 0 | J41: =J42*J43 -> 0 | L41: =L42*L43 -> 0 | N41: =N42*N43 -> 0 | P41: =P42*P43 -> 0 | R41: =R42*R43 -> 0
D42: 07.01.2019 SSC Dartboard | H42: 17.11 | J42: 18.13 | L42: =J42 -> 18.13 | N42: =L42 -> 18.13 | P42: =N42 -> 18.13 | R42: =P42 -> 18.13
D43: * PY P2 ADA | H43: 0 | J43: 0 | N43: ='Student Info'!F61 -> 0 | P43: ='Student Info'!G61 -> 0 | R43: =P43 -> 0
B44: 8550-912 | C44: MANDATE BLOCK GRANT 9-12 | D44: Rate*PY P2 ADA | H44: =H45*H46 -> 27651.52 | J44: =J45*J46 -> 27376.26 | L44: =L45*L46 -> 0 | N44: =N45*N46 -> 0 | P44: =P45*P46 -> 0 | R44: =R45*R46 -> 0
D45: 07.01.2019 SSC Dartboard | H45: 47.84 | J45: 50.98
D46: PY ADA | H46: 578 | J46: 537
B47: 8560-22 | C47: LOTTERY | D47: Rate*CY P2 ADA | H47: =H48*H49 -> 80545.2 | J47: =J48*J49 -> 92910 | L47: =J47 -> 92910 | N47: =L47 -> 92910 | P47: =N47 -> 92910 | R47: =P47 -> 92910
D48: 07.01.2019 SSC Dartboard (LESS 15% COVID) | H48: 150 | J48: 163 | L48: =J48 -> 163 | N48: =L48 -> 163 | P48: =N48 -> 163 | R48: =P48 -> 163
D49: Student Info Tab | H49: ='Student Info'!C54 -> 536.968 | J49: ='Student Info'!D61 -> 570 | L49: ='Student Info'!F61 -> 0 | N49: ='Student Info'!G61 -> 0
B50: 8560-12 | C50: RESTRICTED LOTTERY | D50: Rate*CY P2 ADA | H50: =H51*H52 -> 32218.08 | J50: =J51*J52 -> 37050 | L50: 37050 | N50: 37050 | P50: 37050 | R50: 37050
D51: 07.01.2019 SSC Dartboard (LESS 15% COVID) | H51: 60 | J51: 65 | L51: =J51 -> 65 | N51: =L51 -> 65 | P51: =N51 -> 65 | R51: =P51 -> 65
D52: Student Info Tab | H52: ='Student Info'!C61 -> 536.968 | J52: ='Student Info'!D61 -> 570 | L52: ='Student Info'!F61 -> 0 | N52: ='Student Info'!G54 -> 0
B53: 8590-63 | C53: Career Technical Education Incentive Grant | D53: Reimbursement (1:2) | H53: 113791 | J53: 113791
B54: 8590-66 | C54: MENTAL HEALTH | D54: Budget Request*Funding % | H54: 0 | J54: 0 | L54: =L55*L56 -> 0 | N54: =N55*N56 -> 0 | P54: =P55*P56 -> 0 | R54: =R55*R56 -> 0
D55: 2019-20 Desert Mountain SELPA Request | H55: 0 | J55: =H55 -> 0 | L55: =J55 -> 0 | N55: =L55 -> 0 | P55: =N55 -> 0 | R55: =P55 -> 0
D56: * % of funding | H56: 0.8 | J56: =H56 -> 0.8 | L56: =J56 -> 0.8 | N56: =L56 -> 0.8 | P56: =N56 -> 0.8 | R56: =P56 -> 0.8
B57: 8590-73 | C57: Specialized Secondary Program | L57: =J57 -> 0 | N57: =L57 -> 0 | P57: =N57 -> 0 | R57: =P57 -> 0
B58: 8590-74 | C58: LLMF - General Fund | D58: Sept - 2020 CDE LLMF
B59: 8590-7422 | C59: In Person Learning
B60: 8590-7425 | C60: Expanded Learning Grant | H60: 400090 | J60: 400090
B61: 8590-7426 | C61: Expanded Learning Grant Paraprofessionals | H61: 44455 | J61: 44455
B62: 8590-75 | C62: CalEd Grant | D62: 2017-2020 Professional Development/Credentialing (1:1)
B63: 8591 | C63: SB740 RENT REIMBURSEMENT | D63: Lesser of Rate*Eligible CY P2 ADA (Site/Classroom Base) or % of Eligible Expenses | H63: =MIN(H65*H66,H67*H68) -> 0 | J63: =MIN(J65*J66,J67*J68) -> 0 | L63: =MIN(L65*L66,L67*L68) -> 0 | N63: =MIN(N65*N66,N67*N68) -> 0 | P63: =MIN(P65*P66,P67*P68) -> 0 | R63: =MIN(R65*R66,R67*R68) -> 0
D65: 2019-20 Rate via CDE | H65: 1184 | J65: =H65 -> 1184 | L65: =J65 -> 1184 | N65: =L65 -> 1184 | P65: =N65 -> 1184 | R65: =P65 -> 1184
D66: Eligible SB740 ADA - Student Info Tab | H66: ='Student Info'!D61 -> 570 | J66: ='Student Info'!D61 -> 570 | L66: ='Student Info'!F61 -> 0 | N66: ='Student Info'!G54 -> 0
D67: * 2019-20 Rate via CDE | H67: 0.75 | J67: =H67 -> 0.75 | L67: =J67 -> 0.75 | N67: =L67 -> 0.75 | P67: =N67 -> 0.75 | R67: =P67 -> 0.75
D68: Eligible Rent Expense | H68: 0
B69: 8639 | C69: LOCAL CHILD NUTRITION | D69: 2018-19 Actuals - lower to be conservative | H69: 0 | J69: =H69 -> 0 | L69: =J69 -> 0 | N69: =L69 -> 0 | P69: =N69 -> 0 | R69: =P69 -> 0
B70: 8784 | C70: AFTER SCHOOL PROGRAM RECEIPTS | D70: 2018-19 Actuals | H70: 0 | J70: =H70 -> 0 | L70: =J70 -> 0 | N70: =L70 -> 0 | P70: =N70 -> 0 | R70: =P70 -> 0
B71: 8792 | C71: STATE SPED - AB602 | D71: Rate*CY P2 ADA less fee for both State and Federal SPED | H71: =((H73*H74)*(1-H75))-(H23*H75) -> 284619.8884 | J71: =((J73*J74)*(1-J75))-(J23*J75) -> 323418 | L71: =((L73*L74)*(1-L75))-(L23*L75) -> 0 | N71: =((N73*N74)*(1-N75))-(N23*N75) -> 0 | P71: =((P73*P74)*(1-P75))-(P23*P75) -> 0 | R71: =((R73*R74)*(1-R75))-(R23*R75) -> 0
D73: 2019-20 Desert Mountain SELPA Rate | H73: 585 | J73: 635 | L73: =J73 -> 635 | N73: =L73 -> 635 | P73: =N73 -> 635 | R73: =P73 -> 635
D74: Student Info Tab | H74: ='Student Info'!C61 -> 536.968 | J74: ='Student Info'!D61 -> 570 | L74: ='Student Info'!F61 -> 0 | N74: ='Student Info'!G61 -> 0
D75: * (1-2019-20 SELPA Admin Fee) | H75: 0.07 | J75: 0.08 | L75: =J75 -> 0.08 | N75: =L75 -> 0.08 | P75: =N75 -> 0.08 | R75: =P75 -> 0.08
B77: Acct # | C77: Description | D77: ACTUAL | E77: ACTUAL | F77: ACTUAL | G77: ACTUAL | H77: ACTUAL | I77: ACTUAL | J77: ACTUAL | K77: ACTUAL | L77: ACTUAL | M77: ACTUAL | N77: BUDGET | O77: BUDGET | P77: BUDGET
B78: CASH FLOW %s | D78: JUL | E78: AUG | F78: SEP | G78: OCT | H78: NOV | I78: DEC | J78: JAN | K78: FEB | L78: MAR | M78: APR | N78: MAY | O78: JUN | P78: ACCRUAL | S78: check
B79: 8011 | C79: LCFF; state aid | D79: See Revenue Input Tab for Appropriate Formula - Revised per Actual CDE Approtionment Payment Schedule | S79: =1-SUM($D79:$R79) -> 1
B80: 8012 | C80: LCFF; EPA | D80: See Revenue Input Tab for Appropriate Formula - Revised per Actual CDE Approtionment Payment Schedule | S80: =1-SUM($D80:$R80) -> 1
B81: 8096 | C81: In-Lieu of Property Taxes | D81: See Revenue Input Tab for Appropriate Formula - Revised per Actual CDE Approtionment Payment Schedule | S81: =1-SUM($D81:$R81) -> 1
B82: 8019 | C82: Prior Year Income/Adjustments | D82: See Revenue Input Tab for Appropriate Formula - Revised per Actual CDE Approtionment Payment Schedule | S82: =1-SUM($D82:$R82) -> 1
B83: 8181 | C83: Special Education - Federal | D83: 0 | E83: 0 | F83: 0 | G83: 0 | H83: 0 | I83: 0 | J83: 0 | K83: 0 | L83: 0 | M83: 0 | N83: 0 | O83: 0 | P83: 1 | S83: 0
B84: 8220 | C84: Federal Child Nutrition | D84: 0 | E84: 0 | F84: 0 | G84: 0 | H84: 0.1 | I84: 0.1 | J84: 0.1 | K84: 0.1 | L84: 0.1 | M84: 0.1 | N84: 0.1 | O84: 0.1 | P84: 0.2 | S84: 0
B85: 8290-88 | C85: Title I COVID | D85: 0 | E85: 0 | F85: 0 | G85: 0 | H85: 0 | I85: 0 | J85: 0 | K85: 0 | L85: 0 | M85: 0 | N85: 0 | O85: 1 | P85: 0 | S85: 0
B86: 8290-16 | C86: We Work Department of Rehab | D86: 0 | E86: 0 | F86: 0 | G86: 0 | H86: 0 | I86: 0 | J86: 0.25 | K86: 0 | L86: 0 | M86: 0.5 | N86: 0 | O86: 0.25 | P86: 0 | S86: 0
B87: 8290-19 | C87: CCI | D87: 0 | E87: 0 | F87: 0 | G87: 0 | H87: 0 | I87: 0 | J87: 0.25 | K87: 0 | L87: 0 | M87: 0.5 | N87: 0 | O87: 0.25 | P87: 0 | S87: 0
B88: 8290-3210 | C88: ESSER I | D88: 0 | E88: 0 | F88: 0 | G88: 0 | H88: 0 | I88: 0 | J88: 0.25 | K88: 0 | L88: 0 | M88: 0.5 | N88: 0 | O88: 0.25 | P88: 0
B89: 8290-3212 | C89: ESSER II | D89: 0 | E89: 0 | F89: 0 | G89: 0 | H89: 0 | I89: 0 | J89: 0.25 | K89: 0 | L89: 0 | M89: 0.5 | N89: 0 | O89: 0.25 | P89: 0
B90: 8290-35 | C90: Perkins | D90: 0 | E90: 0 | F90: 0 | G90: 0 | H90: 0 | I90: 0 | J90: 0.25 | K90: 0 | L90: 0 | M90: 0.5 | N90: 0 | O90: 0.25 | P90: 0 | S90: 0
B91: 8290-71 | C91: LLMF - CARES Act Governor's Emergency Education Relief | D91: 0 | E91: 0 | F91: 0 | G91: 0 | H91: 0 | I91: 0 | J91: 0.25 | K91: 0 | L91: 0 | M91: 0.5 | N91: 0 | O91: 0.25 | P91: 0 | S91: 0
B92: 8290-72 | C92: LLMF - CARES Act Coronavirus Relief | D92: 0 | E92: 0 | F92: 1 | G92: 0 | H92: 0 | I92: 0 | J92: 0 | K92: 0 | L92: 0 | M92: 0 | N92: 0 | O92: 0 | P92: 0 | S92: 0
B93: 8290-91 | C93: LLMF - General Fund | D93: 0 | E93: 0 | F93: 1 | G93: 0 | H93: 0 | I93: 0 | J93: 0 | K93: 0 | L93: 0 | M93: 0 | N93: 0 | O93: 0 | P93: 0 | S93: 0
B94: 8291 | C94: Title I | D94: 0 | E94: 0 | F94: 0 | G94: 0 | H94: 0 | I94: 0 | J94: 0.25 | K94: 0 | L94: 0 | M94: 0.5 | N94: 0 | O94: 0.25 | P94: 0 | S94: 0
B95: 8292 | C95: Title II | D95: 0 | E95: 0 | F95: 0 | G95: 0 | H95: 0 | I95: 0 | J95: 0.25 | K95: 0 | L95: 0 | M95: 0.5 | N95: 0 | O95: 0.25 | P95: 0 | S95: 0
B96: 8293 | C96: Title III | D96: 0 | E96: 0 | F96: 0 | G96: 0 | H96: 0 | I96: 0 | J96: 0.25 | K96: 0 | L96: 0 | M96: 0.5 | N96: 0 | O96: 0.25 | P96: 0 | S96: 0
B97: 8294 | C97: Title IV | D97: 0 | E97: 0 | F97: 0 | G97: 0 | H97: 0 | I97: 0 | J97: 0.25 | K97: 0 | L97: 0 | M97: 0.5 | N97: 0 | O97: 0.25 | P97: 0 | S97: 0
B98: 8296 | C98: All Other Federal Revenue - PPP Loan Forgiveness | D98: 0 | E98: 0 | F98: 0 | G98: 0 | H98: 0 | I98: 1 | J98: 0 | K98: 0 | L98: 0 | M98: 0 | N98: 0 | O98: 0 | P98: 0
B99: 8299 | C99: Prior Year Federal Revenue | D99: 0 | E99: 0 | F99: 0.5 | G99: 0 | H99: 0 | I99: 0 | J99: 0 | K99: 0.4 | L99: 0 | M99: 0 | N99: 0.1 | O99: 0 | P99: 0 | S99: 0
B100: 8520 | C100: State Child Nutrition Program | D100: 0 | E100: 0 | F100: 0 | G100: 0 | H100: 0.1 | I100: 0.1 | J100: 0.1 | K100: 0.1 | L100: 0.1 | M100: 0.1 | N100: 0.1 | O100: 0.1 | P100: 0.2 | S100: 0
B101: 8550-K8 | C101: MANDATE BLOCK GRANT K-8 | D101: 0 | E101: 0 | F101: 0 | G101: 0 | H101: 0 | I101: 1 | J101: 0 | K101: 0 | L101: 0 | M101: 0 | N101: 0 | O101: 0 | P101: 0 | S101: 0
B102: 8550-912 | C102: MANDATE BLOCK GRANT 9-12 | D102: 0 | E102: 0 | F102: 0 | G102: 0 | H102: 0 | I102: 1 | J102: 0 | K102: 0 | L102: 0 | M102: 0 | N102: 0 | O102: 0 | P102: 0 | S102: 0
B103: 8560-12 | C103: RESTRICTED LOTTERY | D103: 0 | E103: 0 | F103: 0 | G103: 0 | H103: 0 | I103: 0.25 | J103: 0 | K103: 0 | L103: 0 | M103: 0.25 | N103: 0 | O103: 0.25 | P103: 0.25 | S103: 0
B104: 8560-22 | C104: LOTTERY | D104: 0 | E104: 0 | F104: 0 | G104: 0 | H104: 0 | I104: 0.25 | J104: 0 | K104: 0 | L104: 0 | M104: 0.25 | N104: 0 | O104: 0.25 | P104: 0.25 | S104: 0
B105: 8590-00 | C105: OTHER STATE REVENUE | D105: 0 | E105: 0 | F105: 0 | G105: 0 | H105: 0 | I105: 0.25 | J105: 0 | K105: 0 | L105: 0 | M105: 0.25 | N105: 0 | O105: 0.25 | P105: 0.25
B106: 8590-63 | C106: CTEIG | D106: 0 | E106: 0 | F106: 0 | G106: 0 | H106: 0 | I106: 0 | J106: 0 | K106: 0 | L106: 1 | M106: 0 | N106: 0 | O106: 0 | P106: 0
B107: 8590-66 | C107: MENTAL HEALTH | D107: 0 | E107: 0 | F107: 0 | G107: 0 | H107: 0 | I107: 0.25 | J107: 0 | K107: 0 | L107: 0 | M107: 0.25 | N107: 0 | O107: 0.25 | P107: 0.25
B108: 8590-7422 | C108: IN PERSON LEARNING | D108: 0 | E108: 0 | F108: 0 | G108: 0 | H108: 0 | I108: 0.25 | J108: 0 | K108: 0 | L108: 0 | M108: 0.25 | N108: 0 | O108: 0.25 | P108: 0.25
B109: 8590-7425 | C109: EXTENDED LEARNING GRANT | D109: 0 | E109: 0 | F109: 0 | G109: 0 | H109: 0 | I109: 0.25 | J109: 0 | K109: 0 | L109: 0 | M109: 0.25 | N109: 0 | O109: 0.25 | P109: 0.25
B110: 8590-7426 | C110: EXTENDED LEARNING GRANT PARAPROFESSIONALS | D110: 0 | E110: 0 | F110: 0 | G110: 0 | H110: 0 | I110: 0.25 | J110: 0 | K110: 0 | L110: 0 | M110: 0.25 | N110: 0 | O110: 0.25 | P110: 0.25
B111: 8590-73 | C111: Specialized Secondary Program | D111: 0 | E111: 0 | F111: 0 | G111: 0 | H111: 0 | I111: 0.25 | J111: 0 | K111: 0 | L111: 0 | M111: 0.25 | N111: 0 | O111: 0.25 | P111: 0.25
B112: 8590-74 | C112: LLMF - General Fund | D112: 0 | E112: 0 | F112: 0 | G112: 0 | H112: 0 | I112: 0.25 | J112: 0 | K112: 0 | L112: 0 | M112: 0.25 | N112: 0 | O112: 0.25 | P112: 0.25
B113: 8590-75 | C113: CalEd Grant | D113: 0 | E113: 0 | F113: 0 | G113: 0 | H113: 0 | I113: 0.25 | J113: 0 | K113: 0 | L113: 0 | M113: 0.25 | N113: 0 | O113: 0.25 | P113: 0.25
B114: 8590-76 | C114: Low Preforming Student Block Grant | D114: 0 | E114: 0 | F114: 0 | G114: 0 | H114: 0 | I114: 0.25 | J114: 0 | K114: 0 | L114: 0 | M114: 0.25 | N114: 0 | O114: 0.25 | P114: 0.25
B115: 8590-90 | C115: Community College - Strong Workforce Partnership | D115: 0 | E115: 0 | F115: 0 | G115: 0 | H115: 0 | I115: 0 | J115: 0 | K115: 0 | L115: 0 | M115: 0 | N115: 0 | O115: 0.5 | P115: 0.5
B116: 8591 | C116: SB740 | D116: 0 | E116: 0 | F116: 0 | G116: 0 | H116: 0 | I116: 0.25 | J116: 0 | K116: 0 | L116: 0 | M116: 0.25 | N116: 0 | O116: 0.25 | P116: 0.25
B117: 8599 | C117: Prior Year State Income/Adjustments | D117: 0 | E117: 0 | F117: 0 | G117: 0 | H117: 0 | I117: 0 | J117: 0.4 | K117: 0 | L117: 0 | M117: 0.4 | N117: 0 | O117: 0 | P117: 0.2 | S117: 0
B118: 8639 | C118: Student Lunch Revenue | D118: 0.083 | E118: 0.083 | F118: 0.083 | G118: 0.083 | H118: 0.083 | I118: 0.083 | J118: 0.083 | K118: 0.083 | L118: 0.084 | M118: 0.084 | N118: 0.084 | O118: 0.084 | P118: 0 | S118: 0
B119: 8650 | C119: Rental Income | D119: 0 | E119: 0 | F119: 0.1 | G119: 0.1 | H119: 0.1 | I119: 0.1 | J119: 0.1 | K119: 0.1 | L119: 0.1 | M119: 0.1 | N119: 0.1 | O119: 0.1 | P119: 0 | S119: 0
B120: 8660 | C120: Interest Income | D120: 0 | E120: 0 | F120: 0.1 | G120: 0.1 | H120: 0.1 | I120: 0.1 | J120: 0.1 | K120: 0.1 | L120: 0.1 | M120: 0.1 | N120: 0.1 | O120: 0.1 | P120: 0 | S120: 0
B121: 8682 | C121: Committee for Children | D121: 0 | E121: 0 | F121: 0.1 | G121: 0.1 | H121: 0.1 | I121: 0.1 | J121: 0.1 | K121: 0.1 | L121: 0.1 | M121: 0.1 | N121: 0.1 | O121: 0.1 | P121: 0 | S121: 0
B122: 8685 | C122: School Site Fundraising | D122: 0 | E122: 0 | F122: 0.1 | G122: 0.1 | H122: 0.1 | I122: 0.1 | J122: 0.1 | K122: 0.1 | L122: 0.1 | M122: 0.1 | N122: 0.1 | O122: 0.1 | P122: 0 | S122: 0
B123: 8698 | C123: E-rate Revenue | D123: 0 | E123: 0 | F123: 0.1 | G123: 0.1 | H123: 0.1 | I123: 0.1 | J123: 0.1 | K123: 0.1 | L123: 0.1 | M123: 0.1 | N123: 0.1 | O123: 0.1 | P123: 0 | S123: 0
B124: 8699 | C124: All Other Local Revenue | D124: 0 | E124: 0 | F124: 0.1 | G124: 0.1 | H124: 0.1 | I124: 0.1 | J124: 0.1 | K124: 0.1 | L124: 0.1 | M124: 0.1 | N124: 0.1 | O124: 0.1 | P124: 0 | S124: 0
B125: 8791 | C125: SPED State/Other Transfers of Apportionments from County | D125: See Revenue Input Tab for Appropriate Formula - Revised per Actual CDE Approtionment Payment Schedule
B126: 8792 | C126: SPED State/Other Transfers of Apportionments from County | D126: 0.05 | E126: 0.05 | F126: 0.09 | G126: 0.09 | H126: 0.09 | I126: 0.09 | J126: 0.09 | K126: 0.09 | L126: 0.09 | M126: 0.09 | N126: 0.09 | O126: 0.09 | P126: 0
B127: 1100 | C127: Teacher Salaries | D127: 0.04 | E127: 0.04 | F127: 0.092 | G127: 0.092 | H127: 0.092 | I127: 0.092 | J127: 0.092 | K127: 0.092 | L127: 0.092 | M127: 0.092 | N127: 0.092 | O127: 0.092 | P127: 0 | S127: 0
B128: 1105 | C128: Teach Stipends | D128: 0 | E128: 0.091 | F128: 0.091 | G128: 0.091 | H128: 0.091 | I128: 0.091 | J128: 0.091 | K128: 0.091 | L128: 0.091 | M128: 0.091 | N128: 0.091 | O128: 0.09 | P128: 0 | S128: 0
B129: 1120 | C129: Substitute Expense | D129: 0 | E129: 0.091 | F129: 0.091 | G129: 0.091 | H129: 0.091 | I129: 0.091 | J129: 0.091 | K129: 0.091 | L129: 0.091 | M129: 0.091 | N129: 0.091 | O129: 0.09 | P129: 0 | S129: 0
B130: 1200 | C130: Certificated Pupil Support Salaries | D130: 0 | E130: 0.091 | F130: 0.091 | G130: 0.091 | H130: 0.091 | I130: 0.091 | J130: 0.091 | K130: 0.091 | L130: 0.091 | M130: 0.091 | N130: 0.091 | O130: 0.09 | P130: 0 | S130: 0
B131: 1300 | C131: Certificated Supervisor and Administrator Salaries | D131: 0.05 | E131: 0.05 | F131: 0.09 | G131: 0.09 | H131: 0.09 | I131: 0.09 | J131: 0.09 | K131: 0.09 | L131: 0.09 | M131: 0.09 | N131: 0.09 | O131: 0.09 | P131: 0 | S131: 0
B132: 1900 | C132: Other Certificated Salaries | D132: 0.04 | E132: 0.04 | F132: 0.092 | G132: 0.092 | H132: 0.092 | I132: 0.092 | J132: 0.092 | K132: 0.092 | L132: 0.092 | M132: 0.092 | N132: 0.092 | O132: 0.092 | P132: 0 | S132: 0
B133: 2100 | C133: Instructional Aide Salaries | D133: 0.05 | E133: 0.05 | F133: 0.09 | G133: 0.09 | H133: 0.09 | I133: 0.09 | J133: 0.09 | K133: 0.09 | L133: 0.09 | M133: 0.09 | N133: 0.09 | O133: 0.09 | P133: 0 | S133: 0
B134: 2200 | C134: Classified Support Salaries (Maintenance, Food) | D134: 0.05 | E134: 0.05 | F134: 0.09 | G134: 0.09 | H134: 0.09 | I134: 0.09 | J134: 0.09 | K134: 0.09 | L134: 0.09 | M134: 0.09 | N134: 0.09 | O134: 0.09 | P134: 0 | S134: 0
B135: 2300 | C135: Classified SupervisorandAdministrator Salaries | D135: 0.083 | E135: 0.083 | F135: 0.083 | G135: 0.083 | H135: 0.083 | I135: 0.083 | J135: 0.083 | K135: 0.083 | L135: 0.084 | M135: 0.084 | N135: 0.084 | O135: 0.084 | P135: 0 | S135: 0
B136: 2400 | C136: Clerical,Technical and Office Staff Salaries | D136: 0.083 | E136: 0.083 | F136: 0.083 | G136: 0.083 | H136: 0.083 | I136: 0.083 | J136: 0.083 | K136: 0.083 | L136: 0.084 | M136: 0.084 | N136: 0.084 | O136: 0.084 | P136: 0 | S136: 0
B137: 2900 | C137: Other Classified Salaries | D137: 0.083 | E137: 0.083 | F137: 0.083 | G137: 0.083 | H137: 0.083 | I137: 0.083 | J137: 0.083 | K137: 0.083 | L137: 0.084 | M137: 0.084 | N137: 0.084 | O137: 0.084 | P137: 0 | S137: 0
B138: 3101 | C138: State Teachers' Retirement System, certificated positions | D138: 0.04 | E138: 0.04 | F138: 0.092 | G138: 0.092 | H138: 0.092 | I138: 0.092 | J138: 0.092 | K138: 0.092 | L138: 0.092 | M138: 0.092 | N138: 0.092 | O138: 0.092 | P138: 0 | S138: 0
B139: 3102 | C139: State Teachers' Retirement System, classified positions | D139: 0.05 | E139: 0.05 | F139: 0.09 | G139: 0.09 | H139: 0.09 | I139: 0.09 | J139: 0.09 | K139: 0.09 | L139: 0.09 | M139: 0.09 | N139: 0.09 | O139: 0.09 | P139: 0
B140: 3202 | C140: Public Employees Retirement System | D140: 0.05 | E140: 0.05 | F140: 0.09 | G140: 0.09 | H140: 0.09 | I140: 0.09 | J140: 0.09 | K140: 0.09 | L140: 0.09 | M140: 0.09 | N140: 0.09 | O140: 0.09 | P140: 0 | S140: 0
B141: 3301 | C141: OASDI/Medicare Certificated, Unrestricted | D141: 0.05 | E141: 0.05 | F141: 0.09 | G141: 0.09 | H141: 0.09 | I141: 0.09 | J141: 0.09 | K141: 0.09 | L141: 0.09 | M141: 0.09 | N141: 0.09 | O141: 0.09 | P141: 0
B142: 3302 | C142: OASDI/Medicare Classified, Unrestricted | D142: 0.05 | E142: 0.05 | F142: 0.09 | G142: 0.09 | H142: 0.09 | I142: 0.09 | J142: 0.09 | K142: 0.09 | L142: 0.09 | M142: 0.09 | N142: 0.09 | O142: 0.09 | P142: 0
B143: 3313 | C143: OASDI | D143: 0.05 | E143: 0.05 | F143: 0.09 | G143: 0.09 | H143: 0.09 | I143: 0.09 | J143: 0.09 | K143: 0.09 | L143: 0.09 | M143: 0.09 | N143: 0.09 | O143: 0.09 | P143: 0 | S143: 0
B144: 3323 | C144: Medicare | D144: 0.05 | E144: 0.05 | F144: 0.09 | G144: 0.09 | H144: 0.09 | I144: 0.09 | J144: 0.09 | K144: 0.09 | L144: 0.09 | M144: 0.09 | N144: 0.09 | O144: 0.09 | P144: 0 | S144: 0
B145: 3401 | C145: Health & Welfare Benefits, Certificated | D145: 0.05 | E145: 0.05 | F145: 0.09 | G145: 0.09 | H145: 0.09 | I145: 0.09 | J145: 0.09 | K145: 0.09 | L145: 0.09 | M145: 0.09 | N145: 0.09 | O145: 0.09 | P145: 0
B146: 3402 | C146: Health & Welfare Benefits, Classified | D146: 0.05 | E146: 0.05 | F146: 0.09 | G146: 0.09 | H146: 0.09 | I146: 0.09 | J146: 0.09 | K146: 0.09 | L146: 0.09 | M146: 0.09 | N146: 0.09 | O146: 0.09 | P146: 0
B147: 3403 | C147: Health & Welfare Benefits | D147: 0.083 | E147: 0.083 | F147: 0.083 | G147: 0.083 | H147: 0.083 | I147: 0.083 | J147: 0.083 | K147: 0.083 | L147: 0.083 | M147: 0.083 | N147: 0.083 | O147: 0.087 | P147: 0 | S147: 0
B148: 3501 | C148: State Unemployment Insurane Certificated, Unrestricted | D148: 0.083 | E148: 0.083 | F148: 0.083 | G148: 0.083 | H148: 0.083 | I148: 0.083 | J148: 0.083 | K148: 0.083 | L148: 0.084 | M148: 0.084 | N148: 0.084 | O148: 0.084 | P148: 0
B149: 3502 | C149: State Unemployment Insurance Classified SPED | D149: 0.083 | E149: 0.083 | F149: 0.083 | G149: 0.083 | H149: 0.083 | I149: 0.083 | J149: 0.083 | K149: 0.083 | L149: 0.084 | M149: 0.084 | N149: 0.084 | O149: 0.084 | P149: 0 | S149: 0
B150: 3503 | C150: State Unemployment Insurance | D150: 0.083 | E150: 0.083 | F150: 0.083 | G150: 0.083 | H150: 0.083 | I150: 0.083 | J150: 0.083 | K150: 0.083 | L150: 0.084 | M150: 0.084 | N150: 0.084 | O150: 0.084 | P150: 0 | S150: 0
B151: 3603 | C151: Worker Compensation Insurance | D151: 0.083 | E151: 0.083 | F151: 0.083 | G151: 0.083 | H151: 0.083 | I151: 0.083 | J151: 0.083 | K151: 0.083 | L151: 0.084 | M151: 0.084 | N151: 0.084 | O151: 0.084 | P151: 0 | S151: 0
B152: 3703 | C152: Other Post Employment Benefits | D152: 0.083 | E152: 0.083 | F152: 0.083 | G152: 0.083 | H152: 0.083 | I152: 0.083 | J152: 0.083 | K152: 0.083 | L152: 0.084 | M152: 0.084 | N152: 0.084 | O152: 0.084 | P152: 0 | S152: 0
B153: 3903 | C153: Other Employee Benefits | D153: 0.083 | E153: 0.083 | F153: 0.083 | G153: 0.083 | H153: 0.083 | I153: 0.083 | J153: 0.083 | K153: 0.083 | L153: 0.084 | M153: 0.084 | N153: 0.084 | O153: 0.084 | P153: 0 | S153: 0
B154: 4100 | C154: Approved Textbooks and Core Curricula Materials | D154: 0 | E154: 0 | F154: 0 | G154: 0 | H154: 0 | I154: 0.2 | J154: 0.2 | K154: 0 | L154: 0 | M154: 0.2 | N154: 0.2 | O154: 0.2 | P154: 0 | S154: 0
B155: 4200 | C155: Books and Other Reference Materials | D155: 0.1 | E155: 0.2 | F155: 0.2 | G155: 0.1 | H155: 0.05 | I155: 0.05 | J155: 0.05 | K155: 0.05 | L155: 0.05 | M155: 0.05 | N155: 0.05 | O155: 0.05 | P155: 0 | S155: 0
B156: 4300 | C156: Materials and Supplies | D156: 0.083 | E156: 0.083 | F156: 0.083 | G156: 0.083 | H156: 0.083 | I156: 0.083 | J156: 0.083 | K156: 0.083 | L156: 0.084 | M156: 0.084 | N156: 0.084 | O156: 0.084 | P156: 0 | S156: 0
B157: 4301 | C157: Positive Behavior Expenses | D157: 0.1 | E157: 0.2 | F157: 0.2 | G157: 0 | H157: 0 | I157: 0 | J157: 0.2 | K157: 0.1 | L157: 0.1 | M157: 0.1 | N157: 0 | O157: 0 | P157: 0 | S157: 0
B158: 4315 | C158: Classroom Materials and Supplies | D158: 0.083 | E158: 0.083 | F158: 0.083 | G158: 0.083 | H158: 0.083 | I158: 0.083 | J158: 0.083 | K158: 0.083 | L158: 0.084 | M158: 0.084 | N158: 0.084 | O158: 0.084 | P158: 0 | S158: 0
B159: 4342 | C159: Materials for School Sponsored Athletics | D159: 0.083 | E159: 0.083 | F159: 0.083 | G159: 0.083 | H159: 0.083 | I159: 0.083 | J159: 0.083 | K159: 0.083 | L159: 0.084 | M159: 0.084 | N159: 0.084 | O159: 0.084 | P159: 0 | S159: 0
B160: 4381 | C160: Plant/Facilities Maintenance | D160: 0.083 | E160: 0.083 | F160: 0.083 | G160: 0.083 | H160: 0.083 | I160: 0.083 | J160: 0.083 | K160: 0.083 | L160: 0.084 | M160: 0.084 | N160: 0.084 | O160: 0.084 | P160: 0 | S160: 0
B161: 4400 | C161: Noncapitalized Equipment | D161: 0.083 | E161: 0.083 | F161: 0.083 | G161: 0.083 | H161: 0.083 | I161: 0.083 | J161: 0.083 | K161: 0.083 | L161: 0.084 | M161: 0.084 | N161: 0.084 | O161: 0.084 | P161: 0 | S161: 0
B162: 4405 | C162: Non Educational Computer Software | D162: 0.083 | E162: 0.083 | F162: 0.083 | G162: 0.083 | H162: 0.083 | I162: 0.083 | J162: 0.083 | K162: 0.083 | L162: 0.084 | M162: 0.084 | N162: 0.084 | O162: 0.084 | P162: 0 | S162: 0
B163: 4407 | C163: Student Educational Software | D163: 0.083 | E163: 0.083 | F163: 0.083 | G163: 0.083 | H163: 0.083 | I163: 0.083 | J163: 0.083 | K163: 0.083 | L163: 0.084 | M163: 0.084 | N163: 0.084 | O163: 0.084 | P163: 0 | S163: 0
B164: 4410 | C164: Software and Software Licensing | D164: 0.083 | E164: 0.083 | F164: 0.083 | G164: 0.083 | H164: 0.083 | I164: 0.083 | J164: 0.083 | K164: 0.083 | L164: 0.084 | M164: 0.084 | N164: 0.084 | O164: 0.084 | P164: 0 | S164: 0
B165: 4430 | C165: Noncapitalized Student Equipment | D165: 0.083 | E165: 0.083 | F165: 0.083 | G165: 0.083 | H165: 0.083 | I165: 0.083 | J165: 0.083 | K165: 0.083 | L165: 0.084 | M165: =0.084*3 -> 0.252 | N165: 0 | O165: 0 | P165: 0 | S165: 0
B166: 4700 | C166: Food and Food Supplies | D166: 0.083 | E166: 0.083 | F166: 0.083 | G166: 0.083 | H166: 0.083 | I166: 0.083 | J166: 0.083 | K166: 0.083 | L166: 0.084 | M166: 0.084 | N166: 0.084 | O166: 0.084 | P166: 0 | S166: 0
B167: 5100 | C167: Subagreements for Services | D167: 0.083 | E167: 0.083 | F167: 0.083 | G167: 0.083 | H167: 0.083 | I167: 0.083 | J167: 0.083 | K167: 0.083 | L167: 0.084 | M167: 0.084 | N167: 0.084 | O167: 0.084 | P167: 0 | S167: 0
B168: 5200 | C168: Travel and Conferences | D168: 0.083 | E168: 0.083 | F168: 0.083 | G168: 0.083 | H168: 0.083 | I168: 0.083 | J168: 0.083 | K168: 0.083 | L168: 0.084 | M168: 0.084 | N168: 0.084 | O168: 0.084 | P168: 0 | S168: 0
B169: 5210 | C169: Training and Development Expense | D169: 0.083 | E169: 0.083 | F169: 0.083 | G169: 0.083 | H169: 0.083 | I169: 0.083 | J169: 0.083 | K169: 0.083 | L169: 0.084 | M169: 0.084 | N169: 0.084 | O169: 0.084 | P169: 0 | S169: =1-SUM($D169:$R169) -> 0
B170: 5300 | C170: Dues and Memberships | D170: 0.083 | E170: 0.083 | F170: 0.083 | G170: 0.083 | H170: 0.083 | I170: 0.083 | J170: 0.083 | K170: 0.083 | L170: 0.084 | M170: 0.084 | N170: 0.084 | O170: 0.084 | P170: 0 | S170: 0
B171: 5400 | C171: Insurance | D171: 0.083 | E171: 0.083 | F171: 0.083 | G171: 0.083 | H171: 0.083 | I171: 0.083 | J171: 0.083 | K171: 0.083 | L171: 0.084 | M171: 0.084 | N171: 0.084 | O171: 0.084 | P171: 0 | S171: 0
B172: 5500 | C172: Operation and Housekeeping Services | D172: 0.083 | E172: 0.083 | F172: 0.083 | G172: 0.083 | H172: 0.083 | I172: 0.083 | J172: 0.083 | K172: 0.083 | L172: 0.084 | M172: 0.084 | N172: 0.084 | O172: 0.084 | P172: 0 | S172: 0
B173: 5501 | C173: Utilities | D173: =1/12 -> 0.08333333333 | E173: =1/12 -> 0.08333333333 | F173: 0.08333333333 | G173: 0.08333333333 | H173: 0.08333333333 | I173: 0.08333333333 | J173: 0.08333333333 | K173: 0.08333333333 | L173: 0.08333333333 | M173: 0.08333333333 | N173: 0.08333333333 | O173: 0.08333333333 | P173: 0 | S173: 0
B174: 5510 | C174: Security Services | D174: =1/12 -> 0.08333333333 | E174: 0.08333333333 | F174: 0.08333333333 | G174: 0.08333333333 | H174: 0.08333333333 | I174: 0.08333333333 | J174: 0.08333333333 | K174: 0.08333333333 | L174: 0.08333333333 | M174: 0.08333333333 | N174: 0.08333333333 | O174: 0.08333333333 | P174: 0 | S174: 0
B175: 5600 | C175: Rentals, Leases, Repairs, and Noncapitalized Improvements | D175: =1/12 -> 0.08333333333 | E175: 0.08333333333 | F175: 0.08333333333 | G175: 0.08333333333 | H175: 0.08333333333 | I175: 0.08333333333 | J175: 0.08333333333 | K175: 0.08333333333 | L175: 0.08333333333 | M175: 0.08333333333 | N175: 0.08333333333 | O175: 0.08333333333 | P175: 0 | S175: 0
B176: 5601 | C176: Building Maintenance | D176: 0.08333333333 | E176: 0.08333333333 | F176: 0.08333333333 | G176: 0.08333333333 | H176: 0.08333333333 | I176: 0.08333333333 | J176: 0.08333333333 | K176: 0.08333333333 | L176: 0.08333333333 | M176: 0.08333333333 | N176: 0.08333333333 | O176: 0.08333333333 | P176: 0 | S176: 0
B177: 5602 | C177: Other Space Rental | D177: 0.08333333333 | E177: 0.08333333333 | F177: 0.08333333333 | G177: 0.08333333333 | H177: 0.08333333333 | I177: 0.08333333333 | J177: 0.08333333333 | K177: 0.08333333333 | L177: 0.08333333333 | M177: 0.08333333333 | N177: 0.08333333333 | O177: 0.08333333333 | P177: 0 | S177: 0
B178: 5605 | C178: Equipment Rental/Lease Expense | D178: 0.08333333333 | E178: 0.08333333333 | F178: 0.08333333333 | G178: 0.08333333333 | H178: 0.08333333333 | I178: 0.08333333333 | J178: 0.08333333333 | K178: 0.08333333333 | L178: 0.08333333333 | M178: 0.08333333333 | N178: 0.08333333333 | O178: 0.08333333333 | P178: 0 | S178: 0
B179: 5610 | C179: Equipment Repair | D179: 0.08333333333 | E179: 0.08333333333 | F179: 0.08333333333 | G179: 0.08333333333 | H179: 0.08333333333 | I179: 0.08333333333 | J179: 0.08333333333 | K179: 0.08333333333 | L179: 0.08333333333 | M179: 0.08333333333 | N179: 0.08333333333 | O179: 0.08333333333 | P179: 0 | S179: 0
B180: 5800 | C180: Professional/Consulting Services and Operating Expenditures | D180: 0.08333333333 | E180: 0.08333333333 | F180: 0.08333333333 | G180: 0.08333333333 | H180: 0.08333333333 | I180: 0.08333333333 | J180: 0.08333333333 | K180: 0.08333333333 | L180: 0.08333333333 | M180: 0.08333333333 | N180: 0.08333333333 | O180: 0.08333333333 | P180: 0 | S180: 0
B181: 5803 | C181: Banking and Payroll Service Fees | D181: 0.08333333333 | E181: 0.08333333333 | F181: 0.08333333333 | G181: 0.08333333333 | H181: 0.08333333333 | I181: 0.08333333333 | J181: 0.08333333333 | K181: 0.08333333333 | L181: 0.08333333333 | M181: 0.08333333333 | N181: 0.08333333333 | O181: 0.08333333333 | P181: 0 | S181: 0
B182: 5805 | C182: Legal Services and Audit | D182: 0.08333333333 | E182: 0.08333333333 | F182: 0.08333333333 | G182: 0.08333333333 | H182: 0.08333333333 | I182: 0.08333333333 | J182: 0.08333333333 | K182: 0.08333333333 | L182: 0.08333333333 | M182: 0.08333333333 | N182: 0.08333333333 | O182: 0.08333333333 | P182: 0 | S182: 0
B183: 5806 | C183: Audit Services | D183: 0.08333333333 | E183: 0.08333333333 | F183: 0.08333333333 | G183: 0.08333333333 | H183: 0.08333333333 | I183: 0.08333333333 | J183: 0.08333333333 | K183: 0.08333333333 | L183: 0.08333333333 | M183: 0.08333333333 | N183: 0.08333333333 | O183: 0.08333333333 | P183: 0 | S183: 0
B184: 5807 | C184: CSMC Fees | D184: 0.08333333333 | E184: 0.08333333333 | F184: 0.08333333333 | G184: 0.08333333333 | H184: 0.08333333333 | I184: 0.08333333333 | J184: 0.08333333333 | K184: 0.08333333333 | L184: 0.08333333333 | M184: 0.08333333333 | N184: 0.08333333333 | O184: 0.08333333333 | P184: 0 | S184: 0
B185: 5809 | C185: Employee Tuition Reimbursement | D185: 0.08333333333 | E185: 0.08333333333 | F185: 0.08333333333 | G185: 0.08333333333 | H185: 0.08333333333 | I185: 0.08333333333 | J185: 0.08333333333 | K185: 0.08333333333 | L185: 0.08333333333 | M185: 0.08333333333 | N185: 0.08333333333 | O185: 0.08333333333 | P185: 0 | S185: 0
B186: 5810 | C186: Educational Consultants | D186: 0.08333333333 | E186: 0.08333333333 | F186: 0.08333333333 | G186: 0.08333333333 | H186: 0.08333333333 | I186: 0.08333333333 | J186: 0.08333333333 | K186: 0.08333333333 | L186: 0.08333333333 | M186: 0.08333333333 | N186: 0.08333333333 | O186: 0.08333333333 | P186: 0 | S186: 0
B187: 5811 | C187: Student Transportation and Field Trips | D187: 0.083 | E187: 0.083 | F187: 0.083 | G187: 0.083 | H187: 0.083 | I187: 0.083 | J187: 0.083 | K187: 0.083 | L187: 0.084 | M187: 0.084 | N187: 0.084 | O187: 0.084 | P187: 0 | S187: 0
B188: 5812 | C188: Other Student Activities | D188: 0.083 | E188: 0.083 | F188: 0.083 | G188: 0.083 | H188: 0.083 | I188: 0.083 | J188: 0.083 | K188: 0.083 | L188: 0.084 | M188: 0.084 | N188: 0.084 | O188: 0.084 | P188: 0 | S188: 0
B189: 5815 | C189: Advertising/Recruiting | D189: 0.083 | E189: 0.083 | F189: 0.083 | G189: 0.083 | H189: 0.083 | I189: 0.083 | J189: 0.083 | K189: 0.083 | L189: 0.084 | M189: 0.084 | N189: 0.084 | O189: 0.084 | P189: 0 | S189: 0
B190: 5820 | C190: Fundraising Expense | D190: 0.083 | E190: 0.083 | F190: 0.083 | G190: 0.083 | H190: 0.083 | I190: 0.083 | J190: 0.083 | K190: 0.083 | L190: 0.084 | M190: 0.084 | N190: 0.084 | O190: 0.084 | P190: 0 | S190: 0
B191: 5830 | C191: Field Trips | D191: 0 | E191: 0 | F191: 0.1 | G191: 0.1 | H191: 0.1 | I191: 0.1 | J191: 0.1 | K191: 0.1 | L191: 0.1 | M191: 0.1 | N191: 0.1 | O191: 0.1 | P191: 0 | S191: 0
B192: 5836 | C192: Transportation Services | D192: 0 | E192: 0 | F192: 0.1 | G192: 0.1 | H192: 0.1 | I192: 0.1 | J192: 0.1 | K192: 0.1 | L192: 0.1 | M192: 0.1 | N192: 0.2 | O192: 0 | P192: 0 | S192: 0
B193: 5842 | C193: Services Student Athletics | D193: 0.083 | E193: 0.083 | F193: 0.083 | G193: 0.083 | H193: 0.083 | I193: 0.083 | J193: 0.083 | K193: 0.083 | L193: 0.084 | M193: 0.084 | N193: 0.084 | O193: 0.084 | P193: 0 | S193: 0
B194: 5873 | C194: Financial Services | D194: 0.083 | E194: 0.083 | F194: 0.083 | G194: 0.083 | H194: 0.083 | I194: 0.083 | J194: 0.083 | K194: 0.083 | L194: 0.084 | M194: 0.084 | N194: 0.084 | O194: 0.084 | P194: 0 | S194: 0
B195: 5874 | C195: Personnel Services | D195: 0.083 | E195: 0.083 | F195: 0.083 | G195: 0.083 | H195: 0.083 | I195: 0.083 | J195: 0.083 | K195: 0.083 | L195: 0.084 | M195: 0.084 | N195: 0.084 | O195: 0.084 | P195: 0 | S195: 0
B196: 5875 | C196: District Oversight Fee | D196: 0 | E196: 0 | F196: 0.1 | G196: 0.1 | H196: 0.1 | I196: 0.1 | J196: 0.1 | K196: 0.1 | L196: 0.1 | M196: 0.1 | N196: 0.1 | O196: 0.1 | P196: 0 | S196: =1-SUM($D196:$R196) -> 0
B197: 5877 | C197: IT Services | D197: 0.083 | E197: 0.083 | F197: 0.083 | G197: 0.083 | H197: 0.083 | I197: 0.083 | J197: 0.083 | K197: 0.083 | L197: 0.084 | M197: 0.084 | N197: 0.084 | O197: 0.084 | P197: 0 | S197: =1-SUM($D197:$R197) -> 0
B198: 5890 | C198: Interest Expenses/Fees | D198: 0.083 | E198: 0.083 | F198: 0.083 | G198: 0.083 | H198: 0.083 | I198: 0.083 | J198: 0.083 | K198: 0.083 | L198: 0.084 | M198: 0.084 | N198: 0.084 | O198: 0.084 | P198: 0 | S198: =1-SUM($D198:$R198) -> 0
B199: 5899 | C199: Management Fees Expense | D199: 0.083 | E199: 0.083 | F199: 0.083 | G199: 0.083 | H199: 0.083 | I199: 0.083 | J199: 0.083 | K199: 0.083 | L199: 0.084 | M199: 0.084 | N199: 0.084 | O199: 0.084 | P199: 0 | S199: 0
B200: 5900 | C200: Communications (Tele., Internet, Copies,Postage,Messenger) | D200: 0.083 | E200: 0.083 | F200: 0.083 | G200: 0.083 | H200: 0.083 | I200: 0.083 | J200: 0.083 | K200: 0.083 | L200: 0.084 | M200: =0.084*2 -> 0.168 | N200: 0 | O200: 0.084 | P200: 0 | S200: 0
B201: 5998 | C201: Unallocated Credit Card Expense | D201: 0.083 | E201: 0.083 | F201: 0.083 | G201: 0.083 | H201: 0.083 | I201: 0.083 | J201: 0.083 | K201: 0.083 | L201: 0.084 | M201: 0.084 | N201: 0.084 | O201: 0.084 | P201: 0 | S201: 0
B202: 6900 | C202: Depreciation Expense | D202: 0.083 | E202: 0.083 | F202: 0.083 | G202: 0.083 | H202: 0.083 | I202: 0.083 | J202: 0.083 | K202: 0.083 | L202: 0.084 | M202: 0.084 | N202: 0.084 | O202: 0.084 | P202: 0 | S202: 0
B203: 7141 | C203: SPED Encroachment | D203: 0.05 | E203: 0.05 | F203: 0.09 | G203: 0.09 | H203: 0.09 | I203: 0.09 | J203: 0.09 | K203: 0.09 | L203: 0.09 | M203: 0.09 | N203: 0.09 | O203: 0.09 | P203: 0 | S203: 0
B204: 7438 | C204: Debt Service Interest | D204: 0.09 | E204: 0.09 | F204: 0.09 | G204: 0 | H204: 0.09 | I204: 0.09 | J204: 0.09 | K204: 0.09 | L204: 0.09 | M204: 0.09 | N204: 0.09 | O204: 0.1 | P204: 0 | S204: 0
B205: 7439 | C205: Amortization of Loan Origination Costs | D205: 0 | E205: 0 | F205: 0.1 | G205: 0.1 | H205: 0.1 | I205: 0.1 | J205: 0.1 | K205: 0.1 | L205: 0.1 | M205: 0.1 | N205: 0.1 | O205: 0.1 | P205: 0 | S205: 0

Sheet CV Actuals Export (hidden)
A1: Account Code | B1: Description | C1: Period #1 Actual | D1: Period #2 Actual | E1: Period #3 Actual | F1: Period #4 Actual | G1: Period #5 Actual | H1: Period #6 Actual | I1: Period #7 Actual | J1: Period #8 Actual | K1: Period #9 Actual | L1: Period #10 Actual | M1: Period #11 Actual | N1: Period #12 Actual
A2: 8011 | B2: LCFF Revenues | C2: 132134 | D2: 132134 | E2: 237842 | F2: 237842 | G2: 237842 | H2: 237842 | I2: 237842 | J2: 173894 | K2: 173894 | L2: 173894 | M2: 0 | N2: 0
A3: 8012 | B3: Education Protection Account Revenue | E3: 28900 | H3: 28900 | K3: 25074 | N3: 0
A4: 8019 | B4: Prior Year Income/Adjustments | J4: -3092 | K4: -3092 | L4: -3092 | M4: 0 | N4: 0
A5: 8096 | B5: Charter Schools Funding In-Lieu of Property Taxes | D5: 243834 | E5: 487668 | F5: 325112 | G5: 325112 | H5: 325112 | I5: 325112 | J5: 325112 | K5: 571847 | L5: 278193 | M5: 0 | N5: 0
A6: LCFF | C6: 132134 | D6: 375968 | E6: 754410 | F6: 562954 | G6: 562954 | H6: 591854 | I6: 562954 | J6: 495914 | K6: 767723 | L6: 448995 | N6: 0
A7: 8181 | B7: Special Education - Entitlement | N7: 0
A8: 8290 | B8: All Other Federal Revenue | D8: 86229 | E8: 268270 | F8: 58683.23 | H8: 2265.81 | I8: 294366.23 | J8: 2919.69 | K8: 1099.15 | L8: 614 | N8: 0
A9: 8291 | B9: Title I Federal Revenue | F9: 43795 | I9: 45620 | L9: 0 | N9: 0
A10: 8292 | B10: Title II | F10: 4352 | I10: 0 | J10: 6200 | L10: 0 | N10: 0
A11: 8293 | B11: Title III Federal Revenue | F11: 2601 | I11: 0 | J11: 3159 | L11: 0 | N11: 0
A12: 8294 | B12: Title IV Federal Revenue | F12: 2865 | I12: 2868 | L12: 0 | N12: 0
A13: 8299 | B13: Prior Year Federal Income | F13: 558 | K13: -7510
A14: Federal Revenue | D14: 86229 | E14: 268270 | F14: 112854.23 | H14: 2265.81 | I14: 342854.23 | J14: 12278.69 | K14: -6410.85 | L14: 614 | N14: 0
A15: 8550 | B15: Mandate Cost Reimbursements | H15: 27652 | N15: 0
A16: 8560 | B16: State Lottery Revenue | H16: 0 | I16: 42726.25 | L16: 37640.27
A17: 8590 | B17: All Other State Revenues | F17: 281621.36 | G17: 53951.34 | H17: 133454 | I17: 140779 | K17: 0 | L17: 0 | M17: 0 | N17: 0
A18: 8599 | B18: Prior Year State Income | D18: 4226.23 | F18: 732.87 | I18: 1224.2 | M18: 0 | N18: 0
A19: 8792 | B19: SPED State/Other Transfers of Apportionments from County | C19: 0 | D19: 0 | E19: 0 | F19: 0 | G19: 66120 | H19: 0 | I19: 31320 | J19: 31320 | K19: 62640 | L19: 0 | M19: 0 | N19: 0
A20: Other State Revenue | C20: 0 | D20: 4226.23 | E20: 0 | F20: 282354.23 | G20: 120071.34 | H20: 161106 | I20: 216049.45 | J20: 31320 | K20: 62640 | L20: 37640.27
A21: 8660 | B21: Interest Income | C21: 28.65 | D21: 384.55 | E21: 0 | F21: 4677.79 | G21: 0 | H21: 0 | I21: 4562.09 | J21: 0 | K21: 0 | L21: 5200.84
A22: 8682 | B22: Foundation Grants/Donations | C22: 250 | D22: 20281 | E22: 121 | F22: 143175.28 | H22: 265 | I22: 2000 | J22: 1000 | K22: 3000 | L22: 630700 | M22: 0 | N22: 0
A23: 8685 | B23: School Site fundraising | D23: 130.09 | E23: 248 | G23: 66.06 | K23: 51.22 | L23: 10 | N23: 0
A24: 8698 | B24: E-Rate revenue | E24: 0 | F24: 0 | G24: 0 | H24: 0 | I24: 0 | J24: 0 | K24: 0 | L24: 0 | M24: 0 | N24: 0
A25: 8699 | B25: All Other Local Revenue | C25: 4470 | D25: 8630.84 | E25: 6800 | F25: 7324.3 | G25: 2700 | H25: 12504.48 | I25: 10428.26 | J25: 6878.78 | K25: 14749.1 | L25: 47403.69 | M25: 0 | N25: 0
A26: Local Revenue | C26: 4748.65 | D26: 29426.48 | E26: 7169 | F26: 155177.37 | G26: 2766.06 | H26: 12769.48 | I26: 16990.35 | J26: 7878.78 | K26: 17800.32 | L26: 683314.53 | M26: 0 | N26: 0
A27: Total Revenue | C27: 136882.65 | D27: 495849.71 | E27: 1029849 | F27: 1113339.83 | G27: 685791.4 | H27: 767995.29 | I27: 1138848.03 | J27: 547391.47 | K27: 841752.47 | L27: 1170563.8 | M27: 0 | N27: 0
A28: 1100 | B28: Teachers' Salaries | C28: 80257.79 | D28: 147720.62 | E28: 298942.19 | F28: 256400.49 | G28: 251076.74 | H28: 251750.78 | I28: 257891.45 | J28: 258489.58 | K28: 260365.73 | L28: 264877.09 | M28: 0 | N28: 0
A29: 1200 | B29: Certificated Pupil Support Salaries | D29: 0 | E29: 0 | F29: 0 | G29: 0 | H29: 0 | I29: 0 | J29: 0 | K29: 0 | L29: 0 | M29: 0 | N29: 0
A30: 1300 | B30: Certificated Supervisor and Administrator Salaries | C30: 61986.08 | D30: 62688.32 | E30: 61534.41 | F30: 60143.71 | G30: 64150.69 | H30: 62270.34 | I30: 57542.72 | J30: 59971.81 | K30: 60768.38 | L30: 59166.65 | M30: 0 | N30: 0
A31: 1900 | B31: Other Certificated Salaries | C31: 8715.3 | D31: 8750.01 | E31: 9738.78 | F31: 8194.45 | G31: 8750.01 | H31: 6597.24 | I31: 3333.33 | J31: 3333.33 | K31: 3333.34 | L31: 3333.33 | M31: 0 | N31: 0
A32: Certificated Salaries | C32: 150959.17 | D32: 219158.95 | E32: 370215.38 | F32: 324738.65 | G32: 323977.44 | H32: 320618.36 | I32: 318767.5 | J32: 321794.72 | K32: 324467.45 | L32: 327377.07 | M32: 0 | N32: 0
A33: 2100 | B33: Instructional Aide Salaries | C33: 31001.96 | D33: 39225.86 | E33: 91356.53 | F33: 76187.16 | G33: 75187.17 | H33: 72895.43 | I33: 82131.11 | J33: 86274.02 | K33: 90148.87 | L33: 73854.47 | M33: 0 | N33: 0
A34: 2200 | B34: Classified Support Salaries | C34: 4166.65 | D34: 4166.65 | E34: 5323.26 | F34: 4166.65 | G34: 4166.65 | H34: 4166.64 | I34: 4166.65 | J34: 4166.65 | K34: 4166.64 | L34: 4166.65
A35: 2400 | B35: Clerical, Technical, and Office Staff Salaries | C35: 32396.33 | D35: 34801.5 | E35: 40629.63 | F35: 33988.7 | G35: 33967.58 | H35: 32913.65 | I35: 33094.78 | J35: 36271.33 | K35: 35322.3 | L35: 29623.78 | M35: 0 | N35: 0
A36: 2900 | B36: Other Classified Salaries | C36: 7363.23 | D36: 7652.84 | E36: 8451.3 | F36: 6821.14 | G36: 3801.14 | H36: 3627.82 | I36: 5213.42 | J36: 4835.41 | K36: 5256.78 | L36: 5212.16 | M36: 0 | N36: 0
A37: Classified Salaries | C37: 74928.17 | D37: 85846.85 | E37: 145760.72 | F37: 121163.65 | G37: 117122.54 | H37: 113603.54 | I37: 124605.96 | J37: 131547.41 | K37: 134894.59 | L37: 112857.06
A38: 3101 | B38: State Teachers' Retirement System, certificated positions | C38: 25542.32 | D38: 37081.71 | E38: 54215.76 | F38: 54099.79 | G38: 53970.97 | H38: 53410.69 | I38: 53089.48 | J38: 53339.82 | K38: 54053.9 | L38: 54546.23
A39: 3102 | B39: State Teachers' Retirement System, classified positions | F39: 465.3 | I39: 392.62 | J39: 879.84 | K39: 879.84 | L39: 879.84 | M39: 0 | N39: 0
A40: 3301 | B40: OASDI/Medicare Certificated | C40: 2188.93 | D40: 3177.83 | E40: 5693.6 | F40: 4848.21 | G40: 5007.67 | H40: 4959.76 | I40: 4932.09 | J40: 4975.33 | K40: 5014.81 | L40: 5056.95 | M40: 0 | N40: 0
A41: 3302 | B41: OASDI/Medicare Classified | C41: 5731.99 | D41: 6567.27 | E41: 11150.71 | F41: 9098.51 | G41: 8959.9 | H41: 8698.02 | I41: 9388.48 | J41: 9733.71 | K41: 9997.02 | L41: 8311.14
A42: 3313 | B42: OASDI | C42: 0 | D42: 0 | E42: 0 | F42: 0 | G42: 0 | H42: 0 | I42: 0 | J42: 0 | K42: 0 | L42: 0
A43: 3323 | B43: Medicare | C43: 0 | D43: 0 | E43: 0 | F43: 0 | G43: 0 | H43: 0 | I43: 0 | J43: 0 | K43: 0 | L43: 0 | M43: 0 | N43: 0
A44: 3401 | B44: Health & Welfare Benefits, Certificated | C44: 106722.79 | D44: 44701.62 | E44: -569.71 | F44: 11622.61 | G44: 39604.53 | H44: 41850.35 | I44: 51001.74 | J44: 45086.59 | K44: 44717.38 | L44: 45742.75
A45: 3402 | B45: Health & Welfare Benefits Classified | D45: -608.5 | E45: -1217 | F45: 68679.06 | G45: -1220.25 | H45: -1162.72 | I45: -1308.73 | J45: -1580.75 | K45: -1466.17 | L45: -1447.04
A46: 3403 | B46: Health & Welfare Benefits | C46: 0 | D46: 0 | E46: 0 | F46: 0 | H46: 0 | I46: 0 | J46: 0 | K46: 0 | L46: 0 | M46: 0 | N46: 0
A47: 3501 | B47: State Unemployment Insurance Certificated, Unrestricted | C47: 191.18 | D47: 337.86 | E47: 314.92 | H47: 5394.78 | I47: 4045.28 | J47: 298.84 | K47: 64.61 | M47: 0 | N47: 0
A48: 3502 | B48: State Unemployment Insurance Classified, Unrestricted | C48: 99.15 | D48: 319.37 | E48: 454.9 | F48: 447.22 | G48: 332.89 | H48: 1939.08 | I48: 2655.77 | J48: 644.35 | K48: 220.7 | L48: 153.36 | M48: 0 | N48: 0
A49: 3503 | B49: State Unemployment Insurance | C49: 0 | D49: 0 | E49: 0 | F49: 0 | G49: 0 | H49: 0 | I49: 0 | J49: 0 | K49: 0 | L49: 0 | M49: 0 | N49: 0
A50: 3603 | B50: Worker Compensation Insurance | C50: 3141.4 | D50: 3141.4 | E50: 0 | F50: 6282.8 | G50: 12864.2 | H50: 4804.2 | I50: 4804.2 | J50: 0 | K50: 9608.44 | L50: 0 | M50: 0 | N50: 0
A51: Employee Benefits | C51: 143617.76 | D51: 94718.56 | E51: 70043.18 | F51: 155543.5 | G51: 119519.91 | H51: 119894.16 | I51: 129000.93 | J51: 113377.73 | K51: 123090.53 | L51: 113243.23 | M51: 0 | N51: 0
A52: Total Personnel Expenses | C52: 369505.1 | D52: 399724.36 | E52: 586019.28 | F52: 601445.8 | G52: 560619.89 | H52: 554116.06 | I52: 572374.39 | J52: 566719.86 | K52: 582452.57 | L52: 553477.36 | M52: 0 | N52: 0
A53: 4100 | B53: Approved Textbooks and Core Curricula Materials | C53: 3318.67 | D53: 2440.05 | E53: 1524.47 | F53: 32.52 | H53: 0 | I53: 0 | L53: 0 | M53: 0 | N53: 0
A54: 4200 | B54: Books and Other Reference Materials | C54: 1740.26 | D54: 1314.1 | E54: 1237.66 | F54: 3031.74 | G54: 26.05 | H54: 861.06 | I54: 6724.61 | J54: 1336.33 | K54: 133.34 | L54: 264.37 | M54: 0 | N54: 0
A55: 4300 | B55: Materials and Supplies | C55: 1546.83 | D55: 16940.51 | E55: 7623.56 | F55: 10910.04 | G55: 5786.2 | H55: 5174.19 | I55: 12073.99 | J55: 4568.37 | K55: 12021.94 | L55: 16147.81 | M55: 0 | N55: 0
A56: 4315 | B56: Classroom Materials and Supplies | C56: 3883.25 | D56: 13438 | E56: 3993.71 | F56: 5396.12 | G56: 5221.42 | H56: 3876.17 | I56: 5895.9 | J56: 5304 | K56: 4199.54 | L56: 4516.99 | M56: 0 | N56: 0
A57: 4342 | B57: Materials for School Sponsored Athletics | C57: 0 | D57: 877.47 | E57: 580.24 | F57: 3074.92 | G57: 4660.79 | H57: -2056.13 | I57: 310.07 | J57: 0 | K57: 150.18 | L57: 21.52 | M57: 0 | N57: 0
A58: 4381 | B58: Materials for Plant Maintenance | C58: 1143.44 | D58: 2835.3 | E58: 2893.09 | F58: 16.98 | G58: 1205.71 | H58: 2024.06 | I58: 0 | J58: 0 | K58: 1724.9 | L58: 0
A59: 4400 | B59: Noncapitalized Equipment | C59: 46516.26 | D59: 28215.35 | E59: 5464.35 | F59: 14154.68 | G59: 8097.93 | H59: 14712.23 | I59: 9004.66 | J59: 5829.5 | K59: 23714.71 | L59: 1838.16 | M59: 0 | N59: 0
A60: 4410 | B60: Software and Sotware Licensing | C60: 6732.5 | D60: 0 | E60: 2575 | F60: 1228.32 | G60: 12268.36 | H60: 2780.18 | I60: 1122.9 | J60: 3060 | K60: 0 | L60: 0 | M60: 0 | N60: 0
A61: 4430 | B61: Noncapitalized Student Equipment | C61: 3769.95 | D61: 149803.8 | E61: 0 | F61: 24275.67 | G61: 0 | H61: 0 | I61: 744.08 | J61: 0 | K61: 0 | L61: 0 | M61: 0 | N61: 0
A62: 4440 | B62: Student Events | L62: 13125 | M62: 0 | N62: 0
A63: 4700 | B63: Food and Food Supplies | C63: 0 | D63: 0 | E63: 0 | F63: 0 | G63: 0 | H63: 0 | I63: 0 | J63: 0 | K63: 0 | L63: 0 | M63: 0 | N63: 0
A64: Books and Supplies | C64: 68651.16 | D64: 215864.58 | E64: 25892.08 | F64: 62120.99 | G64: 37266.46 | H64: 27371.76 | I64: 35876.21 | J64: 20098.2 | K64: 41944.61 | L64: 35913.85 | M64: 0 | N64: 0
A65: 5200 | B65: Travel and Conferences | C65: 0 | D65: 35.34 | E65: 70 | F65: 35.34 | G65: 316.13 | H65: 337.41 | I65: 825 | J65: 31832.31 | K65: 22665.49 | L65: 13754.44 | M65: 0 | N65: 0
A66: 5210 | B66: Training and Development Expense | C66: 11610.66 | D66: 10048.58 | E66: 11855.44 | F66: 1625 | G66: 13049.93 | H66: 85 | I66: 356.84 | J66: 3622 | K66: 1938 | L66: 2275 | M66: 0 | N66: 0
A67: 5300 | B67: Dues and Memberships | C67: 3974 | D67: 1750.55 | E67: 121 | F67: 0 | G67: 0 | H67: 1135 | I67: 7055.6 | J67: 6000 | K67: 0 | L67: 767 | M67: 0 | N67: 0
A68: 5400 | B68: Insurance | C68: 11028.08 | D68: 2807.27 | E68: 2617.41 | F68: 0 | G68: 5448.68 | H68: 2186.32 | I68: 3259.36 | J68: 2707.32 | K68: 2823.56 | L68: 2611.84 | M68: 0 | N68: 0
A69: 5500 | B69: Operation and Housekeeping Services | C69: 109676.26 | D69: 57948.06 | E69: 55170.71 | F69: 63362.46 | G69: 52819.34 | H69: 64882.38 | I69: 100711.91 | J69: 70000 | K69: 72938.46 | L69: 155773.66 | M69: 0 | N69: 0
A70: 5501 | B70: Utilities | C70: 0 | D70: 3405.72 | E70: 4332.04 | F70: 4568.67 | G70: 4831.96 | H70: 3909.33 | I70: 3914.62 | J70: 4686.03 | K70: 135.56 | L70: 4375.04 | M70: 0 | N70: 0
A71: 5600 | B71: Space Rental/Leases Expense | C71: 0 | D71: 0 | E71: 0 | F71: 0 | G71: 0 | H71: 120 | I71: 0 | J71: 0 | K71: 0 | L71: 0 | M71: 0 | N71: 0
A72: 5601 | B72: Building Maintenance | C72: 8281.61 | D72: 15529.01 | E72: 1863.44 | F72: 491.4 | G72: 3106.29 | H72: 642.16 | I72: 3450 | J72: 0 | K72: 0 | L72: 0 | M72: 0 | N72: 0
A73: 5602 | B73: Other Space Rental | C73: 658 | D73: 329 | E73: 329 | F73: 329 | G73: 329 | H73: 329 | I73: 329 | J73: 329 | K73: 329 | L73: 329 | M73: 0 | N73: 0
A74: 5605 | B74: Equipment Rental/Lease Expense | C74: 6194.1 | D74: 1209.76 | E74: 2671.53 | F74: 6409.59 | G74: 10400.9 | H74: 2467.45 | I74: 11634.45 | J74: 6477.84 | K74: 1437.51 | L74: 12067.43 | M74: 0 | N74: 0
A75: 5610 | B75: Equipment Repair | C75: 198 | D75: 198 | E75: 0 | F75: 0 | G75: 0 | H75: 0 | I75: 0 | J75: 0 | K75: 0 | L75: 0 | M75: 0 | N75: 0
A76: 5800 | B76: Professional/Consulting Services and Operating Expenditures | C76: 44756.7 | D76: 1664 | E76: 12670.9 | F76: 67094.85 | G76: 9190 | H76: 4524.45 | I76: 17641.33 | J76: 29331.95 | K76: 11794.79 | L76: 16271.05 | M76: 0 | N76: 0
A77: 5803 | B77: Banking and Payroll Service Fees | C77: 1304.04 | D77: 1490.96 | E77: 2737.84 | F77: 1794.72 | G77: 1731.95 | H77: 1682.77 | I77: 2576.16 | J77: 1838.24 | K77: 1919.14 | L77: 1777.43 | M77: 0 | N77: 0
A78: 5805 | B78: Legal Services and Audit | C78: 0 | D78: 0 | E78: 1008 | F78: 180 | G78: 0 | H78: 936 | I78: 0 | J78: 0 | K78: 252 | L78: 0 | M78: 0 | N78: 0
A79: 5806 | B79: Audit Services | C79: -1200 | D79: 0 | E79: 7500 | F79: 0 | G79: 0 | H79: 0 | I79: 0 | J79: 5000 | K79: 0 | L79: 0 | M79: 0 | N79: 0
A80: 5809 | B80: Employee Tuition Reimbursement | C80: 45605.09 | D80: 43326.14 | E80: 56545.25 | F80: 20546.37 | G80: 14409.12 | H80: 16307.94 | I80: 75292.05 | J80: 12657.25 | K80: 10250 | L80: 29828.93 | M80: 0 | N80: 0
A81: 5810 | B81: Educational Consultants | C81: 3398.64 | D81: 2913.12 | E81: 15990 | F81: 2479.06 | G81: 0 | H81: 7093.38 | I81: 148.43 | J81: 3938.86 | K81: 21060 | L81: 11222.05 | M81: 0
A82: 5811 | B82: Student Transportation | C82: 0 | D82: 0 | E82: 0 | F82: 0 | G82: 0 | H82: 0 | I82: 0 | J82: 0 | K82: 0 | L82: 0 | M82: 0 | N82: 0
A83: 5812 | B83: Dances, Museums, Graduation | C83: 0 | D83: 0 | E83: 10800 | F83: 0 | G83: 0 | H83: 0 | I83: 0 | J83: 0 | K83: -1440 | L83: 0 | M83: 0 | N83: 0
A84: 5815 | B84: Advertising/Recruiting | C84: 12358.7 | D84: 10353.8 | E84: 8913 | F84: 3000 | G84: 6000 | H84: 3000 | I84: 6000 | J84: 3000 | K84: 12000 | L84: 6000 | M84: 0 | N84: 0
A85: 5830 | B85: Field Trip Expenses | G85: 1400 | H85: 1462.74 | M85: 0 | N85: 0
A86: 5836 | B86: Transportation Services | E86: 525 | F86: 300 | G86: 14216.34 | H86: 6009.04 | I86: 2576.42 | J86: 14512.84 | K86: 12610 | L86: 4718.77 | M86: 0 | N86: 0
A87: 5842 | B87: Services Student Athletics | C87: 0 | D87: 622.78 | E87: 3819 | F87: 3283 | G87: 1387.95 | H87: 1150 | I87: 5692.45 | J87: 168 | K87: 2745.48 | L87: 1067.44 | M87: 0 | N87: 0
A88: 5873 | B88: Financial Services | C88: 12500 | D88: 0 | E88: 6250 | F88: 6250 | G88: 6250 | H88: 6250 | I88: 6250 | J88: 6250 | K88: 6250 | L88: 6250 | N88: 0
A89: 5874 | B89: Personnel Services | C89: 430 | D89: 198.02 | E89: 0 | F89: 252 | G89: 0 | H89: 0 | I89: 0 | J89: 0 | K89: 303 | L89: 101 | M89: 0 | N89: 0
A90: 5875 | B90: District Oversight Fee | E90: 0 | F90: 0 | G90: 0 | H90: 20464.13 | I90: 20464.13 | J90: 20464.13 | K90: 20464.13 | L90: 20464.13 | M90: 0 | N90: 0
A91: 5877 | B91: IT Services | C91: 8690.46 | D91: 551.25 | E91: 99 | F91: 396 | G91: 1363.61 | H91: 1548.84 | I91: 891 | J91: 712.77 | K91: 1089 | L91: 198 | M91: 0 | N91: 0
A92: 5890 | B92: Interest expense/fees | C92: 0 | D92: 0 | E92: 0 | F92: 0 | G92: 0 | H92: 0 | I92: 0 | J92: 0 | K92: 0 | L92: 0 | M92: 0 | N92: 0
A93: 5900 | B93: Communications (Tele., Internet, Copies,Postage,Messenger) | C93: 4806.93 | D93: 3143.65 | E93: 3937.31 | F93: 3950.16 | G93: 2684.4 | H93: 3070.9 | I93: 2438.78 | J93: 3179.56 | K93: 2475.14 | L93: 2511.56 | M93: 0 | N93: 0
A94: Services & Other Operating Expenses | C94: 284271.27 | D94: 157525.01 | E94: 209825.87 | F94: 186347.62 | G94: 148935.6 | H94: 149594.24 | I94: 271507.53 | J94: 226708.1 | K94: 204040.26 | L94: 292363.77 | M94: 0 | N94: 0
A95: 6900 | B95: Depreciation Expense | C95: 0 | D95: 0 | E95: 32706.06 | F95: 10902.02 | G95: 10902.02 | H95: 10902.02 | I95: 10902.02 | J95: 10902.02 | K95: 10902.02 | L95: 10902.02
A96: Capital Outlay | C96: 0 | D96: 0 | E96: 32706.06 | F96: 10902.02 | G96: 10902.02 | H96: 10902.02 | I96: 10902.02 | J96: 10902.02 | K96: 10902.02 | L96: 10902.02
A97: Total Operational Expenses | C97: 352922.43 | D97: 373389.59 | E97: 268424.01 | F97: 259370.63 | G97: 197104.08 | H97: 187868.02 | I97: 318285.76 | J97: 257708.32 | K97: 256886.89 | L97: 339179.64
A98: Total Expenses | C98: 722427.53 | D98: 773113.95 | E98: 854443.29 | F98: 860816.43 | G98: 757723.97 | H98: 741984.08 | I98: 890660.15 | J98: 824428.18 | K98: 839339.46 | L98: 892657
A99: Net Income | C99: -585544.88 | D99: -277264.24 | E99: 175405.71 | F99: 252523.4 | G99: -71932.57 | H99: 26011.21 | I99: 248187.88 | J99: -277036.71 | K99: 2413.01 | L99: 277906.8

Sheet Salaries (Adopted)
T1: =Assumptions!J8 -> 0.191 | U1: =Assumptions!J9 -> 0.261 | V1: =Assumptions!J13 -> 0.06 | W1: =Assumptions!J10 -> 0.062 | X1: =Assumptions!J11 -> 0.0145 | Y1: =Assumptions!J14 -> 0.011 | AA1: 0.02
B2: # | C2: NAME | D2: TITLE | E2: OBJ CODE | F2: LOCATION | G2: ANNUAL BASE | H2: ADDITIONAL PAY | I2: ANNUAL INCREASE | J2: ADJUSTMENTS TOTAL | K2: ANNUAL SALARY | M2: HOURLY WAGE | N2: HOURS PER WEEK | O2: WEEKS PER YEAR | P2: HOURLY TOTAL | R2: Retirement (S,P,N,O) | T2: STRS (S) | U2: PERS (P) | V2: SUI | W2: OASDI | X2: MEDICARE | Y2: Workers Comp | Z2: ANNUAL HEALTH & WELFARE BENEFITS | AA2: ANNUAL INCREASE | AB2: ANNUAL HEALTH & WELFARE BENEFITS | AC2: Total Salary Expense | AD2: MONTHS IN CONTRACT | AE2: MONTHLY SALARY | AF2: BI-MONTHLY SALARY | AH2: RESTRICTION | AI2: % OF RESTRICTION | AJ2: TOTAL RESTRICTION COST | AK2: RESTRICTION | AL2: % OF RESTRICTION | AM2: TOTAL RESTRICTION COST | AN2: RESTRICTION | AO2: % OF RESTRICTION | AP2: TOTAL RESTRICTION COST | AQ2: NOTES
B3: 1 | C3: Allen, Emelie | D3: Business and Administrative Specialist | E3: 2400 | G3: 59000 | I3: 1000 | J3: =H3+I3 -> 1000 | K3: =(G3+J3) -> 60000 | P3: =M3*N3*O3 -> 0 | R3: N | T3: =IF(R3="S",$T$1*(K3+P3),0) -> 0 | U3: =IF(R3="P",$U$1*(K3+P3),0) -> 0 | V3: =IF(($K3+$P3)>Assumptions!$H$12,Assumptions!$H$12*$V$1,(K3+P3)*$V$1) -> 420 | W3: =IF(R3="S",0,($W$1*(K3+P3))) -> 3720 | X3: =(K3+P3)*$X$1 -> 870 | Y3: =(K3+P3)*$Y$1 -> 660 | Z3: 6821.8416 | AA3: =Z3*$AA$1 -> 136.436832 | AB3: =Z3+AA3 -> 6958.278432 | AC3: =K3+P3+SUM(T3:Y3)+AB3 -> 72628.27843 | AJ3: =IF($P3>0,$P3*$AI3,$K3*$AI3) -> 0
B4: =B3+1 -> 2 | C4: Arnaiz, Broc | D4: Vice Principal | E4: 1300 | G4: 100000 | I4: 5000 | J4: 5000 | K4: 105000 | P4: 0 | R4: S | T4: 20055 | U4: 0 | V4: =IF(($K4+$P4)>Assumptions!$H$12,Assumptions!$H$12*$V$1,(K4+P4)*$V$1) -> 420 | W4: 0 | X4: 1522.5 | Y4: 1155 | Z4: 16332.8112 | AA4: 326.656224 | AB4: 16659.46742 | AC4: 144811.9674 | AE4: =IFERROR(K4/AD4,0) -> 0 | AF4: =IFERROR(AE4/2,0) -> 0 | AJ4: =IF($P4>0,$P4*$AI4,$K4*$AI4) -> 0 | AM4: =IF($P4>0,$P4*$AL4,$K4*$AL4) -> 0 | AP4: =IF($P4>0,$P4*$AO4,$K4*$AO4) -> 0
B5: 3 | C5: Assof, Joseph | D5: Teacher | E5: 1100 | G5: 70000 | I5: 4000 | J5: =H5+I5 -> 4000 | K5: =(G5+J5) -> 74000 | P5: 0 | R5: S | T5: 14134 | U5: 0 | V5: =IF(($K5+$P5)>Assumptions!$H$12,Assumptions!$H$12*$V$1,(K5+P5)*$V$1) -> 420 | W5: 0 | X5: 1073 | Y5: 814 | Z5: 823.752 | AA5: 16.47504 | AB5: 840.22704 | AC5: 91281.22704 | AE5: =IFERROR(K5/AD5,0) -> 0 | AF5: =IFERROR(AE5/2,0) -> 0 | AJ5: =IF($P5>0,$P5*$AI5,$K5*$AI5) -> 0 | AM5: =IF($P5>0,$P5*$AL5,$K5*$AL5) -> 0 | AP5: =IF($P5>0,$P5*$AO5,$K5*$AO5) -> 0
B6: 4 | C6: Barr, Genelle | D6: Intervention Teacher | E6: 1100 | G6: 56000 | I6: 1000 | J6: 1000 | K6: 57000 | P6: 0 | R6: S | T6: 10887 | U6: 0 | V6: =IF(($K6+$P6)>Assumptions!$H$12,Assumptions!$H$12*$V$1,(K6+P6)*$V$1) -> 420 | W6: 0 | X6: 826.5 | Y6: 627 | Z6: 16333.26 | AA6: 326.6652 | AB6: 16659.9252 | AC6: 86420.4252 | AE6: =IFERROR(K6/AD6,0) -> 0 | AF6: =IFERROR(AE6/2,0) -> 0 | AJ6: =IF($P6>0,$P6*$AI6,$K6*$AI6) -> 0 | AM6: =IF($P6>0,$P6*$AL6,$K6*$AL6) -> 0 | AP6: =IF($P6>0,$P6*$AO6,$K6*$AO6) -> 0
B7: 5 | C7: Blanchard, Ralph | D7: Creative Media Specialist | E7: 2400 | G7: 61000 | I7: 2000 | J7: 2000 | K7: 63000 | P7: 0 | R7: N | T7: 0 | U7: 0 | V7: =IF(($K7+$P7)>Assumptions!$H$12,Assumptions!$H$12*$V$1,(K7+P7)*$V$1) -> 420 | W7: 3906 | X7: 913.5 | Y7: 693 | Z7: 6850.2384 | AA7: 137.004768 | AB7: 6987.243168 | AC7: 75919.74317 | AE7: =IFERROR(K7/AD7,0) -> 0 | AF7: =IFERROR(AE7/2,0) -> 0 | AJ7: =IF($P7>0,$P7*$AI7,$K7*$AI7) -> 0 | AM7: =IF($P7>0,$P7*$AL7,$K7*$AL7) -> 0 | AN7: 72 | AO7: 0.2 | AP7: =IF($P7>0,$P7*$AO7,$K7*$AO7) -> 12600
B8: 6 | C8: Bonine, Jeffrey | D8: Teacher | E8: 1100 | G8: 83000 | I8: 1000 | J8: 1000 | K8: 84000 | P8: 0 | R8: S | T8: 16044 | U8: 0 | V8: =IF(($K8+$P8)>Assumptions!$H$12,Assumptions!$H$12*$V$1,(K8+P8)*$V$1) -> 420 | W8: 0 | X8: 1218 | Y8: 924 | Z8: 12725.6832 | AA8: 254.513664 | AB8: 12980.19686 | AC8: 115586.1969
B9: 7 | C9: Corrigan, Oscar | D9: Vice Principal | E9: 1300 | G9: 100000 | I9: 5000 | J9: 5000 | K9: 105000 | P9: 0 | R9: S | T9: 20055 | U9: 0 | V9: =IF(($K9+$P9)>Assumptions!$H$12,Assumptions!$H$12*$V$1,(K9+P9)*$V$1) -> 420 | W9: 0 | X9: 1522.5 | Y9: 1155 | Z9: 16834.1616 | AA9: 336.683232 | AB9: 17170.84483 | AC9: 145323.3448 | AE9: =IFERROR(K9/AD9,0) -> 0 | AF9: =IFERROR(AE9/2,0) -> 0 | AJ9: =IF($P9>0,$P9*$AI9,$K9*$AI9) -> 0 | AM9: =IF($P9>0,$P9*$AL9,$K9*$AL9) -> 0 | AP9: =IF($P9>0,$P9*$AO9,$K9*$AO9) -> 0
B10: 8 | C10: Cortez, Uriel | D10: CTE Teacher | E10: 1100 | G10: 61000 | I10: 2000 | J10: 2000 | K10: 63000 | P10: 0 | R10: S | T10: 12033 | U10: 0 | V10: =IF(($K10+$P10)>Assumptions!$H$12,Assumptions!$H$12*$V$1,(K10+P10)*$V$1) -> 420 | W10: 0 | X10: 913.5 | Y10: 693 | Z10: 16798.6656 | AA10: 335.973312 | AB10: 17134.63891 | AC10: 94194.13891 | AE10: =IFERROR(K10/AD10,0) -> 0 | AF10: =IFERROR(AE10/2,0) -> 0 | AJ10: 0 | AM10: =IF($P10>0,$P10*$AL10,$K10*$AL10) -> 0 | AP10: 0
B11: 9 | C11: Dale, Bryan | D11: Coordinator of Special Education | E11: 1900 | G11: 61000 | I11: 11000 | J11: 11000 | K11: 72000 | P11: 0 | R11: S | T11: 13752 | U11: 0 | V11: =IF(($K11+$P11)>Assumptions!$H$12,Assumptions!$H$12*$V$1,(K11+P11)*$V$1) -> 420 | W11: 0 | X11: 1044 | Y11: 792 | Z11: 6836.5296 | AA11: 136.730592 | AB11: 6973.260192 | AC11: 94981.26019 | AE11: =IFERROR(K11/AD11,0) -> 0 | AF11: =IFERROR(AE11/2,0) -> 0 | AJ11: 0 | AM11: =IF($P11>0,$P11*$AL11,$K11*$AL11) -> 0 | AP11: 0
B12: 10 | C12: Dale, Jean | D12: Educational Specialist | E12: 1100 | G12: 0 | I12: 57000 | J12: 57000 | K12: 57000 | P12: 0 | R12: S | T12: 10887 | U12: 0 | V12: =IF(($K12+$P12)>Assumptions!$H$12,Assumptions!$H$12*$V$1,(K12+P12)*$V$1) -> 420 | W12: 0 | X12: 826.5 | Y12: 627 | Z12: 6850.2384 | AA12: 137.004768 | AB12: 6987.243168 | AC12: 76747.74317 | AJ12: 0 | AP12: 0
B13: 11 | C13: Davenport, Demetrius | D13: Dean of Students | E13: 2100 | G13: 60000 | I13: 0 | J13: 0 | K13: 60000 | P13: 0 | R13: N | T13: 0 | U13: 0 | V13: =IF(($K13+$P13)>Assumptions!$H$12,Assumptions!$H$12*$V$1,(K13+P13)*$V$1) -> 420 | W13: 3720 | X13: 870 | Y13: 660 | Z13: 6846.3216 | AA13: 136.926432 | AB13: 6983.248032 | AC13: 72653.24803 | AE13: =IFERROR(K13/AD13,0) -> 0 | AF13: =IFERROR(AE13/2,0) -> 0 | AJ13: 0 | AM13: =IF($P13>0,$P13*$AL13,$K13*$AL13) -> 0 | AP13: 0
B14: 12 | C14: Elliot-Padgitt, Kimberly | D14: Academic Coach | E14: 1100 | G14: 80000 | I14: 3000 | J14: 3000 | K14: 83000 | P14: 0 | R14: S | T14: 15853 | U14: 0 | V14: =IF(($K14+$P14)>Assumptions!$H$12,Assumptions!$H$12*$V$1,(K14+P14)*$V$1) -> 420 | W14: 0 | X14: 1203.5 | Y14: 913 | Z14: 6850.2384 | AA14: 137.004768 | AB14: 6987.243168 | AC14: 108376.7432 | AE14: =IFERROR(K14/AD14,0) -> 0 | AF14: =IFERROR(AE14/2,0) -> 0 | AJ14: 0 | AM14: =IF($P14>0,$P14*$AL14,$K14*$AL14) -> 0 | AP14: 0
B15: 13 | C15: Elzien, Elleisha | D15: Teacher | E15: 1100 | G15: 57000 | I15: 1000 | J15: 1000 | K15: 58000 | P15: 0 | R15: S | T15: 11078 | U15: 0 | V15: =IF(($K15+$P15)>Assumptions!$H$12,Assumptions!$H$12*$V$1,(K15+P15)*$V$1) -> 420 | W15: 0 | X15: 841 | Y15: 638 | Z15: 11355.048 | AA15: 227.10096 | AB15: 11582.14896 | AC15: 82559.14896
B16: 14 | C16: Fallon, Margaret | D16: Teacher | E16: 1100 | G16: 67000 | I16: 1000 | J16: 1000 | K16: 68000 | P16: 0 | R16: S | T16: 12988 | U16: 0 | V16: =IF(($K16+$P16)>Assumptions!$H$12,Assumptions!$H$12*$V$1,(K16+P16)*$V$1) -> 420 | W16: 0 | X16: 986 | Y16: 748 | Z16: 6858.072 | AA16: 137.16144 | AB16: 10179 | AC16: 93321 | AJ16: =IF($P16>0,$P16*$AI16,$K16*$AI16) -> 0
B17: 15 | C17: Fischmann, Caleigh | D17: Transition Counselor | E17: 1100 | G17: 55000 | I17: 2000 | J17: 2000 | K17: 57000 | P17: 0 | R17: S | T17: 10887 | U17: 0 | V17: =IF(($K17+$P17)>Assumptions!$H$12,Assumptions!$H$12*$V$1,(K17+P17)*$V$1) -> 420 | W17: 0 | X17: 826.5 | Y17: 627 | Z17: 6833.1024 | AA17: 136.662048 | AB17: =Z17+AA17 -> 6969.764448 | AC17: 76730.26445 | AE17: =IFERROR(K17/AD17,0) -> 0 | AF17: =IFERROR(AE17/2,0) -> 0 | AJ17: 0 | AM17: =IF($P17>0,$P17*$AL17,$K17*$AL17) -> 0 | AP17: =IF($P17>0,$P17*$AO17,$K17*$AO17) -> 0
B18: 16 | C18: Flores, Ricardo | D18: Maintenance Coordinator | E18: 2200 | G18: 50000 | I18: 2000 | J18: 2000 | K18: 52000 | P18: 0 | R18: N | T18: 0 | U18: 0 | V18: =IF(($K18+$P18)>Assumptions!$H$12,Assumptions!$H$12*$V$1,(K18+P18)*$V$1) -> 420 | W18: 3224 | X18: 754 | Y18: 572 | Z18: 16757.5392 | AA18: 335.150784 | AB18: 17092.68998 | AC18: 74062.68998 | AJ18: 0 | AM18: 0 | AP18: 0
B19: 17 | C19: Gavcus, Makenna | D19: Childcare Teacher | E19: 2100 | I19: 42000 | J19: 42000 | K19: 42000 | P19: 0 | R19: N | T19: 0 | U19: 0 | V19: =IF(($K19+$P19)>Assumptions!$H$12,Assumptions!$H$12*$V$1,(K19+P19)*$V$1) -> 420 | W19: 2604 | X19: 609 | Y19: 462 | Z19: 6811.0704 | AA19: 136.221408 | AB19: 6947.291808 | AC19: 53042.29181 | AJ19: 0 | AM19: 0 | AP19: 0
B20: 18 | C20: George, Marnitta | D20: Teacher | E20: 1100 | I20: 78000 | J20: 78000 | K20: 78000 | P20: 0 | R20: S | T20: 14898 | U20: 0 | V20: =IF(($K20+$P20)>Assumptions!$H$12,Assumptions!$H$12*$V$1,(K20+P20)*$V$1) -> 420 | W20: 0 | X20: 1131 | Y20: 858 | Z20: 202.2048 | AA20: 4.044096 | AB20: 206.248896 | AC20: 95513.2489 | AJ20: 0 | AM20: 0 | AP20: 0
B21: 19 | C21: Gomez, Juan | D21: Translator / School Operations Specailist | E21: 2400 | I21: 49000 | J21: 49000 | K21: 49000 | P21: 0 | R21: N | T21: 0 | U21: 0 | V21: =IF(($K21+$P21)>Assumptions!$H$12,Assumptions!$H$12*$V$1,(K21+P21)*$V$1) -> 420 | W21: 3038 | X21: 710.5 | Y21: 539 | Z21: 6811.0704 | AA21: 136.221408 | AB21: 6947.291808 | AC21: 60654.79181 | AJ21: 0 | AM21: 0 | AP21: 0
B22: 20 | C22: Gonzalez, Alejandro | D22: Director of Digital Instruction and Technology | E22: 1900 | G22: 40000 | I22: 0 | J22: 0 | K22: 40000 | P22: 0 | R22: S | T22: 7640 | U22: 0 | V22: =IF(($K22+$P22)>Assumptions!$H$12,Assumptions!$H$12*$V$1,(K22+P22)*$V$1) -> 420 | W22: 0 | X22: 580 | Y22: 440 | Z22: 6850.2384 | AA22: 137.004768 | AB22: 6987.243168 | AC22: 56067.24317 | AJ22: 0 | AM22: 0 | AP22: 0
B23: 21 | C23: Hackman, Angela | D23: Teacher | E23: 1100 | G23: 79000 | I23: 4000 | J23: 4000 | K23: 83000 | P23: 0 | R23: S | T23: 15853 | U23: 0 | V23: =IF(($K23+$P23)>Assumptions!$H$12,Assumptions!$H$12*$V$1,(K23+P23)*$V$1) -> 420 | W23: 0 | X23: 1203.5 | Y23: 913 | Z23: 16738.4448 | AA23: 334.768896 | AB23: 17073.2137 | AC23: 118462.7137 | AJ23: 0 | AM23: 0 | AP23: 0
B24: 22 | C24: Hampson, Jacob | D24: Teacher | E24: 1100 | G24: 57000 | I24: 3000 | J24: 3000 | K24: 60000 | P24: 0 | R24: S | T24: 11460 | U24: 0 | V24: =IF(($K24+$P24)>Assumptions!$H$12,Assumptions!$H$12*$V$1,(K24+P24)*$V$1) -> 420 | W24: 0 | X24: 870 | Y24: 660 | Z24: 6826.7376 | AA24: 136.534752 | AB24: 6963.272352 | AC24: 80373.27235 | AJ24: 0 | AM24: 0 | AP24: 0
B25: 23 | C25: Hardin, Ashlynn | D25: Teacher | E25: 1100 | G25: 52000 | I25: 2000 | J25: 2000 | K25: 54000 | P25: 0 | R25: S | T25: 10314 | U25: 0 | V25: =IF(($K25+$P25)>Assumptions!$H$12,Assumptions!$H$12*$V$1,(K25+P25)*$V$1) -> 420 | W25: 0 | X25: 783 | Y25: 594 | Z25: 6850.2384 | AA25: 137.004768 | AB25: 6987.243168 | AC25: 73098.24317 | AJ25: 0 | AM25: 0 | AP25: 0
B26: 24 | C26: Haywood, Mikayla | D26: Teacher | E26: 1100 | G26: 54000 | I26: 1000 | J26: 1000 | K26: 55000 | P26: 0 | R26: S | T26: 10505 | U26: 0 | V26: =IF(($K26+$P26)>Assumptions!$H$12,Assumptions!$H$12*$V$1,(K26+P26)*$V$1) -> 420 | W26: 0 | X26: 797.5 | Y26: 605 | Z26: 6824.0448 | AA26: 136.480896 | AB26: 6960.525696 | AC26: 74288.0257 | AJ26: 0 | AM26: 0 | AP26: 0
B27: 25 | C27: Hervey, John | D27: Teacher | E27: 1100 | G27: 52000 | I27: 3000 | J27: 3000 | K27: 55000 | P27: 0 | R27: S | T27: 10505 | U27: 0 | V27: =IF(($K27+$P27)>Assumptions!$H$12,Assumptions!$H$12*$V$1,(K27+P27)*$V$1) -> 420 | W27: 0 | X27: 797.5 | Y27: 605 | Z27: 6824.0448 | AA27: 136.480896 | AB27: 6960.525696 | AC27: 74288.0257 | AJ27: 0
B28: 26 | C28: Jimenez, Angee | D28: Childcare Assistant | E28: 2100 | I28: 42000 | J28: 42000 | K28: 42000 | P28: 0 | R28: N | T28: 0 | U28: 0 | V28: =IF(($K28+$P28)>Assumptions!$H$12,Assumptions!$H$12*$V$1,(K28+P28)*$V$1) -> 420 | W28: 2604 | X28: 609 | Y28: 462 | Z28: 6811.0704 | AA28: 136.221408 | AB28: 6947.291808 | AC28: 53042.29181 | AJ28: 0 | AM28: =IF($P28>0,$P28*$AL28,$K28*$AL28) -> 0 | AP28: =IF($P28>0,$P28*$AO28,$K28*$AO28) -> 0
B29: 27 | C29: Johnson, Sheri | D29: Principal | E29: 1300 | G29: 140000 | I29: 0 | J29: 0 | K29: 140000 | P29: 0 | R29: S | T29: 26740 | U29: 0 | V29: =IF(($K29+$P29)>Assumptions!$H$12,Assumptions!$H$12*$V$1,(K29+P29)*$V$1) -> 420 | W29: 0 | X29: 2030 | Y29: 1540 | Z29: 6932.736 | AA29: 138.65472 | AB29: 7071.39072 | AC29: 177801.3907 | AJ29: 0
B30: 28 | C30: Knowles, Christopher | D30: Student Support | E30: 2100 | G30: 55000 | I30: 6000 | J30: 6000 | K30: 61000 | P30: 0 | R30: N | T30: 0 | U30: 0 | V30: =IF(($K30+$P30)>Assumptions!$H$12,Assumptions!$H$12*$V$1,(K30+P30)*$V$1) -> 420 | W30: 3782 | X30: 884.5 | Y30: 671 | Z30: 6811.0704 | AA30: 136.221408 | AB30: 6947.291808 | AC30: 73704.79181 | AJ30: 0 | AM30: =IF($P30>0,$P30*$AL30,$K30*$AL30) -> 0 | AP30: =IF($P30>0,$P30*$AO30,$K30*$AO30) -> 0
B31: 29 | C31: Kosaka, Kristen | D31: Coordinator of Compliance | E31: 1900 | G31: 83000 | I31: 1000 | J31: 1000 | K31: 84000 | P31: 0 | R31: S | T31: 16044 | U31: 0 | V31: =IF(($K31+$P31)>Assumptions!$H$12,Assumptions!$H$12*$V$1,(K31+P31)*$V$1) -> 420 | W31: 0 | X31: 1218 | Y31: 924 | Z31: 6846.3216 | AA31: 136.926432 | AB31: 6983.248032 | AC31: 109589.248 | AJ31: 0
B32: 30 | C32: Lauritzen, Cory | D32: Student Support | E32: 2100 | G32: 50000 | I32: 2000 | J32: 2000 | K32: 52000 | P32: 0 | R32: N | T32: 0 | U32: 0 | V32: =IF(($K32+$P32)>Assumptions!$H$12,Assumptions!$H$12*$V$1,(K32+P32)*$V$1) -> 420 | W32: 3224 | X32: 754 | Y32: 572 | Z32: 6813.0288 | AA32: 136.260576 | AB32: 6949.289376 | AC32: 63919.28938 | AJ32: 0 | AM32: =IF($P32>0,$P32*$AL32,$K32*$AL32) -> 0 | AP32: =IF($P32>0,$P32*$AO32,$K32*$AO32) -> 0
B33: 31 | C33: Lopez Cruz, Daisy | D33: School Operations Specialist | E33: 2400 | G33: 49000 | I33: 1000 | J33: 1000 | K33: 50000 | P33: 0 | R33: N | T33: 0 | U33: 0 | V33: =IF(($K33+$P33)>Assumptions!$H$12,Assumptions!$H$12*$V$1,(K33+P33)*$V$1) -> 420 | W33: 3100 | X33: 725 | Y33: 550 | Z33: 6813.0288 | AA33: 136.260576 | AB33: 6949.289376 | AC33: 61744.28938 | AJ33: 0 | AM33: 0 | AP33: 0
B34: 32 | C34: Miranda, Harley | D34: Student Support | E34: 2100 | I34: 51000 | J34: 51000 | K34: 51000 | P34: 0 | R34: N | T34: 0 | U34: 0 | V34: =IF(($K34+$P34)>Assumptions!$H$12,Assumptions!$H$12*$V$1,(K34+P34)*$V$1) -> 420 | W34: 3162 | X34: 739.5 | Y34: 561 | Z34: 6813.0288 | AA34: 136.260576 | AB34: 6949.289376 | AC34: 62831.78938 | AJ34: 0 | AM34: 0 | AP34: 0
B35: 33 | C35: North, Shayna | D35: CTE Teacher | E35: 1100 | G35: 60000 | I35: 2000 | J35: 2000 | K35: 62000 | P35: 0 | R35: S | T35: 11842 | U35: 0 | V35: =IF(($K35+$P35)>Assumptions!$H$12,Assumptions!$H$12*$V$1,(K35+P35)*$V$1) -> 420 | W35: 0 | X35: 899 | Y35: 682 | Z35: 6824.0448 | AA35: 136.480896 | AB35: 6960.525696 | AC35: =K35+P35+SUM(T35:Y35)+AB35 -> 82803.5257 | AJ35: 0 | AM35: 0 | AP35: 0
B36: 34 | C36: Olson, Kurt | D36: Technology Coordinator | E36: 1100 | G36: 65000 | I36: 2000 | J36: 2000 | K36: 67000 | P36: 0 | R36: S | T36: 12797 | U36: 0 | V36: =IF(($K36+$P36)>Assumptions!$H$12,Assumptions!$H$12*$V$1,(K36+P36)*$V$1) -> 420 | W36: 0 | X36: 971.5 | Y36: 737 | Z36: 6834.816 | AA36: 136.69632 | AB36: 6971.51232 | AC36: 88897.01232 | AE36: =IFERROR(K36/AD36,0) -> 0 | AF36: =IFERROR(AE36/2,0) -> 0 | AJ36: 0 | AM36: 0 | AP36: 0
B37: 35 | C37: Ortega, Grecia | D37: Head Counselor | E37: 2400 | I37: 70000 | J37: 70000 | K37: 70000 | P37: 0 | R37: N | T37: 0 | U37: 0 | V37: =IF(($K37+$P37)>Assumptions!$H$12,Assumptions!$H$12*$V$1,(K37+P37)*$V$1) -> 420 | W37: 4340 | X37: 1015 | Y37: 770 | Z37: 6813.0288 | AA37: 136.260576 | AB37: 6949.289376 | AC37: 83494.28938 | AJ37: 0 | AM37: 0 | AP37: 0
B38: 36 | C38: Ostrinski, Larissa | D38: Educational Specialist | E38: 1100 | I38: 54000 | J38: 54000 | K38: 54000 | P38: 0 | R38: S | T38: 10314 | U38: 0 | V38: =IF(($K38+$P38)>Assumptions!$H$12,Assumptions!$H$12*$V$1,(K38+P38)*$V$1) -> 420 | W38: 0 | X38: 783 | Y38: 594 | Z38: 6834.816 | AA38: 136.69632 | AB38: 6971.51232 | AC38: 73082.51232 | AJ38: 0 | AM38: 0 | AP38: 0
B39: 37 | C39: Pena, Marisa | D39: Intervention Teacher | E39: 1100 | G39: 68000 | I39: 1000 | J39: 1000 | K39: 69000 | P39: 0 | R39: S | T39: 13179 | U39: 0 | V39: =IF(($K39+$P39)>Assumptions!$H$12,Assumptions!$H$12*$V$1,(K39+P39)*$V$1) -> 420 | W39: 0 | X39: 1000.5 | Y39: 759 | Z39: 6858.072 | AA39: 137.16144 | AB39: 6995.23344 | AC39: 91353.73344 | AJ39: 0 | AM39: 0 | AP39: 0
B40: 38 | C40: Perfecto, Leeza | D40: Student Support | E40: 2100 | I40: 49000 | J40: 49000 | K40: 49000 | P40: 0 | R40: N | T40: 0 | U40: 0 | V40: =IF(($K40+$P40)>Assumptions!$H$12,Assumptions!$H$12*$V$1,(K40+P40)*$V$1) -> 420 | W40: 3038 | X40: 710.5 | Y40: 539 | Z40: 6813.0288 | AA40: 136.260576 | AB40: 6949.289376 | AC40: 60656.78938 | AE40: =IFERROR(K40/AD40,0) -> 0 | AF40: =IFERROR(AE40/2,0) -> 0 | AJ40: 0 | AM40: 0 | AP40: 0
B41: 39 | C41: Prince, Alexandra | D41: Student Support | E41: 1100 | G41: 52000 | I41: 7000 | J41: 7000 | K41: 59000 | P41: 0 | R41: S | T41: 11269 | U41: 0 | V41: =IF(($K41+$P41)>Assumptions!$H$12,Assumptions!$H$12*$V$1,(K41+P41)*$V$1) -> 420 | W41: 0 | X41: 855.5 | Y41: 649 | Z41: 6809.112 | AB41: 6809.112 | AC41: 79002.612 | AJ41: 0
B42: 40 | C42: Radrigan, Natalie | D42: Student Support | E42: 2100 | G42: 0 | I42: 52000 | J42: 52000 | K42: 52000 | P42: 0 | R42: N | T42: 0 | U42: 0 | V42: =IF(($K42+$P42)>Assumptions!$H$12,Assumptions!$H$12*$V$1,(K42+P42)*$V$1) -> 420 | W42: 3224 | X42: 754 | Y42: 572 | Z42: 6813.0288 | AA42: =Z42*$AA$1 -> 136.260576 | AB42: 6949.289376 | AC42: 63919.28938 | AJ42: 0 | AM42: =IF($P42>0,$P42*$AL42,$K42*$AL42) -> 0 | AP42: =IF($P42>0,$P42*$AO42,$K42*$AO42) -> 0
B43: 41 | C43: Ramriez, Cynthia | D43: Student Support | E43: 1100 | G43: 52000 | I43: 2000 | J43: 2000 | K43: 54000 | P43: 0 | R43: S | T43: 10314 | U43: 0 | V43: =IF(($K43+$P43)>Assumptions!$H$12,Assumptions!$H$12*$V$1,(K43+P43)*$V$1) -> 420 | W43: 0 | X43: 783 | Y43: 594 | Z43: 6814.9872 | AA43: 136.299744 | AB43: 6951.286944 | AC43: 73062.28694 | AE43: =IFERROR(K43/AD43,0) -> 0 | AF43: =IFERROR(AE43/2,0) -> 0 | AJ43: 0 | AM43: =IF($P43>0,$P43*$AL43,$K43*$AL43) -> 0 | AP43: 0
B44: 42 | C44: Reed, Doris | D44: Administrative Assistant | E44: 2400 | G44: 48000 | I44: 1000 | J44: 1000 | K44: 49000 | P44: 0 | R44: N | T44: 0 | U44: 0 | V44: =IF(($K44+$P44)>Assumptions!$H$12,Assumptions!$H$12*$V$1,(K44+P44)*$V$1) -> 420 | W44: 3038 | X44: 710.5 | Y44: 539 | Z44: 6807.1536 | AA44: 136.143072 | AB44: 6943.296672 | AC44: 60650.79667 | AJ44: 0 | AP44: 0
B45: 43 | C45: Regas, Nick | D45: Restorative Practices Specialist | E45: 1100 | G45: 52000 | I45: 13000 | J45: 13000 | K45: 65000 | P45: 0 | R45: S | T45: 12415 | U45: 0 | V45: =IF(($K45+$P45)>Assumptions!$H$12,Assumptions!$H$12*$V$1,(K45+P45)*$V$1) -> 420 | W45: 0 | X45: 942.5 | Y45: 715 | Z45: 16771.248 | AA45: 335.42496 | AB45: 17106.67296 | AC45: 96599.17296 | AE45: =IFERROR(K45/AD45,0) -> 0 | AF45: =IFERROR(AE45/2,0) -> 0 | AJ45: 0 | AM45: =IF($P45>0,$P45*$AL45,$K45*$AL45) -> 0 | AP45: 0
B46: 44 | C46: Reyes, Ernie | D46: Athletic Director / PE Teacher | E46: 1100 | G46: 48600 | I46: 16400 | J46: 16400 | K46: 65000 | P46: 0 | R46: S | T46: 12415 | U46: 0 | V46: =IF(($K46+$P46)>Assumptions!$H$12,Assumptions!$H$12*$V$1,(K46+P46)*$V$1) -> 420 | W46: 0 | X46: 942.5 | Y46: 715 | Z46: 16771.248 | AA46: 335.42496 | AB46: 17106.67296 | AC46: 96599.17296 | AJ46: 0 | AM46: 0 | AP46: 0
B47: 45 | C47: Rios, Julieta | D47: Transition Counselor | E47: 2100 | G47: 55000 | I47: 2000 | J47: 2000 | K47: 57000 | P47: 0 | R47: N | T47: 0 | U47: 0 | V47: =IF(($K47+$P47)>Assumptions!$H$12,Assumptions!$H$12*$V$1,(K47+P47)*$V$1) -> 420 | W47: 3534 | X47: 826.5 | Y47: 627 | Z47: 6690.24 | AA47: 133.8048 | AB47: 6824.0448 | AC47: 69231.5448 | AE47: =IFERROR(K47/AD47,0) -> 0 | AF47: =IFERROR(AE47/2,0) -> 0 | AJ47: 0 | AM47: 0 | AP47: 0
B48: 46 | C48: Rotell, Aida | D48: Program Manager / Teacher | E48: 1900 | G48: 119215 | I48: -79215 | J48: -79215 | K48: 40000 | P48: 0 | R48: S | T48: 7640 | U48: 0 | V48: =IF(($K48+$P48)>Assumptions!$H$12,Assumptions!$H$12*$V$1,(K48+P48)*$V$1) -> 420 | W48: 0 | X48: 580 | Y48: 440 | Z48: 12748.6944 | AA48: 254.973888 | AB48: 13003.66829 | AC48: 62083.66829 | AJ48: =IF($P48>0,$P48*$AI48,$K48*$AI48) -> 0 | AM48: 0 | AP48: 0
B49: 47 | C49: Schaefer, Joanna | D49: Intervention Coordinator | E49: 1100 | G49: 0 | I49: 83000 | J49: 83000 | K49: 83000 | P49: 0 | R49: S | T49: 15853 | U49: 0 | V49: =IF(($K49+$P49)>Assumptions!$H$12,Assumptions!$H$12*$V$1,(K49+P49)*$V$1) -> 420 | W49: 0 | X49: 1203.5 | Y49: 913 | Z49: 6834.816 | AA49: 136.69632 | AB49: =Z49+AA49 -> 6971.51232 | AC49: 108361.0123 | AJ49: 0 | AM49: 0 | AP49: 0
B50: 48 | C50: Servis, Tyler | D50: Student Support | E50: 2100 | G50: 55000 | I50: 2000 | J50: 2000 | K50: 57000 | P50: 0 | R50: N | T50: 0 | U50: 0 | V50: =IF(($K50+$P50)>Assumptions!$H$12,Assumptions!$H$12*$V$1,(K50+P50)*$V$1) -> 420 | W50: 3534 | X50: 826.5 | Y50: 627 | Z50: 6887.9376 | AA50: 137.758752 | AB50: 7025.696352 | AC50: 69433.19635 | AJ50: 0 | AM50: 0 | AP50: 0
B51: 49 | C51: Silveyra, Andy | D51: IT Specialist | E51: 2400 | G51: 60000 | I51: 2000 | J51: 2000 | K51: 62000 | P51: 0 | R51: N | T51: 0 | U51: 0 | V51: =IF(($K51+$P51)>Assumptions!$H$12,Assumptions!$H$12*$V$1,(K51+P51)*$V$1) -> 420 | W51: 3844 | X51: 899 | Y51: 682 | Z51: 6762.6 | AA51: 135.252 | AB51: 6897.852 | AC51: 74742.852 | AJ51: 0 | AM51: 0 | AP51: 0
B52: 50 | C52: Smith, Dominique | D52: Principal | E52: 1300 | G52: 140000 | I52: 0 | J52: 0 | K52: 140000 | P52: 0 | R52: S | T52: 26740 | U52: 0 | V52: =IF(($K52+$P52)>Assumptions!$H$12,Assumptions!$H$12*$V$1,(K52+P52)*$V$1) -> 420 | W52: 0 | X52: 2030 | Y52: 1540 | Z52: 11363.616 | AA52: 227.27232 | AB52: 11590.88832 | AC52: 182320.8883 | AJ52: 0 | AM52: 0 | AP52: 0
B53: 51 | C53: Smith, Sonia | D53: Childcare Director | E53: 1900 | I53: 57000 | J53: 57000 | K53: 57000 | P53: 0 | R53: S | T53: 10887 | U53: 0 | V53: =IF(($K53+$P53)>Assumptions!$H$12,Assumptions!$H$12*$V$1,(K53+P53)*$V$1) -> 420 | W53: 0 | X53: 826.5 | Y53: 627 | Z53: 11363.616 | AA53: 227.27232 | AB53: 11590.88832 | AC53: 81351.38832 | AJ53: 0 | AM53: 0 | AP53: 0
B54: 52 | C54: Speck, Kristin | D54: Teacher | E54: 1100 | G54: 65000 | I54: 3000 | J54: 3000 | K54: 68000 | P54: 0 | R54: S | T54: 12988 | U54: 0 | V54: =IF(($K54+$P54)>Assumptions!$H$12,Assumptions!$H$12*$V$1,(K54+P54)*$V$1) -> 420 | W54: 0 | X54: 986 | Y54: 748 | Z54: 6846.3216 | AA54: 136.926432 | AB54: 6983.248032 | AC54: 90125.24803 | AE54: =IFERROR(K54/AD54,0) -> 0 | AF54: =IFERROR(AE54/2,0) -> 0 | AJ54: 0 | AM54: 0 | AP54: 0
B55: 53 | C55: Swift, Nicholas | D55: CTE Teacher | E55: 1100 | G55: 67000 | I55: 3000 | J55: 3000 | K55: 70000 | P55: 0 | R55: S | T55: 13370 | U55: 0 | V55: =IF(($K55+$P55)>Assumptions!$H$12,Assumptions!$H$12*$V$1,(K55+P55)*$V$1) -> 420 | W55: 0 | X55: 1015 | Y55: 770 | Z55: 16802.5824 | AA55: 336.051648 | AB55: 17138.63405 | AC55: 102713.634 | AE55: =IFERROR(K55/AD55,0) -> 0 | AF55: =IFERROR(AE55/2,0) -> 0 | AJ55: 0 | AM55: 0 | AP55: 0
B56: 54 | C56: Thayre, Marisol | D56: College Success Team Coordinator | E56: 1100 | G56: 74000 | I56: 3000 | J56: 3000 | K56: 77000 | P56: 0 | R56: S | T56: 14707 | U56: 0 | V56: =IF(($K56+$P56)>Assumptions!$H$12,Assumptions!$H$12*$V$1,(K56+P56)*$V$1) -> 420 | W56: 0 | X56: 1116.5 | Y56: 847 | Z56: 6869.8224 | AA56: 137.396448 | AB56: 7007.218848 | AC56: 101097.7188 | AJ56: 0 | AM56: 0 | AP56: 0
B57: 55 | C57: Trgo, Nikolina | D57: Student Support | E57: 2100 | G57: 0 | I57: 52000 | J57: 52000 | K57: 52000 | P57: 0 | R57: N | T57: 0 | U57: 0 | V57: =IF(($K57+$P57)>Assumptions!$H$12,Assumptions!$H$12*$V$1,(K57+P57)*$V$1) -> 420 | W57: 3224 | X57: 754 | Y57: 572 | Z57: 6762.6 | AA57: 135.252 | AB57: 6897.852 | AC57: 63867.852 | AJ57: 0 | AM57: 0 | AP57: 0
B58: 56 | C58: Tutogi, Thomas | D58: Student Support | E58: 2100 | G58: 55000 | I58: 2000 | J58: 2000 | K58: 57000 | P58: 0 | R58: N | T58: 0 | U58: 0 | V58: =IF(($K58+$P58)>Assumptions!$H$12,Assumptions!$H$12*$V$1,(K58+P58)*$V$1) -> 420 | W58: 3534 | X58: 826.5 | Y58: 627 | Z58: 151.2864 | AA58: 3.025728 | AB58: 154.312128 | AC58: 62561.81213 | AE58: =IFERROR(K58/AD58,0) -> 0 | AF58: =IFERROR(AE58/2,0) -> 0 | AJ58: 0 | AM58: 0 | AP58: 0
B59: 57 | C59: Vaca, Javier | D59: Director of Human Resources | E59: 1300 | G59: 100000 | I59: 3000 | J59: 3000 | K59: 103000 | P59: 0 | R59: S | T59: 19673 | U59: 0 | V59: =IF(($K59+$P59)>Assumptions!$H$12,Assumptions!$H$12*$V$1,(K59+P59)*$V$1) -> 420 | W59: 0 | X59: 1493.5 | Y59: 1133 | Z59: 16839.0576 | AA59: 336.781152 | AB59: 17175.83875 | AC59: 142895.3388 | AE59: =IFERROR(K59/AD59,0) -> 0 | AF59: =IFERROR(AE59/2,0) -> 0 | AJ59: 0 | AM59: 0 | AP59: 0
B60: 58 | C60: Walker, Jonathan | D60: CTE Teacher | E60: 1100 | G60: 68000 | I60: 2000 | J60: 2000 | K60: 70000 | P60: 0 | R60: S | T60: 13370 | U60: 0 | V60: =IF(($K60+$P60)>Assumptions!$H$12,Assumptions!$H$12*$V$1,(K60+P60)*$V$1) -> 420 | W60: 0 | X60: 1015 | Y60: 770 | Z60: 155.2032 | AB60: 155.2032 | AC60: 85730.2032 | AJ60: 0
B61: 59 | C61: Warfield, Kameron | D61: Educational Specialist | E61: 1100 | G61: 55000 | I61: 2500 | J61: 2500 | K61: 57500 | P61: 0 | R61: S | T61: 10982.5 | U61: 0 | V61: =IF(($K61+$P61)>Assumptions!$H$12,Assumptions!$H$12*$V$1,(K61+P61)*$V$1) -> 420 | W61: 0 | X61: 833.75 | Y61: 632.5 | Z61: 6818.904 | AA61: =Z61*$AA$1 -> 136.37808 | AB61: 6955.28208 | AC61: 77324.03208 | AE61: =IFERROR(K61/AD61,0) -> 0 | AF61: =IFERROR(AE61/2,0) -> 0 | AJ61: 0 | AM61: =IF($P61>0,$P61*$AL61,$K61*$AL61) -> 0 | AP61: =IF($P61>0,$P61*$AO61,$K61*$AO61) -> 0
B62: 60 | C62: Wilder, Ricki | D62: CTE Teacher | E62: 1100 | G62: 55000 | I62: 1000 | J62: 1000 | K62: 56000 | P62: 0 | R62: S | T62: 10696 | U62: 0 | V62: =IF(($K62+$P62)>Assumptions!$H$12,Assumptions!$H$12*$V$1,(K62+P62)*$V$1) -> 420 | W62: 0 | X62: 812 | Y62: 616 | Z62: 16771.248 | AA62: 335.42496 | AB62: 17106.67296 | AC62: 85650.67296 | AJ62: 0 | AM62: =IF($P62>0,$P62*$AL62,$K62*$AL62) -> 0 | AP62: =IF($P62>0,$P62*$AO62,$K62*$AO62) -> 0
B63: 61 | C63: Woollard, Kasey | D63: Teacher | E63: 1100 | G63: 57000 | I63: 2000 | J63: 2000 | K63: 59000 | P63: 0 | R63: S | T63: 11269 | U63: 0 | V63: =IF(($K63+$P63)>Assumptions!$H$12,Assumptions!$H$12*$V$1,(K63+P63)*$V$1) -> 420 | W63: 0 | X63: 855.5 | Y63: 649 | Z63: 6826.7376 | AA63: 136.534752 | AB63: 6963.272352 | AC63: 79156.77235 | AJ63: 0 | AM63: =IF($P63>0,$P63*$AL63,$K63*$AL63) -> 0 | AP63: =IF($P63>0,$P63*$AO63,$K63*$AO63) -> 0
B64: 62 | C64: Carrasquedo, Maria | D64: Childcare Assistant | E64: 2900 | G64: 0 | I64: 0 | J64: 0 | K64: 0 | M64: 16 | N64: 40 | O64: 45 | P64: 28800 | R64: N | T64: 0 | U64: 0 | V64: =IF(($K64+$P64)>Assumptions!$H$12,Assumptions!$H$12*$V$1,(K64+P64)*$V$1) -> 420 | W64: 1785.6 | X64: 417.6 | Y64: 316.8 | Z64: 6775.86 | AA64: 135.5172 | AB64: 6911.3772 | AC64: 38651.3772 | AJ64: 0 | AM64: =IF($P64>0,$P64*$AL64,$K64*$AL64) -> 0 | AP64: =IF($P64>0,$P64*$AO64,$K64*$AO64) -> 0
B65: 63 | C65: Grant, Maria | D65: Teacher | E65: 1100 | G65: 0 | I65: 0 | J65: 0 | K65: 0 | M65: 75 | N65: 30 | O65: 36 | P65: 81000 | R65: S | T65: 15471 | U65: 0 | V65: =IF(($K65+$P65)>Assumptions!$H$12,Assumptions!$H$12*$V$1,(K65+P65)*$V$1) -> 420 | W65: 0 | X65: 1174.5 | Y65: 891 | Z65: 6850.2384 | AA65: 137.004768 | AB65: 6987.243168 | AC65: 105943.7432 | AJ65: 0 | AM65: =IF($P65>0,$P65*$AL65,$K65*$AL65) -> 0 | AP65: =IF($P65>0,$P65*$AO65,$K65*$AO65) -> 0
B66: 64 | C66: Lapp, Diane | D66: Academic Coach / Teacher | E66: 2100 | G66: 0 | I66: 0 | J66: 0 | K66: 0 | M66: 75 | N66: 25 | O66: 36 | P66: 67500 | R66: N | T66: 0 | U66: 0 | V66: =IF(($K66+$P66)>Assumptions!$H$12,Assumptions!$H$12*$V$1,(K66+P66)*$V$1) -> 420 | W66: 4185 | X66: 978.75 | Y66: 742.5 | Z66: 0 | AA66: 0 | AB66: 0 | AC66: 73826.25 | AJ66: 0
B67: 65 | C67: Parker, Tammy | D67: SPED IT Support | E67: 2400 | G67: 0 | I67: 0 | J67: 0 | K67: 0 | M67: 42 | N67: 20 | O67: 45 | P67: =M67*N67*O67 -> 37800 | R67: N | T67: =IF(R67="S",$T$1*(K67+P67),0) -> 0 | U67: =IF(R67="P",$U$1*(K67+P67),0) -> 0 | V67: =IF(($K67+$P67)>Assumptions!$H$12,Assumptions!$H$12*$V$1,(K67+P67)*$V$1) -> 420 | W67: =IF(R67="S",0,($W$1*(K67+P67))) -> 2343.6 | X67: =(K67+P67)*$X$1 -> 548.1 | Y67: =(K67+P67)*$Y$1 -> 415.8 | Z67: 0 | AA67: 0 | AB67: 0 | AC67: =K67+P67+SUM(T67:Y67)+AB67 -> 41527.5 | AJ67: 0 | AM67: =IF($P67>0,$P67*$AL67,$K67*$AL67) -> 0 | AP67: =IF($P67>0,$P67*$AO67,$K67*$AO67) -> 0
B68: =B67+1 -> 66 | C68: Wash, Angul | D68: Bus Driver | E68: 2100 | G68: 0 | I68: 0 | J68: 0 | K68: 0 | M68: 21 | N68: 30 | O68: 36 | P68: 22680 | R68: N | T68: 0 | U68: 0 | V68: =IF(($K68+$P68)>Assumptions!$H$12,Assumptions!$H$12*$V$1,(K68+P68)*$W$1) -> 420 | W68: 1406.16 | X68: 328.86 | Y68: 249.48 | Z68: 0 | AA68: 0 | AB68: 0 | AC68: 25084.5 | AJ68: 0 | AM68: =IF($P68>0,$P68*$AL68,$K68*$AL68) -> 0 | AP68: =IF($P68>0,$P68*$AO68,$K68*$AO68) -> 0
B69: 67 | C69: Ruelas, Yves | D69: Teacher | E69: 1100 | I69: 55000 | J69: =H69+I69 -> 55000 | K69: =(G69+J69) -> 55000 | P69: 0 | R69: S | T69: 10505 | U69: 0 | V69: =IF(($K69+$P69)>Assumptions!$H$12,Assumptions!$H$12*$V$1,(K69+P69)*$W$1) -> 420 | W69: 0 | X69: 797.5 | Y69: 605 | Z69: 6775.86 | AA69: 135.5172 | AB69: 6911.3772 | AC69: 74238.8772
B70: 68 | C70: Martin-Carloz, Sophia | D70: Teacher | E70: 1100 | I70: 55000 | J70: 55000 | K70: 55000 | P70: 0 | R70: S | T70: 10505 | U70: 0 | V70: =IF(($K70+$P70)>Assumptions!$H$12,Assumptions!$H$12*$V$1,(K70+P70)*$W$1) -> 420 | W70: 0 | X70: 797.5 | Y70: 605 | Z70: 6850.2384 | AA70: 137.004768 | AB70: 6987.243168 | AC70: 74314.74317 | AJ70: =IF($P70>0,$P70*$AI70,$K70*$AI70) -> 0 | AM70: =IF($P70>0,$P70*$AL70,$K70*$AL70) -> 0 | AP70: =IF($P70>0,$P70*$AO70,$K70*$AO70) -> 0
B71: 69 | C71: 2022-23 Position | D71: Teacher | E71: 1100 | I71: 57000 | J71: 57000 | K71: 57000 | P71: =M71*N71*O71 -> 0 | R71: S | T71: 10887 | U71: 0 | V71: =IF(($K71+$P71)>Assumptions!$H$12,Assumptions!$H$12*$V$1,(K71+P71)*$W$1) -> 420 | W71: 0 | X71: 826.5 | Y71: 627 | Z71: 6851.2384 | AA71: =Z71*$AA$1 -> 137.024768 | AB71: =Z71+AA71 -> 6988.263168 | AC71: 76748.76317 | AE71: =IFERROR(K71/AD71,0) -> 0 | AF71: =IFERROR(AE71/2,0) -> 0 | AJ71: =IF($P71>0,$P71*$AI71,$K71*$AI71) -> 0 | AM71: =IF($P71>0,$P71*$AL71,$K71*$AL71) -> 0 | AP71: =IF($P71>0,$P71*$AO71,$K71*$AO71) -> 0
B72: 70 | J72: 0 | K72: 0 | P72: 0 | T72: 0 | U72: 0 | V72: =IF(($K72+$P72)>Assumptions!$H$12,Assumptions!$H$12*$V$1,(K72+P72)*$W$1) -> 0 | W72: 0 | X72: 0 | Y72: 0 | AB72: 0 | AC72: 0 | AJ72: =IF($P72>0,$P72*$AI72,$K72*$AI72) -> 0 | AM72: =IF($P72>0,$P72*$AL72,$K72*$AL72) -> 0 | AP72: =IF($P72>0,$P72*$AO72,$K72*$AO72) -> 0
C73: TOTALS | G73: =SUBTOTAL(9,G$3:G$72) -> 3201815 | H73: 0 | I73: 959685 | J73: 959685 | K73: 4161500 | L73: 0 | P73: =SUBTOTAL(9,P$3:P$72) -> 237780 | T73: =SUBTOTAL(9,T$3:T$72) -> 602700.5 | U73: 0 | V73: 28980 | W73: 77114.36 | X73: 63789.56 | Y73: 48392.08 | Z73: 558649.1848 | AA73: 11033.69739 | AB73: 572866.6488 | AC73: 5793123.149
B75: SUMMARY
B77: 1100 | C77: =SUMIF($E$3:$E$72,$B77,$P$3:$P$72)+SUMIF($E$3:$E$72,$B77,$K$3:$K$72) -> 2269500
B78: 1105 | C78: 0
B79: 1120 | C79: 0
B80: 1200 | C80: 0
B81: 1300 | C81: 593000
B82: 1900 | C82: 293000
C83: =SUBTOTAL(9,C77:C82) -> 3155500
B84: 2100 | C84: =SUMIF($E$3:$E$72,$B84,$P$3:$P$72)+SUMIF($E$3:$E$72,$B84,$K$3:$K$72) -> 722180
B85: 2200 | C85: =SUMIF($E$3:$E$72,$B85,$P$3:$P$72)+SUMIF($E$3:$E$72,$B85,$K$3:$K$72) -> 52000
B86: 2300 | C86: =SUMIF($E$3:$E$72,$B86,$P$3:$P$72)+SUMIF($E$3:$E$72,$B86,$K$3:$K$72) -> 0
B87: 2400 | C87: =SUMIF($E$3:$E$72,$B87,$P$3:$P$72)+SUMIF($E$3:$E$72,$B87,$K$3:$K$72) -> 440800
B88: 2900 | C88: =SUMIF($E$3:$E$72,$B88,$P$3:$P$72)+SUMIF($E$3:$E$72,$B88,$K$3:$K$72) -> 28800
C89: =SUBTOTAL(9,C84:C88) -> 1243780
B90: 3101 | C90: =T73 -> 602700.5
B91: 3202 | C91: =U73 -> 0
B92: 3313 | C92: =W73 -> 77114.36
B93: 3323 | C93: =X73 -> 63789.56
B94: 3403 | C94: =AB73 -> 572866.6488
B95: 3502 | C95: =V73 -> 28980
B96: 3603 | C96: =Y73 -> 48392.08
B97: 3703 | C97: 0
B98: 3903 | C98: =AB74 -> 0
C99: =SUBTOTAL(9,C90:C98) -> 1393843.149
B100: Total | C100: =SUBTOTAL(9,C77:C99) -> 5793123.149
B101: Check | C101: =C100-AC73 -> 0

Sheet Salaries (Reforecasted) (hidden)
T1: =Assumptions!H8 -> 0.1692 | U1: =Assumptions!H9 -> 0.23 | V1: =Assumptions!H13 -> 0.06 | W1: =Assumptions!H10 -> 0.062 | X1: =Assumptions!H11 -> 0.0145 | Y1: =Assumptions!H14 -> 0.01 | AA1: 0.02
B2: # | C2: NAME | D2: TITLE | E2: OBJ CODE | F2: LOCATION | G2: ANNUAL BASE | H2: ADDITIONAL PAY | I2: ANNUAL INCREASE | J2: ADJUSTMENTS TOTAL | K2: ANNUAL SALARY | M2: HOURLY WAGE | N2: HOURS PER WEEK | O2: WEEKS PER YEAR | P2: HOURLY TOTAL | R2: Retirement (S,P,N,O) | T2: STRS (S) | U2: PERS (P) | V2: SUI | W2: OASDI | X2: MEDICARE | Y2: Workers Comp | Z2: ANNUAL HEALTH & WELFARE BENEFITS | AA2: ANNUAL INCREASE | AB2: ANNUAL HEALTH & WELFARE BENEFITS | AC2: Total Salary Expense | AD2: MONTHS IN CONTRACT | AE2: MONTHLY SALARY | AF2: BI-MONTHLY SALARY | AH2: RESTRICTION | AI2: % OF RESTRICTION | AJ2: TOTAL RESTRICTION COST | AK2: RESTRICTION | AL2: % OF RESTRICTION | AM2: TOTAL RESTRICTION COST | AN2: RESTRICTION | AO2: % OF RESTRICTION | AP2: TOTAL RESTRICTION COST | AQ2: NOTES
B3: 1 | C3: Ahmed, Naimo | D3: School Counselor | E3: 2100 | G3: 55000 | H3: 1200 | I3: 0 | J3: =H3+I3 -> 1200 | K3: =(G3+J3) -> 56200 | P3: =M3*N3*O3 -> 0 | R3: N | T3: =IF(R3="S",$T$1*(K3+P3),0) -> 0 | U3: =IF(R3="P",$U$1*(K3+P3),0) -> 0 | V3: =IF(($K3+$P3)>Assumptions!$H$12,Assumptions!$H$12*$V$1,(K3+P3)*$V$1) -> 420 | W3: =IF(R3="S",0,($W$1*(K3+P3))) -> 3484.4 | X3: =(K3+P3)*$X$1 -> 814.9 | Y3: =(K3+P3)*$Y$1 -> 562 | Z3: 6699.12 | AA3: =Z3*$AA$1 -> 133.9824 | AB3: =Z3+AA3 -> 6833.1024 | AC3: =K3+P3+SUM(T3:Y3)+AB3 -> 68314.4024 | AH3: 3212 | AI3: 1 | AJ3: =IF($P3>0,$P3*$AI3,$K3*$AI3) -> 56200 | AM3: =IF($P3>0,$P3*$AL3,$K3*$AL3) -> 0 | AP3: =IF($P3>0,$P3*$AO3,$K3*$AO3) -> 0
B4: 2 | C4: BONUS | E4: 1100 | H4: 90000 | J4: =H4+I4 -> 90000 | K4: =(G4+J4) -> 90000 | R4: S | T4: =IF(R4="S",$T$1*(K4+P4),0) -> 15228 | U4: =IF(R4="P",$U$1*(K4+P4),0) -> 0 | V4: =IF(($K4+$P4)>Assumptions!$H$12,Assumptions!$H$12*$V$1,(K4+P4)*$V$1) -> 420 | W4: =IF(R4="S",0,($W$1*(K4+P4))) -> 0 | X4: =(K4+P4)*$X$1 -> 1305 | Y4: =(K4+P4)*$Y$1 -> 900 | Z4: 20000 | AB4: 25000 | AC4: 132853
B5: 3 | C5: Allen, Emelie | D5: Business and Administrative Specialist | E5: 2400 | G5: 59000 | H5: 1257.56 | I5: 0 | J5: 1257.56 | K5: 60257.56 | P5: 0 | R5: N | T5: 0 | U5: 0 | V5: =IF(($K5+$P5)>Assumptions!$H$12,Assumptions!$H$12*$V$1,(K5+P5)*$V$1) -> 420 | W5: 3735.96872 | X5: 873.73462 | Y5: 602.5756 | Z5: 6688.08 | AA5: 133.7616 | AB5: 6821.8416 | AC5: 72711.68054 | AJ5: =IF($P5>0,$P5*$AI5,$K5*$AI5) -> 0 | AM5: =IF($P5>0,$P5*$AL5,$K5*$AL5) -> 0 | AP5: =IF($P5>0,$P5*$AO5,$K5*$AO5) -> 0
B6: 4 | C6: Arnaiz, Broc | D6: Vice Principal | E6: 1300 | G6: 100000 | I6: 0 | J6: 0 | K6: 100000 | P6: 0 | R6: S | T6: =IF(R6="S",$T$1*(K6+P6),0) -> 16920 | U6: =IF(R6="P",$U$1*(K6+P6),0) -> 0 | V6: =IF(($K6+$P6)>Assumptions!$H$12,Assumptions!$H$12*$V$1,(K6+P6)*$V$1) -> 420 | W6: =IF(R6="S",0,($W$1*(K6+P6))) -> 0 | X6: =(K6+P6)*$X$1 -> 1450 | Y6: =(K6+P6)*$Y$1 -> 1000 | Z6: 16012.56 | AA6: 320.2512 | AB6: 16332.8112 | AC6: 136122.8112 | AH6: 64 | AI6: 1 | AJ6: =IF($P6>0,$P6*$AI6,$K6*$AI6) -> 100000 | AM6: =IF($P6>0,$P6*$AL6,$K6*$AL6) -> 0 | AP6: =IF($P6>0,$P6*$AO6,$K6*$AO6) -> 0
B7: 5 | C7: Assof, Joseph | D7: Teacher | E7: 1100 | G7: 70000 | I7: 0 | J7: 0 | K7: 70000 | P7: 0 | R7: S | T7: 11844 | U7: 0 | V7: =IF(($K7+$P7)>Assumptions!$H$12,Assumptions!$H$12*$V$1,(K7+P7)*$V$1) -> 420 | W7: 0 | X7: 1015 | Y7: 700 | Z7: 807.6 | AA7: 16.152 | AB7: 823.752 | AC7: 84802.752 | AI7: 0.2
B8: 6 | C8: Barr, Genelle | D8: Intervention Teachr | E8: 1100 | G8: 56000 | I8: 0 | J8: 0 | K8: 56000 | P8: 0 | R8: S | T8: 9475.2 | U8: 0 | V8: =IF(($K8+$P8)>Assumptions!$H$12,Assumptions!$H$12*$V$1,(K8+P8)*$V$1) -> 420 | W8: 0 | X8: 812 | Y8: 560 | Z8: 16013 | AA8: 320.26 | AB8: 16333.26 | AC8: 83600.46 | AH8: 3210 | AJ8: =IF($P8>0,$P8*$AI8,$K8*$AI8) -> 0 | AM8: =IF($P8>0,$P8*$AL8,$K8*$AL8) -> 0 | AP8: =IF($P8>0,$P8*$AO8,$K8*$AO8) -> 0
B9: 7 | C9: Bauman, Keelie | D9: Teacher | E9: 1100 | G9: 63000 | I9: 0 | J9: 0 | K9: 63000 | P9: =M9*N9*O9 -> 0 | R9: S | T9: 10659.6 | U9: 0 | V9: =IF(($K9+$P9)>Assumptions!$H$12,Assumptions!$H$12*$V$1,(K9+P9)*$V$1) -> 420 | W9: 0 | X9: 913.5 | Y9: 630 | Z9: 6685.2 | AA9: 133.704 | AB9: 6818.904 | AC9: 82442.004 | AI9: 0.1 | AJ9: =IF($P9>0,$P9*$AI9,$K9*$AI9) -> 6300 | AK9: 04 | AL9: 0.1 | AM9: =IF($P9>0,$P9*$AL9,$K9*$AL9) -> 6300 | AN9: 72 | AO9: 0.2 | AP9: =IF($P9>0,$P9*$AO9,$K9*$AO9) -> 12600
B10: 8 | C10: Beam, Charles | D10: Educational Specialist | E10: 1100 | G10: 72000 | I10: 0 | J10: 0 | K10: 72000 | P10: =M10*N10*O10 -> 0 | R10: S | T10: 12182.4 | U10: 0 | V10: =IF(($K10+$P10)>Assumptions!$H$12,Assumptions!$H$12*$V$1,(K10+P10)*$V$1) -> 420 | W10: 0 | X10: 1044 | Y10: 720 | Z10: 16394.88 | AA10: 327.8976 | AB10: 16722.7776 | AC10: 103089.1776 | AH10: 65 | AI10: 1 | AJ10: =IF($P10>0,$P10*$AI10,$K10*$AI10) -> 72000 | AM10: =IF($P10>0,$P10*$AL10,$K10*$AL10) -> 0 | AP10: =IF($P10>0,$P10*$AO10,$K10*$AO10) -> 0
B11: 9 | C11: Benak, Staci | D11: Teacher | E11: 1100 | G11: 67000 | I11: 0 | J11: =H11+I11 -> 0 | K11: =(G11+J11) -> 67000 | P11: 0 | R11: S | T11: 11336.4 | U11: 0 | V11: =IF(($K11+$P11)>Assumptions!$H$12,Assumptions!$H$12*$V$1,(K11+P11)*$V$1) -> 420 | W11: 0 | X11: 971.5 | Y11: 670 | Z11: 6715.92 | AA11: 134.3184 | AB11: 6850.2384 | AC11: 87248.1384 | AI11: 0.2
B12: 10 | C12: Blanchard, Ralph | D12: Creative Media Specialist | E12: 2400 | G12: 61000 | H12: 1200 | I12: 0 | J12: 1200 | K12: 62200 | P12: 0 | R12: S | T12: 10524.24 | U12: 0 | V12: =IF(($K12+$P12)>Assumptions!$H$12,Assumptions!$H$12*$V$1,(K12+P12)*$V$1) -> 420 | W12: 0 | X12: 901.9 | Y12: 622 | Z12: 6715.92 | AA12: =Z12*$AA$1 -> 134.3184 | AB12: 6850.2384 | AC12: 81518.3784 | AE12: =IFERROR(K12/AD12,0) -> 0 | AF12: =IFERROR(AE12/2,0) -> 0 | AH12: 3210 | AJ12: =IF($P12>0,$P12*$AI12,$K12*$AI12) -> 0 | AM12: =IF($P12>0,$P12*$AL12,$K12*$AL12) -> 0 | AP12: =IF($P12>0,$P12*$AO12,$K12*$AO12) -> 0
B13: 11 | C13: Bonine, Jeffrey | D13: Teacher | E13: 1100 | G13: 83000 | I13: 0 | J13: 0 | K13: 83000 | P13: 0 | R13: S | T13: 14043.6 | U13: 0 | V13: =IF(($K13+$P13)>Assumptions!$H$12,Assumptions!$H$12*$V$1,(K13+P13)*$V$1) -> 420 | W13: 0 | X13: 1203.5 | Y13: 830 | Z13: 12476.16 | AA13: 249.5232 | AB13: 12725.6832 | AC13: 112222.7832 | AH13: 64 | AI13: 1
B14: 12 | C14: Carrasquedo, Maria | E14: 2900 | G14: 0 | I14: 0 | J14: 0 | K14: 0 | M14: 16 | N14: 40 | O14: 50 | P14: 32000 | R14: N | T14: 0 | U14: 0 | V14: =IF(($K14+$P14)>Assumptions!$H$12,Assumptions!$H$12*$V$1,(K14+P14)*$V$1) -> 420 | W14: 1984 | X14: 464 | Y14: 320 | Z14: 6643 | AA14: 132.86 | AB14: 6775.86 | AC14: 41963.86 | AE14: =IFERROR(K14/AD14,0) -> 0 | AF14: =IFERROR(AE14/2,0) -> 0 | AJ14: =IF($P14>0,$P14*$AI14,$K14*$AI14) -> 0 | AM14: =IF($P14>0,$P14*$AL14,$K14*$AL14) -> 0 | AP14: =IF($P14>0,$P14*$AO14,$K14*$AO14) -> 0
B15: 13 | C15: Cardenas , Maricruz | D15: Child Care Assistant | E15: 2100 | G15: 49000 | H15: 1185 | I15: 0 | J15: 1185 | K15: 50185 | P15: 0 | R15: N | T15: 0 | U15: 0 | V15: =IF(($K15+$P15)>Assumptions!$H$12,Assumptions!$H$12*$V$1,(K15+P15)*$V$1) -> 420 | W15: 3111.47 | X15: 727.6825 | Y15: 501.85 | Z15: 11994.48 | AA15: 239.8896 | AB15: 12234.3696 | AC15: 67180.3721 | AH15: 65 | AI15: 1 | AJ15: =IF($P15>0,$P15*$AI15,$K15*$AI15) -> 50185 | AM15: =IF($P15>0,$P15*$AL15,$K15*$AL15) -> 0 | AP15: =IF($P15>0,$P15*$AO15,$K15*$AO15) -> 0
B16: 14 | C16: Casanova, Vanessa | E16: 2900 | G16: 25000 | H16: 1191 | J16: 1191 | K16: 26191 | P16: 0 | R16: N | T16: 0 | U16: 0 | V16: =IF(($K16+$P16)>Assumptions!$H$12,Assumptions!$H$12*$V$1,(K16+P16)*$V$1) -> 420 | W16: 1623.842 | X16: 379.7695 | Y16: 261.91 | Z16: 6702.48 | AA16: 134.0496 | AB16: 10179 | AC16: 39055.5215 | AE16: =IFERROR(K16/AD16,0) -> 0 | AF16: =IFERROR(AE16/2,0) -> 0 | AH16: 7425 | AJ16: =IF($P16>0,$P16*$AI16,$K16*$AI16) -> 0 | AM16: =IF($P16>0,$P16*$AL16,$K16*$AL16) -> 0 | AP16: =IF($P16>0,$P16*$AO16,$K16*$AO16) -> 0
B17: 15 | C17: CASTELLANOS, BRIANNA L | E17: 1100 | G17: 10000 | J17: 0 | K17: 10000 | P17: 0 | R17: S | T17: 1692 | U17: 0 | V17: =IF(($K17+$P17)>Assumptions!$H$12,Assumptions!$H$12*$V$1,(K17+P17)*$V$1) -> 420 | W17: 0 | X17: 145 | Y17: 100 | Z17: 6723.6 | AA17: 134.472 | AB17: =Z17+AA17 -> 6858.072 | AC17: 19215.072 | AE17: =IFERROR(K17/AD17,0) -> 0 | AF17: =IFERROR(AE17/2,0) -> 0 | AH17: 63 | AI17: 1 | AJ17: =IF($P17>0,$P17*$AI17,$K17*$AI17) -> 10000 | AM17: =IF($P17>0,$P17*$AL17,$K17*$AL17) -> 0 | AP17: =IF($P17>0,$P17*$AO17,$K17*$AO17) -> 0
B18: 16 | C18: Corrigan, Oscar | D18: Vice Principal | E18: 1300 | G18: 100000 | H18: 1200 | I18: 0 | J18: 1200 | K18: 101200 | P18: 0 | R18: S | T18: 17123.04 | U18: 0 | V18: =IF(($K18+$P18)>Assumptions!$H$12,Assumptions!$H$12*$V$1,(K18+P18)*$V$1) -> 420 | W18: 0 | X18: 1467.4 | Y18: 1012 | Z18: 16504.08 | AA18: 330.0816 | AB18: 16834.1616 | AC18: 138056.6016 | AH18: 64 | AI18: 0.4
B19: 17 | C19: Cortez, Uriel | D19: CTE Teacher | E19: 1100 | G19: 61000 | I19: 0 | J19: 0 | K19: 61000 | P19: 0 | R19: S | T19: 10321.2 | U19: 0 | V19: =IF(($K19+$P19)>Assumptions!$H$12,Assumptions!$H$12*$V$1,(K19+P19)*$V$1) -> 420 | W19: 0 | X19: 884.5 | Y19: 610 | Z19: 16469.28 | AA19: 329.3856 | AB19: 16798.6656 | AC19: 90034.3656 | AE19: =IFERROR(K19/AD19,0) -> 0 | AF19: =IFERROR(AE19/2,0) -> 0 | AH19: 63 | AI19: 1 | AJ19: =IF($P19>0,$P19*$AI19,$K19*$AI19) -> 61000 | AM19: =IF($P19>0,$P19*$AL19,$K19*$AL19) -> 0 | AP19: =IF($P19>0,$P19*$AO19,$K19*$AO19) -> 0
B20: 18 | C20: Dale, Bryan | D20: Teacher | E20: 1100 | G20: 61000 | I20: -2000 | J20: -2000 | K20: 59000 | P20: 0 | R20: S | T20: 9982.8 | U20: 0 | V20: =IF(($K20+$P20)>Assumptions!$H$12,Assumptions!$H$12*$V$1,(K20+P20)*$V$1) -> 420 | W20: 0 | X20: 855.5 | Y20: 590 | Z20: 6702.48 | AA20: 134.0496 | AB20: 6836.5296 | AC20: 77684.8296 | AE20: =IFERROR(K20/AD20,0) -> 0 | AF20: =IFERROR(AE20/2,0) -> 0 | AI20: 0.2 | AJ20: =IF($P20>0,$P20*$AI20,$K20*$AI20) -> 11800 | AM20: =IF($P20>0,$P20*$AL20,$K20*$AL20) -> 0 | AP20: =IF($P20>0,$P20*$AO20,$K20*$AO20) -> 0
B21: 19 | C21: Dale, Jean | D21: Educational Specialist | E21: 1100 | I21: 55000 | J21: 55000 | K21: 55000 | P21: 0 | R21: S | T21: 9306 | U21: 0 | V21: =IF(($K21+$P21)>Assumptions!$H$12,Assumptions!$H$12*$V$1,(K21+P21)*$V$1) -> 420 | W21: 0 | X21: 797.5 | Y21: 550 | Z21: 6715.92 | AA21: =Z21*$AA$1 -> 134.3184 | AB21: 6850.2384 | AC21: 72923.7384
B22: 20 | C22: Davenport, Demetrius | D22: Dean of Students | E22: 2100 | G22: 60000 | H22: 1221 | I22: 0 | J22: 1221 | K22: 61221 | P22: 0 | R22: N | T22: 0 | U22: 0 | V22: =IF(($K22+$P22)>Assumptions!$H$12,Assumptions!$H$12*$V$1,(K22+P22)*$V$1) -> 420 | W22: 3795.702 | X22: 887.7045 | Y22: 612.21 | Z22: 6712.08 | AA22: 134.2416 | AB22: 6846.3216 | AC22: 73782.9381 | AH22: 01 | AI22: 1 | AJ22: =IF($P22>0,$P22*$AI22,$K22*$AI22) -> 61221 | AM22: =IF($P22>0,$P22*$AL22,$K22*$AL22) -> 0 | AP22: =IF($P22>0,$P22*$AO22,$K22*$AO22) -> 0
B23: 21 | C23: Elliot-Padgitt, Kimberly | D23: Academic Coach | E23: 1100 | G23: 80000 | I23: 0 | J23: 0 | K23: 80000 | P23: 0 | R23: S | T23: 13536 | U23: 0 | V23: =IF(($K23+$P23)>Assumptions!$H$12,Assumptions!$H$12*$V$1,(K23+P23)*$V$1) -> 420 | W23: 0 | X23: 1160 | Y23: 800 | Z23: 6715.92 | AA23: =Z23*$AA$1 -> 134.3184 | AB23: 6850.2384 | AC23: 102766.2384 | AH23: 3212
B24: 22 | C24: Elzien, Elleisha | D24: Teacher | E24: 1100 | G24: 57000 | I24: 0 | J24: 0 | K24: 57000 | P24: 0 | R24: S | T24: 9644.4 | U24: 0 | V24: =IF(($K24+$P24)>Assumptions!$H$12,Assumptions!$H$12*$V$1,(K24+P24)*$V$1) -> 420 | W24: 0 | X24: 826.5 | Y24: 570 | Z24: 11132.4 | AA24: =Z24*$AA$1 -> 222.648 | AB24: 11355.048 | AC24: 79815.948 | AI24: 0.2
B25: 23 | C25: Fallon, Margaret | D25: Teacher | E25: 1100 | G25: 67000 | I25: 0 | J25: 0 | K25: 67000 | P25: 0 | R25: S | T25: 11336.4 | U25: 0 | V25: =IF(($K25+$P25)>Assumptions!$H$12,Assumptions!$H$12*$V$1,(K25+P25)*$V$1) -> 420 | W25: 0 | X25: 971.5 | Y25: 670 | Z25: 6723.6 | AA25: 134.472 | AB25: 6858.072 | AC25: 87255.972 | AI25: 0.2
B26: 24 | C26: Fischmann, Caleigh | D26: Transition Counselor | E26: 2100 | G26: 55000 | I26: 0 | J26: 0 | K26: 55000 | P26: 0 | R26: N | T26: 0 | U26: 0 | V26: =IF(($K26+$P26)>Assumptions!$H$12,Assumptions!$H$12*$V$1,(K26+P26)*$V$1) -> 420 | W26: 3410 | X26: 797.5 | Y26: 550 | Z26: 6699.12 | AA26: 133.9824 | AB26: 6833.1024 | AC26: 67010.6024 | AE26: =IFERROR(K26/AD26,0) -> 0 | AF26: =IFERROR(AE26/2,0) -> 0 | AH26: 7425 | AJ26: =IF($P26>0,$P26*$AI26,$K26*$AI26) -> 0 | AM26: =IF($P26>0,$P26*$AL26,$K26*$AL26) -> 0 | AP26: =IF($P26>0,$P26*$AO26,$K26*$AO26) -> 0
B27: 25 | C27: Flores, Ricardo | D27: Maintenance Coordinator | E27: 2200 | G27: 50000 | H27: 1156.62 | I27: 0 | J27: 1156.62 | K27: 51156.62 | P27: 0 | R27: N | T27: 0 | U27: 0 | V27: =IF(($K27+$P27)>Assumptions!$H$12,Assumptions!$H$12*$V$1,(K27+P27)*$V$1) -> 420 | W27: 3171.71044 | X27: 741.77099 | Y27: 511.5662 | Z27: 16428.96 | AA27: 328.5792 | AB27: 16757.5392 | AC27: 72759.20683 | AE27: =IFERROR(K27/AD27,0) -> 0 | AF27: =IFERROR(AE27/2,0) -> 0 | AI27: 0.2 | AJ27: =IF($P27>0,$P27*$AI27,$K27*$AI27) -> 10231.324 | AM27: =IF($P27>0,$P27*$AL27,$K27*$AL27) -> 0 | AP27: =IF($P27>0,$P27*$AO27,$K27*$AO27) -> 0
B28: 26 | C28: George, Marnitta | D28: Teacher | E28: 1100 | G28: 76000 | I28: 0 | J28: 0 | K28: 76000 | P28: 0 | R28: S | T28: 12859.2 | U28: 0 | V28: =IF(($K28+$P28)>Assumptions!$H$12,Assumptions!$H$12*$V$1,(K28+P28)*$V$1) -> 420 | W28: 0 | X28: 1102 | Y28: 760 | Z28: 198.24 | AA28: 3.9648 | AB28: 202.2048 | AC28: 91343.4048 | AI28: 0.2
B29: 27 | C29: Gerrity, Mary | D29: Student Information Specialist | E29: 2400 | G29: 53000 | H29: 1200 | I29: 0 | J29: 1200 | K29: 54200 | P29: 0 | R29: N | T29: 0 | U29: 0 | V29: =IF(($K29+$P29)>Assumptions!$H$12,Assumptions!$H$12*$V$1,(K29+P29)*$V$1) -> 420 | W29: 3360.4 | X29: 785.9 | Y29: 542 | Z29: 6681.6 | AA29: 133.632 | AB29: 6815.232 | AC29: 66123.532 | AE29: =IFERROR(K29/AD29,0) -> 0 | AF29: =IFERROR(AE29/2,0) -> 0 | AH29: 3212 | AJ29: =IF($P29>0,$P29*$AI29,$K29*$AI29) -> 0 | AM29: =IF($P29>0,$P29*$AL29,$K29*$AL29) -> 0 | AP29: =IF($P29>0,$P29*$AO29,$K29*$AO29) -> 0
B30: 28 | C30: Gonzalez, Alejandro | D30: Director of Digital Instruction and Technology | E30: 1900 | G30: 40000 | I30: 0 | J30: 0 | K30: 40000 | P30: 0 | R30: S | T30: 6768 | U30: 0 | V30: =IF(($K30+$P30)>Assumptions!$H$12,Assumptions!$H$12*$V$1,(K30+P30)*$V$1) -> 420 | W30: 0 | X30: 580 | Y30: 400 | Z30: 6715.92 | AA30: 134.3184 | AB30: 6850.2384 | AC30: 55018.2384 | AH30: 64 | AI30: 0.43 | AJ30: =IF($P30>0,$P30*$AI30,$K30*$AI30) -> 17200 | AK30: 64 | AL30: 0.57 | AM30: =IF($P30>0,$P30*$AL30,$K30*$AL30) -> 22800 | AP30: =IF($P30>0,$P30*$AO30,$K30*$AO30) -> 0
B31: 29 | C31: Grant, Maria | E31: 1100 | I31: 0 | J31: 0 | K31: 0 | M31: 75 | N31: 30 | O31: 36 | P31: 81000 | R31: S | T31: 13705.2 | U31: 0 | V31: =IF(($K31+$P31)>Assumptions!$H$12,Assumptions!$H$12*$V$1,(K31+P31)*$V$1) -> 420 | W31: 0 | X31: 1174.5 | Y31: 810 | Z31: 6715.92 | AA31: 134.3184 | AB31: 6850.2384 | AC31: 103959.9384 | AJ31: =IF($P31>0,$P31*$AI31,$K31*$AI31) -> 0 | AM31: =IF($P31>0,$P31*$AL31,$K31*$AL31) -> 0 | AP31: =IF($P31>0,$P31*$AO31,$K31*$AO31) -> 0
B32: 30 | C32: Hackman, Angela | D32: Teacher | E32: 1100 | G32: 79000 | I32: 0 | J32: 0 | K32: 79000 | P32: 0 | R32: S | T32: 13366.8 | U32: 0 | V32: =IF(($K32+$P32)>Assumptions!$H$12,Assumptions!$H$12*$V$1,(K32+P32)*$V$1) -> 420 | W32: 0 | X32: 1145.5 | Y32: 790 | Z32: 16410.24 | AA32: 328.2048 | AB32: 16738.4448 | AC32: 111460.7448 | AI32: 0.2
B33: 31 | C33: Hampson, Jacob | D33: Teacher | E33: 1100 | G33: 57000 | I33: 0 | J33: 0 | K33: 57000 | P33: 0 | R33: S | T33: 9644.4 | U33: 0 | V33: =IF(($K33+$P33)>Assumptions!$H$12,Assumptions!$H$12*$V$1,(K33+P33)*$V$1) -> 420 | W33: 0 | X33: 826.5 | Y33: 570 | Z33: 6692.88 | AA33: 133.8576 | AB33: 6826.7376 | AC33: 75287.6376 | AI33: 0.2
B34: 32 | C34: Hardin, Ashlynn | D34: Teacher | E34: 1100 | G34: 52000 | I34: 0 | J34: 0 | K34: 52000 | P34: 0 | R34: S | T34: 8798.4 | U34: 0 | V34: =IF(($K34+$P34)>Assumptions!$H$12,Assumptions!$H$12*$V$1,(K34+P34)*$V$1) -> 420 | W34: 0 | X34: 754 | Y34: 520 | Z34: 6715.92 | AA34: 134.3184 | AB34: 6850.2384 | AC34: =K34+P34+SUM(T34:Y34)+AB34 -> 69342.6384 | AE34: =IFERROR(K34/AD34,0) -> 0 | AF34: =IFERROR(AE34/2,0) -> 0 | AH34: 7422 | AI34: 0.2 | AJ34: =IF($P34>0,$P34*$AI34,$K34*$AI34) -> 10400 | AM34: =IF($P34>0,$P34*$AL34,$K34*$AL34) -> 0 | AP34: =IF($P34>0,$P34*$AO34,$K34*$AO34) -> 0
B35: 33 | C35: Haywood, Mikayla | D35: Teacher | E35: 1100 | G35: 54000 | I35: 0 | J35: 0 | K35: 54000 | P35: 0 | R35: S | T35: 9136.8 | U35: 0 | V35: =IF(($K35+$P35)>Assumptions!$H$12,Assumptions!$H$12*$V$1,(K35+P35)*$V$1) -> 420 | W35: 0 | X35: 783 | Y35: 540 | Z35: 6690.24 | AA35: 133.8048 | AB35: 6824.0448 | AC35: 71703.8448 | AJ35: =IF($P35>0,$P35*$AI35,$K35*$AI35) -> 0 | AM35: =IF($P35>0,$P35*$AL35,$K35*$AL35) -> 0 | AP35: =IF($P35>0,$P35*$AO35,$K35*$AO35) -> 0
B36: 34 | C36: Hervey, John | D36: Teacher | E36: 1100 | G36: 52000 | I36: 0 | J36: 0 | K36: 52000 | P36: 0 | R36: S | T36: 8798.4 | U36: 0 | V36: =IF(($K36+$P36)>Assumptions!$H$12,Assumptions!$H$12*$V$1,(K36+P36)*$V$1) -> 420 | W36: 0 | X36: 754 | Y36: 520 | Z36: 6690.24 | AA36: =Z36*$AA$1 -> 133.8048 | AB36: 6824.0448 | AC36: 69316.4448 | AH36: 7422 | AJ36: =IF($P36>0,$P36*$AI36,$K36*$AI36) -> 0 | AM36: =IF($P36>0,$P36*$AL36,$K36*$AL36) -> 0 | AP36: =IF($P36>0,$P36*$AO36,$K36*$AO36) -> 0
B37: 35 | C37: Johnson, Sheri | D37: Principal | E37: 1300 | G37: 140000 | I37: 0 | J37: 0 | K37: 140000 | P37: 0 | R37: S | T37: 23688 | U37: 0 | V37: =IF(($K37+$P37)>Assumptions!$H$12,Assumptions!$H$12*$V$1,(K37+P37)*$V$1) -> 420 | W37: 0 | X37: 2030 | Y37: 1400 | Z37: 6796.8 | AA37: 135.936 | AB37: 6932.736 | AC37: 174470.736 | AH37: 64 | AI37: 1 | AJ37: =IF($P37>0,$P37*$AI37,$K37*$AI37) -> 140000 | AM37: =IF($P37>0,$P37*$AL37,$K37*$AL37) -> 0 | AP37: =IF($P37>0,$P37*$AO37,$K37*$AO37) -> 0
B38: 36 | C38: Juarez, Leeza | D38: Student Support | E38: 2100 | H38: 1125 | I38: 46000 | J38: 47125 | K38: 47125 | P38: 0 | R38: N | T38: 0 | U38: 0 | V38: =IF(($K38+$P38)>Assumptions!$H$12,Assumptions!$H$12*$V$1,(K38+P38)*$V$1) -> 420 | W38: 2921.75 | X38: 683.3125 | Y38: 471.25 | Z38: 6690.24 | AA38: =Z38*$AA$1 -> 133.8048 | AB38: 6824.0448 | AC38: 58445.3573
B39: 37 | C39: Kennedy, Brian | D39: Program Manager/Career Coach | E39: 1300 | G39: 90000 | H39: 1700 | I39: 0 | J39: 1700 | K39: 91700 | P39: 0 | R39: S | T39: 15515.64 | U39: 0 | V39: =IF(($K39+$P39)>Assumptions!$H$12,Assumptions!$H$12*$V$1,(K39+P39)*$V$1) -> 420 | W39: 0 | X39: 1329.65 | Y39: 917 | Z39: 6736.8 | AA39: 134.736 | AB39: 6871.536 | AC39: 116753.826 | AH39: 65 | AI39: 1 | AJ39: =IF($P39>0,$P39*$AI39,$K39*$AI39) -> 91700 | AM39: =IF($P39>0,$P39*$AL39,$K39*$AL39) -> 0 | AP39: =IF($P39>0,$P39*$AO39,$K39*$AO39) -> 0
B40: 38 | C40: Knowles, Christopher | D40: Student Support | E40: 2100 | G40: 55000 | H40: 1184 | I40: 5000 | J40: 6184 | K40: 61184 | P40: 0 | R40: N | T40: 0 | U40: 0 | V40: =IF(($K40+$P40)>Assumptions!$H$12,Assumptions!$H$12*$V$1,(K40+P40)*$V$1) -> 420 | W40: 3793.408 | X40: 887.168 | Y40: 611.84 | Z40: 6677.52 | AA40: 133.5504 | AB40: 6811.0704 | AC40: 73707.4864 | AH40: 64 | AI40: 0.31 | AJ40: 18967.04 | AK40: 63 | AL40: 0.525 | AM40: 32121.6 | AP40: 0
B41: 39 | C41: KOSAKA, KRISTEN | D41: Educational Specialist | E41: 1100 | G41: 83000 | I41: 0 | J41: 0 | K41: 83000 | P41: 0 | R41: S | T41: 14043.6 | U41: 0 | V41: =IF(($K41+$P41)>Assumptions!$H$12,Assumptions!$H$12*$V$1,(K41+P41)*$V$1) -> 420 | W41: 0 | X41: 1203.5 | Y41: 830 | Z41: 6712.08 | AA41: 134.2416 | AB41: 6846.3216 | AC41: 106343.4216 | AH41: 65 | AJ41: 0 | AM41: 0 | AP41: 0
B42: 40 | C42: Laniawe, Vanessa | D42: Student Support | E42: 1100 | G42: 50000 | I42: 0 | J42: 0 | K42: 50000 | P42: 0 | R42: S | T42: 8460 | U42: 0 | V42: =IF(($K42+$P42)>Assumptions!$H$12,Assumptions!$H$12*$V$1,(K42+P42)*$V$1) -> 420 | W42: 0 | X42: 725 | Y42: 500 | Z42: 6679.44 | AA42: 133.5888 | AB42: 6813.0288 | AC42: 66918.0288 | AE42: =IFERROR(K42/AD42,0) -> 0 | AF42: =IFERROR(AE42/2,0) -> 0 | AH42: 35 | AI42: 0.2 | AJ42: 10000 | AM42: 0 | AP42: 0
B43: 41 | C43: Lapp, Diane | E43: 2100 | H43: 1257 | I43: 0 | J43: 1257 | K43: 1257 | M43: 75 | N43: 25 | O43: 36 | P43: 67500 | R43: N | T43: 0 | U43: 0 | V43: =IF(($K43+$P43)>Assumptions!$H$12,Assumptions!$H$12*$V$1,(K43+P43)*$V$1) -> 420 | W43: 4262.934 | X43: 996.9765 | Y43: 687.57 | Z43: 0 | AA43: 0 | AB43: 0 | AC43: 75124.4805 | AJ43: 0 | AK43: 72 | AL43: 0.2 | AM43: 13500 | AP43: 0
B44: 42 | C44: Lauritzen, Cory | D44: Student Support | E44: 1100 | G44: 50000 | I44: 0 | J44: 0 | K44: 50000 | P44: 0 | R44: S | T44: 8460 | U44: 0 | V44: =IF(($K44+$P44)>Assumptions!$H$12,Assumptions!$H$12*$V$1,(K44+P44)*$V$1) -> 420 | W44: 0 | X44: 725 | Y44: 500 | Z44: 6679.44 | AA44: 133.5888 | AB44: 6813.0288 | AC44: 66918.0288 | AH44: 63 | AI44: 1 | AJ44: 50000 | AM44: 0 | AP44: 0
B45: 43 | C45: Lopez Cruz, Daisy | D45: School Operations Specialist | E45: 2400 | G45: 49000 | H45: 1232.29 | I45: 0 | J45: 1232.29 | K45: 50232.29 | P45: 0 | R45: N | T45: 0 | U45: 0 | V45: =IF(($K45+$P45)>Assumptions!$H$12,Assumptions!$H$12*$V$1,(K45+P45)*$V$1) -> 420 | W45: 3114.40198 | X45: 728.368205 | Y45: 502.3229 | AC45: 54997.38309 | AK45: 3212
B46: 44 | C46: Mansoor, Mathew | D46: CTE Teacher | E46: 1100 | G46: 52000 | I46: 0 | J46: 0 | K46: 52000 | P46: 0 | R46: S | T46: 8798.4 | U46: 0 | V46: =IF(($K46+$P46)>Assumptions!$H$12,Assumptions!$H$12*$V$1,(K46+P46)*$V$1) -> 420 | W46: 0 | X46: 754 | Y46: 520 | Z46: 6677.52 | AA46: =Z46*$AA$1 -> 133.5504 | AB46: =Z46+AA46 -> 6811.0704 | AC46: 69303.4704 | AE46: =IFERROR(K46/AD46,0) -> 0 | AF46: =IFERROR(AE46/2,0) -> 0 | AH46: 63 | AI46: 0.5 | AJ46: =IF($P46>0,$P46*$AI46,$K46*$AI46) -> 26000 | AK46: 73 | AM46: =IF($P46>0,$P46*$AL46,$K46*$AL46) -> 0 | AP46: =IF($P46>0,$P46*$AO46,$K46*$AO46) -> 0
B47: 45 | C47: Montferret, Ashlee | D47: Educational Specialist | E47: 1100 | G47: 67000 | I47: 0 | J47: 0 | K47: 67000 | P47: 0 | R47: S | T47: 11336.4 | U47: 0 | V47: =IF(($K47+$P47)>Assumptions!$H$12,Assumptions!$H$12*$V$1,(K47+P47)*$V$1) -> 420 | W47: 0 | X47: 971.5 | Y47: 670 | Z47: 6715.92 | AA47: =Z47*$AA$1 -> 134.3184 | AB47: =Z47+AA47 -> 6850.2384 | AC47: 87248.1384 | AH47: 65 | AI47: 1 | AJ47: =IF($P47>0,$P47*$AI47,$K47*$AI47) -> 67000 | AK47: 65 | AM47: =IF($P47>0,$P47*$AL47,$K47*$AL47) -> 0 | AP47: =IF($P47>0,$P47*$AO47,$K47*$AO47) -> 0
B48: 46 | C48: Gutierrez, Jiovanni | E48: 2400 | I48: 3000 | J48: 3000 | K48: 3000 | R48: N | T48: =IF(R48="S",$T$1*(K48+P48),0) -> 0 | U48: =IF(R48="P",$U$1*(K48+P48),0) -> 0 | V48: =IF(($K48+$P48)>Assumptions!$H$12,Assumptions!$H$12*$V$1,(K48+P48)*$V$1) -> 180 | W48: =IF(R48="S",0,($W$1*(K48+P48))) -> 186 | X48: =(K48+P48)*$X$1 -> 43.5 | Y48: =(K48+P48)*$Y$1 -> 30 | AC48: 3439.5
B49: 47 | C49: Moore, Marcus | E49: 2400 | I49: 0 | J49: 0 | K49: 0 | M49: 29.38 | N49: 40 | O49: 1 | P49: 1175.2 | R49: N | T49: 0 | U49: 0 | V49: =IF(($K49+$P49)>Assumptions!$H$12,Assumptions!$H$12*$V$1,(K49+P49)*$V$1) -> 70.512 | W49: 72.8624 | X49: 17.0404 | Y49: 11.752 | AC49: 1347.3668
B50: 48 | C50: North, Shayna | D50: CTE Teacher | E50: 1100 | G50: 60000 | I50: 0 | J50: 0 | K50: 60000 | P50: 0 | R50: S | T50: 10152 | U50: 0 | V50: =IF(($K50+$P50)>Assumptions!$H$12,Assumptions!$H$12*$V$1,(K50+P50)*$V$1) -> 420 | W50: 0 | X50: 870 | Y50: 600 | Z50: 6690.24 | AA50: =Z50*$AA$1 -> 133.8048 | AB50: =Z50+AA50 -> 6824.0448 | AC50: 78866.0448 | AH50: 63 | AI50: 1 | AJ50: =IF($P50>0,$P50*$AI50,$K50*$AI50) -> 60000 | AK50: 63 | AM50: =IF($P50>0,$P50*$AL50,$K50*$AL50) -> 0 | AP50: =IF($P50>0,$P50*$AO50,$K50*$AO50) -> 0
B51: 49 | C51: O'Connell, Cody | E51: 1100 | I51: 0 | J51: 0 | K51: 0 | M51: 32.25 | N51: 40 | O51: 36 | P51: 46440 | R51: S | T51: 7857.648 | U51: 0 | V51: =IF(($K51+$P51)>Assumptions!$H$12,Assumptions!$H$12*$V$1,(K51+P51)*$V$1) -> 420 | W51: 0 | X51: 673.38 | Y51: 464.4 | Z51: 6704.16 | AA51: =Z51*$AA$1 -> 134.0832 | AB51: =Z51+AA51 -> 6838.2432 | AC51: 62693.6712 | AJ51: =IF($P51>0,$P51*$AI51,$K51*$AI51) -> 0 | AK51: 72 | AL51: 0.2 | AM51: =IF($P51>0,$P51*$AL51,$K51*$AL51) -> 9288 | AP51: =IF($P51>0,$P51*$AO51,$K51*$AO51) -> 0
B52: 50 | C52: Olson, Kurt | D52: Technology Coordinator | E52: 1100 | G52: 65000 | I52: 0 | J52: 0 | K52: 65000 | P52: 0 | R52: S | T52: 10998 | U52: 0 | V52: =IF(($K52+$P52)>Assumptions!$H$12,Assumptions!$H$12*$V$1,(K52+P52)*$V$1) -> 420 | W52: 0 | X52: 942.5 | Y52: 650 | Z52: 6700.8 | AA52: =Z52*$AA$1 -> 134.016 | AB52: =Z52+AA52 -> 6834.816 | AC52: 84845.316 | AH52: 64 | AI52: 0.7 | AJ52: =IF($P52>0,$P52*$AI52,$K52*$AI52) -> 45500 | AK52: 64 | AM52: =IF($P52>0,$P52*$AL52,$K52*$AL52) -> 0 | AP52: =IF($P52>0,$P52*$AO52,$K52*$AO52) -> 0
B53: 51 | C53: Oreas, Maricris | D53: Teacher | E53: 1100 | G53: 52000 | I53: 0 | J53: 0 | K53: 52000 | P53: 0 | R53: S | T53: 8798.4 | U53: 0 | V53: =IF(($K53+$P53)>Assumptions!$H$12,Assumptions!$H$12*$V$1,(K53+P53)*$V$1) -> 420 | W53: 0 | X53: 754 | Y53: 520 | Z53: 6700.8 | AA53: =Z53*$AA$1 -> 134.016 | AB53: =Z53+AA53 -> 6834.816 | AC53: 69327.216 | AJ53: =IF($P53>0,$P53*$AI53,$K53*$AI53) -> 0 | AK53: 7422 | AM53: =IF($P53>0,$P53*$AL53,$K53*$AL53) -> 0 | AP53: =IF($P53>0,$P53*$AO53,$K53*$AO53) -> 0
B54: 52 | C54: Parker, Tammy | E54: 2400 | I54: 0 | J54: 0 | K54: 0 | M54: 42 | N54: 20 | O54: 45 | P54: 37800 | R54: N | T54: 0 | U54: 0 | V54: =IF(($K54+$P54)>Assumptions!$H$12,Assumptions!$H$12*$V$1,(K54+P54)*$V$1) -> 420 | W54: 2343.6 | X54: 548.1 | Y54: 378 | AC54: 41489.7
B55: 53 | C55: Pena, Marisa | D55: Teacher | E55: 1100 | G55: 68000 | I55: 0 | J55: 0 | K55: 68000 | P55: 0 | R55: S | T55: 11505.6 | U55: 0 | V55: =IF(($K55+$P55)>Assumptions!$H$12,Assumptions!$H$12*$V$1,(K55+P55)*$V$1) -> 420 | W55: 0 | X55: 986 | Y55: 680 | Z55: 6723.6 | AA55: =Z55*$AA$1 -> 134.472 | AB55: =Z55+AA55 -> 6858.072 | AC55: 88449.672 | AH55: 01 | AI55: 1 | AK55: 3212
B56: 55 | C56: Prince, Alexandra | D56: Student Support | E56: 1100 | G56: 52000 | I56: 5000 | J56: 5000 | K56: 57000 | P56: 0 | R56: S | T56: 9644.4 | U56: 0 | V56: =IF(($K56+$P56)>Assumptions!$H$12,Assumptions!$H$12*$V$1,(K56+P56)*$V$1) -> 420 | W56: 0 | X56: 826.5 | Y56: 570 | Z56: 6675.6 | AA56: =Z56*$AA$1 -> 133.512 | AB56: =Z56+AA56 -> 6809.112 | AC56: 75270.012 | AH56: 72 | AI56: 0.2 | AJ56: =IF($P56>0,$P56*$AI56,$K56*$AI56) -> 11400 | AK56: 3212 | AM56: =IF($P56>0,$P56*$AL56,$K56*$AL56) -> 0 | AP56: =IF($P56>0,$P56*$AO56,$K56*$AO56) -> 0
B57: 56 | C57: Radrigan, Natalie | D57: Student Support | E57: 2100 | I57: 49000 | J57: 49000 | K57: 49000 | P57: 0 | R57: N | T57: 0 | U57: 0 | V57: =IF(($K57+$P57)>Assumptions!$H$12,Assumptions!$H$12*$V$1,(K57+P57)*$V$1) -> 420 | W57: 3038 | X57: 710.5 | Y57: 490 | AC57: 53658.5
B58: 57 | C58: Ramriez, Cynthia | D58: Student Support | E58: 1100 | G58: 52000 | I58: 0 | J58: 0 | K58: 52000 | P58: 0 | R58: S | T58: 8798.4 | U58: 0 | V58: =IF(($K58+$P58)>Assumptions!$H$12,Assumptions!$H$12*$V$1,(K58+P58)*$V$1) -> 420 | W58: 0 | X58: 754 | Y58: 520 | Z58: 6681.36 | AA58: =Z58*$AA$1 -> 133.6272 | AB58: =Z58+AA58 -> 6814.9872 | AC58: 69307.3872 | AE58: =IFERROR(K58/AD58,0) -> 0 | AF58: =IFERROR(AE58/2,0) -> 0 | AH58: 63 | AI58: 1 | AJ58: =IF($P58>0,$P58*$AI58,$K58*$AI58) -> 52000 | AK58: 7425 | AM58: =IF($P58>0,$P58*$AL58,$K58*$AL58) -> 0 | AP58: =IF($P58>0,$P58*$AO58,$K58*$AO58) -> 0
B59: 58 | C59: Reed, Doris | D59: Administrative Assistant | E59: 2400 | G59: 48000 | H59: 0 | I59: 0 | J59: 0 | K59: 48000 | P59: 0 | R59: N | T59: 0 | U59: 0 | V59: =IF(($K59+$P59)>Assumptions!$H$12,Assumptions!$H$12*$V$1,(K59+P59)*$V$1) -> 420 | W59: 2976 | X59: 696 | Y59: 480 | Z59: 6673.68 | AA59: =Z59*$AA$1 -> 133.4736 | AB59: =Z59+AA59 -> 6807.1536 | AC59: 59379.1536
B60: 59 | C60: Regas, Nick | D60: Restorative Practices Support Team | E60: 1100 | G60: 52000 | I60: 0 | J60: 0 | K60: 52000 | P60: 0 | R60: S | T60: 8798.4 | U60: 0 | V60: =IF(($K60+$P60)>Assumptions!$H$12,Assumptions!$H$12*$V$1,(K60+P60)*$V$1) -> 420 | W60: 0 | X60: 754 | Y60: 520 | Z60: 16442.4 | AA60: =Z60*$AA$1 -> 328.848 | AB60: =Z60+AA60 -> 16771.248 | AC60: 79263.648 | AH60: 01 | AI60: 1 | AJ60: =IF($P60>0,$P60*$AI60,$K60*$AI60) -> 52000 | AK60: 7425 | AM60: =IF($P60>0,$P60*$AL60,$K60*$AL60) -> 0 | AP60: =IF($P60>0,$P60*$AO60,$K60*$AO60) -> 0
B61: 60 | C61: Reyes, Ernie | E61: 2100 | G61: 48600 | H61: 1150 | I61: 0 | J61: 1150 | K61: 49750 | P61: 0 | R61: N | T61: 0 | U61: 0 | V61: =IF(($K61+$P61)>Assumptions!$H$12,Assumptions!$H$12*$V$1,(K61+P61)*$V$1) -> 420 | W61: 3084.5 | X61: 721.375 | Y61: 497.5 | AC61: 54473.375 | AK61: 3212
B62: 61 | C62: Rios, Julieta | D62: Transition Counselor | E62: 2100 | G62: 55000 | H62: 1200 | I62: 0 | J62: 1200 | K62: 56200 | P62: 0 | R62: N | T62: 0 | U62: 0 | V62: =IF(($K62+$P62)>Assumptions!$H$12,Assumptions!$H$12*$V$1,(K62+P62)*$V$1) -> 420 | W62: 3484.4 | X62: 814.9 | Y62: 562 | Z62: 6690.24 | AB62: =Z62+AA62 -> 6690.24 | AC62: 68171.54 | AJ62: =IF($P62>0,$P62*$AI62,$K62*$AI62) -> 0 | AK62: 7425 | AM62: =IF($P62>0,$P62*$AL62,$K62*$AL62) -> 0 | AP62: =IF($P62>0,$P62*$AO62,$K62*$AO62) -> 0
B63: 62 | C63: Rivas, Grecia | D63: Administrative Assistant | E63: 2400 | H63: 1221.19 | I63: 62000 | J63: 63221.19 | K63: 63221.19 | P63: 0 | R63: N | T63: 0 | U63: 0 | V63: =IF(($K63+$P63)>Assumptions!$H$12,Assumptions!$H$12*$V$1,(K63+P63)*$V$1) -> 420 | W63: 3919.71378 | X63: 916.707255 | Y63: 632.2119 | AC63: 69109.82294
B64: 63 | C64: Ross, Donna | E64: 2100 | H64: 1221.19 | J64: 1221.19 | K64: 1221.19 | M64: 36.51 | N64: 20 | O64: 30 | P64: 21906 | R64: N | T64: 0 | U64: 0 | V64: =IF(($K64+$P64)>Assumptions!$H$12,Assumptions!$H$12*$V$1,(K64+P64)*$V$1) -> 420 | W64: 1433.88578 | X64: 335.344255 | Y64: 231.2719 | Z64: 0 | AA64: =Z64*$AA$1 -> 0 | AB64: =Z64+AA64 -> 0 | AC64: =K64+P64+SUM(T64:Y64)+AB64 -> 25547.69193 | AJ64: =IF($P64>0,$P64*$AI64,$K64*$AI64) -> 0 | AM64: =IF($P64>0,$P64*$AL64,$K64*$AL64) -> 0 | AP64: =IF($P64>0,$P64*$AO64,$K64*$AO64) -> 0
B65: 64 | C65: Rotell, Aida | D65: Program Manager / Teacher | E65: 1300 | G65: 119215 | I65: 0 | J65: 0 | K65: 119215 | P65: 0 | R65: S | T65: 20171.178 | U65: 0 | V65: =IF(($K65+$P65)>Assumptions!$H$12,Assumptions!$H$12*$V$1,(K65+P65)*$V$1) -> 420 | W65: 0 | X65: 1728.6175 | Y65: 1192.15 | Z65: 12498.72 | AA65: 249.9744 | AB65: 12748.6944 | AC65: 155475.6399 | AH65: 01 | AI65: 1 | AJ65: =IF($P65>0,$P65*$AI65,$K65*$AI65) -> 119215 | AK65: 01 | AM65: =IF($P65>0,$P65*$AL65,$K65*$AL65) -> 0 | AP65: =IF($P65>0,$P65*$AO65,$K65*$AO65) -> 0
B66: 65 | C66: Schaefer, Joanna | D66: Teacher | E66: 1100 | I66: 80000 | J66: 80000 | K66: 80000 | P66: 0 | R66: S | T66: 13536 | U66: 0 | V66: =IF(($K66+$P66)>Assumptions!$H$12,Assumptions!$H$12*$V$1,(K66+P66)*$V$1) -> 420 | W66: 0 | X66: 1160 | Y66: 800 | Z66: 6700.8 | AA66: =Z66*$AA$1 -> 134.016 | AB66: 6834.816 | AC66: 102750.816
B67: 66 | C67: Servis, Tyler | D67: Student Support | E67: 2100 | G67: 55000 | H67: 1257 | I67: 0 | J67: 1257 | K67: 56257 | P67: 0 | R67: N | T67: 0 | U67: 0 | V67: =IF(($K67+$P67)>Assumptions!$H$12,Assumptions!$H$12*$V$1,(K67+P67)*$V$1) -> 420 | W67: 3487.934 | X67: 815.7265 | Y67: 562.57 | Z67: 6752.88 | AA67: 135.0576 | AB67: 6887.9376 | AC67: 68431.1681 | AH67: 65 | AI67: 1 | AJ67: =IF($P67>0,$P67*$AI67,$K67*$AI67) -> 56257 | AK67: 3212 | AM67: =IF($P67>0,$P67*$AL67,$K67*$AL67) -> 0 | AP67: =IF($P67>0,$P67*$AO67,$K67*$AO67) -> 0
B68: 67 | C68: Silveyra, Andy | D68: IT Specialist | E68: 2400 | G68: 60000 | H68: 1200 | I68: 0 | J68: 1200 | K68: 61200 | P68: 0 | R68: N | T68: =IF(R68="S",$T$1*(K68+P68),0) -> 0 | U68: =IF(R68="P",$U$1*(K68+P68),0) -> 0 | V68: =IF(($K68+$P68)>Assumptions!$H$12,Assumptions!$H$12*$V$1,(K68+P68)*$V$1) -> 420 | W68: =IF(R68="S",0,($W$1*(K68+P68))) -> 3794.4 | X68: =(K68+P68)*$X$1 -> 887.4 | Y68: =(K68+P68)*$Y$1 -> 612 | Z68: 6630 | AA68: 132.6 | AB68: 6762.6 | AC68: 73676.4 | AJ68: =IF($P68>0,$P68*$AI68,$K68*$AI68) -> 0 | AK68: 3212 | AM68: =IF($P68>0,$P68*$AL68,$K68*$AL68) -> 0 | AP68: =IF($P68>0,$P68*$AO68,$K68*$AO68) -> 0
B69: 68 | C69: Smith, Dominique | D69: Principal | E69: 1300 | G69: 140000 | I69: 0 | J69: 0 | K69: 140000 | P69: 0 | R69: S | T69: 23688 | U69: 0 | V69: =IF(($K69+$P69)>Assumptions!$H$12,Assumptions!$H$12*$V$1,(K69+P69)*$V$1) -> 420 | W69: 0 | X69: 2030 | Y69: 1400 | Z69: 11140.8 | AA69: 222.816 | AB69: 11363.616 | AC69: 178901.616 | AH69: 01 | AI69: 0.1 | AJ69: =IF($P69>0,$P69*$AI69,$K69*$AI69) -> 14000 | AK69: 64 | AL69: 0.4 | AM69: =IF($P69>0,$P69*$AL69,$K69*$AL69) -> 56000 | AP69: =IF($P69>0,$P69*$AO69,$K69*$AO69) -> 0
B70: 70 | C70: Spadafora, Karen | D70: Educational Specialist | E70: 1100 | G70: 65000 | I70: 0 | J70: 0 | K70: 65000 | P70: 0 | R70: S | T70: 10998 | U70: 0 | V70: =IF(($K70+$P70)>Assumptions!$H$12,Assumptions!$H$12*$V$1,(K70+P70)*$V$1) -> 420 | W70: 0 | X70: 942.5 | Y70: 650 | Z70: 6749 | AA70: 134.98 | AB70: 6883.98 | AC70: 84894.48 | AJ70: =IF($P70>0,$P70*$AI70,$K70*$AI70) -> 0 | AK70: 65 | AM70: =IF($P70>0,$P70*$AL70,$K70*$AL70) -> 0 | AP70: =IF($P70>0,$P70*$AO70,$K70*$AO70) -> 0
B71: 71 | C71: Speck, Kristin | D71: Teacher | E71: 1100 | G71: 65000 | I71: 0 | J71: 0 | K71: 65000 | P71: =M71*N71*O71 -> 0 | R71: S | T71: 10998 | U71: 0 | V71: =IF(($K71+$P71)>Assumptions!$H$12,Assumptions!$H$12*$V$1,(K71+P71)*$V$1) -> 420 | W71: 0 | X71: 942.5 | Y71: 650 | Z71: 6712.08 | AA71: 134.2416 | AB71: 6846.3216 | AC71: 84856.8216 | AH71: 63 | AI71: 1 | AK71: 64
B72: 72 | C72: Stewart, Rachael | E72: 1100 | J72: =H72+I72 -> 0 | K72: =(G72+J72) -> 0 | M72: 75 | N72: 8 | O72: 36 | P72: 21600 | R72: S | T72: 3654.72 | U72: 0 | V72: =IF(($K72+$P72)>Assumptions!$H$12,Assumptions!$H$12*$V$1,(K72+P72)*$V$1) -> 420 | W72: 0 | X72: 313.2 | Y72: 216 | AC72: 26203.92 | AH72: 63 | AI72: 1 | AJ72: =IF($P72>0,$P72*$AI72,$K72*$AI72) -> 21600 | AM72: =IF($P72>0,$P72*$AL72,$K72*$AL72) -> 0 | AP72: =IF($P72>0,$P72*$AO72,$K72*$AO72) -> 0
B73: 73 | C73: Swift, Nicholas | D73: CTE Teacher | E73: 1100 | G73: 67000 | I73: 0 | J73: 0 | K73: 67000 | P73: 0 | R73: S | T73: 11336.4 | U73: 0 | V73: =IF(($K73+$P73)>Assumptions!$H$12,Assumptions!$H$12*$V$1,(K73+P73)*$V$1) -> 420 | W73: 0 | X73: 971.5 | Y73: 670 | Z73: 16473.12 | AA73: 329.4624 | AB73: =Z73+AA73 -> 16802.5824 | AC73: 97200.4824 | AH73: 63 | AI73: 1 | AJ73: =IF($P73>0,$P73*$AI73,$K73*$AI73) -> 67000 | AK73: 64 | AM73: =IF($P73>0,$P73*$AL73,$K73*$AL73) -> 0 | AP73: =IF($P73>0,$P73*$AO73,$K73*$AO73) -> 0
B74: 74 | C74: Tegaw, Dereje | D74: Student Support | E74: 2100 | G74: 50000 | H74: 1269 | I74: 0 | J74: 1269 | K74: 51269 | P74: 0 | R74: N | T74: 0 | U74: 0 | V74: =IF(($K74+$P74)>Assumptions!$H$12,Assumptions!$H$12*$V$1,(K74+P74)*$V$1) -> 420 | W74: 3178.678 | X74: 743.4005 | Y74: 512.69 | Z74: 6675.6 | AA74: 133.512 | AB74: =Z74+AA74 -> 6809.112 | AC74: 62932.8805 | AE74: =IFERROR(K74/AD74,0) -> 0 | AF74: =IFERROR(AE74/2,0) -> 0 | AH74: 72 | AI74: 0.2 | AJ74: =IF($P74>0,$P74*$AI74,$K74*$AI74) -> 10253.8 | AK74: 3212 | AM74: =IF($P74>0,$P74*$AL74,$K74*$AL74) -> 0 | AP74: =IF($P74>0,$P74*$AO74,$K74*$AO74) -> 0
B75: 75 | C75: Terakawa, Emily | D75: Teacher | E75: 1100 | G75: 52000 | I75: 0 | J75: 0 | K75: 52000 | P75: 0 | R75: S | T75: 8798.4 | U75: 0 | V75: =IF(($K75+$P75)>Assumptions!$H$12,Assumptions!$H$12*$V$1,(K75+P75)*$V$1) -> 420 | W75: 0 | X75: 754 | Y75: 520 | Z75: 6700.8 | AA75: =Z75*$AA$1 -> 134.016 | AB75: =Z75+AA75 -> 6834.816 | AC75: 69327.216 | AE75: =IFERROR(K75/AD75,0) -> 0 | AF75: =IFERROR(AE75/2,0) -> 0 | AJ75: =IF($P75>0,$P75*$AI75,$K75*$AI75) -> 0 | AK75: 7425 | AM75: =IF($P75>0,$P75*$AL75,$K75*$AL75) -> 0 | AP75: =IF($P75>0,$P75*$AO75,$K75*$AO75) -> 0
B76: 76 | C76: Thayre, Marisol | D76: Teacher | E76: 1100 | G76: 74000 | I76: 0 | J76: 0 | K76: 74000 | P76: 0 | R76: S | T76: 12520.8 | U76: 0 | V76: =IF(($K76+$P76)>Assumptions!$H$12,Assumptions!$H$12*$V$1,(K76+P76)*$V$1) -> 420 | W76: 0 | X76: 1073 | Y76: 740 | Z76: 6735.12 | AA76: 134.7024 | AB76: =Z76+AA76 -> 6869.8224 | AC76: 95623.6224 | AH76: 72 | AI76: 0.2 | AJ76: =IF($P76>0,$P76*$AI76,$K76*$AI76) -> 14800 | AM76: =IF($P76>0,$P76*$AL76,$K76*$AL76) -> 0 | AP76: =IF($P76>0,$P76*$AO76,$K76*$AO76) -> 0
B77: 77 | C77: Trgo, Nikolina | D77: Student Support | E77: 2100 | I77: 49000 | J77: 49000 | K77: 49000 | P77: 0 | R77: N | T77: 0 | U77: 0 | V77: =IF(($K77+$P77)>Assumptions!$H$12,Assumptions!$H$12*$V$1,(K77+P77)*$V$1) -> 420 | W77: 3038 | X77: 710.5 | Y77: 490 | AC77: 53658.5
B78: 78 | C78: Tutogi, Thomas | D78: Student Support | E78: 2100 | G78: 55000 | H78: 1125 | I78: 0 | J78: 1125 | K78: 56125 | P78: 0 | R78: N | T78: 0 | U78: 0 | V78: =IF(($K78+$P78)>Assumptions!$H$12,Assumptions!$H$12*$V$1,(K78+P78)*$V$1) -> 420 | W78: 3479.75 | X78: 813.8125 | Y78: 561.25 | Z78: 148.32 | AA78: 2.9664 | AB78: =Z78+AA78 -> 151.2864 | AC78: 61551.0989 | AE78: =IFERROR(K78/AD78,0) -> 0 | AF78: =IFERROR(AE78/2,0) -> 0 | AH78: 65 | AI78: 1 | AJ78: =IF($P78>0,$P78*$AI78,$K78*$AI78) -> 56125 | AK78: 3210 | AM78: =IF($P78>0,$P78*$AL78,$K78*$AL78) -> 0 | AP78: =IF($P78>0,$P78*$AO78,$K78*$AO78) -> 0
B79: 79 | C79: Vaca, Javier | D79: Director of Human Resources | E79: 1300 | G79: 100000 | I79: 0 | J79: 0 | K79: 100000 | P79: 0 | R79: S | T79: 16920 | U79: 0 | V79: =IF(($K79+$P79)>Assumptions!$H$12,Assumptions!$H$12*$V$1,(K79+P79)*$V$1) -> 420 | W79: 0 | X79: 1450 | Y79: 1000 | Z79: 16508.88 | AA79: 330.1776 | AB79: =Z79+AA79 -> 16839.0576 | AC79: 136629.0576
B80: 80 | C80: Velazquez, Stephany | D80: Child Care Assistant | E80: 2100 | G80: 44400 | I80: 0 | J80: 0 | K80: 44400 | P80: 0 | R80: N | T80: 0 | U80: 0 | V80: =IF(($K80+$P80)>Assumptions!$H$12,Assumptions!$H$12*$V$1,(K80+P80)*$V$1) -> 420 | W80: 2752.8 | X80: 643.8 | Y80: 444 | Z80: 6667.92 | AA80: 133.3584 | AB80: =Z80+AA80 -> 6801.2784 | AC80: 55461.8784 | AE80: =IFERROR(K80/AD80,0) -> 0 | AF80: =IFERROR(AE80/2,0) -> 0 | AH80: 91 | AI80: 1 | AJ80: =IF($P80>0,$P80*$AI80,$K80*$AI80) -> 44400 | AM80: =IF($P80>0,$P80*$AL80,$K80*$AL80) -> 0 | AP80: =IF($P80>0,$P80*$AO80,$K80*$AO80) -> 0
B81: 81 | C81: Walker, Jonathan | D81: CTE Teacher | E81: 1100 | G81: 68000 | I81: 0 | J81: 0 | K81: 68000 | P81: 0 | R81: S | T81: 11505.6 | U81: 0 | V81: =IF(($K81+$P81)>Assumptions!$H$12,Assumptions!$H$12*$V$1,(K81+P81)*$V$1) -> 420 | W81: 0 | X81: 986 | Y81: 680 | Z81: 152.16 | AA81: 3.0432 | AB81: =Z81+AA81 -> 155.2032 | AC81: 81746.8032 | AH81: 63 | AI81: 1 | AJ81: =IF($P81>0,$P81*$AI81,$K81*$AI81) -> 68000 | AK81: 63 | AM81: =IF($P81>0,$P81*$AL81,$K81*$AL81) -> 0 | AP81: =IF($P81>0,$P81*$AO81,$K81*$AO81) -> 0
B82: 82 | C82: Warfield, Kameron | D82: Educational Specialist | E82: 1100 | G82: 55000 | I82: 0 | J82: 0 | K82: 55000 | P82: 0 | R82: S | T82: 9306 | U82: 0 | V82: =IF(($K82+$P82)>Assumptions!$H$12,Assumptions!$H$12*$V$1,(K82+P82)*$V$1) -> 420 | W82: 0 | X82: 797.5 | Y82: 550 | Z82: 6685.2 | AA82: 133.704 | AB82: =Z82+AA82 -> 6818.904 | AC82: 72892.404 | AH82: 65 | AI82: 1 | AJ82: =IF($P82>0,$P82*$AI82,$K82*$AI82) -> 55000 | AK82: 65 | AM82: =IF($P82>0,$P82*$AL82,$K82*$AL82) -> 0 | AP82: =IF($P82>0,$P82*$AO82,$K82*$AO82) -> 0
B83: 83 | C83: Wash, Angul | E83: 2100 | I83: 0 | J83: 0 | K83: 0 | M83: 21 | N83: 40 | O83: 36 | P83: 30240 | R83: N | T83: 0 | U83: 0 | V83: =IF(($K83+$P83)>Assumptions!$H$12,Assumptions!$H$12*$V$1,(K83+P83)*$V$1) -> 420 | W83: 1874.88 | X83: 438.48 | Y83: 302.4 | AC83: 33275.76
B84: 84 | C84: Wilder, Ricki | D84: CTE Teacher | E84: 1100 | G84: 55000 | I84: 0 | J84: 0 | K84: 55000 | P84: 0 | R84: S | T84: 9306 | U84: 0 | V84: =IF(($K84+$P84)>Assumptions!$H$12,Assumptions!$H$12*$V$1,(K84+P84)*$V$1) -> 420 | W84: 0 | X84: 797.5 | Y84: 550 | Z84: 16442.4 | AA84: 328.848 | AB84: =Z84+AA84 -> 16771.248 | AC84: 82844.748 | AH84: 63 | AI84: 1 | AK84: 7425
B85: 85 | C85: Woollard, Kasey | D85: Teacher | E85: 1100 | G85: 57000 | I85: 0 | J85: 0 | K85: 57000 | P85: 0 | R85: S | T85: 9644.4 | U85: 0 | V85: =IF(($K85+$P85)>Assumptions!$H$12,Assumptions!$H$12*$V$1,(K85+P85)*$V$1) -> 420 | W85: 0 | X85: 826.5 | Y85: 570 | Z85: 6692.88 | AA85: 133.8576 | AB85: =Z85+AA85 -> 6826.7376 | AC85: 75287.6376 | AE85: =IFERROR(K85/AD85,0) -> 0 | AF85: =IFERROR(AE85/2,0) -> 0 | AJ85: =IF($P85>0,$P85*$AI85,$K85*$AI85) -> 0 | AM85: =IF($P85>0,$P85*$AL85,$K85*$AL85) -> 0 | AP85: =IF($P85>0,$P85*$AO85,$K85*$AO85) -> 0
B86: 86 | C86: 2021-22 Vacant Position | D86: Teacher | E86: 1100 | I86: 65000 | J86: 65000 | K86: 65000 | P86: 0 | R86: S | T86: 10998 | U86: 0 | V86: =IF(($K86+$P86)>Assumptions!$H$12,Assumptions!$H$12*$V$1,(K86+P86)*$V$1) -> 420 | W86: 0 | X86: 942.5 | Y86: 650 | Z86: 6693.88 | AA86: =Z86*$AA$1 -> 133.8776 | AB86: =Z86+AA86 -> 6827.7576 | AC86: 84838.2576
B87: 87 | C87: 2021-22 Vacant Position | D87: Paraprofessional | E87: 2100 | I87: 50000 | J87: 50000 | K87: 50000 | P87: 0 | R87: N | T87: 0 | U87: 0 | V87: =IF(($K87+$P87)>Assumptions!$H$12,Assumptions!$H$12*$V$1,(K87+P87)*$V$1) -> 420 | W87: 3100 | X87: 725 | Y87: 500 | Z87: 6694.88 | AA87: 133.8976 | AB87: =Z87+AA87 -> 6828.7776 | AC87: 61573.7776
B88: 88 | C88: We Can Work | E88: 2900 | I88: 25000 | J88: =H88+I88 -> 25000 | K88: =(G88+J88) -> 25000 | P88: 0 | R88: N | T88: =IF(R88="S",$T$1*(K88+P88),0) -> 0 | U88: =IF(R88="P",$U$1*(K88+P88),0) -> 0 | V88: =IF(($K88+$P88)>Assumptions!$H$12,Assumptions!$H$12*$V$1,(K88+P88)*$V$1) -> 420 | W88: =IF(R88="S",0,($W$1*(K88+P88))) -> 1550 | X88: =(K88+P88)*$X$1 -> 362.5 | Y88: =(K88+P88)*$Y$1 -> 250 | AC88: 27582.5
B89: 89 | C89: Zarzar Prelle, Leanna | D89: Child Care Director / Head Teacher | E89: 1900 | G89: 65000 | H89: 1127 | I89: 0 | J89: =H89+I89 -> 1127 | K89: =(G89+J89) -> 66127 | P89: 0 | R89: S | T89: 11188.6884 | U89: 0 | V89: =IF(($K89+$P89)>Assumptions!$H$12,Assumptions!$H$12*$V$1,(K89+P89)*$V$1) -> 420 | W89: 0 | X89: 958.8415 | Y89: 661.27 | Z89: 16456.08 | AA89: 329.1216 | AB89: =Z89+AA89 -> 16785.2016 | AC89: 96141.0015 | AH89: 63 | AI89: 0.4 | AJ89: =IF($P89>0,$P89*$AI89,$K89*$AI89) -> 26450.8 | AK89: 91 | AL89: 0.6 | AM89: =IF($P89>0,$P89*$AL89,$K89*$AL89) -> 39676.2 | AP89: =IF($P89>0,$P89*$AO89,$K89*$AO89) -> 0
C90: TOTALS | G90: =SUBTOTAL(9,G$3:G$89) -> 4259215 | H90: =SUBTOTAL(9,H$3:H$89) -> 118079.85 | I90: =SUBTOTAL(9,I$3:I$89) -> 492000 | J90: =SUBTOTAL(9,J$3:J$89) -> 610079.85 | K90: =SUBTOTAL(9,K$3:K$89) -> 4869294.85 | P90: =SUBTOTAL(9,P$3:P$89) -> 339661.2 | T90: =SUBTOTAL(9,T$3:T$89) -> 639657.5544 | U90: =SUBTOTAL(9,U$3:U$89) -> 0 | V90: 35950.512 | W90: 88565.3911 | X90: 75529.86272 | Y90: 52089.5605 | Z90: 625547.2 | AA90: 11977.1392 | AB90: 645866.8096 | AC90: =SUBTOTAL(9,AC$3:AC$89) -> 6746615.74
B92: SUMMARY
B94: 1100 | C94: =SUMIF($E$3:$E$89,$B94,$P$3:$P$89)+SUMIF($E$3:$E$89,$B94,$K$3:$K$89) -> 2820040
B95: 1105 | C95: =SUMIF($E$3:$E$89,$B95,$P$3:$P$89)+SUMIF($E$3:$E$89,$B95,$K$3:$K$89) -> 0
B96: 1120 | C96: 0
B97: 1200 | C97: 0
B98: 1300 | C98: 792115
B99: 1900 | C99: 106127
C100: =SUBTOTAL(9,C94:C99) -> 3718282
B101: 2100 | C101: 915040.19
B102: 2200 | C102: 51156.62
B103: 2300 | C103: 0
B104: 2400 | C104: 441286.24
B105: 2900 | C105: 83191
C106: =SUBTOTAL(9,C101:C105) -> 1490674.05
B107: 3101 | C107: =T90 -> 639657.5544
B108: 3202 | C108: =U90 -> 0
B109: 3313 | C109: =W90 -> 88565.3911
B110: 3323 | C110: =X90 -> 75529.86272
B111: 3403 | C111: =AB90 -> 645866.8096
B112: 3502
B113: 3503 | C113: =V90 -> 35950.512
B114: 3603 | C114: =Y90 -> 52089.5605
B115: 3703 | C115: 0
B116: 3903 | C116: =AB91 -> 0
C117: =SUBTOTAL(9,C107:C116) -> 1537659.69
B118: Total | C118: =SUBTOTAL(9,C94:C117) -> 6746615.74
B119: Check | C119: =C118-AC90 -> 0

Sheet Revenue & Expense Input (hidden)
E1: 3 | F1: =E1+1 -> 4 | G1: =F1+1 -> 5 | H1: 6 | I1: 7 | J1: 8 | K1: 9 | L1: 10 | M1: 11 | N1: 12 | O1: 13 | P1: 14 | Q1: =P1+1 -> 15
E2: ACTUAL | F2: ACTUAL | G2: ACTUAL | H2: ACTUAL | I2: ACTUAL | J2: ACTUAL | K2: ACTUAL | L2: ACTUAL | M2: ACTUAL | N2: ACTUAL | O2: BUDGET | P2: BUDGET | Q2: BUDGET
B3: ACCT | C3: ACCOUNT NAME | D3: REFORECASTED BUDGET | E3: JUL | F3: AUG | G3: SEP | H3: OCT | I3: NOV | J3: DEC | K3: JAN | L3: FEB | M3: MAR | N3: APR | O3: MAY | P3: JUN | Q3: ACCRUAL | R3: TOTAL | S3: CHECK | U3: ACTUAL FYTD | V3: ACTUAL FYTD % of REFORECASTED BUDGET | W3: REMAINING BUDGET | X3: REFORECASTED BUDGET | Y3: LATEST BOD APPROVED BUDGET | Z3: VARIANCE FROM REFORECASTED TO LATEST BOD APPROVED BUDGET | AA3: =COUNTIF(E2:P2,"ACTUAL")/12 -> 0.8333333333
B4: LCFF | E4: LCFF REVENUE DISTRIBUTION
B5: 8011 | C5: =VLOOKUP(B5,Assumptions!$B$17:$C$126,2,FALSE) -> LCFF - State Aid | D5: =VLOOKUP(B5,Assumptions!$B$16:$R$75,7,FALSE) -> 2140807 | E5: =IF(VLOOKUP("Net Income",'CV Actuals Export'!$A$1:$N$944,'Revenue & Expense Input'!E$1,FALSE)<>0,IFERROR(VLOOKUP('Revenue & Expense Input'!$B5,'CV Actuals Export'!$A$1:$N$944,'Revenue & Expense Input'!E$1,FALSE),"0")+0,IFERROR(($D5-SUMIF($E$2:$Q$2,"ACTUAL",$E5:$Q5))*(VLOOKUP($B5,Assumptions!$B$78:$R$126,MATCH('Revenue & Expense Input'!E$3,Assumptions!$B$78:$R$78,0),FALSE)/(SUMIF(Assumptions!$D$77:$R$77,"BUDGET",Assumptions!$D77:$R77))),"0")+0) -> 132134 | F5: =IF(VLOOKUP("Net Income",'CV Actuals Export'!$A$1:$N$944,'Revenue & Expense Input'!F$1,FALSE)<>0,IFERROR(VLOOKUP('Revenue & Expense Input'!$B5,'CV Actuals Export'!$A$1:$N$944,'Revenue & Expense Input'!F$1,FALSE),"0")+0,IFERROR(($D5-SUMIF($E$2:$Q$2,"ACTUAL",$E5:$Q5))*(VLOOKUP($B5,Assumptions!$B$78:$R$126,MATCH('Revenue & Expense Input'!F$3,Assumptions!$B$78:$R$78,0),FALSE)/(SUMIF(Assumptions!$D$77:$R$77,"BUDGET",Assumptions!$D77:$R77))),"0")+0) -> 132134 | G5: =IF(VLOOKUP("Net Income",'CV Actuals Export'!$A$1:$N$944,'Revenue & Expense Input'!G$1,FALSE)<>0,IFERROR(VLOOKUP('Revenue & Expense Input'!$B5,'CV Actuals Export'!$A$1:$N$944,'Revenue & Expense Input'!G$1,FALSE),"0")+0,IFERROR(($D5-SUMIF($E$2:$Q$2,"ACTUAL",$E5:$Q5))*(VLOOKUP($B5,Assumptions!$B$78:$R$126,MATCH('Revenue & Expense Input'!G$3,Assumptions!$B$78:$R$78,0),FALSE)/(SUMIF(Assumptions!$D$77:$R$77,"BUDGET",Assumptions!$D77:$R77))),"0")+0) -> 237842 | H5: =IF(VLOOKUP("Net Income",'CV Actuals Export'!$A$1:$N$944,'Revenue & Expense Input'!H$1,FALSE)<>0,IFERROR(VLOOKUP('Revenue & Expense Input'!$B5,'CV Actuals Export'!$A$1:$N$944,'Revenue & Expense Input'!H$1,FALSE),"0")+0,IFERROR(($D5-SUMIF($E$2:$Q$2,"ACTUAL",$E5:$Q5))*(VLOOKUP($B5,Assumptions!$B$78:$R$126,MATCH('Revenue & Expense Input'!H$3,Assumptions!$B$78:$R$78,0),FALSE)/(SUMIF(Assumptions!$D$77:$R$77,"BUDGET",Assumptions!$D77:$R77))),"0")+0) -> 237842 | I5: =IF(VLOOKUP("Net Income",'CV Actuals Export'!$A$1:$N$944,'Revenue & Expense Input'!I$1,FALSE)<>0,IFERROR(VLOOKUP('Revenue & Expense Input'!$B5,'CV Actuals Export'!$A$1:$N$944,'Revenue & Expense Input'!I$1,FALSE),"0")+0,IFERROR(($D5-SUMIF($E$2:$Q$2,"ACTUAL",$E5:$Q5))*(VLOOKUP($B5,Assumptions!$B$78:$R$126,MATCH('Revenue & Expense Input'!I$3,Assumptions!$B$78:$R$78,0),FALSE)/(SUMIF(Assumptions!$D$77:$R$77,"BUDGET",Assumptions!$D77:$R77))),"0")+0) -> 237842 | J5: 237842 | K5: 237842 | L5: =IF(VLOOKUP("Net Income",'CV Actuals Export'!$A$1:$N$944,'Revenue & Expense Input'!L$1,FALSE)<>0,IFERROR(VLOOKUP('Revenue & Expense Input'!$B5,'CV Actuals Export'!$A$1:$N$944,'Revenue & Expense Input'!L$1,FALSE),"0")+0,IFERROR(($D5-SUMIF($E$2:$Q$2,"ACTUAL",$E5:$Q5))*(VLOOKUP($B5,Assumptions!$B$78:$R$126,MATCH('Revenue & Expense Input'!L$3,Assumptions!$B$78:$R$78,0),FALSE)/(SUMIF(Assumptions!$D$77:$R$77,"BUDGET",Assumptions!$D78:$R78))),"0")+0) -> 173894 | M5: =IF(VLOOKUP("Net Income",'CV Actuals Export'!$A$1:$N$944,'Revenue & Expense Input'!M$1,FALSE)<>0,IFERROR(VLOOKUP('Revenue & Expense Input'!$B5,'CV Actuals Export'!$A$1:$N$944,'Revenue & Expense Input'!M$1,FALSE),"0")+0,IFERROR(($D5-SUMIF($E$2:$Q$2,"ACTUAL",$E5:$Q5))*(VLOOKUP($B5,Assumptions!$B$78:$R$126,MATCH('Revenue & Expense Input'!M$3,Assumptions!$B$78:$R$78,0),FALSE)/(SUMIF(Assumptions!$D$77:$R$77,"BUDGET",Assumptions!$D78:$R78))),"0")+0) -> 173894 | N5: =IF(VLOOKUP("Net Income",'CV Actuals Export'!$A$1:$N$944,'Revenue & Expense Input'!N$1,FALSE)<>0,IFERROR(VLOOKUP('Revenue & Expense Input'!$B5,'CV Actuals Export'!$A$1:$N$944,'Revenue & Expense Input'!N$1,FALSE),"0")+0,IFERROR(($D5-SUMIF($E$2:$Q$2,"ACTUAL",$E5:$Q5))*(VLOOKUP($B5,Assumptions!$B$78:$R$126,MATCH('Revenue & Expense Input'!N$3,Assumptions!$B$78:$R$78,0),FALSE)/(SUMIF(Assumptions!$D$77:$R$77,"BUDGET",Assumptions!$D78:$R78))),"0")+0) -> 173894 | O5: 173894 | P5: -8247 | Q5: =IF($D5>SUM($E5:$P5),D5-SUM($E5:$P5),0) -> 0 | R5: =SUM(E5:Q5) -> 2140807 | S5: =D5-R5 -> 0 | U5: =SUMIF($E$2:$Q$2,"ACTUAL",$E5:$Q5) -> 1975160 | V5: =IFERROR(U5/X5,"0")+0 -> 0.9226240385 | W5: =X5-U5 -> 165647 | X5: =D5 -> 2140807 | Y5: 2694117 | Z5: =X5-Y5 -> -553310
B6: 8012 | C6: =VLOOKUP(B6,Assumptions!$B$17:$C$126,2,FALSE) -> EPA | D6: =VLOOKUP(B6,Assumptions!$B$16:$R$75,7,FALSE) -> 107400 | E6: =IF(VLOOKUP("Net Income",'CV Actuals Export'!$A$1:$N$944,'Revenue & Expense Input'!E$1,FALSE)<>0,IFERROR(VLOOKUP('Revenue & Expense Input'!$B6,'CV Actuals Export'!$A$1:$N$944,'Revenue & Expense Input'!E$1,FALSE),"0")+0,IFERROR(($D6-SUMIF($E$2:$Q$2,"ACTUAL",$E6:$Q6))*(VLOOKUP($B6,Assumptions!$B$78:$R$126,MATCH('Revenue & Expense Input'!E$3,Assumptions!$B$78:$R$78,0),FALSE)/(SUMIF(Assumptions!$D$77:$R$77,"BUDGET",Assumptions!$D78:$R78))),"0")+0) -> 0 | F6: =IF(VLOOKUP("Net Income",'CV Actuals Export'!$A$1:$N$944,'Revenue & Expense Input'!F$1,FALSE)<>0,IFERROR(VLOOKUP('Revenue & Expense Input'!$B6,'CV Actuals Export'!$A$1:$N$944,'Revenue & Expense Input'!F$1,FALSE),"0")+0,IFERROR(($D6-SUMIF($E$2:$Q$2,"ACTUAL",$E6:$Q6))*(VLOOKUP($B6,Assumptions!$B$78:$R$126,MATCH('Revenue & Expense Input'!F$3,Assumptions!$B$78:$R$78,0),FALSE)/(SUMIF(Assumptions!$D$77:$R$77,"BUDGET",Assumptions!$D78:$R78))),"0")+0) -> 0 | G6: =IF(VLOOKUP("Net Income",'CV Actuals Export'!$A$1:$N$944,'Revenue & Expense Input'!G$1,FALSE)<>0,IFERROR(VLOOKUP('Revenue & Expense Input'!$B6,'CV Actuals Export'!$A$1:$N$944,'Revenue & Expense Input'!G$1,FALSE),"0")+0,IFERROR(($D6-SUMIF($E$2:$Q$2,"ACTUAL",$E6:$Q6))*(VLOOKUP($B6,Assumptions!$B$78:$R$126,MATCH('Revenue & Expense Input'!G$3,Assumptions!$B$78:$R$78,0),FALSE)/(SUMIF(Assumptions!$D$77:$R$77,"BUDGET",Assumptions!$D78:$R78))),"0")+0) -> 28900 | H6: =IF(VLOOKUP("Net Income",'CV Actuals Export'!$A$1:$N$944,'Revenue & Expense Input'!H$1,FALSE)<>0,IFERROR(VLOOKUP('Revenue & Expense Input'!$B6,'CV Actuals Export'!$A$1:$N$944,'Revenue & Expense Input'!H$1,FALSE),"0")+0,IFERROR(($D6-SUMIF($E$2:$Q$2,"ACTUAL",$E6:$Q6))*(VLOOKUP($B6,Assumptions!$B$78:$R$126,MATCH('Revenue & Expense Input'!H$3,Assumptions!$B$78:$R$78,0),FALSE)/(SUMIF(Assumptions!$D$77:$R$77,"BUDGET",Assumptions!$D78:$R78))),"0")+0) -> 0 | I6: =IF(VLOOKUP("Net Income",'CV Actuals Export'!$A$1:$N$944,'Revenue & Expense Input'!I$1,FALSE)<>0,IFERROR(VLOOKUP('Revenue & Expense Input'!$B6,'CV Actuals Export'!$A$1:$N$944,'Revenue & Expense Input'!I$1,FALSE),"0")+0,IFERROR(($D6-SUMIF($E$2:$Q$2,"ACTUAL",$E6:$Q6))*(VLOOKUP($B6,Assumptions!$B$78:$R$126,MATCH('Revenue & Expense Input'!I$3,Assumptions!$B$78:$R$78,0),FALSE)/(SUMIF(Assumptions!$D$77:$R$77,"BUDGET",Assumptions!$D78:$R78))),"0")+0) -> 0 | J6: 28900 | L6: =IF(VLOOKUP("Net Income",'CV Actuals Export'!$A$1:$N$944,'Revenue & Expense Input'!L$1,FALSE)<>0,IFERROR(VLOOKUP('Revenue & Expense Input'!$B6,'CV Actuals Export'!$A$1:$N$944,'Revenue & Expense Input'!L$1,FALSE),"0")+0,IFERROR(($D6-SUMIF($E$2:$Q$2,"ACTUAL",$E6:$Q6))*(VLOOKUP($B6,Assumptions!$B$78:$R$126,MATCH('Revenue & Expense Input'!L$3,Assumptions!$B$78:$R$78,0),FALSE)/(SUMIF(Assumptions!$D$77:$R$77,"BUDGET",Assumptions!$D79:$R79))),"0")+0) -> 0 | M6: =IF(VLOOKUP("Net Income",'CV Actuals Export'!$A$1:$N$944,'Revenue & Expense Input'!M$1,FALSE)<>0,IFERROR(VLOOKUP('Revenue & Expense Input'!$B6,'CV Actuals Export'!$A$1:$N$944,'Revenue & Expense Input'!M$1,FALSE),"0")+0,IFERROR(($D6-SUMIF($E$2:$Q$2,"ACTUAL",$E6:$Q6))*(VLOOKUP($B6,Assumptions!$B$78:$R$126,MATCH('Revenue & Expense Input'!M$3,Assumptions!$B$78:$R$78,0),FALSE)/(SUMIF(Assumptions!$D$77:$R$77,"BUDGET",Assumptions!$D79:$R79))),"0")+0) -> 25074 | N6: =IF(VLOOKUP("Net Income",'CV Actuals Export'!$A$1:$N$944,'Revenue & Expense Input'!N$1,FALSE)<>0,IFERROR(VLOOKUP('Revenue & Expense Input'!$B6,'CV Actuals Export'!$A$1:$N$944,'Revenue & Expense Input'!N$1,FALSE),"0")+0,IFERROR(($D6-SUMIF($E$2:$Q$2,"ACTUAL",$E6:$Q6))*(VLOOKUP($B6,Assumptions!$B$78:$R$126,MATCH('Revenue & Expense Input'!N$3,Assumptions!$B$78:$R$78,0),FALSE)/(SUMIF(Assumptions!$D$77:$R$77,"BUDGET",Assumptions!$D79:$R79))),"0")+0) -> 0 | Q6: =IF($D6>SUM($E6:$P6),D6-SUM($E6:$P6),0) -> 24526 | R6: =SUM(E6:Q6) -> 107400 | S6: =D6-R6 -> 0 | U6: =SUMIF($E$2:$Q$2,"ACTUAL",$E6:$Q6) -> 82874 | V6: =IFERROR(U6/X6,"0")+0 -> 0.7716387337 | W6: =X6-U6 -> 24526 | X6: =D6 -> 107400 | Y6: 119424 | Z6: =X6-Y6 -> -12024
B7: 8019 | C7: =VLOOKUP(B7,Assumptions!$B$17:$C$126,2,FALSE) -> Prior Year Income/Adjustments | D7: =-3092*5 -> -15460 | E7: =IF(VLOOKUP("Net Income",'CV Actuals Export'!$A$1:$N$944,'Revenue & Expense Input'!E$1,FALSE)<>0,IFERROR(VLOOKUP('Revenue & Expense Input'!$B7,'CV Actuals Export'!$A$1:$N$944,'Revenue & Expense Input'!E$1,FALSE),"0")+0,IFERROR(($D7-SUMIF($E$2:$Q$2,"ACTUAL",$E7:$Q7))*(VLOOKUP($B7,Assumptions!$B$78:$R$126,MATCH('Revenue & Expense Input'!E$3,Assumptions!$B$78:$R$78,0),FALSE)/(SUMIF(Assumptions!$D$77:$R$77,"BUDGET",Assumptions!$D79:$R79))),"0")+0) -> 0 | F7: =IF(VLOOKUP("Net Income",'CV Actuals Export'!$A$1:$N$944,'Revenue & Expense Input'!F$1,FALSE)<>0,IFERROR(VLOOKUP('Revenue & Expense Input'!$B7,'CV Actuals Export'!$A$1:$N$944,'Revenue & Expense Input'!F$1,FALSE),"0")+0,IFERROR(($D7-SUMIF($E$2:$Q$2,"ACTUAL",$E7:$Q7))*(VLOOKUP($B7,Assumptions!$B$78:$R$126,MATCH('Revenue & Expense Input'!F$3,Assumptions!$B$78:$R$78,0),FALSE)/(SUMIF(Assumptions!$D$77:$R$77,"BUDGET",Assumptions!$D79:$R79))),"0")+0) -> 0 | G7: =IF(VLOOKUP("Net Income",'CV Actuals Export'!$A$1:$N$944,'Revenue & Expense Input'!G$1,FALSE)<>0,IFERROR(VLOOKUP('Revenue & Expense Input'!$B7,'CV Actuals Export'!$A$1:$N$944,'Revenue & Expense Input'!G$1,FALSE),"0")+0,IFERROR(($D7-SUMIF($E$2:$Q$2,"ACTUAL",$E7:$Q7))*(VLOOKUP($B7,Assumptions!$B$78:$R$126,MATCH('Revenue & Expense Input'!G$3,Assumptions!$B$78:$R$78,0),FALSE)/(SUMIF(Assumptions!$D$77:$R$77,"BUDGET",Assumptions!$D79:$R79))),"0")+0) -> 0 | H7: =IF(VLOOKUP("Net Income",'CV Actuals Export'!$A$1:$N$944,'Revenue & Expense Input'!H$1,FALSE)<>0,IFERROR(VLOOKUP('Revenue & Expense Input'!$B7,'CV Actuals Export'!$A$1:$N$944,'Revenue & Expense Input'!H$1,FALSE),"0")+0,IFERROR(($D7-SUMIF($E$2:$Q$2,"ACTUAL",$E7:$Q7))*(VLOOKUP($B7,Assumptions!$B$78:$R$126,MATCH('Revenue & Expense Input'!H$3,Assumptions!$B$78:$R$78,0),FALSE)/(SUMIF(Assumptions!$D$77:$R$77,"BUDGET",Assumptions!$D79:$R79))),"0")+0) -> 0 | I7: =IF(VLOOKUP("Net Income",'CV Actuals Export'!$A$1:$N$944,'Revenue & Expense Input'!I$1,FALSE)<>0,IFERROR(VLOOKUP('Revenue & Expense Input'!$B7,'CV Actuals Export'!$A$1:$N$944,'Revenue & Expense Input'!I$1,FALSE),"0")+0,IFERROR(($D7-SUMIF($E$2:$Q$2,"ACTUAL",$E7:$Q7))*(VLOOKUP($B7,Assumptions!$B$78:$R$126,MATCH('Revenue & Expense Input'!I$3,Assumptions!$B$78:$R$78,0),FALSE)/(SUMIF(Assumptions!$D$77:$R$77,"BUDGET",Assumptions!$D79:$R79))),"0")+0) -> 0 | L7: =IF(VLOOKUP("Net Income",'CV Actuals Export'!$A$1:$N$944,'Revenue & Expense Input'!L$1,FALSE)<>0,IFERROR(VLOOKUP('Revenue & Expense Input'!$B7,'CV Actuals Export'!$A$1:$N$944,'Revenue & Expense Input'!L$1,FALSE),"0")+0,IFERROR(($D7-SUMIF($E$2:$Q$2,"ACTUAL",$E7:$Q7))*(VLOOKUP($B7,Assumptions!$B$78:$R$126,MATCH('Revenue & Expense Input'!L$3,Assumptions!$B$78:$R$78,0),FALSE)/(SUMIF(Assumptions!$D$77:$R$77,"BUDGET",Assumptions!$D80:$R80))),"0")+0) -> -3092 | M7: =IF(VLOOKUP("Net Income",'CV Actuals Export'!$A$1:$N$944,'Revenue & Expense Input'!M$1,FALSE)<>0,IFERROR(VLOOKUP('Revenue & Expense Input'!$B7,'CV Actuals Export'!$A$1:$N$944,'Revenue & Expense Input'!M$1,FALSE),"0")+0,IFERROR(($D7-SUMIF($E$2:$Q$2,"ACTUAL",$E7:$Q7))*(VLOOKUP($B7,Assumptions!$B$78:$R$126,MATCH('Revenue & Expense Input'!M$3,Assumptions!$B$78:$R$78,0),FALSE)/(SUMIF(Assumptions!$D$77:$R$77,"BUDGET",Assumptions!$D80:$R80))),"0")+0) -> -3092 | N7: =IF(VLOOKUP("Net Income",'CV Actuals Export'!$A$1:$N$944,'Revenue & Expense Input'!N$1,FALSE)<>0,IFERROR(VLOOKUP('Revenue & Expense Input'!$B7,'CV Actuals Export'!$A$1:$N$944,'Revenue & Expense Input'!N$1,FALSE),"0")+0,IFERROR(($D7-SUMIF($E$2:$Q$2,"ACTUAL",$E7:$Q7))*(VLOOKUP($B7,Assumptions!$B$78:$R$126,MATCH('Revenue & Expense Input'!N$3,Assumptions!$B$78:$R$78,0),FALSE)/(SUMIF(Assumptions!$D$77:$R$77,"BUDGET",Assumptions!$D80:$R80))),"0")+0) -> -3092 | O7: -3092 | P7: -3092 | Q7: 0 | R7: =SUM(E7:Q7) -> -15460 | S7: 0 | U7: =SUMIF($E$2:$Q$2,"ACTUAL",$E7:$Q7) -> -9276 | V7: =IFERROR(U7/X7,"0")+0 -> 0.6 | W7: =X7-U7 -> -6184 | X7: =D7 -> -15460 | Y7: 0 | Z7: -15460
B8: 8096 | C8: =VLOOKUP(B8,Assumptions!$B$17:$C$126,2,FALSE) -> IN LIEU OF PROPERTY TAXES | D8: =VLOOKUP(B8,Assumptions!$B$16:$R$75,7,FALSE) -> 4026220 | E8: =IF(VLOOKUP("Net Income",'CV Actuals Export'!$A$1:$N$944,'Revenue & Expense Input'!E$1,FALSE)<>0,IFERROR(VLOOKUP('Revenue & Expense Input'!$B8,'CV Actuals Export'!$A$1:$N$944,'Revenue & Expense Input'!E$1,FALSE),"0")+0,IFERROR(($D8-SUMIF($E$2:$Q$2,"ACTUAL",$E8:$Q8))*(VLOOKUP($B8,Assumptions!$B$78:$R$126,MATCH('Revenue & Expense Input'!E$3,Assumptions!$B$78:$R$78,0),FALSE)/(SUMIF(Assumptions!$D$77:$R$77,"BUDGET",Assumptions!$D80:$R80))),"0")+0) -> 0 | F8: =IF(VLOOKUP("Net Income",'CV Actuals Export'!$A$1:$N$944,'Revenue & Expense Input'!F$1,FALSE)<>0,IFERROR(VLOOKUP('Revenue & Expense Input'!$B8,'CV Actuals Export'!$A$1:$N$944,'Revenue & Expense Input'!F$1,FALSE),"0")+0,IFERROR(($D8-SUMIF($E$2:$Q$2,"ACTUAL",$E8:$Q8))*(VLOOKUP($B8,Assumptions!$B$78:$R$126,MATCH('Revenue & Expense Input'!F$3,Assumptions!$B$78:$R$78,0),FALSE)/(SUMIF(Assumptions!$D$77:$R$77,"BUDGET",Assumptions!$D80:$R80))),"0")+0) -> 243834 | G8: =IF(VLOOKUP("Net Income",'CV Actuals Export'!$A$1:$N$944,'Revenue & Expense Input'!G$1,FALSE)<>0,IFERROR(VLOOKUP('Revenue & Expense Input'!$B8,'CV Actuals Export'!$A$1:$N$944,'Revenue & Expense Input'!G$1,FALSE),"0")+0,IFERROR(($D8-SUMIF($E$2:$Q$2,"ACTUAL",$E8:$Q8))*(VLOOKUP($B8,Assumptions!$B$78:$R$126,MATCH('Revenue & Expense Input'!G$3,Assumptions!$B$78:$R$78,0),FALSE)/(SUMIF(Assumptions!$D$77:$R$77,"BUDGET",Assumptions!$D80:$R80))),"0")+0) -> 487668 | H8: =IF(VLOOKUP("Net Income",'CV Actuals Export'!$A$1:$N$944,'Revenue & Expense Input'!H$1,FALSE)<>0,IFERROR(VLOOKUP('Revenue & Expense Input'!$B8,'CV Actuals Export'!$A$1:$N$944,'Revenue & Expense Input'!H$1,FALSE),"0")+0,IFERROR(($D8-SUMIF($E$2:$Q$2,"ACTUAL",$E8:$Q8))*(VLOOKUP($B8,Assumptions!$B$78:$R$126,MATCH('Revenue & Expense Input'!H$3,Assumptions!$B$78:$R$78,0),FALSE)/(SUMIF(Assumptions!$D$77:$R$77,"BUDGET",Assumptions!$D80:$R80))),"0")+0) -> 325112 | I8: =IF(VLOOKUP("Net Income",'CV Actuals Export'!$A$1:$N$944,'Revenue & Expense Input'!I$1,FALSE)<>0,IFERROR(VLOOKUP('Revenue & Expense Input'!$B8,'CV Actuals Export'!$A$1:$N$944,'Revenue & Expense Input'!I$1,FALSE),"0")+0,IFERROR(($D8-SUMIF($E$2:$Q$2,"ACTUAL",$E8:$Q8))*(VLOOKUP($B8,Assumptions!$B$78:$R$126,MATCH('Revenue & Expense Input'!I$3,Assumptions!$B$78:$R$78,0),FALSE)/(SUMIF(Assumptions!$D$77:$R$77,"BUDGET",Assumptions!$D80:$R80))),"0")+0) -> 325112 | J8: 325112 | K8: 325112 | L8: =IF(VLOOKUP("Net Income",'CV Actuals Export'!$A$1:$N$944,'Revenue & Expense Input'!L$1,FALSE)<>0,IFERROR(VLOOKUP('Revenue & Expense Input'!$B8,'CV Actuals Export'!$A$1:$N$944,'Revenue & Expense Input'!L$1,FALSE),"0")+0,IFERROR(($D8-SUMIF($E$2:$Q$2,"ACTUAL",$E8:$Q8))*(VLOOKUP($B8,Assumptions!$B$78:$R$126,MATCH('Revenue & Expense Input'!L$3,Assumptions!$B$78:$R$78,0),FALSE)/(SUMIF(Assumptions!$D$77:$R$77,"BUDGET",Assumptions!$D81:$R81))),"0")+0) -> 325112 | M8: =IF(VLOOKUP("Net Income",'CV Actuals Export'!$A$1:$N$944,'Revenue & Expense Input'!M$1,FALSE)<>0,IFERROR(VLOOKUP('Revenue & Expense Input'!$B8,'CV Actuals Export'!$A$1:$N$944,'Revenue & Expense Input'!M$1,FALSE),"0")+0,IFERROR(($D8-SUMIF($E$2:$Q$2,"ACTUAL",$E8:$Q8))*(VLOOKUP($B8,Assumptions!$B$78:$R$126,MATCH('Revenue & Expense Input'!M$3,Assumptions!$B$78:$R$78,0),FALSE)/(SUMIF(Assumptions!$D$77:$R$77,"BUDGET",Assumptions!$D81:$R81))),"0")+0) -> 571847 | N8: =IF(VLOOKUP("Net Income",'CV Actuals Export'!$A$1:$N$944,'Revenue & Expense Input'!N$1,FALSE)<>0,IFERROR(VLOOKUP('Revenue & Expense Input'!$B8,'CV Actuals Export'!$A$1:$N$944,'Revenue & Expense Input'!N$1,FALSE),"0")+0,IFERROR(($D8-SUMIF($E$2:$Q$2,"ACTUAL",$E8:$Q8))*(VLOOKUP($B8,Assumptions!$B$78:$R$126,MATCH('Revenue & Expense Input'!N$3,Assumptions!$B$78:$R$78,0),FALSE)/(SUMIF(Assumptions!$D$77:$R$77,"BUDGET",Assumptions!$D81:$R81))),"0")+0) -> 278193 | O8: =($D$8-SUM($E$8:$L$8))*0.167 -> 278749.386 | P8: =($D$8-SUM($E$8:$L$8))*0.167 -> 278749.386 | Q8: 261619.228 | R8: =SUM(E8:Q8) -> 4026220 | S8: 0 | U8: =SUMIF($E$2:$Q$2,"ACTUAL",$E8:$Q8) -> 3207102 | V8: =IFERROR(U8/X8,"0")+0 -> 0.796554088 | W8: =X8-U8 -> 819118 | X8: =D8 -> 4026220 | Y8: 4152773 | Z8: -126553
B9: TOTAL LCFF REVENUE | D9: =SUM(D5:D8) -> 6258967 | E9: =SUM(E5:E8) -> 132134 | F9: 375968 | G9: 754410 | H9: 562954 | I9: 562954 | J9: 591854 | K9: 562954 | L9: 495914 | M9: 767723 | N9: 448995 | O9: 449551.386 | P9: 267410.386 | Q9: 286145.228 | R9: 6258967 | S9: 0 | U9: =SUM(U5:U8) -> 5255860 | V9: =IFERROR(U9/X9,"0")+0 -> 0.8397328185 | W9: =SUM(W5:W8) -> 1003107 | X9: =SUM(X5:X8) -> 6258967 | Y9: =SUM(Y5:Y8) -> 6966314 | Z9: =SUM(Z5:Z8) -> -707347
B10: FEDERAL | E10: FEDERAL REVENUE DISTRIBUTION
B11: =Assumptions!B83 -> 8181 | C11: =VLOOKUP(B11,Assumptions!$B$17:$C$126,2,FALSE) -> SPECIAL EDUCATION - FEDERAL IDEA | D11: =VLOOKUP(B11,Assumptions!$B$16:$R$75,7,FALSE) -> 107393.6 | E11: =IF(VLOOKUP("Net Income",'CV Actuals Export'!$A$1:$N$944,'Revenue & Expense Input'!E$1,FALSE)<>0,IFERROR(VLOOKUP('Revenue & Expense Input'!$B11,'CV Actuals Export'!$A$1:$N$944,'Revenue & Expense Input'!E$1,FALSE),"0")+0,IFERROR(($D11-SUMIF($E$2:$Q$2,"ACTUAL",$E11:$Q11))*(VLOOKUP($B11,Assumptions!$B$78:$R$126,MATCH('Revenue & Expense Input'!E$3,Assumptions!$B$78:$R$78,0),FALSE)/(SUMIF(Assumptions!$D$77:$R$77,"BUDGET",Assumptions!$D83:$R83))),"0")+0) -> 0 | F11: =IF(VLOOKUP("Net Income",'CV Actuals Export'!$A$1:$N$944,'Revenue & Expense Input'!F$1,FALSE)<>0,IFERROR(VLOOKUP('Revenue & Expense Input'!$B11,'CV Actuals Export'!$A$1:$N$944,'Revenue & Expense Input'!F$1,FALSE),"0")+0,IFERROR(($D11-SUMIF($E$2:$Q$2,"ACTUAL",$E11:$Q11))*(VLOOKUP($B11,Assumptions!$B$78:$R$126,MATCH('Revenue & Expense Input'!F$3,Assumptions!$B$78:$R$78,0),FALSE)/(SUMIF(Assumptions!$D$77:$R$77,"BUDGET",Assumptions!$D83:$R83))),"0")+0) -> 0 | G11: =IF(VLOOKUP("Net Income",'CV Actuals Export'!$A$1:$N$944,'Revenue & Expense Input'!G$1,FALSE)<>0,IFERROR(VLOOKUP('Revenue & Expense Input'!$B11,'CV Actuals Export'!$A$1:$N$944,'Revenue & Expense Input'!G$1,FALSE),"0")+0,IFERROR(($D11-SUMIF($E$2:$Q$2,"ACTUAL",$E11:$Q11))*(VLOOKUP($B11,Assumptions!$B$78:$R$126,MATCH('Revenue & Expense Input'!G$3,Assumptions!$B$78:$R$78,0),FALSE)/(SUMIF(Assumptions!$D$77:$R$77,"BUDGET",Assumptions!$D83:$R83))),"0")+0) -> 0 | H11: =IF(VLOOKUP("Net Income",'CV Actuals Export'!$A$1:$N$944,'Revenue & Expense Input'!H$1,FALSE)<>0,IFERROR(VLOOKUP('Revenue & Expense Input'!$B11,'CV Actuals Export'!$A$1:$N$944,'Revenue & Expense Input'!H$1,FALSE),"0")+0,IFERROR(($D11-SUMIF($E$2:$Q$2,"ACTUAL",$E11:$Q11))*(VLOOKUP($B11,Assumptions!$B$78:$R$126,MATCH('Revenue & Expense Input'!H$3,Assumptions!$B$78:$R$78,0),FALSE)/(SUMIF(Assumptions!$D$77:$R$77,"BUDGET",Assumptions!$D83:$R83))),"0")+0) -> 0 | I11: =IF(VLOOKUP("Net Income",'CV Actuals Export'!$A$1:$N$944,'Revenue & Expense Input'!I$1,FALSE)<>0,IFERROR(VLOOKUP('Revenue & Expense Input'!$B11,'CV Actuals Export'!$A$1:$N$944,'Revenue & Expense Input'!I$1,FALSE),"0")+0,IFERROR(($D11-SUMIF($E$2:$Q$2,"ACTUAL",$E11:$Q11))*(VLOOKUP($B11,Assumptions!$B$78:$R$126,MATCH('Revenue & Expense Input'!I$3,Assumptions!$B$78:$R$78,0),FALSE)/(SUMIF(Assumptions!$D$77:$R$77,"BUDGET",Assumptions!$D83:$R83))),"0")+0) -> 0 | J11: =IF(VLOOKUP("Net Income",'CV Actuals Export'!$A$1:$N$944,'Revenue & Expense Input'!J$1,FALSE)<>0,IFERROR(VLOOKUP('Revenue & Expense Input'!$B11,'CV Actuals Export'!$A$1:$N$944,'Revenue & Expense Input'!J$1,FALSE),"0")+0,IFERROR(($D11-SUMIF($E$2:$Q$2,"ACTUAL",$E11:$Q11))*(VLOOKUP($B11,Assumptions!$B$78:$R$126,MATCH('Revenue & Expense Input'!J$3,Assumptions!$B$78:$R$78,0),FALSE)/(SUMIF(Assumptions!$D$77:$R$77,"BUDGET",Assumptions!$D83:$R83))),"0")+0) -> 0 | K11: =IF(VLOOKUP("Net Income",'CV Actuals Export'!$A$1:$N$944,'Revenue & Expense Input'!K$1,FALSE)<>0,IFERROR(VLOOKUP('Revenue & Expense Input'!$B11,'CV Actuals Export'!$A$1:$N$944,'Revenue & Expense Input'!K$1,FALSE),"0")+0,IFERROR(($D11-SUMIF($E$2:$Q$2,"ACTUAL",$E11:$Q11))*(VLOOKUP($B11,Assumptions!$B$78:$R$126,MATCH('Revenue & Expense Input'!K$3,Assumptions!$B$78:$R$78,0),FALSE)/(SUMIF(Assumptions!$D$77:$R$77,"BUDGET",Assumptions!$D83:$R83))),"0")+0) -> 0 | L11: =IF(VLOOKUP("Net Income",'CV Actuals Export'!$A$1:$N$944,'Revenue & Expense Input'!L$1,FALSE)<>0,IFERROR(VLOOKUP('Revenue & Expense Input'!$B11,'CV Actuals Export'!$A$1:$N$944,'Revenue & Expense Input'!L$1,FALSE),"0")+0,IFERROR(($D11-SUMIF($E$2:$Q$2,"ACTUAL",$E11:$Q11))*(VLOOKUP($B11,Assumptions!$B$78:$R$126,MATCH('Revenue & Expense Input'!L$3,Assumptions!$B$78:$R$78,0),FALSE)/(SUMIF(Assumptions!$D$77:$R$77,"BUDGET",Assumptions!$D84:$R84))),"0")+0) -> 0 | M11: =IF(VLOOKUP("Net Income",'CV Actuals Export'!$A$1:$N$944,'Revenue & Expense Input'!M$1,FALSE)<>0,IFERROR(VLOOKUP('Revenue & Expense Input'!$B11,'CV Actuals Export'!$A$1:$N$944,'Revenue & Expense Input'!M$1,FALSE),"0")+0,IFERROR(($D11-SUMIF($E$2:$Q$2,"ACTUAL",$E11:$Q11))*(VLOOKUP($B11,Assumptions!$B$78:$R$126,MATCH('Revenue & Expense Input'!M$3,Assumptions!$B$78:$R$78,0),FALSE)/(SUMIF(Assumptions!$D$77:$R$77,"BUDGET",Assumptions!$D84:$R84))),"0")+0) -> 0 | N11: =IF(VLOOKUP("Net Income",'CV Actuals Export'!$A$1:$N$944,'Revenue & Expense Input'!N$1,FALSE)<>0,IFERROR(VLOOKUP('Revenue & Expense Input'!$B11,'CV Actuals Export'!$A$1:$N$944,'Revenue & Expense Input'!N$1,FALSE),"0")+0,IFERROR(($D11-SUMIF($E$2:$Q$2,"ACTUAL",$E11:$Q11))*(VLOOKUP($B11,Assumptions!$B$78:$R$126,MATCH('Revenue & Expense Input'!N$3,Assumptions!$B$78:$R$78,0),FALSE)/(SUMIF(Assumptions!$D$77:$R$77,"BUDGET",Assumptions!$D84:$R84))),"0")+0) -> 0 | O11: =IF(VLOOKUP("Net Income",'CV Actuals Export'!$A$1:$N$944,'Revenue & Expense Input'!O$1,FALSE)<>0,IFERROR(VLOOKUP('Revenue & Expense Input'!$B11,'CV Actuals Export'!$A$1:$N$944,'Revenue & Expense Input'!O$1,FALSE),"0")+0,IFERROR(($D11-SUMIF($E$2:$Q$2,"ACTUAL",$E11:$Q11))*(VLOOKUP($B11,Assumptions!$B$78:$R$126,MATCH('Revenue & Expense Input'!O$3,Assumptions!$B$78:$R$78,0),FALSE)/(SUMIF(Assumptions!$D$77:$R$77,"BUDGET",Assumptions!$D84:$R84))),"0")+0) -> 0 | P11: 65626 | Q11: =IF($D11>SUM($E11:$P11),D11-SUM($E11:$P11),0) -> 41767.6 | R11: =SUM(E11:Q11) -> 107393.6 | S11: =D11-R11 -> 0 | U11: =SUMIF($E$2:$Q$2,"ACTUAL",$E11:$Q11) -> 0 | V11: =IFERROR(U11/X11,"0")+0 -> 0 | W11: =X11-U11 -> 107393.6 | X11: =D11 -> 107393.6 | Y11: 115626 | Z11: =X11-Y11 -> -8232.4
B12: =Assumptions!B84 -> 8220 | C12: =VLOOKUP(B12,Assumptions!$B$17:$C$126,2,FALSE) -> FEDERAL CHILD NUTRITION | D12: =VLOOKUP(B12,Assumptions!$B$16:$R$75,7,FALSE) -> 0 | E12: =IF(VLOOKUP("Net Income",'CV Actuals Export'!$A$1:$N$944,'Revenue & Expense Input'!E$1,FALSE)<>0,IFERROR(VLOOKUP('Revenue & Expense Input'!$B12,'CV Actuals Export'!$A$1:$N$944,'Revenue & Expense Input'!E$1,FALSE),"0")+0,IFERROR(($D12-SUMIF($E$2:$Q$2,"ACTUAL",$E12:$Q12))*(VLOOKUP($B12,Assumptions!$B$78:$R$126,MATCH('Revenue & Expense Input'!E$3,Assumptions!$B$78:$R$78,0),FALSE)/(SUMIF(Assumptions!$D$77:$R$77,"BUDGET",Assumptions!$D84:$R84))),"0")+0) -> 0 | F12: =IF(VLOOKUP("Net Income",'CV Actuals Export'!$A$1:$N$944,'Revenue & Expense Input'!F$1,FALSE)<>0,IFERROR(VLOOKUP('Revenue & Expense Input'!$B12,'CV Actuals Export'!$A$1:$N$944,'Revenue & Expense Input'!F$1,FALSE),"0")+0,IFERROR(($D12-SUMIF($E$2:$Q$2,"ACTUAL",$E12:$Q12))*(VLOOKUP($B12,Assumptions!$B$78:$R$126,MATCH('Revenue & Expense Input'!F$3,Assumptions!$B$78:$R$78,0),FALSE)/(SUMIF(Assumptions!$D$77:$R$77,"BUDGET",Assumptions!$D84:$R84))),"0")+0) -> 0 | G12: =IF(VLOOKUP("Net Income",'CV Actuals Export'!$A$1:$N$944,'Revenue & Expense Input'!G$1,FALSE)<>0,IFERROR(VLOOKUP('Revenue & Expense Input'!$B12,'CV Actuals Export'!$A$1:$N$944,'Revenue & Expense Input'!G$1,FALSE),"0")+0,IFERROR(($D12-SUMIF($E$2:$Q$2,"ACTUAL",$E12:$Q12))*(VLOOKUP($B12,Assumptions!$B$78:$R$126,MATCH('Revenue & Expense Input'!G$3,Assumptions!$B$78:$R$78,0),FALSE)/(SUMIF(Assumptions!$D$77:$R$77,"BUDGET",Assumptions!$D84:$R84))),"0")+0) -> 0 | H12: =IF(VLOOKUP("Net Income",'CV Actuals Export'!$A$1:$N$944,'Revenue & Expense Input'!H$1,FALSE)<>0,IFERROR(VLOOKUP('Revenue & Expense Input'!$B12,'CV Actuals Export'!$A$1:$N$944,'Revenue & Expense Input'!H$1,FALSE),"0")+0,IFERROR(($D12-SUMIF($E$2:$Q$2,"ACTUAL",$E12:$Q12))*(VLOOKUP($B12,Assumptions!$B$78:$R$126,MATCH('Revenue & Expense Input'!H$3,Assumptions!$B$78:$R$78,0),FALSE)/(SUMIF(Assumptions!$D$77:$R$77,"BUDGET",Assumptions!$D84:$R84))),"0")+0) -> 0 | I12: =IF(VLOOKUP("Net Income",'CV Actuals Export'!$A$1:$N$944,'Revenue & Expense Input'!I$1,FALSE)<>0,IFERROR(VLOOKUP('Revenue & Expense Input'!$B12,'CV Actuals Export'!$A$1:$N$944,'Revenue & Expense Input'!I$1,FALSE),"0")+0,IFERROR(($D12-SUMIF($E$2:$Q$2,"ACTUAL",$E12:$Q12))*(VLOOKUP($B12,Assumptions!$B$78:$R$126,MATCH('Revenue & Expense Input'!I$3,Assumptions!$B$78:$R$78,0),FALSE)/(SUMIF(Assumptions!$D$77:$R$77,"BUDGET",Assumptions!$D84:$R84))),"0")+0) -> 0 | J12: =IF(VLOOKUP("Net Income",'CV Actuals Export'!$A$1:$N$944,'Revenue & Expense Input'!J$1,FALSE)<>0,IFERROR(VLOOKUP('Revenue & Expense Input'!$B12,'CV Actuals Export'!$A$1:$N$944,'Revenue & Expense Input'!J$1,FALSE),"0")+0,IFERROR(($D12-SUMIF($E$2:$Q$2,"ACTUAL",$E12:$Q12))*(VLOOKUP($B12,Assumptions!$B$78:$R$126,MATCH('Revenue & Expense Input'!J$3,Assumptions!$B$78:$R$78,0),FALSE)/(SUMIF(Assumptions!$D$77:$R$77,"BUDGET",Assumptions!$D84:$R84))),"0")+0) -> 0 | K12: =IF(VLOOKUP("Net Income",'CV Actuals Export'!$A$1:$N$944,'Revenue & Expense Input'!K$1,FALSE)<>0,IFERROR(VLOOKUP('Revenue & Expense Input'!$B12,'CV Actuals Export'!$A$1:$N$944,'Revenue & Expense Input'!K$1,FALSE),"0")+0,IFERROR(($D12-SUMIF($E$2:$Q$2,"ACTUAL",$E12:$Q12))*(VLOOKUP($B12,Assumptions!$B$78:$R$126,MATCH('Revenue & Expense Input'!K$3,Assumptions!$B$78:$R$78,0),FALSE)/(SUMIF(Assumptions!$D$77:$R$77,"BUDGET",Assumptions!$D84:$R84))),"0")+0) -> 0 | L12: =IF(VLOOKUP("Net Income",'CV Actuals Export'!$A$1:$N$944,'Revenue & Expense Input'!L$1,FALSE)<>0,IFERROR(VLOOKUP('Revenue & Expense Input'!$B12,'CV Actuals Export'!$A$1:$N$944,'Revenue & Expense Input'!L$1,FALSE),"0")+0,IFERROR(($D12-SUMIF($E$2:$Q$2,"ACTUAL",$E12:$Q12))*(VLOOKUP($B12,Assumptions!$B$78:$R$126,MATCH('Revenue & Expense Input'!L$3,Assumptions!$B$78:$R$78,0),FALSE)/(SUMIF(Assumptions!$D$77:$R$77,"BUDGET",Assumptions!$D85:$R85))),"0")+0) -> 0 | M12: =IF(VLOOKUP("Net Income",'CV Actuals Export'!$A$1:$N$944,'Revenue & Expense Input'!M$1,FALSE)<>0,IFERROR(VLOOKUP('Revenue & Expense Input'!$B12,'CV Actuals Export'!$A$1:$N$944,'Revenue & Expense Input'!M$1,FALSE),"0")+0,IFERROR(($D12-SUMIF($E$2:$Q$2,"ACTUAL",$E12:$Q12))*(VLOOKUP($B12,Assumptions!$B$78:$R$126,MATCH('Revenue & Expense Input'!M$3,Assumptions!$B$78:$R$78,0),FALSE)/(SUMIF(Assumptions!$D$77:$R$77,"BUDGET",Assumptions!$D85:$R85))),"0")+0) -> 0 | N12: =IF(VLOOKUP("Net Income",'CV Actuals Export'!$A$1:$N$944,'Revenue & Expense Input'!N$1,FALSE)<>0,IFERROR(VLOOKUP('Revenue & Expense Input'!$B12,'CV Actuals Export'!$A$1:$N$944,'Revenue & Expense Input'!N$1,FALSE),"0")+0,IFERROR(($D12-SUMIF($E$2:$Q$2,"ACTUAL",$E12:$Q12))*(VLOOKUP($B12,Assumptions!$B$78:$R$126,MATCH('Revenue & Expense Input'!N$3,Assumptions!$B$78:$R$78,0),FALSE)/(SUMIF(Assumptions!$D$77:$R$77,"BUDGET",Assumptions!$D85:$R85))),"0")+0) -> 0 | O12: =IF(VLOOKUP("Net Income",'CV Actuals Export'!$A$1:$N$944,'Revenue & Expense Input'!O$1,FALSE)<>0,IFERROR(VLOOKUP('Revenue & Expense Input'!$B12,'CV Actuals Export'!$A$1:$N$944,'Revenue & Expense Input'!O$1,FALSE),"0")+0,IFERROR(($D12-SUMIF($E$2:$Q$2,"ACTUAL",$E12:$Q12))*(VLOOKUP($B12,Assumptions!$B$78:$R$126,MATCH('Revenue & Expense Input'!O$3,Assumptions!$B$78:$R$78,0),FALSE)/(SUMIF(Assumptions!$D$77:$R$77,"BUDGET",Assumptions!$D85:$R85))),"0")+0) -> 0 | P12: =IF(VLOOKUP("Net Income",'CV Actuals Export'!$A$1:$N$944,'Revenue & Expense Input'!P$1,FALSE)<>0,IFERROR(VLOOKUP('Revenue & Expense Input'!$B12,'CV Actuals Export'!$A$1:$N$944,'Revenue & Expense Input'!P$1,FALSE),"0")+0,IFERROR(($D12-SUMIF($E$2:$Q$2,"ACTUAL",$E12:$Q12))*(VLOOKUP($B12,Assumptions!$B$78:$R$126,MATCH('Revenue & Expense Input'!P$3,Assumptions!$B$78:$R$78,0),FALSE)/(SUMIF(Assumptions!$D$77:$R$77,"BUDGET",Assumptions!$D85:$R85))),"0")+0) -> 0 | Q12: 0 | R12: 0 | S12: 0 | U12: 0 | V12: 0 | W12: 0 | X12: 0 | Y12: 0 | Z12: 0
B13: =Assumptions!B86 -> 8290-16 | C13: =VLOOKUP(B13,Assumptions!$B$17:$C$126,2,FALSE) -> Department of Rehab (We Can Work) | D13: =VLOOKUP(B13,Assumptions!$B$16:$R$75,7,FALSE) -> 20000 | E13: =IF(VLOOKUP("Net Income",'CV Actuals Export'!$A$1:$N$944,'Revenue & Expense Input'!E$1,FALSE)<>0,IFERROR(VLOOKUP('Revenue & Expense Input'!$B13,'CV Actuals Export'!$A$1:$N$944,'Revenue & Expense Input'!E$1,FALSE),"0")+0,IFERROR(($D13-SUMIF($E$2:$Q$2,"ACTUAL",$E13:$Q13))*(VLOOKUP($B13,Assumptions!$B$78:$R$126,MATCH('Revenue & Expense Input'!E$3,Assumptions!$B$78:$R$78,0),FALSE)/(SUMIF(Assumptions!$D$77:$R$77,"BUDGET",Assumptions!$D86:$R86))),"0")+0) -> 0 | F13: =IF(VLOOKUP("Net Income",'CV Actuals Export'!$A$1:$N$944,'Revenue & Expense Input'!F$1,FALSE)<>0,IFERROR(VLOOKUP('Revenue & Expense Input'!$B13,'CV Actuals Export'!$A$1:$N$944,'Revenue & Expense Input'!F$1,FALSE),"0")+0,IFERROR(($D13-SUMIF($E$2:$Q$2,"ACTUAL",$E13:$Q13))*(VLOOKUP($B13,Assumptions!$B$78:$R$126,MATCH('Revenue & Expense Input'!F$3,Assumptions!$B$78:$R$78,0),FALSE)/(SUMIF(Assumptions!$D$77:$R$77,"BUDGET",Assumptions!$D86:$R86))),"0")+0) -> 0 | G13: =IF(VLOOKUP("Net Income",'CV Actuals Export'!$A$1:$N$944,'Revenue & Expense Input'!G$1,FALSE)<>0,IFERROR(VLOOKUP('Revenue & Expense Input'!$B13,'CV Actuals Export'!$A$1:$N$944,'Revenue & Expense Input'!G$1,FALSE),"0")+0,IFERROR(($D13-SUMIF($E$2:$Q$2,"ACTUAL",$E13:$Q13))*(VLOOKUP($B13,Assumptions!$B$78:$R$126,MATCH('Revenue & Expense Input'!G$3,Assumptions!$B$78:$R$78,0),FALSE)/(SUMIF(Assumptions!$D$77:$R$77,"BUDGET",Assumptions!$D86:$R86))),"0")+0) -> 0 | H13: =IF(VLOOKUP("Net Income",'CV Actuals Export'!$A$1:$N$944,'Revenue & Expense Input'!H$1,FALSE)<>0,IFERROR(VLOOKUP('Revenue & Expense Input'!$B13,'CV Actuals Export'!$A$1:$N$944,'Revenue & Expense Input'!H$1,FALSE),"0")+0,IFERROR(($D13-SUMIF($E$2:$Q$2,"ACTUAL",$E13:$Q13))*(VLOOKUP($B13,Assumptions!$B$78:$R$126,MATCH('Revenue & Expense Input'!H$3,Assumptions!$B$78:$R$78,0),FALSE)/(SUMIF(Assumptions!$D$77:$R$77,"BUDGET",Assumptions!$D86:$R86))),"0")+0) -> 0 | I13: =IF(VLOOKUP("Net Income",'CV Actuals Export'!$A$1:$N$944,'Revenue & Expense Input'!I$1,FALSE)<>0,IFERROR(VLOOKUP('Revenue & Expense Input'!$B13,'CV Actuals Export'!$A$1:$N$944,'Revenue & Expense Input'!I$1,FALSE),"0")+0,IFERROR(($D13-SUMIF($E$2:$Q$2,"ACTUAL",$E13:$Q13))*(VLOOKUP($B13,Assumptions!$B$78:$R$126,MATCH('Revenue & Expense Input'!I$3,Assumptions!$B$78:$R$78,0),FALSE)/(SUMIF(Assumptions!$D$77:$R$77,"BUDGET",Assumptions!$D86:$R86))),"0")+0) -> 0 | J13: 2266 | K13: 1526.23 | L13: 2919.69 | M13: 1099 | N13: 614 | O13: =IF(VLOOKUP("Net Income",'CV Actuals Export'!$A$1:$N$944,'Revenue & Expense Input'!O$1,FALSE)<>0,IFERROR(VLOOKUP('Revenue & Expense Input'!$B13,'CV Actuals Export'!$A$1:$N$944,'Revenue & Expense Input'!O$1,FALSE),"0")+0,IFERROR(($D13-SUMIF($E$2:$Q$2,"ACTUAL",$E13:$Q13))*(VLOOKUP($B13,Assumptions!$B$78:$R$126,MATCH('Revenue & Expense Input'!O$3,Assumptions!$B$78:$R$78,0),FALSE)/(SUMIF(Assumptions!$D$77:$R$77,"BUDGET",Assumptions!$D86:$R86))),"0")+0) -> 0 | P13: =IF(VLOOKUP("Net Income",'CV Actuals Export'!$A$1:$N$944,'Revenue & Expense Input'!P$1,FALSE)<>0,IFERROR(VLOOKUP('Revenue & Expense Input'!$B13,'CV Actuals Export'!$A$1:$N$944,'Revenue & Expense Input'!P$1,FALSE),"0")+0,IFERROR(($D13-SUMIF($E$2:$Q$2,"ACTUAL",$E13:$Q13))*(VLOOKUP($B13,Assumptions!$B$78:$R$126,MATCH('Revenue & Expense Input'!P$3,Assumptions!$B$78:$R$78,0),FALSE)/(SUMIF(Assumptions!$D$77:$R$77,"BUDGET",Assumptions!$D86:$R86))),"0")+0) -> 11575.08 | Q13: 0 | R13: 20000 | S13: =D13-R13 -> 0 | U13: 8424.92 | V13: =IFERROR(U13/X13,"0")+0 -> 0.421246 | W13: =X13-U13 -> 11575.08 | X13: =D13 -> 20000 | Y13: 20000 | Z13: 0
B14: =Assumptions!B87 -> 8290-19 | C14: =VLOOKUP(B14,Assumptions!$B$17:$C$126,2,FALSE) -> California Career Innovation | D14: 0 | E14: =IF(VLOOKUP("Net Income",'CV Actuals Export'!$A$1:$N$944,'Revenue & Expense Input'!E$1,FALSE)<>0,IFERROR(VLOOKUP('Revenue & Expense Input'!$B14,'CV Actuals Export'!$A$1:$N$944,'Revenue & Expense Input'!E$1,FALSE),"0")+0,IFERROR(($D14-SUMIF($E$2:$Q$2,"ACTUAL",$E14:$Q14))*(VLOOKUP($B14,Assumptions!$B$78:$R$126,MATCH('Revenue & Expense Input'!E$3,Assumptions!$B$78:$R$78,0),FALSE)/(SUMIF(Assumptions!$D$77:$R$77,"BUDGET",Assumptions!$D87:$R87))),"0")+0) -> 0 | F14: =IF(VLOOKUP("Net Income",'CV Actuals Export'!$A$1:$N$944,'Revenue & Expense Input'!F$1,FALSE)<>0,IFERROR(VLOOKUP('Revenue & Expense Input'!$B14,'CV Actuals Export'!$A$1:$N$944,'Revenue & Expense Input'!F$1,FALSE),"0")+0,IFERROR(($D14-SUMIF($E$2:$Q$2,"ACTUAL",$E14:$Q14))*(VLOOKUP($B14,Assumptions!$B$78:$R$126,MATCH('Revenue & Expense Input'!F$3,Assumptions!$B$78:$R$78,0),FALSE)/(SUMIF(Assumptions!$D$77:$R$77,"BUDGET",Assumptions!$D87:$R87))),"0")+0) -> 0 | G14: =IF(VLOOKUP("Net Income",'CV Actuals Export'!$A$1:$N$944,'Revenue & Expense Input'!G$1,FALSE)<>0,IFERROR(VLOOKUP('Revenue & Expense Input'!$B14,'CV Actuals Export'!$A$1:$N$944,'Revenue & Expense Input'!G$1,FALSE),"0")+0,IFERROR(($D14-SUMIF($E$2:$Q$2,"ACTUAL",$E14:$Q14))*(VLOOKUP($B14,Assumptions!$B$78:$R$126,MATCH('Revenue & Expense Input'!G$3,Assumptions!$B$78:$R$78,0),FALSE)/(SUMIF(Assumptions!$D$77:$R$77,"BUDGET",Assumptions!$D87:$R87))),"0")+0) -> 0 | H14: =IF(VLOOKUP("Net Income",'CV Actuals Export'!$A$1:$N$944,'Revenue & Expense Input'!H$1,FALSE)<>0,IFERROR(VLOOKUP('Revenue & Expense Input'!$B14,'CV Actuals Export'!$A$1:$N$944,'Revenue & Expense Input'!H$1,FALSE),"0")+0,IFERROR(($D14-SUMIF($E$2:$Q$2,"ACTUAL",$E14:$Q14))*(VLOOKUP($B14,Assumptions!$B$78:$R$126,MATCH('Revenue & Expense Input'!H$3,Assumptions!$B$78:$R$78,0),FALSE)/(SUMIF(Assumptions!$D$77:$R$77,"BUDGET",Assumptions!$D87:$R87))),"0")+0) -> 0 | I14: =IF(VLOOKUP("Net Income",'CV Actuals Export'!$A$1:$N$944,'Revenue & Expense Input'!I$1,FALSE)<>0,IFERROR(VLOOKUP('Revenue & Expense Input'!$B14,'CV Actuals Export'!$A$1:$N$944,'Revenue & Expense Input'!I$1,FALSE),"0")+0,IFERROR(($D14-SUMIF($E$2:$Q$2,"ACTUAL",$E14:$Q14))*(VLOOKUP($B14,Assumptions!$B$78:$R$126,MATCH('Revenue & Expense Input'!I$3,Assumptions!$B$78:$R$78,0),FALSE)/(SUMIF(Assumptions!$D$77:$R$77,"BUDGET",Assumptions!$D87:$R87))),"0")+0) -> 0 | J14: =IF(VLOOKUP("Net Income",'CV Actuals Export'!$A$1:$N$944,'Revenue & Expense Input'!J$1,FALSE)<>0,IFERROR(VLOOKUP('Revenue & Expense Input'!$B14,'CV Actuals Export'!$A$1:$N$944,'Revenue & Expense Input'!J$1,FALSE),"0")+0,IFERROR(($D14-SUMIF($E$2:$Q$2,"ACTUAL",$E14:$Q14))*(VLOOKUP($B14,Assumptions!$B$78:$R$126,MATCH('Revenue & Expense Input'!J$3,Assumptions!$B$78:$R$78,0),FALSE)/(SUMIF(Assumptions!$D$77:$R$77,"BUDGET",Assumptions!$D87:$R87))),"0")+0) -> 0 | K14: =IF(VLOOKUP("Net Income",'CV Actuals Export'!$A$1:$N$944,'Revenue & Expense Input'!K$1,FALSE)<>0,IFERROR(VLOOKUP('Revenue & Expense Input'!$B14,'CV Actuals Export'!$A$1:$N$944,'Revenue & Expense Input'!K$1,FALSE),"0")+0,IFERROR(($D14-SUMIF($E$2:$Q$2,"ACTUAL",$E14:$Q14))*(VLOOKUP($B14,Assumptions!$B$78:$R$126,MATCH('Revenue & Expense Input'!K$3,Assumptions!$B$78:$R$78,0),FALSE)/(SUMIF(Assumptions!$D$77:$R$77,"BUDGET",Assumptions!$D86:$R86))),"0")+0) -> 0 | L14: =IF(VLOOKUP("Net Income",'CV Actuals Export'!$A$1:$N$944,'Revenue & Expense Input'!L$1,FALSE)<>0,IFERROR(VLOOKUP('Revenue & Expense Input'!$B14,'CV Actuals Export'!$A$1:$N$944,'Revenue & Expense Input'!L$1,FALSE),"0")+0,IFERROR(($D14-SUMIF($E$2:$Q$2,"ACTUAL",$E14:$Q14))*(VLOOKUP($B14,Assumptions!$B$78:$R$126,MATCH('Revenue & Expense Input'!L$3,Assumptions!$B$78:$R$78,0),FALSE)/(SUMIF(Assumptions!$D$77:$R$77,"BUDGET",Assumptions!$D87:$R87))),"0")+0) -> 0 | M14: =IF(VLOOKUP("Net Income",'CV Actuals Export'!$A$1:$N$944,'Revenue & Expense Input'!M$1,FALSE)<>0,IFERROR(VLOOKUP('Revenue & Expense Input'!$B14,'CV Actuals Export'!$A$1:$N$944,'Revenue & Expense Input'!M$1,FALSE),"0")+0,IFERROR(($D14-SUMIF($E$2:$Q$2,"ACTUAL",$E14:$Q14))*(VLOOKUP($B14,Assumptions!$B$78:$R$126,MATCH('Revenue & Expense Input'!M$3,Assumptions!$B$78:$R$78,0),FALSE)/(SUMIF(Assumptions!$D$77:$R$77,"BUDGET",Assumptions!$D87:$R87))),"0")+0) -> 0 | N14: =IF(VLOOKUP("Net Income",'CV Actuals Export'!$A$1:$N$944,'Revenue & Expense Input'!N$1,FALSE)<>0,IFERROR(VLOOKUP('Revenue & Expense Input'!$B14,'CV Actuals Export'!$A$1:$N$944,'Revenue & Expense Input'!N$1,FALSE),"0")+0,IFERROR(($D14-SUMIF($E$2:$Q$2,"ACTUAL",$E14:$Q14))*(VLOOKUP($B14,Assumptions!$B$78:$R$126,MATCH('Revenue & Expense Input'!N$3,Assumptions!$B$78:$R$78,0),FALSE)/(SUMIF(Assumptions!$D$77:$R$77,"BUDGET",Assumptions!$D87:$R87))),"0")+0) -> 0 | O14: =IF(VLOOKUP("Net Income",'CV Actuals Export'!$A$1:$N$944,'Revenue & Expense Input'!O$1,FALSE)<>0,IFERROR(VLOOKUP('Revenue & Expense Input'!$B14,'CV Actuals Export'!$A$1:$N$944,'Revenue & Expense Input'!O$1,FALSE),"0")+0,IFERROR(($D14-SUMIF($E$2:$Q$2,"ACTUAL",$E14:$Q14))*(VLOOKUP($B14,Assumptions!$B$78:$R$126,MATCH('Revenue & Expense Input'!O$3,Assumptions!$B$78:$R$78,0),FALSE)/(SUMIF(Assumptions!$D$77:$R$77,"BUDGET",Assumptions!$D87:$R87))),"0")+0) -> 0 | P14: =IF(VLOOKUP("Net Income",'CV Actuals Export'!$A$1:$N$944,'Revenue & Expense Input'!P$1,FALSE)<>0,IFERROR(VLOOKUP('Revenue & Expense Input'!$B14,'CV Actuals Export'!$A$1:$N$944,'Revenue & Expense Input'!P$1,FALSE),"0")+0,IFERROR(($D14-SUMIF($E$2:$Q$2,"ACTUAL",$E14:$Q14))*(VLOOKUP($B14,Assumptions!$B$78:$R$126,MATCH('Revenue & Expense Input'!P$3,Assumptions!$B$78:$R$78,0),FALSE)/(SUMIF(Assumptions!$D$77:$R$77,"BUDGET",Assumptions!$D87:$R87))),"0")+0) -> 0 | Q14: 0 | R14: 0 | S14: =D14-R14 -> 0 | U14: 0 | V14: =IFERROR(U14/X14,"0")+0 -> 0 | W14: =X14-U14 -> 0 | X14: =D14 -> 0 | Y14: 0 | Z14: 0
B15: =Assumptions!B88 -> 8290-3210 | C15: =VLOOKUP(B15,Assumptions!$B$17:$C$126,2,FALSE) -> ESSER I | D15: 131133 | E15: =IF(VLOOKUP("Net Income",'CV Actuals Export'!$A$1:$N$944,'Revenue & Expense Input'!E$1,FALSE)<>0,IFERROR(VLOOKUP('Revenue & Expense Input'!$B15,'CV Actuals Export'!$A$1:$N$944,'Revenue & Expense Input'!E$1,FALSE),"0")+0,IFERROR(($D15-SUMIF($E$2:$Q$2,"ACTUAL",$E15:$Q15))*(VLOOKUP($B15,Assumptions!$B$78:$R$126,MATCH('Revenue & Expense Input'!E$3,Assumptions!$B$78:$R$78,0),FALSE)/(SUMIF(Assumptions!$D$77:$R$77,"BUDGET",Assumptions!$D88:$R88))),"0")+0) -> 0 | F15: =IF(VLOOKUP("Net Income",'CV Actuals Export'!$A$1:$N$944,'Revenue & Expense Input'!F$1,FALSE)<>0,IFERROR(VLOOKUP('Revenue & Expense Input'!$B15,'CV Actuals Export'!$A$1:$N$944,'Revenue & Expense Input'!F$1,FALSE),"0")+0,IFERROR(($D15-SUMIF($E$2:$Q$2,"ACTUAL",$E15:$Q15))*(VLOOKUP($B15,Assumptions!$B$78:$R$126,MATCH('Revenue & Expense Input'!F$3,Assumptions!$B$78:$R$78,0),FALSE)/(SUMIF(Assumptions!$D$77:$R$77,"BUDGET",Assumptions!$D88:$R88))),"0")+0) -> 0 | G15: 38352 | H15: 6708.23 | I15: =IF(VLOOKUP("Net Income",'CV Actuals Export'!$A$1:$N$944,'Revenue & Expense Input'!I$1,FALSE)<>0,IFERROR(VLOOKUP('Revenue & Expense Input'!$B15,'CV Actuals Export'!$A$1:$N$944,'Revenue & Expense Input'!I$1,FALSE),"0")+0,IFERROR(($D15-SUMIF($E$2:$Q$2,"ACTUAL",$E15:$Q15))*(VLOOKUP($B15,Assumptions!$B$78:$R$126,MATCH('Revenue & Expense Input'!I$3,Assumptions!$B$78:$R$78,0),FALSE)/(SUMIF(Assumptions!$D$77:$R$77,"BUDGET",Assumptions!$D88:$R88))),"0")+0) -> 0 | J15: =IF(VLOOKUP("Net Income",'CV Actuals Export'!$A$1:$N$944,'Revenue & Expense Input'!J$1,FALSE)<>0,IFERROR(VLOOKUP('Revenue & Expense Input'!$B15,'CV Actuals Export'!$A$1:$N$944,'Revenue & Expense Input'!J$1,FALSE),"0")+0,IFERROR(($D15-SUMIF($E$2:$Q$2,"ACTUAL",$E15:$Q15))*(VLOOKUP($B15,Assumptions!$B$78:$R$126,MATCH('Revenue & Expense Input'!J$3,Assumptions!$B$78:$R$78,0),FALSE)/(SUMIF(Assumptions!$D$77:$R$77,"BUDGET",Assumptions!$D88:$R88))),"0")+0) -> 0 | K15: =IF(VLOOKUP("Net Income",'CV Actuals Export'!$A$1:$N$944,'Revenue & Expense Input'!K$1,FALSE)<>0,IFERROR(VLOOKUP('Revenue & Expense Input'!$B15,'CV Actuals Export'!$A$1:$N$944,'Revenue & Expense Input'!K$1,FALSE),"0")+0,IFERROR(($D15-SUMIF($E$2:$Q$2,"ACTUAL",$E15:$Q15))*(VLOOKUP($B15,Assumptions!$B$78:$R$126,MATCH('Revenue & Expense Input'!K$3,Assumptions!$B$78:$R$78,0),FALSE)/(SUMIF(Assumptions!$D$77:$R$77,"BUDGET",Assumptions!$D87:$R87))),"0")+0) -> 0 | L15: =IF(VLOOKUP("Net Income",'CV Actuals Export'!$A$1:$N$944,'Revenue & Expense Input'!L$1,FALSE)<>0,IFERROR(VLOOKUP('Revenue & Expense Input'!$B15,'CV Actuals Export'!$A$1:$N$944,'Revenue & Expense Input'!L$1,FALSE),"0")+0,IFERROR(($D15-SUMIF($E$2:$Q$2,"ACTUAL",$E15:$Q15))*(VLOOKUP($B15,Assumptions!$B$78:$R$126,MATCH('Revenue & Expense Input'!L$3,Assumptions!$B$78:$R$78,0),FALSE)/(SUMIF(Assumptions!$D$77:$R$77,"BUDGET",Assumptions!$D88:$R88))),"0")+0) -> 0 | M15: =IF(VLOOKUP("Net Income",'CV Actuals Export'!$A$1:$N$944,'Revenue & Expense Input'!M$1,FALSE)<>0,IFERROR(VLOOKUP('Revenue & Expense Input'!$B15,'CV Actuals Export'!$A$1:$N$944,'Revenue & Expense Input'!M$1,FALSE),"0")+0,IFERROR(($D15-SUMIF($E$2:$Q$2,"ACTUAL",$E15:$Q15))*(VLOOKUP($B15,Assumptions!$B$78:$R$126,MATCH('Revenue & Expense Input'!M$3,Assumptions!$B$78:$R$78,0),FALSE)/(SUMIF(Assumptions!$D$77:$R$77,"BUDGET",Assumptions!$D88:$R88))),"0")+0) -> 0 | N15: =IF(VLOOKUP("Net Income",'CV Actuals Export'!$A$1:$N$944,'Revenue & Expense Input'!N$1,FALSE)<>0,IFERROR(VLOOKUP('Revenue & Expense Input'!$B15,'CV Actuals Export'!$A$1:$N$944,'Revenue & Expense Input'!N$1,FALSE),"0")+0,IFERROR(($D15-SUMIF($E$2:$Q$2,"ACTUAL",$E15:$Q15))*(VLOOKUP($B15,Assumptions!$B$78:$R$126,MATCH('Revenue & Expense Input'!N$3,Assumptions!$B$78:$R$78,0),FALSE)/(SUMIF(Assumptions!$D$77:$R$77,"BUDGET",Assumptions!$D88:$R88))),"0")+0) -> 0 | O15: =IF(VLOOKUP("Net Income",'CV Actuals Export'!$A$1:$N$944,'Revenue & Expense Input'!O$1,FALSE)<>0,IFERROR(VLOOKUP('Revenue & Expense Input'!$B15,'CV Actuals Export'!$A$1:$N$944,'Revenue & Expense Input'!O$1,FALSE),"0")+0,IFERROR(($D15-SUMIF($E$2:$Q$2,"ACTUAL",$E15:$Q15))*(VLOOKUP($B15,Assumptions!$B$78:$R$126,MATCH('Revenue & Expense Input'!O$3,Assumptions!$B$78:$R$78,0),FALSE)/(SUMIF(Assumptions!$D$77:$R$77,"BUDGET",Assumptions!$D88:$R88))),"0")+0) -> 0 | P15: =IF(VLOOKUP("Net Income",'CV Actuals Export'!$A$1:$N$944,'Revenue & Expense Input'!P$1,FALSE)<>0,IFERROR(VLOOKUP('Revenue & Expense Input'!$B15,'CV Actuals Export'!$A$1:$N$944,'Revenue & Expense Input'!P$1,FALSE),"0")+0,IFERROR(($D15-SUMIF($E$2:$Q$2,"ACTUAL",$E15:$Q15))*(VLOOKUP($B15,Assumptions!$B$78:$R$126,MATCH('Revenue & Expense Input'!P$3,Assumptions!$B$78:$R$78,0),FALSE)/(SUMIF(Assumptions!$D$77:$R$77,"BUDGET",Assumptions!$D88:$R88))),"0")+0) -> 86072.77 | Q15: 0 | R15: 131133 | S15: 0 | U15: 45060.23 | V15: 0.3436223529 | W15: 86072.77 | X15: 131133 | Y15: 0 | Z15: 131133
B16: 8290-3212 | C16: ESSER II | D16: 519260 | E16: =IF(VLOOKUP("Net Income",'CV Actuals Export'!$A$1:$N$944,'Revenue & Expense Input'!E$1,FALSE)<>0,IFERROR(VLOOKUP('Revenue & Expense Input'!$B16,'CV Actuals Export'!$A$1:$N$944,'Revenue & Expense Input'!E$1,FALSE),"0")+0,IFERROR(($D16-SUMIF($E$2:$Q$2,"ACTUAL",$E16:$Q16))*(VLOOKUP($B16,Assumptions!$B$78:$R$126,MATCH('Revenue & Expense Input'!E$3,Assumptions!$B$78:$R$78,0),FALSE)/(SUMIF(Assumptions!$D$77:$R$77,"BUDGET",Assumptions!$D89:$R89))),"0")+0) -> 0 | F16: =IF(VLOOKUP("Net Income",'CV Actuals Export'!$A$1:$N$944,'Revenue & Expense Input'!F$1,FALSE)<>0,IFERROR(VLOOKUP('Revenue & Expense Input'!$B16,'CV Actuals Export'!$A$1:$N$944,'Revenue & Expense Input'!F$1,FALSE),"0")+0,IFERROR(($D16-SUMIF($E$2:$Q$2,"ACTUAL",$E16:$Q16))*(VLOOKUP($B16,Assumptions!$B$78:$R$126,MATCH('Revenue & Expense Input'!F$3,Assumptions!$B$78:$R$78,0),FALSE)/(SUMIF(Assumptions!$D$77:$R$77,"BUDGET",Assumptions!$D89:$R89))),"0")+0) -> 0 | G16: 229918 | H16: 51975 | I16: =IF(VLOOKUP("Net Income",'CV Actuals Export'!$A$1:$N$944,'Revenue & Expense Input'!I$1,FALSE)<>0,IFERROR(VLOOKUP('Revenue & Expense Input'!$B16,'CV Actuals Export'!$A$1:$N$944,'Revenue & Expense Input'!I$1,FALSE),"0")+0,IFERROR(($D16-SUMIF($E$2:$Q$2,"ACTUAL",$E16:$Q16))*(VLOOKUP($B16,Assumptions!$B$78:$R$126,MATCH('Revenue & Expense Input'!I$3,Assumptions!$B$78:$R$78,0),FALSE)/(SUMIF(Assumptions!$D$77:$R$77,"BUDGET",Assumptions!$D89:$R89))),"0")+0) -> 0 | J16: =IF(VLOOKUP("Net Income",'CV Actuals Export'!$A$1:$N$944,'Revenue & Expense Input'!J$1,FALSE)<>0,IFERROR(VLOOKUP('Revenue & Expense Input'!$B16,'CV Actuals Export'!$A$1:$N$944,'Revenue & Expense Input'!J$1,FALSE),"0")+0,IFERROR(($D16-SUMIF($E$2:$Q$2,"ACTUAL",$E16:$Q16))*(VLOOKUP($B16,Assumptions!$B$78:$R$126,MATCH('Revenue & Expense Input'!J$3,Assumptions!$B$78:$R$78,0),FALSE)/(SUMIF(Assumptions!$D$77:$R$77,"BUDGET",Assumptions!$D89:$R89))),"0")+0) -> 0 | K16: 237367 | L16: =IF(VLOOKUP("Net Income",'CV Actuals Export'!$A$1:$N$944,'Revenue & Expense Input'!L$1,FALSE)<>0,IFERROR(VLOOKUP('Revenue & Expense Input'!$B16,'CV Actuals Export'!$A$1:$N$944,'Revenue & Expense Input'!L$1,FALSE),"0")+0,IFERROR(($D16-SUMIF($E$2:$Q$2,"ACTUAL",$E16:$Q16))*(VLOOKUP($B16,Assumptions!$B$78:$R$126,MATCH('Revenue & Expense Input'!L$3,Assumptions!$B$78:$R$78,0),FALSE)/(SUMIF(Assumptions!$D$77:$R$77,"BUDGET",Assumptions!$D89:$R89))),"0")+0) -> 0 | M16: =IF(VLOOKUP("Net Income",'CV Actuals Export'!$A$1:$N$944,'Revenue & Expense Input'!M$1,FALSE)<>0,IFERROR(VLOOKUP('Revenue & Expense Input'!$B16,'CV Actuals Export'!$A$1:$N$944,'Revenue & Expense Input'!M$1,FALSE),"0")+0,IFERROR(($D16-SUMIF($E$2:$Q$2,"ACTUAL",$E16:$Q16))*(VLOOKUP($B16,Assumptions!$B$78:$R$126,MATCH('Revenue & Expense Input'!M$3,Assumptions!$B$78:$R$78,0),FALSE)/(SUMIF(Assumptions!$D$77:$R$77,"BUDGET",Assumptions!$D89:$R89))),"0")+0) -> 0 | N16: =IF(VLOOKUP("Net Income",'CV Actuals Export'!$A$1:$N$944,'Revenue & Expense Input'!N$1,FALSE)<>0,IFERROR(VLOOKUP('Revenue & Expense Input'!$B16,'CV Actuals Export'!$A$1:$N$944,'Revenue & Expense Input'!N$1,FALSE),"0")+0,IFERROR(($D16-SUMIF($E$2:$Q$2,"ACTUAL",$E16:$Q16))*(VLOOKUP($B16,Assumptions!$B$78:$R$126,MATCH('Revenue & Expense Input'!N$3,Assumptions!$B$78:$R$78,0),FALSE)/(SUMIF(Assumptions!$D$77:$R$77,"BUDGET",Assumptions!$D89:$R89))),"0")+0) -> 0 | O16: =IF(VLOOKUP("Net Income",'CV Actuals Export'!$A$1:$N$944,'Revenue & Expense Input'!O$1,FALSE)<>0,IFERROR(VLOOKUP('Revenue & Expense Input'!$B16,'CV Actuals Export'!$A$1:$N$944,'Revenue & Expense Input'!O$1,FALSE),"0")+0,IFERROR(($D16-SUMIF($E$2:$Q$2,"ACTUAL",$E16:$Q16))*(VLOOKUP($B16,Assumptions!$B$78:$R$126,MATCH('Revenue & Expense Input'!O$3,Assumptions!$B$78:$R$78,0),FALSE)/(SUMIF(Assumptions!$D$77:$R$77,"BUDGET",Assumptions!$D89:$R89))),"0")+0) -> 0 | P16: =IF(VLOOKUP("Net Income",'CV Actuals Export'!$A$1:$N$944,'Revenue & Expense Input'!P$1,FALSE)<>0,IFERROR(VLOOKUP('Revenue & Expense Input'!$B16,'CV Actuals Export'!$A$1:$N$944,'Revenue & Expense Input'!P$1,FALSE),"0")+0,IFERROR(($D16-SUMIF($E$2:$Q$2,"ACTUAL",$E16:$Q16))*(VLOOKUP($B16,Assumptions!$B$78:$R$126,MATCH('Revenue & Expense Input'!P$3,Assumptions!$B$78:$R$78,0),FALSE)/(SUMIF(Assumptions!$D$77:$R$77,"BUDGET",Assumptions!$D89:$R89))),"0")+0) -> 0 | Q16: 0 | R16: 519260 | S16: =D16-R16 -> 0 | U16: 519260 | V16: =IFERROR(U16/X16,"0")+0 -> 1 | W16: =X16-U16 -> 0 | X16: =D16 -> 519260 | Y16: 319750 | Z16: 199510
B17: 8290-3213 | C17: ESSER III | D17: 330000 | E17: =IF(VLOOKUP("Net Income",'CV Actuals Export'!$A$1:$N$944,'Revenue & Expense Input'!E$1,FALSE)<>0,IFERROR(VLOOKUP('Revenue & Expense Input'!$B17,'CV Actuals Export'!$A$1:$N$944,'Revenue & Expense Input'!E$1,FALSE),"0")+0,IFERROR(($D17-SUMIF($E$2:$Q$2,"ACTUAL",$E17:$Q17))*(VLOOKUP($B17,Assumptions!$B$78:$R$126,MATCH('Revenue & Expense Input'!E$3,Assumptions!$B$78:$R$78,0),FALSE)/(SUMIF(Assumptions!$D$77:$R$77,"BUDGET",Assumptions!$D90:$R90))),"0")+0) -> 0 | F17: 86229 | G17: 0 | H17: =IF(VLOOKUP("Net Income",'CV Actuals Export'!$A$1:$N$944,'Revenue & Expense Input'!H$1,FALSE)<>0,IFERROR(VLOOKUP('Revenue & Expense Input'!$B17,'CV Actuals Export'!$A$1:$N$944,'Revenue & Expense Input'!H$1,FALSE),"0")+0,IFERROR(($D17-SUMIF($E$2:$Q$2,"ACTUAL",$E17:$Q17))*(VLOOKUP($B17,Assumptions!$B$78:$R$126,MATCH('Revenue & Expense Input'!H$3,Assumptions!$B$78:$R$78,0),FALSE)/(SUMIF(Assumptions!$D$77:$R$77,"BUDGET",Assumptions!$D90:$R90))),"0")+0) -> 0 | I17: =IF(VLOOKUP("Net Income",'CV Actuals Export'!$A$1:$N$944,'Revenue & Expense Input'!I$1,FALSE)<>0,IFERROR(VLOOKUP('Revenue & Expense Input'!$B17,'CV Actuals Export'!$A$1:$N$944,'Revenue & Expense Input'!I$1,FALSE),"0")+0,IFERROR(($D17-SUMIF($E$2:$Q$2,"ACTUAL",$E17:$Q17))*(VLOOKUP($B17,Assumptions!$B$78:$R$126,MATCH('Revenue & Expense Input'!I$3,Assumptions!$B$78:$R$78,0),FALSE)/(SUMIF(Assumptions!$D$77:$R$77,"BUDGET",Assumptions!$D90:$R90))),"0")+0) -> 0 | J17: =IF(VLOOKUP("Net Income",'CV Actuals Export'!$A$1:$N$944,'Revenue & Expense Input'!J$1,FALSE)<>0,IFERROR(VLOOKUP('Revenue & Expense Input'!$B17,'CV Actuals Export'!$A$1:$N$944,'Revenue & Expense Input'!J$1,FALSE),"0")+0,IFERROR(($D17-SUMIF($E$2:$Q$2,"ACTUAL",$E17:$Q17))*(VLOOKUP($B17,Assumptions!$B$78:$R$126,MATCH('Revenue & Expense Input'!J$3,Assumptions!$B$78:$R$78,0),FALSE)/(SUMIF(Assumptions!$D$77:$R$77,"BUDGET",Assumptions!$D90:$R90))),"0")+0) -> 0 | K17: =27132.6+28340.4 -> 55473 | L17: =IF(VLOOKUP("Net Income",'CV Actuals Export'!$A$1:$N$944,'Revenue & Expense Input'!L$1,FALSE)<>0,IFERROR(VLOOKUP('Revenue & Expense Input'!$B17,'CV Actuals Export'!$A$1:$N$944,'Revenue & Expense Input'!L$1,FALSE),"0")+0,IFERROR(($D17-SUMIF($E$2:$Q$2,"ACTUAL",$E17:$Q17))*(VLOOKUP($B17,Assumptions!$B$78:$R$126,MATCH('Revenue & Expense Input'!L$3,Assumptions!$B$78:$R$78,0),FALSE)/(SUMIF(Assumptions!$D$77:$R$77,"BUDGET",Assumptions!$D90:$R90))),"0")+0) -> 0 | M17: =IF(VLOOKUP("Net Income",'CV Actuals Export'!$A$1:$N$944,'Revenue & Expense Input'!M$1,FALSE)<>0,IFERROR(VLOOKUP('Revenue & Expense Input'!$B17,'CV Actuals Export'!$A$1:$N$944,'Revenue & Expense Input'!M$1,FALSE),"0")+0,IFERROR(($D17-SUMIF($E$2:$Q$2,"ACTUAL",$E17:$Q17))*(VLOOKUP($B17,Assumptions!$B$78:$R$126,MATCH('Revenue & Expense Input'!M$3,Assumptions!$B$78:$R$78,0),FALSE)/(SUMIF(Assumptions!$D$77:$R$77,"BUDGET",Assumptions!$D90:$R90))),"0")+0) -> 0 | N17: =IF(VLOOKUP("Net Income",'CV Actuals Export'!$A$1:$N$944,'Revenue & Expense Input'!N$1,FALSE)<>0,IFERROR(VLOOKUP('Revenue & Expense Input'!$B17,'CV Actuals Export'!$A$1:$N$944,'Revenue & Expense Input'!N$1,FALSE),"0")+0,IFERROR(($D17-SUMIF($E$2:$Q$2,"ACTUAL",$E17:$Q17))*(VLOOKUP($B17,Assumptions!$B$78:$R$126,MATCH('Revenue & Expense Input'!N$3,Assumptions!$B$78:$R$78,0),FALSE)/(SUMIF(Assumptions!$D$77:$R$77,"BUDGET",Assumptions!$D90:$R90))),"0")+0) -> 0 | O17: 173298 | P17: =IF(VLOOKUP("Net Income",'CV Actuals Export'!$A$1:$N$944,'Revenue & Expense Input'!P$1,FALSE)<>0,IFERROR(VLOOKUP('Revenue & Expense Input'!$B17,'CV Actuals Export'!$A$1:$N$944,'Revenue & Expense Input'!P$1,FALSE),"0")+0,IFERROR(($D17-SUMIF($E$2:$Q$2,"ACTUAL",$E17:$Q17))*(VLOOKUP($B17,Assumptions!$B$78:$R$126,MATCH('Revenue & Expense Input'!P$3,Assumptions!$B$78:$R$78,0),FALSE)/(SUMIF(Assumptions!$D$77:$R$77,"BUDGET",Assumptions!$D90:$R90))),"0")+0) -> 0 | Q17: 15000 | R17: 330000 | S17: 0 | U17: 141702 | V17: 0.4294 | W17: 188298 | X17: 330000 | Y17: 762000 | Z17: -432000
B18: =Assumptions!B90 -> 8290-35 | C18: =VLOOKUP(B18,Assumptions!$B$17:$C$126,2,FALSE) -> Perkins | D18: =VLOOKUP(B18,Assumptions!$B$16:$R$75,7,FALSE) -> 12636 | E18: =IF(VLOOKUP("Net Income",'CV Actuals Export'!$A$1:$N$944,'Revenue & Expense Input'!E$1,FALSE)<>0,IFERROR(VLOOKUP('Revenue & Expense Input'!$B18,'CV Actuals Export'!$A$1:$N$944,'Revenue & Expense Input'!E$1,FALSE),"0")+0,IFERROR(($D18-SUMIF($E$2:$Q$2,"ACTUAL",$E18:$Q18))*(VLOOKUP($B18,Assumptions!$B$78:$R$126,MATCH('Revenue & Expense Input'!E$3,Assumptions!$B$78:$R$78,0),FALSE)/(SUMIF(Assumptions!$D$77:$R$77,"BUDGET",Assumptions!$D91:$R91))),"0")+0) -> 0 | F18: =IF(VLOOKUP("Net Income",'CV Actuals Export'!$A$1:$N$944,'Revenue & Expense Input'!F$1,FALSE)<>0,IFERROR(VLOOKUP('Revenue & Expense Input'!$B18,'CV Actuals Export'!$A$1:$N$944,'Revenue & Expense Input'!F$1,FALSE),"0")+0,IFERROR(($D18-SUMIF($E$2:$Q$2,"ACTUAL",$E18:$Q18))*(VLOOKUP($B18,Assumptions!$B$78:$R$126,MATCH('Revenue & Expense Input'!F$3,Assumptions!$B$78:$R$78,0),FALSE)/(SUMIF(Assumptions!$D$77:$R$77,"BUDGET",Assumptions!$D91:$R91))),"0")+0) -> 0 | G18: =IF(VLOOKUP("Net Income",'CV Actuals Export'!$A$1:$N$944,'Revenue & Expense Input'!G$1,FALSE)<>0,IFERROR(VLOOKUP('Revenue & Expense Input'!$B18,'CV Actuals Export'!$A$1:$N$944,'Revenue & Expense Input'!G$1,FALSE),"0")+0,IFERROR(($D18-SUMIF($E$2:$Q$2,"ACTUAL",$E18:$Q18))*(VLOOKUP($B18,Assumptions!$B$78:$R$126,MATCH('Revenue & Expense Input'!G$3,Assumptions!$B$78:$R$78,0),FALSE)/(SUMIF(Assumptions!$D$77:$R$77,"BUDGET",Assumptions!$D91:$R91))),"0")+0) -> 0 | H18: =IF(VLOOKUP("Net Income",'CV Actuals Export'!$A$1:$N$944,'Revenue & Expense Input'!H$1,FALSE)<>0,IFERROR(VLOOKUP('Revenue & Expense Input'!$B18,'CV Actuals Export'!$A$1:$N$944,'Revenue & Expense Input'!H$1,FALSE),"0")+0,IFERROR(($D18-SUMIF($E$2:$Q$2,"ACTUAL",$E18:$Q18))*(VLOOKUP($B18,Assumptions!$B$78:$R$126,MATCH('Revenue & Expense Input'!H$3,Assumptions!$B$78:$R$78,0),FALSE)/(SUMIF(Assumptions!$D$77:$R$77,"BUDGET",Assumptions!$D91:$R91))),"0")+0) -> 0 | I18: =IF(VLOOKUP("Net Income",'CV Actuals Export'!$A$1:$N$944,'Revenue & Expense Input'!I$1,FALSE)<>0,IFERROR(VLOOKUP('Revenue & Expense Input'!$B18,'CV Actuals Export'!$A$1:$N$944,'Revenue & Expense Input'!I$1,FALSE),"0")+0,IFERROR(($D18-SUMIF($E$2:$Q$2,"ACTUAL",$E18:$Q18))*(VLOOKUP($B18,Assumptions!$B$78:$R$126,MATCH('Revenue & Expense Input'!I$3,Assumptions!$B$78:$R$78,0),FALSE)/(SUMIF(Assumptions!$D$77:$R$77,"BUDGET",Assumptions!$D91:$R91))),"0")+0) -> 0 | J18: =IF(VLOOKUP("Net Income",'CV Actuals Export'!$A$1:$N$944,'Revenue & Expense Input'!J$1,FALSE)<>0,IFERROR(VLOOKUP('Revenue & Expense Input'!$B18,'CV Actuals Export'!$A$1:$N$944,'Revenue & Expense Input'!J$1,FALSE),"0")+0,IFERROR(($D18-SUMIF($E$2:$Q$2,"ACTUAL",$E18:$Q18))*(VLOOKUP($B18,Assumptions!$B$78:$R$126,MATCH('Revenue & Expense Input'!J$3,Assumptions!$B$78:$R$78,0),FALSE)/(SUMIF(Assumptions!$D$77:$R$77,"BUDGET",Assumptions!$D91:$R91))),"0")+0) -> 0 | K18: =IF(VLOOKUP("Net Income",'CV Actuals Export'!$A$1:$N$944,'Revenue & Expense Input'!K$1,FALSE)<>0,IFERROR(VLOOKUP('Revenue & Expense Input'!$B18,'CV Actuals Export'!$A$1:$N$944,'Revenue & Expense Input'!K$1,FALSE),"0")+0,IFERROR(($D18-SUMIF($E$2:$Q$2,"ACTUAL",$E18:$Q18))*(VLOOKUP($B18,Assumptions!$B$78:$R$126,MATCH('Revenue & Expense Input'!K$3,Assumptions!$B$78:$R$78,0),FALSE)/(SUMIF(Assumptions!$D$77:$R$77,"BUDGET",Assumptions!$D90:$R90))),"0")+0) -> 0 | L18: =IF(VLOOKUP("Net Income",'CV Actuals Export'!$A$1:$N$944,'Revenue & Expense Input'!L$1,FALSE)<>0,IFERROR(VLOOKUP('Revenue & Expense Input'!$B18,'CV Actuals Export'!$A$1:$N$944,'Revenue & Expense Input'!L$1,FALSE),"0")+0,IFERROR(($D18-SUMIF($E$2:$Q$2,"ACTUAL",$E18:$Q18))*(VLOOKUP($B18,Assumptions!$B$78:$R$126,MATCH('Revenue & Expense Input'!L$3,Assumptions!$B$78:$R$78,0),FALSE)/(SUMIF(Assumptions!$D$77:$R$77,"BUDGET",Assumptions!$D91:$R91))),"0")+0) -> 0 | M18: =IF(VLOOKUP("Net Income",'CV Actuals Export'!$A$1:$N$944,'Revenue & Expense Input'!M$1,FALSE)<>0,IFERROR(VLOOKUP('Revenue & Expense Input'!$B18,'CV Actuals Export'!$A$1:$N$944,'Revenue & Expense Input'!M$1,FALSE),"0")+0,IFERROR(($D18-SUMIF($E$2:$Q$2,"ACTUAL",$E18:$Q18))*(VLOOKUP($B18,Assumptions!$B$78:$R$126,MATCH('Revenue & Expense Input'!M$3,Assumptions!$B$78:$R$78,0),FALSE)/(SUMIF(Assumptions!$D$77:$R$77,"BUDGET",Assumptions!$D91:$R91))),"0")+0) -> 0 | N18: =IF(VLOOKUP("Net Income",'CV Actuals Export'!$A$1:$N$944,'Revenue & Expense Input'!N$1,FALSE)<>0,IFERROR(VLOOKUP('Revenue & Expense Input'!$B18,'CV Actuals Export'!$A$1:$N$944,'Revenue & Expense Input'!N$1,FALSE),"0")+0,IFERROR(($D18-SUMIF($E$2:$Q$2,"ACTUAL",$E18:$Q18))*(VLOOKUP($B18,Assumptions!$B$78:$R$126,MATCH('Revenue & Expense Input'!N$3,Assumptions!$B$78:$R$78,0),FALSE)/(SUMIF(Assumptions!$D$77:$R$77,"BUDGET",Assumptions!$D91:$R91))),"0")+0) -> 0 | O18: =IF(VLOOKUP("Net Income",'CV Actuals Export'!$A$1:$N$944,'Revenue & Expense Input'!O$1,FALSE)<>0,IFERROR(VLOOKUP('Revenue & Expense Input'!$B18,'CV Actuals Export'!$A$1:$N$944,'Revenue & Expense Input'!O$1,FALSE),"0")+0,IFERROR(($D18-SUMIF($E$2:$Q$2,"ACTUAL",$E18:$Q18))*(VLOOKUP($B18,Assumptions!$B$78:$R$126,MATCH('Revenue & Expense Input'!O$3,Assumptions!$B$78:$R$78,0),FALSE)/(SUMIF(Assumptions!$D$77:$R$77,"BUDGET",Assumptions!$D91:$R91))),"0")+0) -> 0 | P18: =IF(VLOOKUP("Net Income",'CV Actuals Export'!$A$1:$N$944,'Revenue & Expense Input'!P$1,FALSE)<>0,IFERROR(VLOOKUP('Revenue & Expense Input'!$B18,'CV Actuals Export'!$A$1:$N$944,'Revenue & Expense Input'!P$1,FALSE),"0")+0,IFERROR(($D18-SUMIF($E$2:$Q$2,"ACTUAL",$E18:$Q18))*(VLOOKUP($B18,Assumptions!$B$78:$R$126,MATCH('Revenue & Expense Input'!P$3,Assumptions!$B$78:$R$78,0),FALSE)/(SUMIF(Assumptions!$D$77:$R$77,"BUDGET",Assumptions!$D91:$R91))),"0")+0) -> 12636 | Q18: 0 | R18: 12636 | S18: 0 | U18: 0 | V18: 0 | W18: 12636 | X18: 12636 | Y18: 11000 | Z18: 1636
B19: =Assumptions!B94 -> 8291 | C19: =VLOOKUP(B19,Assumptions!$B$17:$C$126,2,FALSE) -> TITLE I | D19: =VLOOKUP(B19,Assumptions!$B$16:$R$75,7,FALSE) -> 173141 | E19: 0 | F19: 0 | G19: =IF(VLOOKUP("Net Income",'CV Actuals Export'!$A$1:$N$944,'Revenue & Expense Input'!G$1,FALSE)<>0,IFERROR(VLOOKUP('Revenue & Expense Input'!$B19,'CV Actuals Export'!$A$1:$N$944,'Revenue & Expense Input'!G$1,FALSE),"0")+0,IFERROR(($D19-SUMIF($E$2:$Q$2,"ACTUAL",$E19:$Q19))*(VLOOKUP($B19,Assumptions!$B$78:$R$126,MATCH('Revenue & Expense Input'!G$3,Assumptions!$B$78:$R$78,0),FALSE)/(SUMIF(Assumptions!$D$77:$R$77,"BUDGET",Assumptions!$D97:$R97))),"0")+0) -> 0 | H19: =IF(VLOOKUP("Net Income",'CV Actuals Export'!$A$1:$N$944,'Revenue & Expense Input'!H$1,FALSE)<>0,IFERROR(VLOOKUP('Revenue & Expense Input'!$B19,'CV Actuals Export'!$A$1:$N$944,'Revenue & Expense Input'!H$1,FALSE),"0")+0,IFERROR(($D19-SUMIF($E$2:$Q$2,"ACTUAL",$E19:$Q19))*(VLOOKUP($B19,Assumptions!$B$78:$R$126,MATCH('Revenue & Expense Input'!H$3,Assumptions!$B$78:$R$78,0),FALSE)/(SUMIF(Assumptions!$D$77:$R$77,"BUDGET",Assumptions!$D86:$R86))),"0")+0) -> 43795 | I19: =IF(VLOOKUP("Net Income",'CV Actuals Export'!$A$1:$N$944,'Revenue & Expense Input'!I$1,FALSE)<>0,IFERROR(VLOOKUP('Revenue & Expense Input'!$B19,'CV Actuals Export'!$A$1:$N$944,'Revenue & Expense Input'!I$1,FALSE),"0")+0,IFERROR(($D19-SUMIF($E$2:$Q$2,"ACTUAL",$E19:$Q19))*(VLOOKUP($B19,Assumptions!$B$78:$R$126,MATCH('Revenue & Expense Input'!I$3,Assumptions!$B$78:$R$78,0),FALSE)/(SUMIF(Assumptions!$D$77:$R$77,"BUDGET",Assumptions!$D86:$R86))),"0")+0) -> 0 | J19: =IF(VLOOKUP("Net Income",'CV Actuals Export'!$A$1:$N$944,'Revenue & Expense Input'!J$1,FALSE)<>0,IFERROR(VLOOKUP('Revenue & Expense Input'!$B19,'CV Actuals Export'!$A$1:$N$944,'Revenue & Expense Input'!J$1,FALSE),"0")+0,IFERROR(($D19-SUMIF($E$2:$Q$2,"ACTUAL",$E19:$Q19))*(VLOOKUP($B19,Assumptions!$B$78:$R$126,MATCH('Revenue & Expense Input'!J$3,Assumptions!$B$78:$R$78,0),FALSE)/(SUMIF(Assumptions!$D$77:$R$77,"BUDGET",Assumptions!$D94:$R94))),"0")+0) -> 0 | K19: =IF(VLOOKUP("Net Income",'CV Actuals Export'!$A$1:$N$944,'Revenue & Expense Input'!K$1,FALSE)<>0,IFERROR(VLOOKUP('Revenue & Expense Input'!$B19,'CV Actuals Export'!$A$1:$N$944,'Revenue & Expense Input'!K$1,FALSE),"0")+0,IFERROR(($D19-SUMIF($E$2:$Q$2,"ACTUAL",$E19:$Q19))*(VLOOKUP($B19,Assumptions!$B$78:$R$126,MATCH('Revenue & Expense Input'!K$3,Assumptions!$B$78:$R$78,0),FALSE)/(SUMIF(Assumptions!$D$77:$R$77,"BUDGET",Assumptions!$D93:$R93))),"0")+0) -> 45620 | L19: =IF(VLOOKUP("Net Income",'CV Actuals Export'!$A$1:$N$944,'Revenue & Expense Input'!L$1,FALSE)<>0,IFERROR(VLOOKUP('Revenue & Expense Input'!$B19,'CV Actuals Export'!$A$1:$N$944,'Revenue & Expense Input'!L$1,FALSE),"0")+0,IFERROR(($D19-SUMIF($E$2:$Q$2,"ACTUAL",$E19:$Q19))*(VLOOKUP($B19,Assumptions!$B$78:$R$126,MATCH('Revenue & Expense Input'!L$3,Assumptions!$B$78:$R$78,0),FALSE)/(SUMIF(Assumptions!$D$77:$R$77,"BUDGET",Assumptions!$D94:$R94))),"0")+0) -> 0 | M19: =IF(VLOOKUP("Net Income",'CV Actuals Export'!$A$1:$N$944,'Revenue & Expense Input'!M$1,FALSE)<>0,IFERROR(VLOOKUP('Revenue & Expense Input'!$B19,'CV Actuals Export'!$A$1:$N$944,'Revenue & Expense Input'!M$1,FALSE),"0")+0,IFERROR(($D19-SUMIF($E$2:$Q$2,"ACTUAL",$E19:$Q19))*(VLOOKUP($B19,Assumptions!$B$78:$R$126,MATCH('Revenue & Expense Input'!M$3,Assumptions!$B$78:$R$78,0),FALSE)/(SUMIF(Assumptions!$D$77:$R$77,"BUDGET",Assumptions!$D94:$R94))),"0")+0) -> 0 | N19: =IF(VLOOKUP("Net Income",'CV Actuals Export'!$A$1:$N$944,'Revenue & Expense Input'!N$1,FALSE)<>0,IFERROR(VLOOKUP('Revenue & Expense Input'!$B19,'CV Actuals Export'!$A$1:$N$944,'Revenue & Expense Input'!N$1,FALSE),"0")+0,IFERROR(($D19-SUMIF($E$2:$Q$2,"ACTUAL",$E19:$Q19))*(VLOOKUP($B19,Assumptions!$B$78:$R$126,MATCH('Revenue & Expense Input'!N$3,Assumptions!$B$78:$R$78,0),FALSE)/(SUMIF(Assumptions!$D$77:$R$77,"BUDGET",Assumptions!$D94:$R94))),"0")+0) -> 0 | O19: =IF(VLOOKUP("Net Income",'CV Actuals Export'!$A$1:$N$944,'Revenue & Expense Input'!O$1,FALSE)<>0,IFERROR(VLOOKUP('Revenue & Expense Input'!$B19,'CV Actuals Export'!$A$1:$N$944,'Revenue & Expense Input'!O$1,FALSE),"0")+0,IFERROR(($D19-SUMIF($E$2:$Q$2,"ACTUAL",$E19:$Q19))*(VLOOKUP($B19,Assumptions!$B$78:$R$126,MATCH('Revenue & Expense Input'!O$3,Assumptions!$B$78:$R$78,0),FALSE)/(SUMIF(Assumptions!$D$77:$R$77,"BUDGET",Assumptions!$D94:$R94))),"0")+0) -> 0 | P19: =IF(VLOOKUP("Net Income",'CV Actuals Export'!$A$1:$N$944,'Revenue & Expense Input'!P$1,FALSE)<>0,IFERROR(VLOOKUP('Revenue & Expense Input'!$B19,'CV Actuals Export'!$A$1:$N$944,'Revenue & Expense Input'!P$1,FALSE),"0")+0,IFERROR(($D19-SUMIF($E$2:$Q$2,"ACTUAL",$E19:$Q19))*(VLOOKUP($B19,Assumptions!$B$78:$R$126,MATCH('Revenue & Expense Input'!P$3,Assumptions!$B$78:$R$78,0),FALSE)/(SUMIF(Assumptions!$D$77:$R$77,"BUDGET",Assumptions!$D94:$R94))),"0")+0) -> 83726 | Q19: 0 | R19: 173141 | S19: 0 | U19: 89415 | V19: =IFERROR(U19/X19,"0")+0 -> 0.5164288066 | W19: =X19-U19 -> 83726 | X19: =D19 -> 173141 | Y19: 154791 | Z19: 18350
B20: =Assumptions!B95 -> 8292 | C20: =VLOOKUP(B20,Assumptions!$B$17:$C$126,2,FALSE) -> TITLE II | D20: =VLOOKUP(B20,Assumptions!$B$16:$R$75,7,FALSE) -> 24800 | E20: =IF(VLOOKUP("Net Income",'CV Actuals Export'!$A$1:$N$944,'Revenue & Expense Input'!E$1,FALSE)<>0,IFERROR(VLOOKUP('Revenue & Expense Input'!$B20,'CV Actuals Export'!$A$1:$N$944,'Revenue & Expense Input'!E$1,FALSE),"0")+0,IFERROR(($D20-SUMIF($E$2:$Q$2,"ACTUAL",$E20:$Q20))*(VLOOKUP($B20,Assumptions!$B$78:$R$126,MATCH('Revenue & Expense Input'!E$3,Assumptions!$B$78:$R$78,0),FALSE)/(SUMIF(Assumptions!$D$77:$R$77,"BUDGET",Assumptions!$D95:$R95))),"0")+0) -> 0 | F20: =IF(VLOOKUP("Net Income",'CV Actuals Export'!$A$1:$N$944,'Revenue & Expense Input'!F$1,FALSE)<>0,IFERROR(VLOOKUP('Revenue & Expense Input'!$B20,'CV Actuals Export'!$A$1:$N$944,'Revenue & Expense Input'!F$1,FALSE),"0")+0,IFERROR(($D20-SUMIF($E$2:$Q$2,"ACTUAL",$E20:$Q20))*(VLOOKUP($B20,Assumptions!$B$78:$R$126,MATCH('Revenue & Expense Input'!F$3,Assumptions!$B$78:$R$78,0),FALSE)/(SUMIF(Assumptions!$D$77:$R$77,"BUDGET",Assumptions!$D95:$R95))),"0")+0) -> 0 | G20: =IF(VLOOKUP("Net Income",'CV Actuals Export'!$A$1:$N$944,'Revenue & Expense Input'!G$1,FALSE)<>0,IFERROR(VLOOKUP('Revenue & Expense Input'!$B20,'CV Actuals Export'!$A$1:$N$944,'Revenue & Expense Input'!G$1,FALSE),"0")+0,IFERROR(($D20-SUMIF($E$2:$Q$2,"ACTUAL",$E20:$Q20))*(VLOOKUP($B20,Assumptions!$B$78:$R$126,MATCH('Revenue & Expense Input'!G$3,Assumptions!$B$78:$R$78,0),FALSE)/(SUMIF(Assumptions!$D$77:$R$77,"BUDGET",Assumptions!$D98:$R98))),"0")+0) -> 0 | H20: =IF(VLOOKUP("Net Income",'CV Actuals Export'!$A$1:$N$944,'Revenue & Expense Input'!H$1,FALSE)<>0,IFERROR(VLOOKUP('Revenue & Expense Input'!$B20,'CV Actuals Export'!$A$1:$N$944,'Revenue & Expense Input'!H$1,FALSE),"0")+0,IFERROR(($D20-SUMIF($E$2:$Q$2,"ACTUAL",$E20:$Q20))*(VLOOKUP($B20,Assumptions!$B$78:$R$126,MATCH('Revenue & Expense Input'!H$3,Assumptions!$B$78:$R$78,0),FALSE)/(SUMIF(Assumptions!$D$77:$R$77,"BUDGET",Assumptions!$D94:$R94))),"0")+0) -> 4352 | I20: =IF(VLOOKUP("Net Income",'CV Actuals Export'!$A$1:$N$944,'Revenue & Expense Input'!I$1,FALSE)<>0,IFERROR(VLOOKUP('Revenue & Expense Input'!$B20,'CV Actuals Export'!$A$1:$N$944,'Revenue & Expense Input'!I$1,FALSE),"0")+0,IFERROR(($D20-SUMIF($E$2:$Q$2,"ACTUAL",$E20:$Q20))*(VLOOKUP($B20,Assumptions!$B$78:$R$126,MATCH('Revenue & Expense Input'!I$3,Assumptions!$B$78:$R$78,0),FALSE)/(SUMIF(Assumptions!$D$77:$R$77,"BUDGET",Assumptions!$D94:$R94))),"0")+0) -> 0 | J20: =IF(VLOOKUP("Net Income",'CV Actuals Export'!$A$1:$N$944,'Revenue & Expense Input'!J$1,FALSE)<>0,IFERROR(VLOOKUP('Revenue & Expense Input'!$B20,'CV Actuals Export'!$A$1:$N$944,'Revenue & Expense Input'!J$1,FALSE),"0")+0,IFERROR(($D20-SUMIF($E$2:$Q$2,"ACTUAL",$E20:$Q20))*(VLOOKUP($B20,Assumptions!$B$78:$R$126,MATCH('Revenue & Expense Input'!J$3,Assumptions!$B$78:$R$78,0),FALSE)/(SUMIF(Assumptions!$D$77:$R$77,"BUDGET",Assumptions!$D95:$R95))),"0")+0) -> 0 | K20: =IF(VLOOKUP("Net Income",'CV Actuals Export'!$A$1:$N$944,'Revenue & Expense Input'!K$1,FALSE)<>0,IFERROR(VLOOKUP('Revenue & Expense Input'!$B20,'CV Actuals Export'!$A$1:$N$944,'Revenue & Expense Input'!K$1,FALSE),"0")+0,IFERROR(($D20-SUMIF($E$2:$Q$2,"ACTUAL",$E20:$Q20))*(VLOOKUP($B20,Assumptions!$B$78:$R$126,MATCH('Revenue & Expense Input'!K$3,Assumptions!$B$78:$R$78,0),FALSE)/(SUMIF(Assumptions!$D$77:$R$77,"BUDGET",Assumptions!$D94:$R94))),"0")+0) -> 0 | L20: =IF(VLOOKUP("Net Income",'CV Actuals Export'!$A$1:$N$944,'Revenue & Expense Input'!L$1,FALSE)<>0,IFERROR(VLOOKUP('Revenue & Expense Input'!$B20,'CV Actuals Export'!$A$1:$N$944,'Revenue & Expense Input'!L$1,FALSE),"0")+0,IFERROR(($D20-SUMIF($E$2:$Q$2,"ACTUAL",$E20:$Q20))*(VLOOKUP($B20,Assumptions!$B$78:$R$126,MATCH('Revenue & Expense Input'!L$3,Assumptions!$B$78:$R$78,0),FALSE)/(SUMIF(Assumptions!$D$77:$R$77,"BUDGET",Assumptions!$D95:$R95))),"0")+0) -> 6200 | M20: =IF(VLOOKUP("Net Income",'CV Actuals Export'!$A$1:$N$944,'Revenue & Expense Input'!M$1,FALSE)<>0,IFERROR(VLOOKUP('Revenue & Expense Input'!$B20,'CV Actuals Export'!$A$1:$N$944,'Revenue & Expense Input'!M$1,FALSE),"0")+0,IFERROR(($D20-SUMIF($E$2:$Q$2,"ACTUAL",$E20:$Q20))*(VLOOKUP($B20,Assumptions!$B$78:$R$126,MATCH('Revenue & Expense Input'!M$3,Assumptions!$B$78:$R$78,0),FALSE)/(SUMIF(Assumptions!$D$77:$R$77,"BUDGET",Assumptions!$D95:$R95))),"0")+0) -> 0 | N20: =IF(VLOOKUP("Net Income",'CV Actuals Export'!$A$1:$N$944,'Revenue & Expense Input'!N$1,FALSE)<>0,IFERROR(VLOOKUP('Revenue & Expense Input'!$B20,'CV Actuals Export'!$A$1:$N$944,'Revenue & Expense Input'!N$1,FALSE),"0")+0,IFERROR(($D20-SUMIF($E$2:$Q$2,"ACTUAL",$E20:$Q20))*(VLOOKUP($B20,Assumptions!$B$78:$R$126,MATCH('Revenue & Expense Input'!N$3,Assumptions!$B$78:$R$78,0),FALSE)/(SUMIF(Assumptions!$D$77:$R$77,"BUDGET",Assumptions!$D95:$R95))),"0")+0) -> 0 | O20: =IF(VLOOKUP("Net Income",'CV Actuals Export'!$A$1:$N$944,'Revenue & Expense Input'!O$1,FALSE)<>0,IFERROR(VLOOKUP('Revenue & Expense Input'!$B20,'CV Actuals Export'!$A$1:$N$944,'Revenue & Expense Input'!O$1,FALSE),"0")+0,IFERROR(($D20-SUMIF($E$2:$Q$2,"ACTUAL",$E20:$Q20))*(VLOOKUP($B20,Assumptions!$B$78:$R$126,MATCH('Revenue & Expense Input'!O$3,Assumptions!$B$78:$R$78,0),FALSE)/(SUMIF(Assumptions!$D$77:$R$77,"BUDGET",Assumptions!$D95:$R95))),"0")+0) -> 0 | P20: =IF(VLOOKUP("Net Income",'CV Actuals Export'!$A$1:$N$944,'Revenue & Expense Input'!P$1,FALSE)<>0,IFERROR(VLOOKUP('Revenue & Expense Input'!$B20,'CV Actuals Export'!$A$1:$N$944,'Revenue & Expense Input'!P$1,FALSE),"0")+0,IFERROR(($D20-SUMIF($E$2:$Q$2,"ACTUAL",$E20:$Q20))*(VLOOKUP($B20,Assumptions!$B$78:$R$126,MATCH('Revenue & Expense Input'!P$3,Assumptions!$B$78:$R$78,0),FALSE)/(SUMIF(Assumptions!$D$77:$R$77,"BUDGET",Assumptions!$D95:$R95))),"0")+0) -> 14248 | Q20: 0 | R20: 24800 | S20: 0 | U20: 10552 | V20: 0.425483871 | W20: 14248 | X20: 24800 | Y20: 23192 | Z20: 1608
B21: =Assumptions!B96 -> 8293 | C21: =VLOOKUP(B21,Assumptions!$B$17:$C$126,2,FALSE) -> TITLE III | D21: =VLOOKUP(B21,Assumptions!$B$16:$R$75,7,FALSE) -> 10294 | E21: =IF(VLOOKUP("Net Income",'CV Actuals Export'!$A$1:$N$944,'Revenue & Expense Input'!E$1,FALSE)<>0,IFERROR(VLOOKUP('Revenue & Expense Input'!$B21,'CV Actuals Export'!$A$1:$N$944,'Revenue & Expense Input'!E$1,FALSE),"0")+0,IFERROR(($D21-SUMIF($E$2:$Q$2,"ACTUAL",$E21:$Q21))*(VLOOKUP($B21,Assumptions!$B$78:$R$126,MATCH('Revenue & Expense Input'!E$3,Assumptions!$B$78:$R$78,0),FALSE)/(SUMIF(Assumptions!$D$77:$R$77,"BUDGET",Assumptions!$D96:$R96))),"0")+0) -> 0 | F21: =IF(VLOOKUP("Net Income",'CV Actuals Export'!$A$1:$N$944,'Revenue & Expense Input'!F$1,FALSE)<>0,IFERROR(VLOOKUP('Revenue & Expense Input'!$B21,'CV Actuals Export'!$A$1:$N$944,'Revenue & Expense Input'!F$1,FALSE),"0")+0,IFERROR(($D21-SUMIF($E$2:$Q$2,"ACTUAL",$E21:$Q21))*(VLOOKUP($B21,Assumptions!$B$78:$R$126,MATCH('Revenue & Expense Input'!F$3,Assumptions!$B$78:$R$78,0),FALSE)/(SUMIF(Assumptions!$D$77:$R$77,"BUDGET",Assumptions!$D96:$R96))),"0")+0) -> 0 | G21: =IF(VLOOKUP("Net Income",'CV Actuals Export'!$A$1:$N$944,'Revenue & Expense Input'!G$1,FALSE)<>0,IFERROR(VLOOKUP('Revenue & Expense Input'!$B21,'CV Actuals Export'!$A$1:$N$944,'Revenue & Expense Input'!G$1,FALSE),"0")+0,IFERROR(($D21-SUMIF($E$2:$Q$2,"ACTUAL",$E21:$Q21))*(VLOOKUP($B21,Assumptions!$B$78:$R$126,MATCH('Revenue & Expense Input'!G$3,Assumptions!$B$78:$R$78,0),FALSE)/(SUMIF(Assumptions!$D$77:$R$77,"BUDGET",Assumptions!$D96:$R96))),"0")+0) -> 0 | H21: =IF(VLOOKUP("Net Income",'CV Actuals Export'!$A$1:$N$944,'Revenue & Expense Input'!H$1,FALSE)<>0,IFERROR(VLOOKUP('Revenue & Expense Input'!$B21,'CV Actuals Export'!$A$1:$N$944,'Revenue & Expense Input'!H$1,FALSE),"0")+0,IFERROR(($D21-SUMIF($E$2:$Q$2,"ACTUAL",$E21:$Q21))*(VLOOKUP($B21,Assumptions!$B$78:$R$126,MATCH('Revenue & Expense Input'!H$3,Assumptions!$B$78:$R$78,0),FALSE)/(SUMIF(Assumptions!$D$77:$R$77,"BUDGET",Assumptions!$D96:$R96))),"0")+0) -> 2601 | I21: =IF(VLOOKUP("Net Income",'CV Actuals Export'!$A$1:$N$944,'Revenue & Expense Input'!I$1,FALSE)<>0,IFERROR(VLOOKUP('Revenue & Expense Input'!$B21,'CV Actuals Export'!$A$1:$N$944,'Revenue & Expense Input'!I$1,FALSE),"0")+0,IFERROR(($D21-SUMIF($E$2:$Q$2,"ACTUAL",$E21:$Q21))*(VLOOKUP($B21,Assumptions!$B$78:$R$126,MATCH('Revenue & Expense Input'!I$3,Assumptions!$B$78:$R$78,0),FALSE)/(SUMIF(Assumptions!$D$77:$R$77,"BUDGET",Assumptions!$D96:$R96))),"0")+0) -> 0 | J21: =IF(VLOOKUP("Net Income",'CV Actuals Export'!$A$1:$N$944,'Revenue & Expense Input'!J$1,FALSE)<>0,IFERROR(VLOOKUP('Revenue & Expense Input'!$B21,'CV Actuals Export'!$A$1:$N$944,'Revenue & Expense Input'!J$1,FALSE),"0")+0,IFERROR(($D21-SUMIF($E$2:$Q$2,"ACTUAL",$E21:$Q21))*(VLOOKUP($B21,Assumptions!$B$78:$R$126,MATCH('Revenue & Expense Input'!J$3,Assumptions!$B$78:$R$78,0),FALSE)/(SUMIF(Assumptions!$D$77:$R$77,"BUDGET",Assumptions!$D96:$R96))),"0")+0) -> 0 | K21: =IF(VLOOKUP("Net Income",'CV Actuals Export'!$A$1:$N$944,'Revenue & Expense Input'!K$1,FALSE)<>0,IFERROR(VLOOKUP('Revenue & Expense Input'!$B21,'CV Actuals Export'!$A$1:$N$944,'Revenue & Expense Input'!K$1,FALSE),"0")+0,IFERROR(($D21-SUMIF($E$2:$Q$2,"ACTUAL",$E21:$Q21))*(VLOOKUP($B21,Assumptions!$B$78:$R$126,MATCH('Revenue & Expense Input'!K$3,Assumptions!$B$78:$R$78,0),FALSE)/(SUMIF(Assumptions!$D$77:$R$77,"BUDGET",Assumptions!$D95:$R95))),"0")+0) -> 0 | L21: =IF(VLOOKUP("Net Income",'CV Actuals Export'!$A$1:$N$944,'Revenue & Expense Input'!L$1,FALSE)<>0,IFERROR(VLOOKUP('Revenue & Expense Input'!$B21,'CV Actuals Export'!$A$1:$N$944,'Revenue & Expense Input'!L$1,FALSE),"0")+0,IFERROR(($D21-SUMIF($E$2:$Q$2,"ACTUAL",$E21:$Q21))*(VLOOKUP($B21,Assumptions!$B$78:$R$126,MATCH('Revenue & Expense Input'!L$3,Assumptions!$B$78:$R$78,0),FALSE)/(SUMIF(Assumptions!$D$77:$R$77,"BUDGET",Assumptions!$D96:$R96))),"0")+0) -> 3159 | M21: =IF(VLOOKUP("Net Income",'CV Actuals Export'!$A$1:$N$944,'Revenue & Expense Input'!M$1,FALSE)<>0,IFERROR(VLOOKUP('Revenue & Expense Input'!$B21,'CV Actuals Export'!$A$1:$N$944,'Revenue & Expense Input'!M$1,FALSE),"0")+0,IFERROR(($D21-SUMIF($E$2:$Q$2,"ACTUAL",$E21:$Q21))*(VLOOKUP($B21,Assumptions!$B$78:$R$126,MATCH('Revenue & Expense Input'!M$3,Assumptions!$B$78:$R$78,0),FALSE)/(SUMIF(Assumptions!$D$77:$R$77,"BUDGET",Assumptions!$D96:$R96))),"0")+0) -> 0 | N21: =IF(VLOOKUP("Net Income",'CV Actuals Export'!$A$1:$N$944,'Revenue & Expense Input'!N$1,FALSE)<>0,IFERROR(VLOOKUP('Revenue & Expense Input'!$B21,'CV Actuals Export'!$A$1:$N$944,'Revenue & Expense Input'!N$1,FALSE),"0")+0,IFERROR(($D21-SUMIF($E$2:$Q$2,"ACTUAL",$E21:$Q21))*(VLOOKUP($B21,Assumptions!$B$78:$R$126,MATCH('Revenue & Expense Input'!N$3,Assumptions!$B$78:$R$78,0),FALSE)/(SUMIF(Assumptions!$D$77:$R$77,"BUDGET",Assumptions!$D96:$R96))),"0")+0) -> 0 | O21: =IF(VLOOKUP("Net Income",'CV Actuals Export'!$A$1:$N$944,'Revenue & Expense Input'!O$1,FALSE)<>0,IFERROR(VLOOKUP('Revenue & Expense Input'!$B21,'CV Actuals Export'!$A$1:$N$944,'Revenue & Expense Input'!O$1,FALSE),"0")+0,IFERROR(($D21-SUMIF($E$2:$Q$2,"ACTUAL",$E21:$Q21))*(VLOOKUP($B21,Assumptions!$B$78:$R$126,MATCH('Revenue & Expense Input'!O$3,Assumptions!$B$78:$R$78,0),FALSE)/(SUMIF(Assumptions!$D$77:$R$77,"BUDGET",Assumptions!$D96:$R96))),"0")+0) -> 0 | P21: =IF(VLOOKUP("Net Income",'CV Actuals Export'!$A$1:$N$944,'Revenue & Expense Input'!P$1,FALSE)<>0,IFERROR(VLOOKUP('Revenue & Expense Input'!$B21,'CV Actuals Export'!$A$1:$N$944,'Revenue & Expense Input'!P$1,FALSE),"0")+0,IFERROR(($D21-SUMIF($E$2:$Q$2,"ACTUAL",$E21:$Q21))*(VLOOKUP($B21,Assumptions!$B$78:$R$126,MATCH('Revenue & Expense Input'!P$3,Assumptions!$B$78:$R$78,0),FALSE)/(SUMIF(Assumptions!$D$77:$R$77,"BUDGET",Assumptions!$D96:$R96))),"0")+0) -> 4534 | Q21: 0 | R21: 10294 | S21: 0 | U21: 5760 | V21: 0.559549252 | W21: 4534 | X21: 10294 | Y21: 10294 | Z21: 0
B22: =Assumptions!B97 -> 8294 | C22: =VLOOKUP(B22,Assumptions!$B$17:$C$126,2,FALSE) -> TITLE IV | D22: =VLOOKUP(B22,Assumptions!$B$16:$R$75,7,FALSE) -> 11853 | E22: =IF(VLOOKUP("Net Income",'CV Actuals Export'!$A$1:$N$944,'Revenue & Expense Input'!E$1,FALSE)<>0,IFERROR(VLOOKUP('Revenue & Expense Input'!$B22,'CV Actuals Export'!$A$1:$N$944,'Revenue & Expense Input'!E$1,FALSE),"0")+0,IFERROR(($D22-SUMIF($E$2:$Q$2,"ACTUAL",$E22:$Q22))*(VLOOKUP($B22,Assumptions!$B$78:$R$126,MATCH('Revenue & Expense Input'!E$3,Assumptions!$B$78:$R$78,0),FALSE)/(SUMIF(Assumptions!$D$77:$R$77,"BUDGET",Assumptions!$D96:$R96))),"0")+0) -> 0 | F22: =IF(VLOOKUP("Net Income",'CV Actuals Export'!$A$1:$N$944,'Revenue & Expense Input'!F$1,FALSE)<>0,IFERROR(VLOOKUP('Revenue & Expense Input'!$B22,'CV Actuals Export'!$A$1:$N$944,'Revenue & Expense Input'!F$1,FALSE),"0")+0,IFERROR(($D22-SUMIF($E$2:$Q$2,"ACTUAL",$E22:$Q22))*(VLOOKUP($B22,Assumptions!$B$78:$R$126,MATCH('Revenue & Expense Input'!F$3,Assumptions!$B$78:$R$78,0),FALSE)/(SUMIF(Assumptions!$D$77:$R$77,"BUDGET",Assumptions!$D96:$R96))),"0")+0) -> 0 | G22: =IF(VLOOKUP("Net Income",'CV Actuals Export'!$A$1:$N$944,'Revenue & Expense Input'!G$1,FALSE)<>0,IFERROR(VLOOKUP('Revenue & Expense Input'!$B22,'CV Actuals Export'!$A$1:$N$944,'Revenue & Expense Input'!G$1,FALSE),"0")+0,IFERROR(($D22-SUMIF($E$2:$Q$2,"ACTUAL",$E22:$Q22))*(VLOOKUP($B22,Assumptions!$B$78:$R$126,MATCH('Revenue & Expense Input'!G$3,Assumptions!$B$78:$R$78,0),FALSE)/(SUMIF(Assumptions!$D$77:$R$77,"BUDGET",Assumptions!$D96:$R96))),"0")+0) -> 0 | H22: =IF(VLOOKUP("Net Income",'CV Actuals Export'!$A$1:$N$944,'Revenue & Expense Input'!H$1,FALSE)<>0,IFERROR(VLOOKUP('Revenue & Expense Input'!$B22,'CV Actuals Export'!$A$1:$N$944,'Revenue & Expense Input'!H$1,FALSE),"0")+0,IFERROR(($D22-SUMIF($E$2:$Q$2,"ACTUAL",$E22:$Q22))*(VLOOKUP($B22,Assumptions!$B$78:$R$126,MATCH('Revenue & Expense Input'!H$3,Assumptions!$B$78:$R$78,0),FALSE)/(SUMIF(Assumptions!$D$77:$R$77,"BUDGET",Assumptions!$D96:$R96))),"0")+0) -> 2865 | I22: =IF(VLOOKUP("Net Income",'CV Actuals Export'!$A$1:$N$944,'Revenue & Expense Input'!I$1,FALSE)<>0,IFERROR(VLOOKUP('Revenue & Expense Input'!$B22,'CV Actuals Export'!$A$1:$N$944,'Revenue & Expense Input'!I$1,FALSE),"0")+0,IFERROR(($D22-SUMIF($E$2:$Q$2,"ACTUAL",$E22:$Q22))*(VLOOKUP($B22,Assumptions!$B$78:$R$126,MATCH('Revenue & Expense Input'!I$3,Assumptions!$B$78:$R$78,0),FALSE)/(SUMIF(Assumptions!$D$77:$R$77,"BUDGET",Assumptions!$D96:$R96))),"0")+0) -> 0 | J22: =IF(VLOOKUP("Net Income",'CV Actuals Export'!$A$1:$N$944,'Revenue & Expense Input'!J$1,FALSE)<>0,IFERROR(VLOOKUP('Revenue & Expense Input'!$B22,'CV Actuals Export'!$A$1:$N$944,'Revenue & Expense Input'!J$1,FALSE),"0")+0,IFERROR(($D22-SUMIF($E$2:$Q$2,"ACTUAL",$E22:$Q22))*(VLOOKUP($B22,Assumptions!$B$78:$R$126,MATCH('Revenue & Expense Input'!J$3,Assumptions!$B$78:$R$78,0),FALSE)/(SUMIF(Assumptions!$D$77:$R$77,"BUDGET",Assumptions!$D96:$R96))),"0")+0) -> 0 | K22: =IF(VLOOKUP("Net Income",'CV Actuals Export'!$A$1:$N$944,'Revenue & Expense Input'!K$1,FALSE)<>0,IFERROR(VLOOKUP('Revenue & Expense Input'!$B22,'CV Actuals Export'!$A$1:$N$944,'Revenue & Expense Input'!K$1,FALSE),"0")+0,IFERROR(($D22-SUMIF($E$2:$Q$2,"ACTUAL",$E22:$Q22))*(VLOOKUP($B22,Assumptions!$B$78:$R$126,MATCH('Revenue & Expense Input'!K$3,Assumptions!$B$78:$R$78,0),FALSE)/(SUMIF(Assumptions!$D$77:$R$77,"BUDGET",Assumptions!$D96:$R96))),"0")+0) -> 2868 | L22: =IF(VLOOKUP("Net Income",'CV Actuals Export'!$A$1:$N$944,'Revenue & Expense Input'!L$1,FALSE)<>0,IFERROR(VLOOKUP('Revenue & Expense Input'!$B22,'CV Actuals Export'!$A$1:$N$944,'Revenue & Expense Input'!L$1,FALSE),"0")+0,IFERROR(($D22-SUMIF($E$2:$Q$2,"ACTUAL",$E22:$Q22))*(VLOOKUP($B22,Assumptions!$B$78:$R$126,MATCH('Revenue & Expense Input'!L$3,Assumptions!$B$78:$R$78,0),FALSE)/(SUMIF(Assumptions!$D$77:$R$77,"BUDGET",Assumptions!$D97:$R97))),"0")+0) -> 0 | M22: =IF(VLOOKUP("Net Income",'CV Actuals Export'!$A$1:$N$944,'Revenue & Expense Input'!M$1,FALSE)<>0,IFERROR(VLOOKUP('Revenue & Expense Input'!$B22,'CV Actuals Export'!$A$1:$N$944,'Revenue & Expense Input'!M$1,FALSE),"0")+0,IFERROR(($D22-SUMIF($E$2:$Q$2,"ACTUAL",$E22:$Q22))*(VLOOKUP($B22,Assumptions!$B$78:$R$126,MATCH('Revenue & Expense Input'!M$3,Assumptions!$B$78:$R$78,0),FALSE)/(SUMIF(Assumptions!$D$77:$R$77,"BUDGET",Assumptions!$D97:$R97))),"0")+0) -> 0 | N22: =IF(VLOOKUP("Net Income",'CV Actuals Export'!$A$1:$N$944,'Revenue & Expense Input'!N$1,FALSE)<>0,IFERROR(VLOOKUP('Revenue & Expense Input'!$B22,'CV Actuals Export'!$A$1:$N$944,'Revenue & Expense Input'!N$1,FALSE),"0")+0,IFERROR(($D22-SUMIF($E$2:$Q$2,"ACTUAL",$E22:$Q22))*(VLOOKUP($B22,Assumptions!$B$78:$R$126,MATCH('Revenue & Expense Input'!N$3,Assumptions!$B$78:$R$78,0),FALSE)/(SUMIF(Assumptions!$D$77:$R$77,"BUDGET",Assumptions!$D97:$R97))),"0")+0) -> 0 | O22: =IF(VLOOKUP("Net Income",'CV Actuals Export'!$A$1:$N$944,'Revenue & Expense Input'!O$1,FALSE)<>0,IFERROR(VLOOKUP('Revenue & Expense Input'!$B22,'CV Actuals Export'!$A$1:$N$944,'Revenue & Expense Input'!O$1,FALSE),"0")+0,IFERROR(($D22-SUMIF($E$2:$Q$2,"ACTUAL",$E22:$Q22))*(VLOOKUP($B22,Assumptions!$B$78:$R$126,MATCH('Revenue & Expense Input'!O$3,Assumptions!$B$78:$R$78,0),FALSE)/(SUMIF(Assumptions!$D$77:$R$77,"BUDGET",Assumptions!$D97:$R97))),"0")+0) -> 0 | P22: =IF(VLOOKUP("Net Income",'CV Actuals Export'!$A$1:$N$944,'Revenue & Expense Input'!P$1,FALSE)<>0,IFERROR(VLOOKUP('Revenue & Expense Input'!$B22,'CV Actuals Export'!$A$1:$N$944,'Revenue & Expense Input'!P$1,FALSE),"0")+0,IFERROR(($D22-SUMIF($E$2:$Q$2,"ACTUAL",$E22:$Q22))*(VLOOKUP($B22,Assumptions!$B$78:$R$126,MATCH('Revenue & Expense Input'!P$3,Assumptions!$B$78:$R$78,0),FALSE)/(SUMIF(Assumptions!$D$77:$R$77,"BUDGET",Assumptions!$D97:$R97))),"0")+0) -> 6120 | Q22: 0 | R22: 11853 | S22: =D22-R22 -> 0 | U22: 5733 | V22: =IFERROR(U22/X22,"0")+0 -> 0.483675019 | W22: =X22-U22 -> 6120 | X22: =D22 -> 11853 | Y22: 11853 | Z22: 0
B23: =Assumptions!B98 -> 8296 | C23: All Other Federal Revenue - PPP Loan Forgiveness | D23: =VLOOKUP(B23,Assumptions!$B$16:$R$75,7,FALSE) -> 0 | E23: =IF(VLOOKUP("Net Income",'CV Actuals Export'!$A$1:$N$944,'Revenue & Expense Input'!E$1,FALSE)<>0,IFERROR(VLOOKUP('Revenue & Expense Input'!$B23,'CV Actuals Export'!$A$1:$N$944,'Revenue & Expense Input'!E$1,FALSE),"0")+0,IFERROR(($D23-SUMIF($E$2:$Q$2,"ACTUAL",$E23:$Q23))*(VLOOKUP($B23,Assumptions!$B$78:$R$126,MATCH('Revenue & Expense Input'!E$3,Assumptions!$B$78:$R$78,0),FALSE)/(SUMIF(Assumptions!$D$77:$R$77,"BUDGET",Assumptions!$D97:$R97))),"0")+0) -> 0 | F23: =IF(VLOOKUP("Net Income",'CV Actuals Export'!$A$1:$N$944,'Revenue & Expense Input'!F$1,FALSE)<>0,IFERROR(VLOOKUP('Revenue & Expense Input'!$B23,'CV Actuals Export'!$A$1:$N$944,'Revenue & Expense Input'!F$1,FALSE),"0")+0,IFERROR(($D23-SUMIF($E$2:$Q$2,"ACTUAL",$E23:$Q23))*(VLOOKUP($B23,Assumptions!$B$78:$R$126,MATCH('Revenue & Expense Input'!F$3,Assumptions!$B$78:$R$78,0),FALSE)/(SUMIF(Assumptions!$D$77:$R$77,"BUDGET",Assumptions!$D97:$R97))),"0")+0) -> 0 | G23: =IF(VLOOKUP("Net Income",'CV Actuals Export'!$A$1:$N$944,'Revenue & Expense Input'!G$1,FALSE)<>0,IFERROR(VLOOKUP('Revenue & Expense Input'!$B23,'CV Actuals Export'!$A$1:$N$944,'Revenue & Expense Input'!G$1,FALSE),"0")+0,IFERROR(($D23-SUMIF($E$2:$Q$2,"ACTUAL",$E23:$Q23))*(VLOOKUP($B23,Assumptions!$B$78:$R$126,MATCH('Revenue & Expense Input'!G$3,Assumptions!$B$78:$R$78,0),FALSE)/(SUMIF(Assumptions!$D$77:$R$77,"BUDGET",Assumptions!$D97:$R97))),"0")+0) -> 0 | H23: =IF(VLOOKUP("Net Income",'CV Actuals Export'!$A$1:$N$944,'Revenue & Expense Input'!H$1,FALSE)<>0,IFERROR(VLOOKUP('Revenue & Expense Input'!$B23,'CV Actuals Export'!$A$1:$N$944,'Revenue & Expense Input'!H$1,FALSE),"0")+0,IFERROR(($D23-SUMIF($E$2:$Q$2,"ACTUAL",$E23:$Q23))*(VLOOKUP($B23,Assumptions!$B$78:$R$126,MATCH('Revenue & Expense Input'!H$3,Assumptions!$B$78:$R$78,0),FALSE)/(SUMIF(Assumptions!$D$77:$R$77,"BUDGET",Assumptions!$D97:$R97))),"0")+0) -> 0 | I23: =IF(VLOOKUP("Net Income",'CV Actuals Export'!$A$1:$N$944,'Revenue & Expense Input'!I$1,FALSE)<>0,IFERROR(VLOOKUP('Revenue & Expense Input'!$B23,'CV Actuals Export'!$A$1:$N$944,'Revenue & Expense Input'!I$1,FALSE),"0")+0,IFERROR(($D23-SUMIF($E$2:$Q$2,"ACTUAL",$E23:$Q23))*(VLOOKUP($B23,Assumptions!$B$78:$R$126,MATCH('Revenue & Expense Input'!I$3,Assumptions!$B$78:$R$78,0),FALSE)/(SUMIF(Assumptions!$D$77:$R$77,"BUDGET",Assumptions!$D97:$R97))),"0")+0) -> 0 | J23: =IF(VLOOKUP("Net Income",'CV Actuals Export'!$A$1:$N$944,'Revenue & Expense Input'!J$1,FALSE)<>0,IFERROR(VLOOKUP('Revenue & Expense Input'!$B23,'CV Actuals Export'!$A$1:$N$944,'Revenue & Expense Input'!J$1,FALSE),"0")+0,IFERROR(($D23-SUMIF($E$2:$Q$2,"ACTUAL",$E23:$Q23))*(VLOOKUP($B23,Assumptions!$B$78:$R$126,MATCH('Revenue & Expense Input'!J$3,Assumptions!$B$78:$R$78,0),FALSE)/(SUMIF(Assumptions!$D$77:$R$77,"BUDGET",Assumptions!$D97:$R97))),"0")+0) -> 0 | K23: =IF(VLOOKUP("Net Income",'CV Actuals Export'!$A$1:$N$944,'Revenue & Expense Input'!K$1,FALSE)<>0,IFERROR(VLOOKUP('Revenue & Expense Input'!$B23,'CV Actuals Export'!$A$1:$N$944,'Revenue & Expense Input'!K$1,FALSE),"0")+0,IFERROR(($D23-SUMIF($E$2:$Q$2,"ACTUAL",$E23:$Q23))*(VLOOKUP($B23,Assumptions!$B$78:$R$126,MATCH('Revenue & Expense Input'!K$3,Assumptions!$B$78:$R$78,0),FALSE)/(SUMIF(Assumptions!$D$77:$R$77,"BUDGET",Assumptions!$D97:$R97))),"0")+0) -> 0 | L23: =IF(VLOOKUP("Net Income",'CV Actuals Export'!$A$1:$N$944,'Revenue & Expense Input'!L$1,FALSE)<>0,IFERROR(VLOOKUP('Revenue & Expense Input'!$B23,'CV Actuals Export'!$A$1:$N$944,'Revenue & Expense Input'!L$1,FALSE),"0")+0,IFERROR(($D23-SUMIF($E$2:$Q$2,"ACTUAL",$E23:$Q23))*(VLOOKUP($B23,Assumptions!$B$78:$R$126,MATCH('Revenue & Expense Input'!L$3,Assumptions!$B$78:$R$78,0),FALSE)/(SUMIF(Assumptions!$D$77:$R$77,"BUDGET",Assumptions!$D98:$R98))),"0")+0) -> 0 | M23: =IF(VLOOKUP("Net Income",'CV Actuals Export'!$A$1:$N$944,'Revenue & Expense Input'!M$1,FALSE)<>0,IFERROR(VLOOKUP('Revenue & Expense Input'!$B23,'CV Actuals Export'!$A$1:$N$944,'Revenue & Expense Input'!M$1,FALSE),"0")+0,IFERROR(($D23-SUMIF($E$2:$Q$2,"ACTUAL",$E23:$Q23))*(VLOOKUP($B23,Assumptions!$B$78:$R$126,MATCH('Revenue & Expense Input'!M$3,Assumptions!$B$78:$R$78,0),FALSE)/(SUMIF(Assumptions!$D$77:$R$77,"BUDGET",Assumptions!$D98:$R98))),"0")+0) -> 0 | N23: =IF(VLOOKUP("Net Income",'CV Actuals Export'!$A$1:$N$944,'Revenue & Expense Input'!N$1,FALSE)<>0,IFERROR(VLOOKUP('Revenue & Expense Input'!$B23,'CV Actuals Export'!$A$1:$N$944,'Revenue & Expense Input'!N$1,FALSE),"0")+0,IFERROR(($D23-SUMIF($E$2:$Q$2,"ACTUAL",$E23:$Q23))*(VLOOKUP($B23,Assumptions!$B$78:$R$126,MATCH('Revenue & Expense Input'!N$3,Assumptions!$B$78:$R$78,0),FALSE)/(SUMIF(Assumptions!$D$77:$R$77,"BUDGET",Assumptions!$D98:$R98))),"0")+0) -> 0 | O23: =IF(VLOOKUP("Net Income",'CV Actuals Export'!$A$1:$N$944,'Revenue & Expense Input'!O$1,FALSE)<>0,IFERROR(VLOOKUP('Revenue & Expense Input'!$B23,'CV Actuals Export'!$A$1:$N$944,'Revenue & Expense Input'!O$1,FALSE),"0")+0,IFERROR(($D23-SUMIF($E$2:$Q$2,"ACTUAL",$E23:$Q23))*(VLOOKUP($B23,Assumptions!$B$78:$R$126,MATCH('Revenue & Expense Input'!O$3,Assumptions!$B$78:$R$78,0),FALSE)/(SUMIF(Assumptions!$D$77:$R$77,"BUDGET",Assumptions!$D98:$R98))),"0")+0) -> 0 | P23: =IF(VLOOKUP("Net Income",'CV Actuals Export'!$A$1:$N$944,'Revenue & Expense Input'!P$1,FALSE)<>0,IFERROR(VLOOKUP('Revenue & Expense Input'!$B23,'CV Actuals Export'!$A$1:$N$944,'Revenue & Expense Input'!P$1,FALSE),"0")+0,IFERROR(($D23-SUMIF($E$2:$Q$2,"ACTUAL",$E23:$Q23))*(VLOOKUP($B23,Assumptions!$B$78:$R$126,MATCH('Revenue & Expense Input'!P$3,Assumptions!$B$78:$R$78,0),FALSE)/(SUMIF(Assumptions!$D$77:$R$77,"BUDGET",Assumptions!$D98:$R98))),"0")+0) -> 0 | Q23: 0 | R23: 0 | S23: =D23-R23 -> 0 | U23: 0 | V23: =IFERROR(U23/X23,"0")+0 -> 0 | W23: =X23-U23 -> 0 | X23: =D23 -> 0 | Y23: 0 | Z23: 0
B24: =Assumptions!B99 -> 8299 | C24: =VLOOKUP(B24,Assumptions!$B$17:$C$126,2,FALSE) -> Prior Year Federal Revenue | D24: =MAX(U24,Y24) -> 0 | E24: =IF(VLOOKUP("Net Income",'CV Actuals Export'!$A$1:$N$944,'Revenue & Expense Input'!E$1,FALSE)<>0,IFERROR(VLOOKUP('Revenue & Expense Input'!$B24,'CV Actuals Export'!$A$1:$N$944,'Revenue & Expense Input'!E$1,FALSE),"0")+0,IFERROR(($D24-SUMIF($E$2:$Q$2,"ACTUAL",$E24:$Q24))*(VLOOKUP($B24,Assumptions!$B$78:$R$126,MATCH('Revenue & Expense Input'!E$3,Assumptions!$B$78:$R$78,0),FALSE)/(SUMIF(Assumptions!$D$77:$R$77,"BUDGET",Assumptions!$D97:$R97))),"0")+0) -> 0 | F24: =IF(VLOOKUP("Net Income",'CV Actuals Export'!$A$1:$N$944,'Revenue & Expense Input'!F$1,FALSE)<>0,IFERROR(VLOOKUP('Revenue & Expense Input'!$B24,'CV Actuals Export'!$A$1:$N$944,'Revenue & Expense Input'!F$1,FALSE),"0")+0,IFERROR(($D24-SUMIF($E$2:$Q$2,"ACTUAL",$E24:$Q24))*(VLOOKUP($B24,Assumptions!$B$78:$R$126,MATCH('Revenue & Expense Input'!F$3,Assumptions!$B$78:$R$78,0),FALSE)/(SUMIF(Assumptions!$D$77:$R$77,"BUDGET",Assumptions!$D97:$R97))),"0")+0) -> 0 | G24: =IF(VLOOKUP("Net Income",'CV Actuals Export'!$A$1:$N$944,'Revenue & Expense Input'!G$1,FALSE)<>0,IFERROR(VLOOKUP('Revenue & Expense Input'!$B24,'CV Actuals Export'!$A$1:$N$944,'Revenue & Expense Input'!G$1,FALSE),"0")+0,IFERROR(($D24-SUMIF($E$2:$Q$2,"ACTUAL",$E24:$Q24))*(VLOOKUP($B24,Assumptions!$B$78:$R$126,MATCH('Revenue & Expense Input'!G$3,Assumptions!$B$78:$R$78,0),FALSE)/(SUMIF(Assumptions!$D$77:$R$77,"BUDGET",Assumptions!$D97:$R97))),"0")+0) -> 0 | H24: =IF(VLOOKUP("Net Income",'CV Actuals Export'!$A$1:$N$944,'Revenue & Expense Input'!H$1,FALSE)<>0,IFERROR(VLOOKUP('Revenue & Expense Input'!$B24,'CV Actuals Export'!$A$1:$N$944,'Revenue & Expense Input'!H$1,FALSE),"0")+0,IFERROR(($D24-SUMIF($E$2:$Q$2,"ACTUAL",$E24:$Q24))*(VLOOKUP($B24,Assumptions!$B$78:$R$126,MATCH('Revenue & Expense Input'!H$3,Assumptions!$B$78:$R$78,0),FALSE)/(SUMIF(Assumptions!$D$77:$R$77,"BUDGET",Assumptions!$D97:$R97))),"0")+0) -> 558 | I24: =IF(VLOOKUP("Net Income",'CV Actuals Export'!$A$1:$N$944,'Revenue & Expense Input'!I$1,FALSE)<>0,IFERROR(VLOOKUP('Revenue & Expense Input'!$B24,'CV Actuals Export'!$A$1:$N$944,'Revenue & Expense Input'!I$1,FALSE),"0")+0,IFERROR(($D24-SUMIF($E$2:$Q$2,"ACTUAL",$E24:$Q24))*(VLOOKUP($B24,Assumptions!$B$78:$R$126,MATCH('Revenue & Expense Input'!I$3,Assumptions!$B$78:$R$78,0),FALSE)/(SUMIF(Assumptions!$D$77:$R$77,"BUDGET",Assumptions!$D97:$R97))),"0")+0) -> 0 | J24: =IF(VLOOKUP("Net Income",'CV Actuals Export'!$A$1:$N$944,'Revenue & Expense Input'!J$1,FALSE)<>0,IFERROR(VLOOKUP('Revenue & Expense Input'!$B24,'CV Actuals Export'!$A$1:$N$944,'Revenue & Expense Input'!J$1,FALSE),"0")+0,IFERROR(($D24-SUMIF($E$2:$Q$2,"ACTUAL",$E24:$Q24))*(VLOOKUP($B24,Assumptions!$B$78:$R$126,MATCH('Revenue & Expense Input'!J$3,Assumptions!$B$78:$R$78,0),FALSE)/(SUMIF(Assumptions!$D$77:$R$77,"BUDGET",Assumptions!$D97:$R97))),"0")+0) -> 0 | K24: =IF(VLOOKUP("Net Income",'CV Actuals Export'!$A$1:$N$944,'Revenue & Expense Input'!K$1,FALSE)<>0,IFERROR(VLOOKUP('Revenue & Expense Input'!$B24,'CV Actuals Export'!$A$1:$N$944,'Revenue & Expense Input'!K$1,FALSE),"0")+0,IFERROR(($D24-SUMIF($E$2:$Q$2,"ACTUAL",$E24:$Q24))*(VLOOKUP($B24,Assumptions!$B$78:$R$126,MATCH('Revenue & Expense Input'!K$3,Assumptions!$B$78:$R$78,0),FALSE)/(SUMIF(Assumptions!$D$77:$R$77,"BUDGET",Assumptions!$D97:$R97))),"0")+0) -> 0 | L24: =IF(VLOOKUP("Net Income",'CV Actuals Export'!$A$1:$N$944,'Revenue & Expense Input'!L$1,FALSE)<>0,IFERROR(VLOOKUP('Revenue & Expense Input'!$B24,'CV Actuals Export'!$A$1:$N$944,'Revenue & Expense Input'!L$1,FALSE),"0")+0,IFERROR(($D24-SUMIF($E$2:$Q$2,"ACTUAL",$E24:$Q24))*(VLOOKUP($B24,Assumptions!$B$78:$R$126,MATCH('Revenue & Expense Input'!L$3,Assumptions!$B$78:$R$78,0),FALSE)/(SUMIF(Assumptions!$D$77:$R$77,"BUDGET",Assumptions!$D97:$R97))),"0")+0) -> 0 | M24: =IF(VLOOKUP("Net Income",'CV Actuals Export'!$A$1:$N$944,'Revenue & Expense Input'!M$1,FALSE)<>0,IFERROR(VLOOKUP('Revenue & Expense Input'!$B24,'CV Actuals Export'!$A$1:$N$944,'Revenue & Expense Input'!M$1,FALSE),"0")+0,IFERROR(($D24-SUMIF($E$2:$Q$2,"ACTUAL",$E24:$Q24))*(VLOOKUP($B24,Assumptions!$B$78:$R$126,MATCH('Revenue & Expense Input'!M$3,Assumptions!$B$78:$R$78,0),FALSE)/(SUMIF(Assumptions!$D$77:$R$77,"BUDGET",Assumptions!$D97:$R97))),"0")+0) -> -7510 | N24: =IF(VLOOKUP("Net Income",'CV Actuals Export'!$A$1:$N$944,'Revenue & Expense Input'!N$1,FALSE)<>0,IFERROR(VLOOKUP('Revenue & Expense Input'!$B24,'CV Actuals Export'!$A$1:$N$944,'Revenue & Expense Input'!N$1,FALSE),"0")+0,IFERROR(($D24-SUMIF($E$2:$Q$2,"ACTUAL",$E24:$Q24))*(VLOOKUP($B24,Assumptions!$B$78:$R$126,MATCH('Revenue & Expense Input'!N$3,Assumptions!$B$78:$R$78,0),FALSE)/(SUMIF(Assumptions!$D$77:$R$77,"BUDGET",Assumptions!$D97:$R97))),"0")+0) -> 0 | O24: =IF(VLOOKUP("Net Income",'CV Actuals Export'!$A$1:$N$944,'Revenue & Expense Input'!O$1,FALSE)<>0,IFERROR(VLOOKUP('Revenue & Expense Input'!$B24,'CV Actuals Export'!$A$1:$N$944,'Revenue & Expense Input'!O$1,FALSE),"0")+0,IFERROR(($D24-SUMIF($E$2:$Q$2,"ACTUAL",$E24:$Q24))*(VLOOKUP($B24,Assumptions!$B$78:$R$126,MATCH('Revenue & Expense Input'!O$3,Assumptions!$B$78:$R$78,0),FALSE)/(SUMIF(Assumptions!$D$77:$R$77,"BUDGET",Assumptions!$D99:$R99))),"0")+0) -> 6952 | P24: =IF(VLOOKUP("Net Income",'CV Actuals Export'!$A$1:$N$944,'Revenue & Expense Input'!P$1,FALSE)<>0,IFERROR(VLOOKUP('Revenue & Expense Input'!$B24,'CV Actuals Export'!$A$1:$N$944,'Revenue & Expense Input'!P$1,FALSE),"0")+0,IFERROR(($D24-SUMIF($E$2:$Q$2,"ACTUAL",$E24:$Q24))*(VLOOKUP($B24,Assumptions!$B$78:$R$126,MATCH('Revenue & Expense Input'!P$3,Assumptions!$B$78:$R$78,0),FALSE)/(SUMIF(Assumptions!$D$77:$R$77,"BUDGET",Assumptions!$D99:$R99))),"0")+0) -> 0 | Q24: 0 | R24: 0 | S24: 0 | U24: -6952 | V24: 0 | W24: 6952 | X24: 0 | Y24: 0 | Z24: 0
B25: TOTAL FEDERAL REVENUE | D25: =SUM(D11:D24) -> 1340510.6 | E25: 0 | F25: 86229 | G25: 268270 | H25: 112854.23 | I25: 0 | J25: 2266 | K25: 342854.23 | L25: 12278.69 | M25: -6411 | N25: 614 | O25: 180250 | P25: 284537.85 | Q25: 56767.6 | R25: 1340510.6 | S25: 0 | U25: =SUM(U11:U24) -> 818955.15 | V25: 0.6109277689 | W25: =SUM(W11:W24) -> 521555.45 | X25: =SUM(X11:X24) -> 1340510.6 | Y25: =SUM(Y11:Y24) -> 1428506 | Z25: =SUM(Z11:Z24) -> -87995.4
B26: OTHER STATE | E26: OTHER STATE REVENUE DISTRIBUTION | Z26: =#REF!-Y26 -> 
B27: 8520 | C27: =VLOOKUP(B27,Assumptions!$B$17:$C$126,2,FALSE) -> STATE CHILD NUTRITION | D27: =VLOOKUP(B27,Assumptions!$B$16:$R$75,7,FALSE) -> 0 | E27: =IF(VLOOKUP("Net Income",'CV Actuals Export'!$A$1:$N$944,'Revenue & Expense Input'!E$1,FALSE)<>0,IFERROR(VLOOKUP('Revenue & Expense Input'!$B27,'CV Actuals Export'!$A$1:$N$944,'Revenue & Expense Input'!E$1,FALSE),"0")+0,IFERROR(($D27-SUMIF($E$2:$Q$2,"ACTUAL",$E27:$Q27))*(VLOOKUP($B27,Assumptions!$B$78:$R$126,MATCH('Revenue & Expense Input'!E$3,Assumptions!$B$78:$R$78,0),FALSE)/(SUMIF(Assumptions!$D$77:$R$77,"BUDGET",Assumptions!$D100:$R100))),"0")+0) -> 0 | F27: =IF(VLOOKUP("Net Income",'CV Actuals Export'!$A$1:$N$944,'Revenue & Expense Input'!F$1,FALSE)<>0,IFERROR(VLOOKUP('Revenue & Expense Input'!$B27,'CV Actuals Export'!$A$1:$N$944,'Revenue & Expense Input'!F$1,FALSE),"0")+0,IFERROR(($D27-SUMIF($E$2:$Q$2,"ACTUAL",$E27:$Q27))*(VLOOKUP($B27,Assumptions!$B$78:$R$126,MATCH('Revenue & Expense Input'!F$3,Assumptions!$B$78:$R$78,0),FALSE)/(SUMIF(Assumptions!$D$77:$R$77,"BUDGET",Assumptions!$D100:$R100))),"0")+0) -> 0 | G27: =IF(VLOOKUP("Net Income",'CV Actuals Export'!$A$1:$N$944,'Revenue & Expense Input'!G$1,FALSE)<>0,IFERROR(VLOOKUP('Revenue & Expense Input'!$B27,'CV Actuals Export'!$A$1:$N$944,'Revenue & Expense Input'!G$1,FALSE),"0")+0,IFERROR(($D27-SUMIF($E$2:$Q$2,"ACTUAL",$E27:$Q27))*(VLOOKUP($B27,Assumptions!$B$78:$R$126,MATCH('Revenue & Expense Input'!G$3,Assumptions!$B$78:$R$78,0),FALSE)/(SUMIF(Assumptions!$D$77:$R$77,"BUDGET",Assumptions!$D100:$R100))),"0")+0) -> 0 | H27: =IF(VLOOKUP("Net Income",'CV Actuals Export'!$A$1:$N$944,'Revenue & Expense Input'!H$1,FALSE)<>0,IFERROR(VLOOKUP('Revenue & Expense Input'!$B27,'CV Actuals Export'!$A$1:$N$944,'Revenue & Expense Input'!H$1,FALSE),"0")+0,IFERROR(($D27-SUMIF($E$2:$Q$2,"ACTUAL",$E27:$Q27))*(VLOOKUP($B27,Assumptions!$B$78:$R$126,MATCH('Revenue & Expense Input'!H$3,Assumptions!$B$78:$R$78,0),FALSE)/(SUMIF(Assumptions!$D$77:$R$77,"BUDGET",Assumptions!$D100:$R100))),"0")+0) -> 0 | I27: =IF(VLOOKUP("Net Income",'CV Actuals Export'!$A$1:$N$944,'Revenue & Expense Input'!I$1,FALSE)<>0,IFERROR(VLOOKUP('Revenue & Expense Input'!$B27,'CV Actuals Export'!$A$1:$N$944,'Revenue & Expense Input'!I$1,FALSE),"0")+0,IFERROR(($D27-SUMIF($E$2:$Q$2,"ACTUAL",$E27:$Q27))*(VLOOKUP($B27,Assumptions!$B$78:$R$126,MATCH('Revenue & Expense Input'!I$3,Assumptions!$B$78:$R$78,0),FALSE)/(SUMIF(Assumptions!$D$77:$R$77,"BUDGET",Assumptions!$D100:$R100))),"0")+0) -> 0 | J27: =IF(VLOOKUP("Net Income",'CV Actuals Export'!$A$1:$N$944,'Revenue & Expense Input'!J$1,FALSE)<>0,IFERROR(VLOOKUP('Revenue & Expense Input'!$B27,'CV Actuals Export'!$A$1:$N$944,'Revenue & Expense Input'!J$1,FALSE),"0")+0,IFERROR(($D27-SUMIF($E$2:$Q$2,"ACTUAL",$E27:$Q27))*(VLOOKUP($B27,Assumptions!$B$78:$R$126,MATCH('Revenue & Expense Input'!J$3,Assumptions!$B$78:$R$78,0),FALSE)/(SUMIF(Assumptions!$D$77:$R$77,"BUDGET",Assumptions!$D100:$R100))),"0")+0) -> 0 | K27: =IF(VLOOKUP("Net Income",'CV Actuals Export'!$A$1:$N$944,'Revenue & Expense Input'!K$1,FALSE)<>0,IFERROR(VLOOKUP('Revenue & Expense Input'!$B27,'CV Actuals Export'!$A$1:$N$944,'Revenue & Expense Input'!K$1,FALSE),"0")+0,IFERROR(($D27-SUMIF($E$2:$Q$2,"ACTUAL",$E27:$Q27))*(VLOOKUP($B27,Assumptions!$B$78:$R$126,MATCH('Revenue & Expense Input'!K$3,Assumptions!$B$78:$R$78,0),FALSE)/(SUMIF(Assumptions!$D$77:$R$77,"BUDGET",Assumptions!$D100:$R100))),"0")+0) -> 0 | L27: =IF(VLOOKUP("Net Income",'CV Actuals Export'!$A$1:$N$944,'Revenue & Expense Input'!L$1,FALSE)<>0,IFERROR(VLOOKUP('Revenue & Expense Input'!$B27,'CV Actuals Export'!$A$1:$N$944,'Revenue & Expense Input'!L$1,FALSE),"0")+0,IFERROR(($D27-SUMIF($E$2:$Q$2,"ACTUAL",$E27:$Q27))*(VLOOKUP($B27,Assumptions!$B$78:$R$126,MATCH('Revenue & Expense Input'!L$3,Assumptions!$B$78:$R$78,0),FALSE)/(SUMIF(Assumptions!$D$77:$R$77,"BUDGET",Assumptions!$D100:$R100))),"0")+0) -> 0 | M27: =IF(VLOOKUP("Net Income",'CV Actuals Export'!$A$1:$N$944,'Revenue & Expense Input'!M$1,FALSE)<>0,IFERROR(VLOOKUP('Revenue & Expense Input'!$B27,'CV Actuals Export'!$A$1:$N$944,'Revenue & Expense Input'!M$1,FALSE),"0")+0,IFERROR(($D27-SUMIF($E$2:$Q$2,"ACTUAL",$E27:$Q27))*(VLOOKUP($B27,Assumptions!$B$78:$R$126,MATCH('Revenue & Expense Input'!M$3,Assumptions!$B$78:$R$78,0),FALSE)/(SUMIF(Assumptions!$D$77:$R$77,"BUDGET",Assumptions!$D100:$R100))),"0")+0) -> 0 | N27: =IF(VLOOKUP("Net Income",'CV Actuals Export'!$A$1:$N$944,'Revenue & Expense Input'!N$1,FALSE)<>0,IFERROR(VLOOKUP('Revenue & Expense Input'!$B27,'CV Actuals Export'!$A$1:$N$944,'Revenue & Expense Input'!N$1,FALSE),"0")+0,IFERROR(($D27-SUMIF($E$2:$Q$2,"ACTUAL",$E27:$Q27))*(VLOOKUP($B27,Assumptions!$B$78:$R$126,MATCH('Revenue & Expense Input'!N$3,Assumptions!$B$78:$R$78,0),FALSE)/(SUMIF(Assumptions!$D$77:$R$77,"BUDGET",Assumptions!$D100:$R100))),"0")+0) -> 0 | O27: =IF(VLOOKUP("Net Income",'CV Actuals Export'!$A$1:$N$944,'Revenue & Expense Input'!O$1,FALSE)<>0,IFERROR(VLOOKUP('Revenue & Expense Input'!$B27,'CV Actuals Export'!$A$1:$N$944,'Revenue & Expense Input'!O$1,FALSE),"0")+0,IFERROR(($D27-SUMIF($E$2:$Q$2,"ACTUAL",$E27:$Q27))*(VLOOKUP($B27,Assumptions!$B$78:$R$126,MATCH('Revenue & Expense Input'!O$3,Assumptions!$B$78:$R$78,0),FALSE)/(SUMIF(Assumptions!$D$77:$R$77,"BUDGET",Assumptions!$D100:$R100))),"0")+0) -> 0 | P27: =IF(VLOOKUP("Net Income",'CV Actuals Export'!$A$1:$N$944,'Revenue & Expense Input'!P$1,FALSE)<>0,IFERROR(VLOOKUP('Revenue & Expense Input'!$B27,'CV Actuals Export'!$A$1:$N$944,'Revenue & Expense Input'!P$1,FALSE),"0")+0,IFERROR(($D27-SUMIF($E$2:$Q$2,"ACTUAL",$E27:$Q27))*(VLOOKUP($B27,Assumptions!$B$78:$R$126,MATCH('Revenue & Expense Input'!P$3,Assumptions!$B$78:$R$78,0),FALSE)/(SUMIF(Assumptions!$D$77:$R$77,"BUDGET",Assumptions!$D100:$R100))),"0")+0) -> 0 | Q27: =IF($D$5>SUM($E27:$P27),D27-SUM($E27:$P27),0) -> 0 | R27: =SUM(E27:Q27) -> 0 | S27: =D27-R27 -> 0 | U27: =SUMIF($E$2:$Q$2,"ACTUAL",$E27:$Q27) -> 0 | V27: =IFERROR(U27/X27,"0")+0 -> 0 | W27: =X27-U27 -> 0 | X27: =D27 -> 0 | Y27: 0 | Z27: =X27-Y27 -> 0
B28: 8550-K8 | C28: =VLOOKUP(B28,Assumptions!$B$17:$C$126,2,FALSE) -> MANDATE BLOCK GRANT K-8 | D28: =VLOOKUP(B28,Assumptions!$B$16:$R$75,7,FALSE) -> 0 | E28: =IF(VLOOKUP("Net Income",'CV Actuals Export'!$A$1:$N$944,'Revenue & Expense Input'!E$1,FALSE)<>0,IFERROR(VLOOKUP('Revenue & Expense Input'!$B28,'CV Actuals Export'!$A$1:$N$944,'Revenue & Expense Input'!E$1,FALSE),"0")+0,IFERROR(($D28-SUMIF($E$2:$Q$2,"ACTUAL",$E28:$Q28))*(VLOOKUP($B28,Assumptions!$B$78:$R$126,MATCH('Revenue & Expense Input'!E$3,Assumptions!$B$78:$R$78,0),FALSE)/(SUMIF(Assumptions!$D$77:$R$77,"BUDGET",Assumptions!$D101:$R101))),"0")+0) -> 0 | F28: =IF(VLOOKUP("Net Income",'CV Actuals Export'!$A$1:$N$944,'Revenue & Expense Input'!F$1,FALSE)<>0,IFERROR(VLOOKUP('Revenue & Expense Input'!$B28,'CV Actuals Export'!$A$1:$N$944,'Revenue & Expense Input'!F$1,FALSE),"0")+0,IFERROR(($D28-SUMIF($E$2:$Q$2,"ACTUAL",$E28:$Q28))*(VLOOKUP($B28,Assumptions!$B$78:$R$126,MATCH('Revenue & Expense Input'!F$3,Assumptions!$B$78:$R$78,0),FALSE)/(SUMIF(Assumptions!$D$77:$R$77,"BUDGET",Assumptions!$D101:$R101))),"0")+0) -> 0 | G28: =IF(VLOOKUP("Net Income",'CV Actuals Export'!$A$1:$N$944,'Revenue & Expense Input'!G$1,FALSE)<>0,IFERROR(VLOOKUP('Revenue & Expense Input'!$B28,'CV Actuals Export'!$A$1:$N$944,'Revenue & Expense Input'!G$1,FALSE),"0")+0,IFERROR(($D28-SUMIF($E$2:$Q$2,"ACTUAL",$E28:$Q28))*(VLOOKUP($B28,Assumptions!$B$78:$R$126,MATCH('Revenue & Expense Input'!G$3,Assumptions!$B$78:$R$78,0),FALSE)/(SUMIF(Assumptions!$D$77:$R$77,"BUDGET",Assumptions!$D101:$R101))),"0")+0) -> 0 | H28: =IF(VLOOKUP("Net Income",'CV Actuals Export'!$A$1:$N$944,'Revenue & Expense Input'!H$1,FALSE)<>0,IFERROR(VLOOKUP('Revenue & Expense Input'!$B28,'CV Actuals Export'!$A$1:$N$944,'Revenue & Expense Input'!H$1,FALSE),"0")+0,IFERROR(($D28-SUMIF($E$2:$Q$2,"ACTUAL",$E28:$Q28))*(VLOOKUP($B28,Assumptions!$B$78:$R$126,MATCH('Revenue & Expense Input'!H$3,Assumptions!$B$78:$R$78,0),FALSE)/(SUMIF(Assumptions!$D$77:$R$77,"BUDGET",Assumptions!$D101:$R101))),"0")+0) -> 0 | I28: =IF(VLOOKUP("Net Income",'CV Actuals Export'!$A$1:$N$944,'Revenue & Expense Input'!I$1,FALSE)<>0,IFERROR(VLOOKUP('Revenue & Expense Input'!$B28,'CV Actuals Export'!$A$1:$N$944,'Revenue & Expense Input'!I$1,FALSE),"0")+0,IFERROR(($D28-SUMIF($E$2:$Q$2,"ACTUAL",$E28:$Q28))*(VLOOKUP($B28,Assumptions!$B$78:$R$126,MATCH('Revenue & Expense Input'!I$3,Assumptions!$B$78:$R$78,0),FALSE)/(SUMIF(Assumptions!$D$77:$R$77,"BUDGET",Assumptions!$D101:$R101))),"0")+0) -> 0 | J28: =IF(VLOOKUP("Net Income",'CV Actuals Export'!$A$1:$N$944,'Revenue & Expense Input'!J$1,FALSE)<>0,IFERROR(VLOOKUP('Revenue & Expense Input'!$B28,'CV Actuals Export'!$A$1:$N$944,'Revenue & Expense Input'!J$1,FALSE),"0")+0,IFERROR(($D28-SUMIF($E$2:$Q$2,"ACTUAL",$E28:$Q28))*(VLOOKUP($B28,Assumptions!$B$78:$R$126,MATCH('Revenue & Expense Input'!J$3,Assumptions!$B$78:$R$78,0),FALSE)/(SUMIF(Assumptions!$D$77:$R$77,"BUDGET",Assumptions!$D101:$R101))),"0")+0) -> 0 | K28: =IF(VLOOKUP("Net Income",'CV Actuals Export'!$A$1:$N$944,'Revenue & Expense Input'!K$1,FALSE)<>0,IFERROR(VLOOKUP('Revenue & Expense Input'!$B28,'CV Actuals Export'!$A$1:$N$944,'Revenue & Expense Input'!K$1,FALSE),"0")+0,IFERROR(($D28-SUMIF($E$2:$Q$2,"ACTUAL",$E28:$Q28))*(VLOOKUP($B28,Assumptions!$B$78:$R$126,MATCH('Revenue & Expense Input'!K$3,Assumptions!$B$78:$R$78,0),FALSE)/(SUMIF(Assumptions!$D$77:$R$77,"BUDGET",Assumptions!$D101:$R101))),"0")+0) -> 0 | L28: =IF(VLOOKUP("Net Income",'CV Actuals Export'!$A$1:$N$944,'Revenue & Expense Input'!L$1,FALSE)<>0,IFERROR(VLOOKUP('Revenue & Expense Input'!$B28,'CV Actuals Export'!$A$1:$N$944,'Revenue & Expense Input'!L$1,FALSE),"0")+0,IFERROR(($D28-SUMIF($E$2:$Q$2,"ACTUAL",$E28:$Q28))*(VLOOKUP($B28,Assumptions!$B$78:$R$126,MATCH('Revenue & Expense Input'!L$3,Assumptions!$B$78:$R$78,0),FALSE)/(SUMIF(Assumptions!$D$77:$R$77,"BUDGET",Assumptions!$D101:$R101))),"0")+0) -> 0 | M28: =IF(VLOOKUP("Net Income",'CV Actuals Export'!$A$1:$N$944,'Revenue & Expense Input'!M$1,FALSE)<>0,IFERROR(VLOOKUP('Revenue & Expense Input'!$B28,'CV Actuals Export'!$A$1:$N$944,'Revenue & Expense Input'!M$1,FALSE),"0")+0,IFERROR(($D28-SUMIF($E$2:$Q$2,"ACTUAL",$E28:$Q28))*(VLOOKUP($B28,Assumptions!$B$78:$R$126,MATCH('Revenue & Expense Input'!M$3,Assumptions!$B$78:$R$78,0),FALSE)/(SUMIF(Assumptions!$D$77:$R$77,"BUDGET",Assumptions!$D101:$R101))),"0")+0) -> 0 | N28: =IF(VLOOKUP("Net Income",'CV Actuals Export'!$A$1:$N$944,'Revenue & Expense Input'!N$1,FALSE)<>0,IFERROR(VLOOKUP('Revenue & Expense Input'!$B28,'CV Actuals Export'!$A$1:$N$944,'Revenue & Expense Input'!N$1,FALSE),"0")+0,IFERROR(($D28-SUMIF($E$2:$Q$2,"ACTUAL",$E28:$Q28))*(VLOOKUP($B28,Assumptions!$B$78:$R$126,MATCH('Revenue & Expense Input'!N$3,Assumptions!$B$78:$R$78,0),FALSE)/(SUMIF(Assumptions!$D$77:$R$77,"BUDGET",Assumptions!$D101:$R101))),"0")+0) -> 0 | O28: =IF(VLOOKUP("Net Income",'CV Actuals Export'!$A$1:$N$944,'Revenue & Expense Input'!O$1,FALSE)<>0,IFERROR(VLOOKUP('Revenue & Expense Input'!$B28,'CV Actuals Export'!$A$1:$N$944,'Revenue & Expense Input'!O$1,FALSE),"0")+0,IFERROR(($D28-SUMIF($E$2:$Q$2,"ACTUAL",$E28:$Q28))*(VLOOKUP($B28,Assumptions!$B$78:$R$126,MATCH('Revenue & Expense Input'!O$3,Assumptions!$B$78:$R$78,0),FALSE)/(SUMIF(Assumptions!$D$77:$R$77,"BUDGET",Assumptions!$D101:$R101))),"0")+0) -> 0 | P28: =IF(VLOOKUP("Net Income",'CV Actuals Export'!$A$1:$N$944,'Revenue & Expense Input'!P$1,FALSE)<>0,IFERROR(VLOOKUP('Revenue & Expense Input'!$B28,'CV Actuals Export'!$A$1:$N$944,'Revenue & Expense Input'!P$1,FALSE),"0")+0,IFERROR(($D28-SUMIF($E$2:$Q$2,"ACTUAL",$E28:$Q28))*(VLOOKUP($B28,Assumptions!$B$78:$R$126,MATCH('Revenue & Expense Input'!P$3,Assumptions!$B$78:$R$78,0),FALSE)/(SUMIF(Assumptions!$D$77:$R$77,"BUDGET",Assumptions!$D101:$R101))),"0")+0) -> 0 | Q28: 0 | R28: 0 | S28: 0 | U28: 0 | V28: 0 | W28: 0 | X28: 0 | Y28: 0 | Z28: 0
B29: 8550-912 | C29: =VLOOKUP(B29,Assumptions!$B$17:$C$126,2,FALSE) -> MANDATE BLOCK GRANT 9-12 | D29: =VLOOKUP(B29,Assumptions!$B$16:$R$75,7,FALSE) -> 27651.52 | E29: =IF(VLOOKUP("Net Income",'CV Actuals Export'!$A$1:$N$944,'Revenue & Expense Input'!E$1,FALSE)<>0,IFERROR(VLOOKUP('Revenue & Expense Input'!$B29,'CV Actuals Export'!$A$1:$N$944,'Revenue & Expense Input'!E$1,FALSE),"0")+0,IFERROR(($D29-SUMIF($E$2:$Q$2,"ACTUAL",$E29:$Q29))*(VLOOKUP($B29,Assumptions!$B$78:$R$126,MATCH('Revenue & Expense Input'!E$3,Assumptions!$B$78:$R$78,0),FALSE)/(SUMIF(Assumptions!$D$77:$R$77,"BUDGET",Assumptions!$D102:$R102))),"0")+0) -> 0 | F29: =IF(VLOOKUP("Net Income",'CV Actuals Export'!$A$1:$N$944,'Revenue & Expense Input'!F$1,FALSE)<>0,IFERROR(VLOOKUP('Revenue & Expense Input'!$B29,'CV Actuals Export'!$A$1:$N$944,'Revenue & Expense Input'!F$1,FALSE),"0")+0,IFERROR(($D29-SUMIF($E$2:$Q$2,"ACTUAL",$E29:$Q29))*(VLOOKUP($B29,Assumptions!$B$78:$R$126,MATCH('Revenue & Expense Input'!F$3,Assumptions!$B$78:$R$78,0),FALSE)/(SUMIF(Assumptions!$D$77:$R$77,"BUDGET",Assumptions!$D102:$R102))),"0")+0) -> 0 | G29: =IF(VLOOKUP("Net Income",'CV Actuals Export'!$A$1:$N$944,'Revenue & Expense Input'!G$1,FALSE)<>0,IFERROR(VLOOKUP('Revenue & Expense Input'!$B29,'CV Actuals Export'!$A$1:$N$944,'Revenue & Expense Input'!G$1,FALSE),"0")+0,IFERROR(($D29-SUMIF($E$2:$Q$2,"ACTUAL",$E29:$Q29))*(VLOOKUP($B29,Assumptions!$B$78:$R$126,MATCH('Revenue & Expense Input'!G$3,Assumptions!$B$78:$R$78,0),FALSE)/(SUMIF(Assumptions!$D$77:$R$77,"BUDGET",Assumptions!$D102:$R102))),"0")+0) -> 0 | H29: =IF(VLOOKUP("Net Income",'CV Actuals Export'!$A$1:$N$944,'Revenue & Expense Input'!H$1,FALSE)<>0,IFERROR(VLOOKUP('Revenue & Expense Input'!$B29,'CV Actuals Export'!$A$1:$N$944,'Revenue & Expense Input'!H$1,FALSE),"0")+0,IFERROR(($D29-SUMIF($E$2:$Q$2,"ACTUAL",$E29:$Q29))*(VLOOKUP($B29,Assumptions!$B$78:$R$126,MATCH('Revenue & Expense Input'!H$3,Assumptions!$B$78:$R$78,0),FALSE)/(SUMIF(Assumptions!$D$77:$R$77,"BUDGET",Assumptions!$D102:$R102))),"0")+0) -> 0 | I29: =IF(VLOOKUP("Net Income",'CV Actuals Export'!$A$1:$N$944,'Revenue & Expense Input'!I$1,FALSE)<>0,IFERROR(VLOOKUP('Revenue & Expense Input'!$B29,'CV Actuals Export'!$A$1:$N$944,'Revenue & Expense Input'!I$1,FALSE),"0")+0,IFERROR(($D29-SUMIF($E$2:$Q$2,"ACTUAL",$E29:$Q29))*(VLOOKUP($B29,Assumptions!$B$78:$R$126,MATCH('Revenue & Expense Input'!I$3,Assumptions!$B$78:$R$78,0),FALSE)/(SUMIF(Assumptions!$D$77:$R$77,"BUDGET",Assumptions!$D102:$R102))),"0")+0) -> 0 | J29: 27652 | K29: =IF(VLOOKUP("Net Income",'CV Actuals Export'!$A$1:$N$944,'Revenue & Expense Input'!K$1,FALSE)<>0,IFERROR(VLOOKUP('Revenue & Expense Input'!$B29,'CV Actuals Export'!$A$1:$N$944,'Revenue & Expense Input'!K$1,FALSE),"0")+0,IFERROR(($D29-SUMIF($E$2:$Q$2,"ACTUAL",$E29:$Q29))*(VLOOKUP($B29,Assumptions!$B$78:$R$126,MATCH('Revenue & Expense Input'!K$3,Assumptions!$B$78:$R$78,0),FALSE)/(SUMIF(Assumptions!$D$77:$R$77,"BUDGET",Assumptions!$D102:$R102))),"0")+0) -> 0 | L29: =IF(VLOOKUP("Net Income",'CV Actuals Export'!$A$1:$N$944,'Revenue & Expense Input'!L$1,FALSE)<>0,IFERROR(VLOOKUP('Revenue & Expense Input'!$B29,'CV Actuals Export'!$A$1:$N$944,'Revenue & Expense Input'!L$1,FALSE),"0")+0,IFERROR(($D29-SUMIF($E$2:$Q$2,"ACTUAL",$E29:$Q29))*(VLOOKUP($B29,Assumptions!$B$78:$R$126,MATCH('Revenue & Expense Input'!L$3,Assumptions!$B$78:$R$78,0),FALSE)/(SUMIF(Assumptions!$D$77:$R$77,"BUDGET",Assumptions!#REF!))),"0")+0) -> 0 | M29: =IF(VLOOKUP("Net Income",'CV Actuals Export'!$A$1:$N$944,'Revenue & Expense Input'!M$1,FALSE)<>0,IFERROR(VLOOKUP('Revenue & Expense Input'!$B29,'CV Actuals Export'!$A$1:$N$944,'Revenue & Expense Input'!M$1,FALSE),"0")+0,IFERROR(($D29-SUMIF($E$2:$Q$2,"ACTUAL",$E29:$Q29))*(VLOOKUP($B29,Assumptions!$B$78:$R$126,MATCH('Revenue & Expense Input'!M$3,Assumptions!$B$78:$R$78,0),FALSE)/(SUMIF(Assumptions!$D$77:$R$77,"BUDGET",Assumptions!#REF!))),"0")+0) -> 0 | N29: =IF(VLOOKUP("Net Income",'CV Actuals Export'!$A$1:$N$944,'Revenue & Expense Input'!N$1,FALSE)<>0,IFERROR(VLOOKUP('Revenue & Expense Input'!$B29,'CV Actuals Export'!$A$1:$N$944,'Revenue & Expense Input'!N$1,FALSE),"0")+0,IFERROR(($D29-SUMIF($E$2:$Q$2,"ACTUAL",$E29:$Q29))*(VLOOKUP($B29,Assumptions!$B$78:$R$126,MATCH('Revenue & Expense Input'!N$3,Assumptions!$B$78:$R$78,0),FALSE)/(SUMIF(Assumptions!$D$77:$R$77,"BUDGET",Assumptions!#REF!))),"0")+0) -> 0 | O29: =IF(VLOOKUP("Net Income",'CV Actuals Export'!$A$1:$N$944,'Revenue & Expense Input'!O$1,FALSE)<>0,IFERROR(VLOOKUP('Revenue & Expense Input'!$B29,'CV Actuals Export'!$A$1:$N$944,'Revenue & Expense Input'!O$1,FALSE),"0")+0,IFERROR(($D29-SUMIF($E$2:$Q$2,"ACTUAL",$E29:$Q29))*(VLOOKUP($B29,Assumptions!$B$78:$R$126,MATCH('Revenue & Expense Input'!O$3,Assumptions!$B$78:$R$78,0),FALSE)/(SUMIF(Assumptions!$D$77:$R$77,"BUDGET",Assumptions!#REF!))),"0")+0) -> 0 | P29: =IF(VLOOKUP("Net Income",'CV Actuals Export'!$A$1:$N$944,'Revenue & Expense Input'!P$1,FALSE)<>0,IFERROR(VLOOKUP('Revenue & Expense Input'!$B29,'CV Actuals Export'!$A$1:$N$944,'Revenue & Expense Input'!P$1,FALSE),"0")+0,IFERROR(($D29-SUMIF($E$2:$Q$2,"ACTUAL",$E29:$Q29))*(VLOOKUP($B29,Assumptions!$B$78:$R$126,MATCH('Revenue & Expense Input'!P$3,Assumptions!$B$78:$R$78,0),FALSE)/(SUMIF(Assumptions!$D$77:$R$77,"BUDGET",Assumptions!#REF!))),"0")+0) -> 0 | Q29: -0.48 | R29: 27651.52 | S29: 0 | U29: 27652 | V29: 1.000017359 | W29: -0.48 | X29: 27651.52 | Y29: 27495 | Z29: 156.52
B30: 8560-12 | C30: =VLOOKUP(B30,Assumptions!$B$17:$C$126,2,FALSE) -> RESTRICTED LOTTERY | D30: =VLOOKUP(B30,Assumptions!$B$16:$R$75,7,FALSE) -> 32218.08 | E30: =IF(VLOOKUP("Net Income",'CV Actuals Export'!$A$1:$N$944,'Revenue & Expense Input'!E$1,FALSE)<>0,IFERROR(VLOOKUP('Revenue & Expense Input'!$B30,'CV Actuals Export'!$A$1:$N$944,'Revenue & Expense Input'!E$1,FALSE),"0")+0,IFERROR(($D30-SUMIF($E$2:$Q$2,"ACTUAL",$E30:$Q30))*(VLOOKUP($B30,Assumptions!$B$78:$R$126,MATCH('Revenue & Expense Input'!E$3,Assumptions!$B$78:$R$78,0),FALSE)/(SUMIF(Assumptions!$D$77:$R$77,"BUDGET",Assumptions!$D103:$R103))),"0")+0) -> 0 | F30: =IF(VLOOKUP("Net Income",'CV Actuals Export'!$A$1:$N$944,'Revenue & Expense Input'!F$1,FALSE)<>0,IFERROR(VLOOKUP('Revenue & Expense Input'!$B30,'CV Actuals Export'!$A$1:$N$944,'Revenue & Expense Input'!F$1,FALSE),"0")+0,IFERROR(($D30-SUMIF($E$2:$Q$2,"ACTUAL",$E30:$Q30))*(VLOOKUP($B30,Assumptions!$B$78:$R$126,MATCH('Revenue & Expense Input'!F$3,Assumptions!$B$78:$R$78,0),FALSE)/(SUMIF(Assumptions!$D$77:$R$77,"BUDGET",Assumptions!$D103:$R103))),"0")+0) -> 0 | G30: =IF(VLOOKUP("Net Income",'CV Actuals Export'!$A$1:$N$944,'Revenue & Expense Input'!G$1,FALSE)<>0,IFERROR(VLOOKUP('Revenue & Expense Input'!$B30,'CV Actuals Export'!$A$1:$N$944,'Revenue & Expense Input'!G$1,FALSE),"0")+0,IFERROR(($D30-SUMIF($E$2:$Q$2,"ACTUAL",$E30:$Q30))*(VLOOKUP($B30,Assumptions!$B$78:$R$126,MATCH('Revenue & Expense Input'!G$3,Assumptions!$B$78:$R$78,0),FALSE)/(SUMIF(Assumptions!$D$77:$R$77,"BUDGET",Assumptions!$D103:$R103))),"0")+0) -> 0 | H30: =IF(VLOOKUP("Net Income",'CV Actuals Export'!$A$1:$N$944,'Revenue & Expense Input'!H$1,FALSE)<>0,IFERROR(VLOOKUP('Revenue & Expense Input'!$B30,'CV Actuals Export'!$A$1:$N$944,'Revenue & Expense Input'!H$1,FALSE),"0")+0,IFERROR(($D30-SUMIF($E$2:$Q$2,"ACTUAL",$E30:$Q30))*(VLOOKUP($B30,Assumptions!$B$78:$R$126,MATCH('Revenue & Expense Input'!H$3,Assumptions!$B$78:$R$78,0),FALSE)/(SUMIF(Assumptions!$D$77:$R$77,"BUDGET",Assumptions!$D103:$R103))),"0")+0) -> 0 | I30: =IF(VLOOKUP("Net Income",'CV Actuals Export'!$A$1:$N$944,'Revenue & Expense Input'!I$1,FALSE)<>0,IFERROR(VLOOKUP('Revenue & Expense Input'!$B30,'CV Actuals Export'!$A$1:$N$944,'Revenue & Expense Input'!I$1,FALSE),"0")+0,IFERROR(($D30-SUMIF($E$2:$Q$2,"ACTUAL",$E30:$Q30))*(VLOOKUP($B30,Assumptions!$B$78:$R$126,MATCH('Revenue & Expense Input'!I$3,Assumptions!$B$78:$R$78,0),FALSE)/(SUMIF(Assumptions!$D$77:$R$77,"BUDGET",Assumptions!$D103:$R103))),"0")+0) -> 0 | J30: =IF(VLOOKUP("Net Income",'CV Actuals Export'!$A$1:$N$944,'Revenue & Expense Input'!J$1,FALSE)<>0,IFERROR(VLOOKUP('Revenue & Expense Input'!$B30,'CV Actuals Export'!$A$1:$N$944,'Revenue & Expense Input'!J$1,FALSE),"0")+0,IFERROR(($D30-SUMIF($E$2:$Q$2,"ACTUAL",$E30:$Q30))*(VLOOKUP($B30,Assumptions!$B$78:$R$126,MATCH('Revenue & Expense Input'!J$3,Assumptions!$B$78:$R$78,0),FALSE)/(SUMIF(Assumptions!$D$77:$R$77,"BUDGET",Assumptions!$D103:$R103))),"0")+0) -> 0 | K30: =IF(VLOOKUP("Net Income",'CV Actuals Export'!$A$1:$N$944,'Revenue & Expense Input'!K$1,FALSE)<>0,IFERROR(VLOOKUP('Revenue & Expense Input'!$B30,'CV Actuals Export'!$A$1:$N$944,'Revenue & Expense Input'!K$1,FALSE),"0")+0,IFERROR(($D30-SUMIF($E$2:$Q$2,"ACTUAL",$E30:$Q30))*(VLOOKUP($B30,Assumptions!$B$78:$R$126,MATCH('Revenue & Expense Input'!K$3,Assumptions!$B$78:$R$78,0),FALSE)/(SUMIF(Assumptions!$D$77:$R$77,"BUDGET",Assumptions!$D103:$R103))),"0")+0) -> 0 | L30: =IF(VLOOKUP("Net Income",'CV Actuals Export'!$A$1:$N$944,'Revenue & Expense Input'!L$1,FALSE)<>0,IFERROR(VLOOKUP('Revenue & Expense Input'!$B30,'CV Actuals Export'!$A$1:$N$944,'Revenue & Expense Input'!L$1,FALSE),"0")+0,IFERROR(($D30-SUMIF($E$2:$Q$2,"ACTUAL",$E30:$Q30))*(VLOOKUP($B30,Assumptions!$B$78:$R$126,MATCH('Revenue & Expense Input'!L$3,Assumptions!$B$78:$R$78,0),FALSE)/(SUMIF(Assumptions!$D$77:$R$77,"BUDGET",Assumptions!#REF!))),"0")+0) -> 0 | M30: =IF(VLOOKUP("Net Income",'CV Actuals Export'!$A$1:$N$944,'Revenue & Expense Input'!M$1,FALSE)<>0,IFERROR(VLOOKUP('Revenue & Expense Input'!$B30,'CV Actuals Export'!$A$1:$N$944,'Revenue & Expense Input'!M$1,FALSE),"0")+0,IFERROR(($D30-SUMIF($E$2:$Q$2,"ACTUAL",$E30:$Q30))*(VLOOKUP($B30,Assumptions!$B$78:$R$126,MATCH('Revenue & Expense Input'!M$3,Assumptions!$B$78:$R$78,0),FALSE)/(SUMIF(Assumptions!$D$77:$R$77,"BUDGET",Assumptions!#REF!))),"0")+0) -> 0 | N30: 27778.25 | O30: =IF(VLOOKUP("Net Income",'CV Actuals Export'!$A$1:$N$944,'Revenue & Expense Input'!O$1,FALSE)<>0,IFERROR(VLOOKUP('Revenue & Expense Input'!$B30,'CV Actuals Export'!$A$1:$N$944,'Revenue & Expense Input'!O$1,FALSE),"0")+0,IFERROR(($D30-SUMIF($E$2:$Q$2,"ACTUAL",$E30:$Q30))*(VLOOKUP($B30,Assumptions!$B$78:$R$126,MATCH('Revenue & Expense Input'!O$3,Assumptions!$B$78:$R$78,0),FALSE)/(SUMIF(Assumptions!$D$77:$R$77,"BUDGET",Assumptions!#REF!))),"0")+0) -> 0 | P30: =IF(VLOOKUP("Net Income",'CV Actuals Export'!$A$1:$N$944,'Revenue & Expense Input'!P$1,FALSE)<>0,IFERROR(VLOOKUP('Revenue & Expense Input'!$B30,'CV Actuals Export'!$A$1:$N$944,'Revenue & Expense Input'!P$1,FALSE),"0")+0,IFERROR(($D30-SUMIF($E$2:$Q$2,"ACTUAL",$E30:$Q30))*(VLOOKUP($B30,Assumptions!$B$78:$R$126,MATCH('Revenue & Expense Input'!P$3,Assumptions!$B$78:$R$78,0),FALSE)/(SUMIF(Assumptions!$D$77:$R$77,"BUDGET",Assumptions!#REF!))),"0")+0) -> 0 | Q30: 4439.83 | R30: 32218.08 | S30: 0 | U30: 27778.25 | V30: 0.8621944573 | W30: 4439.83 | X30: 32218.08 | Y30: 29259 | Z30: 2959.08
B31: 8560-22 | C31: =VLOOKUP(B31,Assumptions!$B$17:$C$126,2,FALSE) -> LOTTERY | D31: =VLOOKUP(B31,Assumptions!$B$16:$R$75,7,FALSE) -> 80545.2 | E31: =IF(VLOOKUP("Net Income",'CV Actuals Export'!$A$1:$N$944,'Revenue & Expense Input'!E$1,FALSE)<>0,IFERROR(VLOOKUP('Revenue & Expense Input'!$B31,'CV Actuals Export'!$A$1:$N$944,'Revenue & Expense Input'!E$1,FALSE),"0")+0,IFERROR(($D31-SUMIF($E$2:$Q$2,"ACTUAL",$E31:$Q31))*(VLOOKUP($B31,Assumptions!$B$78:$R$126,MATCH('Revenue & Expense Input'!E$3,Assumptions!$B$78:$R$78,0),FALSE)/(SUMIF(Assumptions!$D$77:$R$77,"BUDGET",Assumptions!$D104:$R104))),"0")+0) -> 0 | F31: =IF(VLOOKUP("Net Income",'CV Actuals Export'!$A$1:$N$944,'Revenue & Expense Input'!F$1,FALSE)<>0,IFERROR(VLOOKUP('Revenue & Expense Input'!$B31,'CV Actuals Export'!$A$1:$N$944,'Revenue & Expense Input'!F$1,FALSE),"0")+0,IFERROR(($D31-SUMIF($E$2:$Q$2,"ACTUAL",$E31:$Q31))*(VLOOKUP($B31,Assumptions!$B$78:$R$126,MATCH('Revenue & Expense Input'!F$3,Assumptions!$B$78:$R$78,0),FALSE)/(SUMIF(Assumptions!$D$77:$R$77,"BUDGET",Assumptions!$D104:$R104))),"0")+0) -> 0 | G31: =IF(VLOOKUP("Net Income",'CV Actuals Export'!$A$1:$N$944,'Revenue & Expense Input'!G$1,FALSE)<>0,IFERROR(VLOOKUP('Revenue & Expense Input'!$B31,'CV Actuals Export'!$A$1:$N$944,'Revenue & Expense Input'!G$1,FALSE),"0")+0,IFERROR(($D31-SUMIF($E$2:$Q$2,"ACTUAL",$E31:$Q31))*(VLOOKUP($B31,Assumptions!$B$78:$R$126,MATCH('Revenue & Expense Input'!G$3,Assumptions!$B$78:$R$78,0),FALSE)/(SUMIF(Assumptions!$D$77:$R$77,"BUDGET",Assumptions!$D104:$R104))),"0")+0) -> 0 | H31: =IF(VLOOKUP("Net Income",'CV Actuals Export'!$A$1:$N$944,'Revenue & Expense Input'!H$1,FALSE)<>0,IFERROR(VLOOKUP('Revenue & Expense Input'!$B31,'CV Actuals Export'!$A$1:$N$944,'Revenue & Expense Input'!H$1,FALSE),"0")+0,IFERROR(($D31-SUMIF($E$2:$Q$2,"ACTUAL",$E31:$Q31))*(VLOOKUP($B31,Assumptions!$B$78:$R$126,MATCH('Revenue & Expense Input'!H$3,Assumptions!$B$78:$R$78,0),FALSE)/(SUMIF(Assumptions!$D$77:$R$77,"BUDGET",Assumptions!$D104:$R104))),"0")+0) -> 0 | I31: =IF(VLOOKUP("Net Income",'CV Actuals Export'!$A$1:$N$944,'Revenue & Expense Input'!I$1,FALSE)<>0,IFERROR(VLOOKUP('Revenue & Expense Input'!$B31,'CV Actuals Export'!$A$1:$N$944,'Revenue & Expense Input'!I$1,FALSE),"0")+0,IFERROR(($D31-SUMIF($E$2:$Q$2,"ACTUAL",$E31:$Q31))*(VLOOKUP($B31,Assumptions!$B$78:$R$126,MATCH('Revenue & Expense Input'!I$3,Assumptions!$B$78:$R$78,0),FALSE)/(SUMIF(Assumptions!$D$77:$R$77,"BUDGET",Assumptions!$D104:$R104))),"0")+0) -> 0 | J31: =IF(VLOOKUP("Net Income",'CV Actuals Export'!$A$1:$N$944,'Revenue & Expense Input'!J$1,FALSE)<>0,IFERROR(VLOOKUP('Revenue & Expense Input'!$B31,'CV Actuals Export'!$A$1:$N$944,'Revenue & Expense Input'!J$1,FALSE),"0")+0,IFERROR(($D31-SUMIF($E$2:$Q$2,"ACTUAL",$E31:$Q31))*(VLOOKUP($B31,Assumptions!$B$78:$R$126,MATCH('Revenue & Expense Input'!J$3,Assumptions!$B$78:$R$78,0),FALSE)/(SUMIF(Assumptions!$D$77:$R$77,"BUDGET",Assumptions!$D104:$R104))),"0")+0) -> 0 | K31: 42726.25 | L31: =IF(VLOOKUP("Net Income",'CV Actuals Export'!$A$1:$N$944,'Revenue & Expense Input'!L$1,FALSE)<>0,IFERROR(VLOOKUP('Revenue & Expense Input'!$B31,'CV Actuals Export'!$A$1:$N$944,'Revenue & Expense Input'!L$1,FALSE),"0")+0,IFERROR(($D31-SUMIF($E$2:$Q$2,"ACTUAL",$E31:$Q31))*(VLOOKUP($B31,Assumptions!$B$78:$R$126,MATCH('Revenue & Expense Input'!L$3,Assumptions!$B$78:$R$78,0),FALSE)/(SUMIF(Assumptions!$D$77:$R$77,"BUDGET",Assumptions!#REF!))),"0")+0) -> 0 | M31: =IF(VLOOKUP("Net Income",'CV Actuals Export'!$A$1:$N$944,'Revenue & Expense Input'!M$1,FALSE)<>0,IFERROR(VLOOKUP('Revenue & Expense Input'!$B31,'CV Actuals Export'!$A$1:$N$944,'Revenue & Expense Input'!M$1,FALSE),"0")+0,IFERROR(($D31-SUMIF($E$2:$Q$2,"ACTUAL",$E31:$Q31))*(VLOOKUP($B31,Assumptions!$B$78:$R$126,MATCH('Revenue & Expense Input'!M$3,Assumptions!$B$78:$R$78,0),FALSE)/(SUMIF(Assumptions!$D$77:$R$77,"BUDGET",Assumptions!#REF!))),"0")+0) -> 0 | N31: 9862.02 | O31: =IF(VLOOKUP("Net Income",'CV Actuals Export'!$A$1:$N$944,'Revenue & Expense Input'!O$1,FALSE)<>0,IFERROR(VLOOKUP('Revenue & Expense Input'!$B31,'CV Actuals Export'!$A$1:$N$944,'Revenue & Expense Input'!O$1,FALSE),"0")+0,IFERROR(($D31-SUMIF($E$2:$Q$2,"ACTUAL",$E31:$Q31))*(VLOOKUP($B31,Assumptions!$B$78:$R$126,MATCH('Revenue & Expense Input'!O$3,Assumptions!$B$78:$R$78,0),FALSE)/(SUMIF(Assumptions!$D$77:$R$77,"BUDGET",Assumptions!#REF!))),"0")+0) -> 0 | P31: =IF(VLOOKUP("Net Income",'CV Actuals Export'!$A$1:$N$944,'Revenue & Expense Input'!P$1,FALSE)<>0,IFERROR(VLOOKUP('Revenue & Expense Input'!$B31,'CV Actuals Export'!$A$1:$N$944,'Revenue & Expense Input'!P$1,FALSE),"0")+0,IFERROR(($D31-SUMIF($E$2:$Q$2,"ACTUAL",$E31:$Q31))*(VLOOKUP($B31,Assumptions!$B$78:$R$126,MATCH('Revenue & Expense Input'!P$3,Assumptions!$B$78:$R$78,0),FALSE)/(SUMIF(Assumptions!$D$77:$R$77,"BUDGET",Assumptions!#REF!))),"0")+0) -> 0 | Q31: 27956.93 | R31: 80545.2 | S31: 0 | U31: 52588.27 | V31: 0.6529038354 | W31: 27956.93 | X31: 80545.2 | Y31: 89568 | Z31: -9022.8
B32: 8590-00 | C32: =VLOOKUP(B32,Assumptions!$B$17:$C$126,2,FALSE) -> OTHER STATE REVENUE | D32: 3500 | E32: =IF(VLOOKUP("Net Income",'CV Actuals Export'!$A$1:$N$944,'Revenue & Expense Input'!E$1,FALSE)<>0,IFERROR(VLOOKUP('Revenue & Expense Input'!$B32,'CV Actuals Export'!$A$1:$N$944,'Revenue & Expense Input'!E$1,FALSE),"0")+0,IFERROR(($D32-SUMIF($E$2:$Q$2,"ACTUAL",$E32:$Q32))*(VLOOKUP($B32,Assumptions!$B$78:$R$126,MATCH('Revenue & Expense Input'!E$3,Assumptions!$B$78:$R$78,0),FALSE)/(SUMIF(Assumptions!$D$77:$R$77,"BUDGET",Assumptions!$D105:$R105))),"0")+0) -> 0 | F32: =IF(VLOOKUP("Net Income",'CV Actuals Export'!$A$1:$N$944,'Revenue & Expense Input'!F$1,FALSE)<>0,IFERROR(VLOOKUP('Revenue & Expense Input'!$B32,'CV Actuals Export'!$A$1:$N$944,'Revenue & Expense Input'!F$1,FALSE),"0")+0,IFERROR(($D32-SUMIF($E$2:$Q$2,"ACTUAL",$E32:$Q32))*(VLOOKUP($B32,Assumptions!$B$78:$R$126,MATCH('Revenue & Expense Input'!F$3,Assumptions!$B$78:$R$78,0),FALSE)/(SUMIF(Assumptions!$D$77:$R$77,"BUDGET",Assumptions!$D105:$R105))),"0")+0) -> 0 | G32: =IF(VLOOKUP("Net Income",'CV Actuals Export'!$A$1:$N$944,'Revenue & Expense Input'!G$1,FALSE)<>0,IFERROR(VLOOKUP('Revenue & Expense Input'!$B32,'CV Actuals Export'!$A$1:$N$944,'Revenue & Expense Input'!G$1,FALSE),"0")+0,IFERROR(($D32-SUMIF($E$2:$Q$2,"ACTUAL",$E32:$Q32))*(VLOOKUP($B32,Assumptions!$B$78:$R$126,MATCH('Revenue & Expense Input'!G$3,Assumptions!$B$78:$R$78,0),FALSE)/(SUMIF(Assumptions!$D$77:$R$77,"BUDGET",Assumptions!$D105:$R105))),"0")+0) -> 0 | H32: =IF(VLOOKUP("Net Income",'CV Actuals Export'!$A$1:$N$944,'Revenue & Expense Input'!H$1,FALSE)<>0,IFERROR(VLOOKUP('Revenue & Expense Input'!$B32,'CV Actuals Export'!$A$1:$N$944,'Revenue & Expense Input'!H$1,FALSE),"0")+0,IFERROR(($D32-SUMIF($E$2:$Q$2,"ACTUAL",$E32:$Q32))*(VLOOKUP($B32,Assumptions!$B$78:$R$126,MATCH('Revenue & Expense Input'!H$3,Assumptions!$B$78:$R$78,0),FALSE)/(SUMIF(Assumptions!$D$77:$R$77,"BUDGET",Assumptions!$D105:$R105))),"0")+0) -> 0 | I32: =IF(VLOOKUP("Net Income",'CV Actuals Export'!$A$1:$N$944,'Revenue & Expense Input'!I$1,FALSE)<>0,IFERROR(VLOOKUP('Revenue & Expense Input'!$B32,'CV Actuals Export'!$A$1:$N$944,'Revenue & Expense Input'!I$1,FALSE),"0")+0,IFERROR(($D32-SUMIF($E$2:$Q$2,"ACTUAL",$E32:$Q32))*(VLOOKUP($B32,Assumptions!$B$78:$R$126,MATCH('Revenue & Expense Input'!I$3,Assumptions!$B$78:$R$78,0),FALSE)/(SUMIF(Assumptions!$D$77:$R$77,"BUDGET",Assumptions!$D105:$R105))),"0")+0) -> 0 | J32: 3500 | L32: =IF(VLOOKUP("Net Income",'CV Actuals Export'!$A$1:$N$944,'Revenue & Expense Input'!L$1,FALSE)<>0,IFERROR(VLOOKUP('Revenue & Expense Input'!$B32,'CV Actuals Export'!$A$1:$N$944,'Revenue & Expense Input'!L$1,FALSE),"0")+0,IFERROR(($D32-SUMIF($E$2:$Q$2,"ACTUAL",$E32:$Q32))*(VLOOKUP($B32,Assumptions!$B$78:$R$126,MATCH('Revenue & Expense Input'!L$3,Assumptions!$B$78:$R$78,0),FALSE)/(SUMIF(Assumptions!$D$77:$R$77,"BUDGET",Assumptions!#REF!))),"0")+0) -> 0 | M32: =IF(VLOOKUP("Net Income",'CV Actuals Export'!$A$1:$N$944,'Revenue & Expense Input'!M$1,FALSE)<>0,IFERROR(VLOOKUP('Revenue & Expense Input'!$B32,'CV Actuals Export'!$A$1:$N$944,'Revenue & Expense Input'!M$1,FALSE),"0")+0,IFERROR(($D32-SUMIF($E$2:$Q$2,"ACTUAL",$E32:$Q32))*(VLOOKUP($B32,Assumptions!$B$78:$R$126,MATCH('Revenue & Expense Input'!M$3,Assumptions!$B$78:$R$78,0),FALSE)/(SUMIF(Assumptions!$D$77:$R$77,"BUDGET",Assumptions!#REF!))),"0")+0) -> 0 | O32: =IF(VLOOKUP("Net Income",'CV Actuals Export'!$A$1:$N$944,'Revenue & Expense Input'!O$1,FALSE)<>0,IFERROR(VLOOKUP('Revenue & Expense Input'!$B32,'CV Actuals Export'!$A$1:$N$944,'Revenue & Expense Input'!O$1,FALSE),"0")+0,IFERROR(($D32-SUMIF($E$2:$Q$2,"ACTUAL",$E32:$Q32))*(VLOOKUP($B32,Assumptions!$B$78:$R$126,MATCH('Revenue & Expense Input'!O$3,Assumptions!$B$78:$R$78,0),FALSE)/(SUMIF(Assumptions!$D$77:$R$77,"BUDGET",Assumptions!#REF!))),"0")+0) -> 0 | P32: =IF(VLOOKUP("Net Income",'CV Actuals Export'!$A$1:$N$944,'Revenue & Expense Input'!P$1,FALSE)<>0,IFERROR(VLOOKUP('Revenue & Expense Input'!$B32,'CV Actuals Export'!$A$1:$N$944,'Revenue & Expense Input'!P$1,FALSE),"0")+0,IFERROR(($D32-SUMIF($E$2:$Q$2,"ACTUAL",$E32:$Q32))*(VLOOKUP($B32,Assumptions!$B$78:$R$126,MATCH('Revenue & Expense Input'!P$3,Assumptions!$B$78:$R$78,0),FALSE)/(SUMIF(Assumptions!$D$77:$R$77,"BUDGET",Assumptions!#REF!))),"0")+0) -> 0 | Q32: =IF($D$5>SUM($E32:$P32),D32-SUM($E32:$P32),0) -> 0 | R32: =SUM(E32:Q32) -> 3500 | S32: =D32-R32 -> 0 | U32: 3500 | V32: =IFERROR(U32/X32,"0")+0 -> 1 | W32: =X32-U32 -> 0 | X32: =D32 -> 3500 | Y32: 0 | Z32: 3500
B33: 8590-6266 | C33: EDUCATOR EFFECTIVENESS | D33: 113059 | K33: 113059 | Q33: =IF($D$5>SUM($E33:$P33),D33-SUM($E33:$P33),0) -> 0 | R33: =SUM(E33:Q33) -> 113059 | S33: =D33-R33 -> 0 | U33: 113059 | V33: =IFERROR(U33/X33,"0")+0 -> 1 | W33: =X33-U33 -> 0 | X33: =D33 -> 113059 | Y33: 0 | Z33: =X33-Y33 -> 113059
B34: 8590-63 | C34: CTEIG (2020-21) | D34: 79000 | E34: =IF(VLOOKUP("Net Income",'CV Actuals Export'!$A$1:$N$944,'Revenue & Expense Input'!E$1,FALSE)<>0,IFERROR(VLOOKUP('Revenue & Expense Input'!$B34,'CV Actuals Export'!$A$1:$N$944,'Revenue & Expense Input'!E$1,FALSE),"0")+0,IFERROR(($D34-SUMIF($E$2:$Q$2,"ACTUAL",$E34:$Q34))*(VLOOKUP($B34,Assumptions!$B$78:$R$126,MATCH('Revenue & Expense Input'!E$3,Assumptions!$B$78:$R$78,0),FALSE)/(SUMIF(Assumptions!$D$77:$R$77,"BUDGET",Assumptions!$D107:$R107))),"0")+0) -> 0 | F34: =IF(VLOOKUP("Net Income",'CV Actuals Export'!$A$1:$N$944,'Revenue & Expense Input'!F$1,FALSE)<>0,IFERROR(VLOOKUP('Revenue & Expense Input'!$B34,'CV Actuals Export'!$A$1:$N$944,'Revenue & Expense Input'!F$1,FALSE),"0")+0,IFERROR(($D34-SUMIF($E$2:$Q$2,"ACTUAL",$E34:$Q34))*(VLOOKUP($B34,Assumptions!$B$78:$R$126,MATCH('Revenue & Expense Input'!F$3,Assumptions!$B$78:$R$78,0),FALSE)/(SUMIF(Assumptions!$D$77:$R$77,"BUDGET",Assumptions!$D107:$R107))),"0")+0) -> 0 | G34: =IF(VLOOKUP("Net Income",'CV Actuals Export'!$A$1:$N$944,'Revenue & Expense Input'!G$1,FALSE)<>0,IFERROR(VLOOKUP('Revenue & Expense Input'!$B34,'CV Actuals Export'!$A$1:$N$944,'Revenue & Expense Input'!G$1,FALSE),"0")+0,IFERROR(($D34-SUMIF($E$2:$Q$2,"ACTUAL",$E34:$Q34))*(VLOOKUP($B34,Assumptions!$B$78:$R$126,MATCH('Revenue & Expense Input'!G$3,Assumptions!$B$78:$R$78,0),FALSE)/(SUMIF(Assumptions!$D$77:$R$77,"BUDGET",Assumptions!$D107:$R107))),"0")+0) -> 0 | H34: =IF(VLOOKUP("Net Income",'CV Actuals Export'!$A$1:$N$944,'Revenue & Expense Input'!H$1,FALSE)<>0,IFERROR(VLOOKUP('Revenue & Expense Input'!$B34,'CV Actuals Export'!$A$1:$N$944,'Revenue & Expense Input'!H$1,FALSE),"0")+0,IFERROR(($D34-SUMIF($E$2:$Q$2,"ACTUAL",$E34:$Q34))*(VLOOKUP($B34,Assumptions!$B$78:$R$126,MATCH('Revenue & Expense Input'!H$3,Assumptions!$B$78:$R$78,0),FALSE)/(SUMIF(Assumptions!$D$77:$R$77,"BUDGET",Assumptions!$D107:$R107))),"0")+0) -> 0 | I34: =IF(VLOOKUP("Net Income",'CV Actuals Export'!$A$1:$N$944,'Revenue & Expense Input'!I$1,FALSE)<>0,IFERROR(VLOOKUP('Revenue & Expense Input'!$B34,'CV Actuals Export'!$A$1:$N$944,'Revenue & Expense Input'!I$1,FALSE),"0")+0,IFERROR(($D34-SUMIF($E$2:$Q$2,"ACTUAL",$E34:$Q34))*(VLOOKUP($B34,Assumptions!$B$78:$R$126,MATCH('Revenue & Expense Input'!I$3,Assumptions!$B$78:$R$78,0),FALSE)/(SUMIF(Assumptions!$D$77:$R$77,"BUDGET",Assumptions!$D106:$R106))),"0")+0) -> 0 | J34: =IF(VLOOKUP("Net Income",'CV Actuals Export'!$A$1:$N$944,'Revenue & Expense Input'!J$1,FALSE)<>0,IFERROR(VLOOKUP('Revenue & Expense Input'!$B34,'CV Actuals Export'!$A$1:$N$944,'Revenue & Expense Input'!J$1,FALSE),"0")+0,IFERROR(($D34-SUMIF($E$2:$Q$2,"ACTUAL",$E34:$Q34))*(VLOOKUP($B34,Assumptions!$B$78:$R$126,MATCH('Revenue & Expense Input'!J$3,Assumptions!$B$78:$R$78,0),FALSE)/(SUMIF(Assumptions!$D$77:$R$77,"BUDGET",Assumptions!$D107:$R107))),"0")+0) -> 0 | K34: =IF(VLOOKUP("Net Income",'CV Actuals Export'!$A$1:$N$944,'Revenue & Expense Input'!K$1,FALSE)<>0,IFERROR(VLOOKUP('Revenue & Expense Input'!$B34,'CV Actuals Export'!$A$1:$N$944,'Revenue & Expense Input'!K$1,FALSE),"0")+0,IFERROR(($D34-SUMIF($E$2:$Q$2,"ACTUAL",$E34:$Q34))*(VLOOKUP($B34,Assumptions!$B$78:$R$126,MATCH('Revenue & Expense Input'!K$3,Assumptions!$B$78:$R$78,0),FALSE)/(SUMIF(Assumptions!$D$77:$R$77,"BUDGET",Assumptions!$D106:$R106))),"0")+0) -> 0 | L34: =IF(VLOOKUP("Net Income",'CV Actuals Export'!$A$1:$N$944,'Revenue & Expense Input'!L$1,FALSE)<>0,IFERROR(VLOOKUP('Revenue & Expense Input'!$B34,'CV Actuals Export'!$A$1:$N$944,'Revenue & Expense Input'!L$1,FALSE),"0")+0,IFERROR(($D34-SUMIF($E$2:$Q$2,"ACTUAL",$E34:$Q34))*(VLOOKUP($B34,Assumptions!$B$78:$R$126,MATCH('Revenue & Expense Input'!L$3,Assumptions!$B$78:$R$78,0),FALSE)/(SUMIF(Assumptions!$D$77:$R$77,"BUDGET",Assumptions!$D107:$R107))),"0")+0) -> 0 | M34: =IF(VLOOKUP("Net Income",'CV Actuals Export'!$A$1:$N$944,'Revenue & Expense Input'!M$1,FALSE)<>0,IFERROR(VLOOKUP('Revenue & Expense Input'!$B34,'CV Actuals Export'!$A$1:$N$944,'Revenue & Expense Input'!M$1,FALSE),"0")+0,IFERROR(($D34-SUMIF($E$2:$Q$2,"ACTUAL",$E34:$Q34))*(VLOOKUP($B34,Assumptions!$B$78:$R$126,MATCH('Revenue & Expense Input'!M$3,Assumptions!$B$78:$R$78,0),FALSE)/(SUMIF(Assumptions!$D$77:$R$77,"BUDGET",Assumptions!$D107:$R107))),"0")+0) -> 0 | N34: =IF(VLOOKUP("Net Income",'CV Actuals Export'!$A$1:$N$944,'Revenue & Expense Input'!N$1,FALSE)<>0,IFERROR(VLOOKUP('Revenue & Expense Input'!$B34,'CV Actuals Export'!$A$1:$N$944,'Revenue & Expense Input'!N$1,FALSE),"0")+0,IFERROR(($D34-SUMIF($E$2:$Q$2,"ACTUAL",$E34:$Q34))*(VLOOKUP($B34,Assumptions!$B$78:$R$126,MATCH('Revenue & Expense Input'!N$3,Assumptions!$B$78:$R$78,0),FALSE)/(SUMIF(Assumptions!$D$77:$R$77,"BUDGET",Assumptions!$D107:$R107))),"0")+0) -> 0 | O34: =IF(VLOOKUP("Net Income",'CV Actuals Export'!$A$1:$N$944,'Revenue & Expense Input'!O$1,FALSE)<>0,IFERROR(VLOOKUP('Revenue & Expense Input'!$B34,'CV Actuals Export'!$A$1:$N$944,'Revenue & Expense Input'!O$1,FALSE),"0")+0,IFERROR(($D34-SUMIF($E$2:$Q$2,"ACTUAL",$E34:$Q34))*(VLOOKUP($B34,Assumptions!$B$78:$R$126,MATCH('Revenue & Expense Input'!O$3,Assumptions!$B$78:$R$78,0),FALSE)/(SUMIF(Assumptions!$D$77:$R$77,"BUDGET",Assumptions!#REF!))),"0")+0) -> 0 | P34: 79000 | Q34: =IF($D$5>SUM($E34:$P34),D34-SUM($E34:$P34),0) -> 0 | R34: =SUM(E34:Q34) -> 79000 | S34: =D34-R34 -> 0 | U34: 0 | V34: =IFERROR(U34/X34,"0")+0 -> 0 | W34: =X34-U34 -> 79000 | X34: =D34 -> 79000 | Y34: 79000 | Z34: 0
B35: 8590-66 | C35: =VLOOKUP(B35,Assumptions!$B$17:$C$126,2,FALSE) -> MENTAL HEALTH | D35: =VLOOKUP(B35,Assumptions!$B$16:$R$75,7,FALSE) -> 0 | E35: =IF(VLOOKUP("Net Income",'CV Actuals Export'!$A$1:$N$944,'Revenue & Expense Input'!E$1,FALSE)<>0,IFERROR(VLOOKUP('Revenue & Expense Input'!$B35,'CV Actuals Export'!$A$1:$N$944,'Revenue & Expense Input'!E$1,FALSE),"0")+0,IFERROR(($D35-SUMIF($E$2:$Q$2,"ACTUAL",$E35:$Q35))*(VLOOKUP($B35,Assumptions!$B$78:$R$126,MATCH('Revenue & Expense Input'!E$3,Assumptions!$B$78:$R$78,0),FALSE)/(SUMIF(Assumptions!$D$77:$R$77,"BUDGET",Assumptions!$D107:$R107))),"0")+0) -> 0 | F35: =IF(VLOOKUP("Net Income",'CV Actuals Export'!$A$1:$N$944,'Revenue & Expense Input'!F$1,FALSE)<>0,IFERROR(VLOOKUP('Revenue & Expense Input'!$B35,'CV Actuals Export'!$A$1:$N$944,'Revenue & Expense Input'!F$1,FALSE),"0")+0,IFERROR(($D35-SUMIF($E$2:$Q$2,"ACTUAL",$E35:$Q35))*(VLOOKUP($B35,Assumptions!$B$78:$R$126,MATCH('Revenue & Expense Input'!F$3,Assumptions!$B$78:$R$78,0),FALSE)/(SUMIF(Assumptions!$D$77:$R$77,"BUDGET",Assumptions!$D107:$R107))),"0")+0) -> 0 | G35: =IF(VLOOKUP("Net Income",'CV Actuals Export'!$A$1:$N$944,'Revenue & Expense Input'!G$1,FALSE)<>0,IFERROR(VLOOKUP('Revenue & Expense Input'!$B35,'CV Actuals Export'!$A$1:$N$944,'Revenue & Expense Input'!G$1,FALSE),"0")+0,IFERROR(($D35-SUMIF($E$2:$Q$2,"ACTUAL",$E35:$Q35))*(VLOOKUP($B35,Assumptions!$B$78:$R$126,MATCH('Revenue & Expense Input'!G$3,Assumptions!$B$78:$R$78,0),FALSE)/(SUMIF(Assumptions!$D$77:$R$77,"BUDGET",Assumptions!$D107:$R107))),"0")+0) -> 0 | H35: =IF(VLOOKUP("Net Income",'CV Actuals Export'!$A$1:$N$944,'Revenue & Expense Input'!H$1,FALSE)<>0,IFERROR(VLOOKUP('Revenue & Expense Input'!$B35,'CV Actuals Export'!$A$1:$N$944,'Revenue & Expense Input'!H$1,FALSE),"0")+0,IFERROR(($D35-SUMIF($E$2:$Q$2,"ACTUAL",$E35:$Q35))*(VLOOKUP($B35,Assumptions!$B$78:$R$126,MATCH('Revenue & Expense Input'!H$3,Assumptions!$B$78:$R$78,0),FALSE)/(SUMIF(Assumptions!$D$77:$R$77,"BUDGET",Assumptions!$D107:$R107))),"0")+0) -> 0 | I35: =IF(VLOOKUP("Net Income",'CV Actuals Export'!$A$1:$N$944,'Revenue & Expense Input'!I$1,FALSE)<>0,IFERROR(VLOOKUP('Revenue & Expense Input'!$B35,'CV Actuals Export'!$A$1:$N$944,'Revenue & Expense Input'!I$1,FALSE),"0")+0,IFERROR(($D35-SUMIF($E$2:$Q$2,"ACTUAL",$E35:$Q35))*(VLOOKUP($B35,Assumptions!$B$78:$R$126,MATCH('Revenue & Expense Input'!I$3,Assumptions!$B$78:$R$78,0),FALSE)/(SUMIF(Assumptions!$D$77:$R$77,"BUDGET",Assumptions!$D107:$R107))),"0")+0) -> 0 | J35: =IF(VLOOKUP("Net Income",'CV Actuals Export'!$A$1:$N$944,'Revenue & Expense Input'!J$1,FALSE)<>0,IFERROR(VLOOKUP('Revenue & Expense Input'!$B35,'CV Actuals Export'!$A$1:$N$944,'Revenue & Expense Input'!J$1,FALSE),"0")+0,IFERROR(($D35-SUMIF($E$2:$Q$2,"ACTUAL",$E35:$Q35))*(VLOOKUP($B35,Assumptions!$B$78:$R$126,MATCH('Revenue & Expense Input'!J$3,Assumptions!$B$78:$R$78,0),FALSE)/(SUMIF(Assumptions!$D$77:$R$77,"BUDGET",Assumptions!$D107:$R107))),"0")+0) -> 0 | K35: =IF(VLOOKUP("Net Income",'CV Actuals Export'!$A$1:$N$944,'Revenue & Expense Input'!K$1,FALSE)<>0,IFERROR(VLOOKUP('Revenue & Expense Input'!$B35,'CV Actuals Export'!$A$1:$N$944,'Revenue & Expense Input'!K$1,FALSE),"0")+0,IFERROR(($D35-SUMIF($E$2:$Q$2,"ACTUAL",$E35:$Q35))*(VLOOKUP($B35,Assumptions!$B$78:$R$126,MATCH('Revenue & Expense Input'!K$3,Assumptions!$B$78:$R$78,0),FALSE)/(SUMIF(Assumptions!$D$77:$R$77,"BUDGET",Assumptions!$D107:$R107))),"0")+0) -> 0 | L35: =IF(VLOOKUP("Net Income",'CV Actuals Export'!$A$1:$N$944,'Revenue & Expense Input'!L$1,FALSE)<>0,IFERROR(VLOOKUP('Revenue & Expense Input'!$B35,'CV Actuals Export'!$A$1:$N$944,'Revenue & Expense Input'!L$1,FALSE),"0")+0,IFERROR(($D35-SUMIF($E$2:$Q$2,"ACTUAL",$E35:$Q35))*(VLOOKUP($B35,Assumptions!$B$78:$R$126,MATCH('Revenue & Expense Input'!L$3,Assumptions!$B$78:$R$78,0),FALSE)/(SUMIF(Assumptions!$D$77:$R$77,"BUDGET",Assumptions!$D107:$R107))),"0")+0) -> 0 | M35: =IF(VLOOKUP("Net Income",'CV Actuals Export'!$A$1:$N$944,'Revenue & Expense Input'!M$1,FALSE)<>0,IFERROR(VLOOKUP('Revenue & Expense Input'!$B35,'CV Actuals Export'!$A$1:$N$944,'Revenue & Expense Input'!M$1,FALSE),"0")+0,IFERROR(($D35-SUMIF($E$2:$Q$2,"ACTUAL",$E35:$Q35))*(VLOOKUP($B35,Assumptions!$B$78:$R$126,MATCH('Revenue & Expense Input'!M$3,Assumptions!$B$78:$R$78,0),FALSE)/(SUMIF(Assumptions!$D$77:$R$77,"BUDGET",Assumptions!$D107:$R107))),"0")+0) -> 0 | N35: =IF(VLOOKUP("Net Income",'CV Actuals Export'!$A$1:$N$944,'Revenue & Expense Input'!N$1,FALSE)<>0,IFERROR(VLOOKUP('Revenue & Expense Input'!$B35,'CV Actuals Export'!$A$1:$N$944,'Revenue & Expense Input'!N$1,FALSE),"0")+0,IFERROR(($D35-SUMIF($E$2:$Q$2,"ACTUAL",$E35:$Q35))*(VLOOKUP($B35,Assumptions!$B$78:$R$126,MATCH('Revenue & Expense Input'!N$3,Assumptions!$B$78:$R$78,0),FALSE)/(SUMIF(Assumptions!$D$77:$R$77,"BUDGET",Assumptions!$D107:$R107))),"0")+0) -> 0 | O35: =IF(VLOOKUP("Net Income",'CV Actuals Export'!$A$1:$N$944,'Revenue & Expense Input'!O$1,FALSE)<>0,IFERROR(VLOOKUP('Revenue & Expense Input'!$B35,'CV Actuals Export'!$A$1:$N$944,'Revenue & Expense Input'!O$1,FALSE),"0")+0,IFERROR(($D35-SUMIF($E$2:$Q$2,"ACTUAL",$E35:$Q35))*(VLOOKUP($B35,Assumptions!$B$78:$R$126,MATCH('Revenue & Expense Input'!O$3,Assumptions!$B$78:$R$78,0),FALSE)/(SUMIF(Assumptions!$D$77:$R$77,"BUDGET",Assumptions!#REF!))),"0")+0) -> 0 | P35: =IF(VLOOKUP("Net Income",'CV Actuals Export'!$A$1:$N$944,'Revenue & Expense Input'!P$1,FALSE)<>0,IFERROR(VLOOKUP('Revenue & Expense Input'!$B35,'CV Actuals Export'!$A$1:$N$944,'Revenue & Expense Input'!P$1,FALSE),"0")+0,IFERROR(($D35-SUMIF($E$2:$Q$2,"ACTUAL",$E35:$Q35))*(VLOOKUP($B35,Assumptions!$B$78:$R$126,MATCH('Revenue & Expense Input'!P$3,Assumptions!$B$78:$R$78,0),FALSE)/(SUMIF(Assumptions!$D$77:$R$77,"BUDGET",Assumptions!#REF!))),"0")+0) -> 0 | Q35: 0 | R35: 0 | S35: 0 | U35: 0 | V35: =IFERROR(U35/X35,"0")+0 -> 0 | W35: =X35-U35 -> 0 | X35: =D35 -> 0 | Y35: 0 | Z35: 0
B36: 8590-73 | C36: =VLOOKUP(B36,Assumptions!$B$17:$C$126,2,FALSE) -> Specialized Secondary Program | D36: =VLOOKUP(B36,Assumptions!$B$16:$R$75,7,FALSE) -> 0 | E36: =IF(VLOOKUP("Net Income",'CV Actuals Export'!$A$1:$N$944,'Revenue & Expense Input'!E$1,FALSE)<>0,IFERROR(VLOOKUP('Revenue & Expense Input'!$B36,'CV Actuals Export'!$A$1:$N$944,'Revenue & Expense Input'!E$1,FALSE),"0")+0,IFERROR(($D36-SUMIF($E$2:$Q$2,"ACTUAL",$E36:$Q36))*(VLOOKUP($B36,Assumptions!$B$78:$R$126,MATCH('Revenue & Expense Input'!E$3,Assumptions!$B$78:$R$78,0),FALSE)/(SUMIF(Assumptions!$D$77:$R$77,"BUDGET",Assumptions!$D111:$R111))),"0")+0) -> 0 | F36: =IF(VLOOKUP("Net Income",'CV Actuals Export'!$A$1:$N$944,'Revenue & Expense Input'!F$1,FALSE)<>0,IFERROR(VLOOKUP('Revenue & Expense Input'!$B36,'CV Actuals Export'!$A$1:$N$944,'Revenue & Expense Input'!F$1,FALSE),"0")+0,IFERROR(($D36-SUMIF($E$2:$Q$2,"ACTUAL",$E36:$Q36))*(VLOOKUP($B36,Assumptions!$B$78:$R$126,MATCH('Revenue & Expense Input'!F$3,Assumptions!$B$78:$R$78,0),FALSE)/(SUMIF(Assumptions!$D$77:$R$77,"BUDGET",Assumptions!$D111:$R111))),"0")+0) -> 0 | G36: =IF(VLOOKUP("Net Income",'CV Actuals Export'!$A$1:$N$944,'Revenue & Expense Input'!G$1,FALSE)<>0,IFERROR(VLOOKUP('Revenue & Expense Input'!$B36,'CV Actuals Export'!$A$1:$N$944,'Revenue & Expense Input'!G$1,FALSE),"0")+0,IFERROR(($D36-SUMIF($E$2:$Q$2,"ACTUAL",$E36:$Q36))*(VLOOKUP($B36,Assumptions!$B$78:$R$126,MATCH('Revenue & Expense Input'!G$3,Assumptions!$B$78:$R$78,0),FALSE)/(SUMIF(Assumptions!$D$77:$R$77,"BUDGET",Assumptions!$D111:$R111))),"0")+0) -> 0 | H36: =IF(VLOOKUP("Net Income",'CV Actuals Export'!$A$1:$N$944,'Revenue & Expense Input'!H$1,FALSE)<>0,IFERROR(VLOOKUP('Revenue & Expense Input'!$B36,'CV Actuals Export'!$A$1:$N$944,'Revenue & Expense Input'!H$1,FALSE),"0")+0,IFERROR(($D36-SUMIF($E$2:$Q$2,"ACTUAL",$E36:$Q36))*(VLOOKUP($B36,Assumptions!$B$78:$R$126,MATCH('Revenue & Expense Input'!H$3,Assumptions!$B$78:$R$78,0),FALSE)/(SUMIF(Assumptions!$D$77:$R$77,"BUDGET",Assumptions!$D111:$R111))),"0")+0) -> 0 | I36: =IF(VLOOKUP("Net Income",'CV Actuals Export'!$A$1:$N$944,'Revenue & Expense Input'!I$1,FALSE)<>0,IFERROR(VLOOKUP('Revenue & Expense Input'!$B36,'CV Actuals Export'!$A$1:$N$944,'Revenue & Expense Input'!I$1,FALSE),"0")+0,IFERROR(($D36-SUMIF($E$2:$Q$2,"ACTUAL",$E36:$Q36))*(VLOOKUP($B36,Assumptions!$B$78:$R$126,MATCH('Revenue & Expense Input'!I$3,Assumptions!$B$78:$R$78,0),FALSE)/(SUMIF(Assumptions!$D$77:$R$77,"BUDGET",Assumptions!$D108:$R108))),"0")+0) -> 0 | J36: =IF(VLOOKUP("Net Income",'CV Actuals Export'!$A$1:$N$944,'Revenue & Expense Input'!J$1,FALSE)<>0,IFERROR(VLOOKUP('Revenue & Expense Input'!$B36,'CV Actuals Export'!$A$1:$N$944,'Revenue & Expense Input'!J$1,FALSE),"0")+0,IFERROR(($D36-SUMIF($E$2:$Q$2,"ACTUAL",$E36:$Q36))*(VLOOKUP($B36,Assumptions!$B$78:$R$126,MATCH('Revenue & Expense Input'!J$3,Assumptions!$B$78:$R$78,0),FALSE)/(SUMIF(Assumptions!$D$77:$R$77,"BUDGET",Assumptions!$D111:$R111))),"0")+0) -> 0 | K36: =IF(VLOOKUP("Net Income",'CV Actuals Export'!$A$1:$N$944,'Revenue & Expense Input'!K$1,FALSE)<>0,IFERROR(VLOOKUP('Revenue & Expense Input'!$B36,'CV Actuals Export'!$A$1:$N$944,'Revenue & Expense Input'!K$1,FALSE),"0")+0,IFERROR(($D36-SUMIF($E$2:$Q$2,"ACTUAL",$E36:$Q36))*(VLOOKUP($B36,Assumptions!$B$78:$R$126,MATCH('Revenue & Expense Input'!K$3,Assumptions!$B$78:$R$78,0),FALSE)/(SUMIF(Assumptions!$D$77:$R$77,"BUDGET",Assumptions!$D108:$R108))),"0")+0) -> 0 | L36: =IF(VLOOKUP("Net Income",'CV Actuals Export'!$A$1:$N$944,'Revenue & Expense Input'!L$1,FALSE)<>0,IFERROR(VLOOKUP('Revenue & Expense Input'!$B36,'CV Actuals Export'!$A$1:$N$944,'Revenue & Expense Input'!L$1,FALSE),"0")+0,IFERROR(($D36-SUMIF($E$2:$Q$2,"ACTUAL",$E36:$Q36))*(VLOOKUP($B36,Assumptions!$B$78:$R$126,MATCH('Revenue & Expense Input'!L$3,Assumptions!$B$78:$R$78,0),FALSE)/(SUMIF(Assumptions!$D$77:$R$77,"BUDGET",Assumptions!$D111:$R111))),"0")+0) -> 0 | M36: =IF(VLOOKUP("Net Income",'CV Actuals Export'!$A$1:$N$944,'Revenue & Expense Input'!M$1,FALSE)<>0,IFERROR(VLOOKUP('Revenue & Expense Input'!$B36,'CV Actuals Export'!$A$1:$N$944,'Revenue & Expense Input'!M$1,FALSE),"0")+0,IFERROR(($D36-SUMIF($E$2:$Q$2,"ACTUAL",$E36:$Q36))*(VLOOKUP($B36,Assumptions!$B$78:$R$126,MATCH('Revenue & Expense Input'!M$3,Assumptions!$B$78:$R$78,0),FALSE)/(SUMIF(Assumptions!$D$77:$R$77,"BUDGET",Assumptions!$D111:$R111))),"0")+0) -> 0 | N36: =IF(VLOOKUP("Net Income",'CV Actuals Export'!$A$1:$N$944,'Revenue & Expense Input'!N$1,FALSE)<>0,IFERROR(VLOOKUP('Revenue & Expense Input'!$B36,'CV Actuals Export'!$A$1:$N$944,'Revenue & Expense Input'!N$1,FALSE),"0")+0,IFERROR(($D36-SUMIF($E$2:$Q$2,"ACTUAL",$E36:$Q36))*(VLOOKUP($B36,Assumptions!$B$78:$R$126,MATCH('Revenue & Expense Input'!N$3,Assumptions!$B$78:$R$78,0),FALSE)/(SUMIF(Assumptions!$D$77:$R$77,"BUDGET",Assumptions!$D111:$R111))),"0")+0) -> 0 | O36: =IF(VLOOKUP("Net Income",'CV Actuals Export'!$A$1:$N$944,'Revenue & Expense Input'!O$1,FALSE)<>0,IFERROR(VLOOKUP('Revenue & Expense Input'!$B36,'CV Actuals Export'!$A$1:$N$944,'Revenue & Expense Input'!O$1,FALSE),"0")+0,IFERROR(($D36-SUMIF($E$2:$Q$2,"ACTUAL",$E36:$Q36))*(VLOOKUP($B36,Assumptions!$B$78:$R$126,MATCH('Revenue & Expense Input'!O$3,Assumptions!$B$78:$R$78,0),FALSE)/(SUMIF(Assumptions!$D$77:$R$77,"BUDGET",Assumptions!$D111:$R111))),"0")+0) -> 0 | P36: =IF(VLOOKUP("Net Income",'CV Actuals Export'!$A$1:$N$944,'Revenue & Expense Input'!P$1,FALSE)<>0,IFERROR(VLOOKUP('Revenue & Expense Input'!$B36,'CV Actuals Export'!$A$1:$N$944,'Revenue & Expense Input'!P$1,FALSE),"0")+0,IFERROR(($D36-SUMIF($E$2:$Q$2,"ACTUAL",$E36:$Q36))*(VLOOKUP($B36,Assumptions!$B$78:$R$126,MATCH('Revenue & Expense Input'!P$3,Assumptions!$B$78:$R$78,0),FALSE)/(SUMIF(Assumptions!$D$77:$R$77,"BUDGET",Assumptions!$D111:$R111))),"0")+0) -> 0 | Q36: 0 | R36: 0 | S36: 0 | U36: 0 | V36: 0 | W36: 0 | X36: 0 | Y36: 0 | Z36: 0
B37: 8590-75 | C37: =VLOOKUP(B37,Assumptions!$B$17:$C$126,2,FALSE) -> CalEd Grant | D37: =VLOOKUP(B37,Assumptions!$B$16:$R$75,7,FALSE) -> 0 | E37: =IF(VLOOKUP("Net Income",'CV Actuals Export'!$A$1:$N$944,'Revenue & Expense Input'!E$1,FALSE)<>0,IFERROR(VLOOKUP('Revenue & Expense Input'!$B37,'CV Actuals Export'!$A$1:$N$944,'Revenue & Expense Input'!E$1,FALSE),"0")+0,IFERROR(($D37-SUMIF($E$2:$Q$2,"ACTUAL",$E37:$Q37))*(VLOOKUP($B37,Assumptions!$B$78:$R$126,MATCH('Revenue & Expense Input'!E$3,Assumptions!$B$78:$R$78,0),FALSE)/(SUMIF(Assumptions!$D$77:$R$77,"BUDGET",Assumptions!$D113:$R113))),"0")+0) -> 0 | F37: =IF(VLOOKUP("Net Income",'CV Actuals Export'!$A$1:$N$944,'Revenue & Expense Input'!F$1,FALSE)<>0,IFERROR(VLOOKUP('Revenue & Expense Input'!$B37,'CV Actuals Export'!$A$1:$N$944,'Revenue & Expense Input'!F$1,FALSE),"0")+0,IFERROR(($D37-SUMIF($E$2:$Q$2,"ACTUAL",$E37:$Q37))*(VLOOKUP($B37,Assumptions!$B$78:$R$126,MATCH('Revenue & Expense Input'!F$3,Assumptions!$B$78:$R$78,0),FALSE)/(SUMIF(Assumptions!$D$77:$R$77,"BUDGET",Assumptions!$D113:$R113))),"0")+0) -> 0 | G37: =IF(VLOOKUP("Net Income",'CV Actuals Export'!$A$1:$N$944,'Revenue & Expense Input'!G$1,FALSE)<>0,IFERROR(VLOOKUP('Revenue & Expense Input'!$B37,'CV Actuals Export'!$A$1:$N$944,'Revenue & Expense Input'!G$1,FALSE),"0")+0,IFERROR(($D37-SUMIF($E$2:$Q$2,"ACTUAL",$E37:$Q37))*(VLOOKUP($B37,Assumptions!$B$78:$R$126,MATCH('Revenue & Expense Input'!G$3,Assumptions!$B$78:$R$78,0),FALSE)/(SUMIF(Assumptions!$D$77:$R$77,"BUDGET",Assumptions!$D113:$R113))),"0")+0) -> 0 | H37: =IF(VLOOKUP("Net Income",'CV Actuals Export'!$A$1:$N$944,'Revenue & Expense Input'!H$1,FALSE)<>0,IFERROR(VLOOKUP('Revenue & Expense Input'!$B37,'CV Actuals Export'!$A$1:$N$944,'Revenue & Expense Input'!H$1,FALSE),"0")+0,IFERROR(($D37-SUMIF($E$2:$Q$2,"ACTUAL",$E37:$Q37))*(VLOOKUP($B37,Assumptions!$B$78:$R$126,MATCH('Revenue & Expense Input'!H$3,Assumptions!$B$78:$R$78,0),FALSE)/(SUMIF(Assumptions!$D$77:$R$77,"BUDGET",Assumptions!$D113:$R113))),"0")+0) -> 0 | I37: =IF(VLOOKUP("Net Income",'CV Actuals Export'!$A$1:$N$944,'Revenue & Expense Input'!I$1,FALSE)<>0,IFERROR(VLOOKUP('Revenue & Expense Input'!$B37,'CV Actuals Export'!$A$1:$N$944,'Revenue & Expense Input'!I$1,FALSE),"0")+0,IFERROR(($D37-SUMIF($E$2:$Q$2,"ACTUAL",$E37:$Q37))*(VLOOKUP($B37,Assumptions!$B$78:$R$126,MATCH('Revenue & Expense Input'!I$3,Assumptions!$B$78:$R$78,0),FALSE)/(SUMIF(Assumptions!$D$77:$R$77,"BUDGET",Assumptions!$D109:$R109))),"0")+0) -> 0 | J37: =IF(VLOOKUP("Net Income",'CV Actuals Export'!$A$1:$N$944,'Revenue & Expense Input'!J$1,FALSE)<>0,IFERROR(VLOOKUP('Revenue & Expense Input'!$B37,'CV Actuals Export'!$A$1:$N$944,'Revenue & Expense Input'!J$1,FALSE),"0")+0,IFERROR(($D37-SUMIF($E$2:$Q$2,"ACTUAL",$E37:$Q37))*(VLOOKUP($B37,Assumptions!$B$78:$R$126,MATCH('Revenue & Expense Input'!J$3,Assumptions!$B$78:$R$78,0),FALSE)/(SUMIF(Assumptions!$D$77:$R$77,"BUDGET",Assumptions!$D113:$R113))),"0")+0) -> 0 | K37: =IF(VLOOKUP("Net Income",'CV Actuals Export'!$A$1:$N$944,'Revenue & Expense Input'!K$1,FALSE)<>0,IFERROR(VLOOKUP('Revenue & Expense Input'!$B37,'CV Actuals Export'!$A$1:$N$944,'Revenue & Expense Input'!K$1,FALSE),"0")+0,IFERROR(($D37-SUMIF($E$2:$Q$2,"ACTUAL",$E37:$Q37))*(VLOOKUP($B37,Assumptions!$B$78:$R$126,MATCH('Revenue & Expense Input'!K$3,Assumptions!$B$78:$R$78,0),FALSE)/(SUMIF(Assumptions!$D$77:$R$77,"BUDGET",Assumptions!$D110:$R110))),"0")+0) -> 0 | L37: =IF(VLOOKUP("Net Income",'CV Actuals Export'!$A$1:$N$944,'Revenue & Expense Input'!L$1,FALSE)<>0,IFERROR(VLOOKUP('Revenue & Expense Input'!$B37,'CV Actuals Export'!$A$1:$N$944,'Revenue & Expense Input'!L$1,FALSE),"0")+0,IFERROR(($D37-SUMIF($E$2:$Q$2,"ACTUAL",$E37:$Q37))*(VLOOKUP($B37,Assumptions!$B$78:$R$126,MATCH('Revenue & Expense Input'!L$3,Assumptions!$B$78:$R$78,0),FALSE)/(SUMIF(Assumptions!$D$77:$R$77,"BUDGET",Assumptions!$D113:$R113))),"0")+0) -> 0 | M37: =IF(VLOOKUP("Net Income",'CV Actuals Export'!$A$1:$N$944,'Revenue & Expense Input'!M$1,FALSE)<>0,IFERROR(VLOOKUP('Revenue & Expense Input'!$B37,'CV Actuals Export'!$A$1:$N$944,'Revenue & Expense Input'!M$1,FALSE),"0")+0,IFERROR(($D37-SUMIF($E$2:$Q$2,"ACTUAL",$E37:$Q37))*(VLOOKUP($B37,Assumptions!$B$78:$R$126,MATCH('Revenue & Expense Input'!M$3,Assumptions!$B$78:$R$78,0),FALSE)/(SUMIF(Assumptions!$D$77:$R$77,"BUDGET",Assumptions!$D113:$R113))),"0")+0) -> 0 | N37: =IF(VLOOKUP("Net Income",'CV Actuals Export'!$A$1:$N$944,'Revenue & Expense Input'!N$1,FALSE)<>0,IFERROR(VLOOKUP('Revenue & Expense Input'!$B37,'CV Actuals Export'!$A$1:$N$944,'Revenue & Expense Input'!N$1,FALSE),"0")+0,IFERROR(($D37-SUMIF($E$2:$Q$2,"ACTUAL",$E37:$Q37))*(VLOOKUP($B37,Assumptions!$B$78:$R$126,MATCH('Revenue & Expense Input'!N$3,Assumptions!$B$78:$R$78,0),FALSE)/(SUMIF(Assumptions!$D$77:$R$77,"BUDGET",Assumptions!$D113:$R113))),"0")+0) -> 0 | O37: =IF(VLOOKUP("Net Income",'CV Actuals Export'!$A$1:$N$944,'Revenue & Expense Input'!O$1,FALSE)<>0,IFERROR(VLOOKUP('Revenue & Expense Input'!$B37,'CV Actuals Export'!$A$1:$N$944,'Revenue & Expense Input'!O$1,FALSE),"0")+0,IFERROR(($D37-SUMIF($E$2:$Q$2,"ACTUAL",$E37:$Q37))*(VLOOKUP($B37,Assumptions!$B$78:$R$126,MATCH('Revenue & Expense Input'!O$3,Assumptions!$B$78:$R$78,0),FALSE)/(SUMIF(Assumptions!$D$77:$R$77,"BUDGET",Assumptions!$D113:$R113))),"0")+0) -> 0 | P37: =IF(VLOOKUP("Net Income",'CV Actuals Export'!$A$1:$N$944,'Revenue & Expense Input'!P$1,FALSE)<>0,IFERROR(VLOOKUP('Revenue & Expense Input'!$B37,'CV Actuals Export'!$A$1:$N$944,'Revenue & Expense Input'!P$1,FALSE),"0")+0,IFERROR(($D37-SUMIF($E$2:$Q$2,"ACTUAL",$E37:$Q37))*(VLOOKUP($B37,Assumptions!$B$78:$R$126,MATCH('Revenue & Expense Input'!P$3,Assumptions!$B$78:$R$78,0),FALSE)/(SUMIF(Assumptions!$D$77:$R$77,"BUDGET",Assumptions!$D113:$R113))),"0")+0) -> 0 | Q37: 0 | R37: 0 | S37: 0 | U37: 0 | V37: 0 | W37: 0 | X37: 0 | Y37: 0 | Z37: 0
B38: 8590-76 | C38: =VLOOKUP(B38,Assumptions!$B$17:$C$126,2,FALSE) -> Low Preforming Student Block Grant | D38: 0 | E38: =IF(VLOOKUP("Net Income",'CV Actuals Export'!$A$1:$N$944,'Revenue & Expense Input'!E$1,FALSE)<>0,IFERROR(VLOOKUP('Revenue & Expense Input'!$B38,'CV Actuals Export'!$A$1:$N$944,'Revenue & Expense Input'!E$1,FALSE),"0")+0,IFERROR(($D38-SUMIF($E$2:$Q$2,"ACTUAL",$E38:$Q38))*(VLOOKUP($B38,Assumptions!$B$78:$R$126,MATCH('Revenue & Expense Input'!E$3,Assumptions!$B$78:$R$78,0),FALSE)/(SUMIF(Assumptions!$D$77:$R$77,"BUDGET",Assumptions!$D114:$R114))),"0")+0) -> 0 | F38: =IF(VLOOKUP("Net Income",'CV Actuals Export'!$A$1:$N$944,'Revenue & Expense Input'!F$1,FALSE)<>0,IFERROR(VLOOKUP('Revenue & Expense Input'!$B38,'CV Actuals Export'!$A$1:$N$944,'Revenue & Expense Input'!F$1,FALSE),"0")+0,IFERROR(($D38-SUMIF($E$2:$Q$2,"ACTUAL",$E38:$Q38))*(VLOOKUP($B38,Assumptions!$B$78:$R$126,MATCH('Revenue & Expense Input'!F$3,Assumptions!$B$78:$R$78,0),FALSE)/(SUMIF(Assumptions!$D$77:$R$77,"BUDGET",Assumptions!$D114:$R114))),"0")+0) -> 0 | G38: =IF(VLOOKUP("Net Income",'CV Actuals Export'!$A$1:$N$944,'Revenue & Expense Input'!G$1,FALSE)<>0,IFERROR(VLOOKUP('Revenue & Expense Input'!$B38,'CV Actuals Export'!$A$1:$N$944,'Revenue & Expense Input'!G$1,FALSE),"0")+0,IFERROR(($D38-SUMIF($E$2:$Q$2,"ACTUAL",$E38:$Q38))*(VLOOKUP($B38,Assumptions!$B$78:$R$126,MATCH('Revenue & Expense Input'!G$3,Assumptions!$B$78:$R$78,0),FALSE)/(SUMIF(Assumptions!$D$77:$R$77,"BUDGET",Assumptions!$D114:$R114))),"0")+0) -> 0 | H38: =IF(VLOOKUP("Net Income",'CV Actuals Export'!$A$1:$N$944,'Revenue & Expense Input'!H$1,FALSE)<>0,IFERROR(VLOOKUP('Revenue & Expense Input'!$B38,'CV Actuals Export'!$A$1:$N$944,'Revenue & Expense Input'!H$1,FALSE),"0")+0,IFERROR(($D38-SUMIF($E$2:$Q$2,"ACTUAL",$E38:$Q38))*(VLOOKUP($B38,Assumptions!$B$78:$R$126,MATCH('Revenue & Expense Input'!H$3,Assumptions!$B$78:$R$78,0),FALSE)/(SUMIF(Assumptions!$D$77:$R$77,"BUDGET",Assumptions!$D114:$R114))),"0")+0) -> 0 | I38: =IF(VLOOKUP("Net Income",'CV Actuals Export'!$A$1:$N$944,'Revenue & Expense Input'!I$1,FALSE)<>0,IFERROR(VLOOKUP('Revenue & Expense Input'!$B38,'CV Actuals Export'!$A$1:$N$944,'Revenue & Expense Input'!I$1,FALSE),"0")+0,IFERROR(($D38-SUMIF($E$2:$Q$2,"ACTUAL",$E38:$Q38))*(VLOOKUP($B38,Assumptions!$B$78:$R$126,MATCH('Revenue & Expense Input'!I$3,Assumptions!$B$78:$R$78,0),FALSE)/(SUMIF(Assumptions!$D$77:$R$77,"BUDGET",Assumptions!$D110:$R110))),"0")+0) -> 0 | J38: =IF(VLOOKUP("Net Income",'CV Actuals Export'!$A$1:$N$944,'Revenue & Expense Input'!J$1,FALSE)<>0,IFERROR(VLOOKUP('Revenue & Expense Input'!$B38,'CV Actuals Export'!$A$1:$N$944,'Revenue & Expense Input'!J$1,FALSE),"0")+0,IFERROR(($D38-SUMIF($E$2:$Q$2,"ACTUAL",$E38:$Q38))*(VLOOKUP($B38,Assumptions!$B$78:$R$126,MATCH('Revenue & Expense Input'!J$3,Assumptions!$B$78:$R$78,0),FALSE)/(SUMIF(Assumptions!$D$77:$R$77,"BUDGET",Assumptions!$D114:$R114))),"0")+0) -> 0 | K38: =IF(VLOOKUP("Net Income",'CV Actuals Export'!$A$1:$N$944,'Revenue & Expense Input'!K$1,FALSE)<>0,IFERROR(VLOOKUP('Revenue & Expense Input'!$B38,'CV Actuals Export'!$A$1:$N$944,'Revenue & Expense Input'!K$1,FALSE),"0")+0,IFERROR(($D38-SUMIF($E$2:$Q$2,"ACTUAL",$E38:$Q38))*(VLOOKUP($B38,Assumptions!$B$78:$R$126,MATCH('Revenue & Expense Input'!K$3,Assumptions!$B$78:$R$78,0),FALSE)/(SUMIF(Assumptions!$D$77:$R$77,"BUDGET",Assumptions!$D111:$R111))),"0")+0) -> 0 | L38: =IF(VLOOKUP("Net Income",'CV Actuals Export'!$A$1:$N$944,'Revenue & Expense Input'!L$1,FALSE)<>0,IFERROR(VLOOKUP('Revenue & Expense Input'!$B38,'CV Actuals Export'!$A$1:$N$944,'Revenue & Expense Input'!L$1,FALSE),"0")+0,IFERROR(($D38-SUMIF($E$2:$Q$2,"ACTUAL",$E38:$Q38))*(VLOOKUP($B38,Assumptions!$B$78:$R$126,MATCH('Revenue & Expense Input'!L$3,Assumptions!$B$78:$R$78,0),FALSE)/(SUMIF(Assumptions!$D$77:$R$77,"BUDGET",Assumptions!$D114:$R114))),"0")+0) -> 0 | M38: =IF(VLOOKUP("Net Income",'CV Actuals Export'!$A$1:$N$944,'Revenue & Expense Input'!M$1,FALSE)<>0,IFERROR(VLOOKUP('Revenue & Expense Input'!$B38,'CV Actuals Export'!$A$1:$N$944,'Revenue & Expense Input'!M$1,FALSE),"0")+0,IFERROR(($D38-SUMIF($E$2:$Q$2,"ACTUAL",$E38:$Q38))*(VLOOKUP($B38,Assumptions!$B$78:$R$126,MATCH('Revenue & Expense Input'!M$3,Assumptions!$B$78:$R$78,0),FALSE)/(SUMIF(Assumptions!$D$77:$R$77,"BUDGET",Assumptions!$D114:$R114))),"0")+0) -> 0 | N38: =IF(VLOOKUP("Net Income",'CV Actuals Export'!$A$1:$N$944,'Revenue & Expense Input'!N$1,FALSE)<>0,IFERROR(VLOOKUP('Revenue & Expense Input'!$B38,'CV Actuals Export'!$A$1:$N$944,'Revenue & Expense Input'!N$1,FALSE),"0")+0,IFERROR(($D38-SUMIF($E$2:$Q$2,"ACTUAL",$E38:$Q38))*(VLOOKUP($B38,Assumptions!$B$78:$R$126,MATCH('Revenue & Expense Input'!N$3,Assumptions!$B$78:$R$78,0),FALSE)/(SUMIF(Assumptions!$D$77:$R$77,"BUDGET",Assumptions!$D114:$R114))),"0")+0) -> 0 | O38: =IF(VLOOKUP("Net Income",'CV Actuals Export'!$A$1:$N$944,'Revenue & Expense Input'!O$1,FALSE)<>0,IFERROR(VLOOKUP('Revenue & Expense Input'!$B38,'CV Actuals Export'!$A$1:$N$944,'Revenue & Expense Input'!O$1,FALSE),"0")+0,IFERROR(($D38-SUMIF($E$2:$Q$2,"ACTUAL",$E38:$Q38))*(VLOOKUP($B38,Assumptions!$B$78:$R$126,MATCH('Revenue & Expense Input'!O$3,Assumptions!$B$78:$R$78,0),FALSE)/(SUMIF(Assumptions!$D$77:$R$77,"BUDGET",Assumptions!$D114:$R114))),"0")+0) -> 0 | P38: =IF(VLOOKUP("Net Income",'CV Actuals Export'!$A$1:$N$944,'Revenue & Expense Input'!P$1,FALSE)<>0,IFERROR(VLOOKUP('Revenue & Expense Input'!$B38,'CV Actuals Export'!$A$1:$N$944,'Revenue & Expense Input'!P$1,FALSE),"0")+0,IFERROR(($D38-SUMIF($E$2:$Q$2,"ACTUAL",$E38:$Q38))*(VLOOKUP($B38,Assumptions!$B$78:$R$126,MATCH('Revenue & Expense Input'!P$3,Assumptions!$B$78:$R$78,0),FALSE)/(SUMIF(Assumptions!$D$77:$R$77,"BUDGET",Assumptions!$D114:$R114))),"0")+0) -> 0 | Q38: 0 | R38: =SUM(E38:Q38) -> 0 | S38: =D38-R38 -> 0 | U38: 0 | V38: =IFERROR(U38/X38,"0")+0 -> 0 | W38: =X38-U38 -> 0 | X38: =D38 -> 0 | Y38: 0 | Z38: 0
B39: 8590-64 | C39: Strong Workforce Partnership (2021-2023) | D39: 598000 | E39: =IF(VLOOKUP("Net Income",'CV Actuals Export'!$A$1:$N$944,'Revenue & Expense Input'!E$1,FALSE)<>0,IFERROR(VLOOKUP('Revenue & Expense Input'!$B39,'CV Actuals Export'!$A$1:$N$944,'Revenue & Expense Input'!E$1,FALSE),"0")+0,IFERROR(($D39-SUMIF($E$2:$Q$2,"ACTUAL",$E39:$Q39))*(VLOOKUP($B39,Assumptions!$B$78:$R$126,MATCH('Revenue & Expense Input'!E$3,Assumptions!$B$78:$R$78,0),FALSE)/(SUMIF(Assumptions!$D$77:$R$77,"BUDGET",Assumptions!$D116:$R116))),"0")+0) -> 0 | F39: =IF(VLOOKUP("Net Income",'CV Actuals Export'!$A$1:$N$944,'Revenue & Expense Input'!F$1,FALSE)<>0,IFERROR(VLOOKUP('Revenue & Expense Input'!$B39,'CV Actuals Export'!$A$1:$N$944,'Revenue & Expense Input'!F$1,FALSE),"0")+0,IFERROR(($D39-SUMIF($E$2:$Q$2,"ACTUAL",$E39:$Q39))*(VLOOKUP($B39,Assumptions!$B$78:$R$126,MATCH('Revenue & Expense Input'!F$3,Assumptions!$B$78:$R$78,0),FALSE)/(SUMIF(Assumptions!$D$77:$R$77,"BUDGET",Assumptions!$D116:$R116))),"0")+0) -> 0 | G39: =IF(VLOOKUP("Net Income",'CV Actuals Export'!$A$1:$N$944,'Revenue & Expense Input'!G$1,FALSE)<>0,IFERROR(VLOOKUP('Revenue & Expense Input'!$B39,'CV Actuals Export'!$A$1:$N$944,'Revenue & Expense Input'!G$1,FALSE),"0")+0,IFERROR(($D39-SUMIF($E$2:$Q$2,"ACTUAL",$E39:$Q39))*(VLOOKUP($B39,Assumptions!$B$78:$R$126,MATCH('Revenue & Expense Input'!G$3,Assumptions!$B$78:$R$78,0),FALSE)/(SUMIF(Assumptions!$D$77:$R$77,"BUDGET",Assumptions!$D116:$R116))),"0")+0) -> 0 | H39: =IF(VLOOKUP("Net Income",'CV Actuals Export'!$A$1:$N$944,'Revenue & Expense Input'!H$1,FALSE)<>0,IFERROR(VLOOKUP('Revenue & Expense Input'!$B39,'CV Actuals Export'!$A$1:$N$944,'Revenue & Expense Input'!H$1,FALSE),"0")+0,IFERROR(($D39-SUMIF($E$2:$Q$2,"ACTUAL",$E39:$Q39))*(VLOOKUP($B39,Assumptions!$B$78:$R$126,MATCH('Revenue & Expense Input'!H$3,Assumptions!$B$78:$R$78,0),FALSE)/(SUMIF(Assumptions!$D$77:$R$77,"BUDGET",Assumptions!$D116:$R116))),"0")+0) -> 0 | I39: =IF(VLOOKUP("Net Income",'CV Actuals Export'!$A$1:$N$944,'Revenue & Expense Input'!I$1,FALSE)<>0,IFERROR(VLOOKUP('Revenue & Expense Input'!$B39,'CV Actuals Export'!$A$1:$N$944,'Revenue & Expense Input'!I$1,FALSE),"0")+0,IFERROR(($D39-SUMIF($E$2:$Q$2,"ACTUAL",$E39:$Q39))*(VLOOKUP($B39,Assumptions!$B$78:$R$126,MATCH('Revenue & Expense Input'!I$3,Assumptions!$B$78:$R$78,0),FALSE)/(SUMIF(Assumptions!$D$77:$R$77,"BUDGET",Assumptions!$D111:$R111))),"0")+0) -> 0 | J39: =IF(VLOOKUP("Net Income",'CV Actuals Export'!$A$1:$N$944,'Revenue & Expense Input'!J$1,FALSE)<>0,IFERROR(VLOOKUP('Revenue & Expense Input'!$B39,'CV Actuals Export'!$A$1:$N$944,'Revenue & Expense Input'!J$1,FALSE),"0")+0,IFERROR(($D39-SUMIF($E$2:$Q$2,"ACTUAL",$E39:$Q39))*(VLOOKUP($B39,Assumptions!$B$78:$R$126,MATCH('Revenue & Expense Input'!J$3,Assumptions!$B$78:$R$78,0),FALSE)/(SUMIF(Assumptions!$D$77:$R$77,"BUDGET",Assumptions!$D116:$R116))),"0")+0) -> 0 | K39: =IF(VLOOKUP("Net Income",'CV Actuals Export'!$A$1:$N$944,'Revenue & Expense Input'!K$1,FALSE)<>0,IFERROR(VLOOKUP('Revenue & Expense Input'!$B39,'CV Actuals Export'!$A$1:$N$944,'Revenue & Expense Input'!K$1,FALSE),"0")+0,IFERROR(($D39-SUMIF($E$2:$Q$2,"ACTUAL",$E39:$Q39))*(VLOOKUP($B39,Assumptions!$B$78:$R$126,MATCH('Revenue & Expense Input'!K$3,Assumptions!$B$78:$R$78,0),FALSE)/(SUMIF(Assumptions!$D$77:$R$77,"BUDGET",Assumptions!$D112:$R112))),"0")+0) -> 0 | L39: =IF(VLOOKUP("Net Income",'CV Actuals Export'!$A$1:$N$944,'Revenue & Expense Input'!L$1,FALSE)<>0,IFERROR(VLOOKUP('Revenue & Expense Input'!$B39,'CV Actuals Export'!$A$1:$N$944,'Revenue & Expense Input'!L$1,FALSE),"0")+0,IFERROR(($D39-SUMIF($E$2:$Q$2,"ACTUAL",$E39:$Q39))*(VLOOKUP($B39,Assumptions!$B$78:$R$126,MATCH('Revenue & Expense Input'!L$3,Assumptions!$B$78:$R$78,0),FALSE)/(SUMIF(Assumptions!$D$77:$R$77,"BUDGET",Assumptions!$D116:$R116))),"0")+0) -> 0 | M39: =IF(VLOOKUP("Net Income",'CV Actuals Export'!$A$1:$N$944,'Revenue & Expense Input'!M$1,FALSE)<>0,IFERROR(VLOOKUP('Revenue & Expense Input'!$B39,'CV Actuals Export'!$A$1:$N$944,'Revenue & Expense Input'!M$1,FALSE),"0")+0,IFERROR(($D39-SUMIF($E$2:$Q$2,"ACTUAL",$E39:$Q39))*(VLOOKUP($B39,Assumptions!$B$78:$R$126,MATCH('Revenue & Expense Input'!M$3,Assumptions!$B$78:$R$78,0),FALSE)/(SUMIF(Assumptions!$D$77:$R$77,"BUDGET",Assumptions!$D116:$R116))),"0")+0) -> 0 | N39: =IF(VLOOKUP("Net Income",'CV Actuals Export'!$A$1:$N$944,'Revenue & Expense Input'!N$1,FALSE)<>0,IFERROR(VLOOKUP('Revenue & Expense Input'!$B39,'CV Actuals Export'!$A$1:$N$944,'Revenue & Expense Input'!N$1,FALSE),"0")+0,IFERROR(($D39-SUMIF($E$2:$Q$2,"ACTUAL",$E39:$Q39))*(VLOOKUP($B39,Assumptions!$B$78:$R$126,MATCH('Revenue & Expense Input'!N$3,Assumptions!$B$78:$R$78,0),FALSE)/(SUMIF(Assumptions!$D$77:$R$77,"BUDGET",Assumptions!$D116:$R116))),"0")+0) -> 0 | O39: =IF(VLOOKUP("Net Income",'CV Actuals Export'!$A$1:$N$944,'Revenue & Expense Input'!O$1,FALSE)<>0,IFERROR(VLOOKUP('Revenue & Expense Input'!$B39,'CV Actuals Export'!$A$1:$N$944,'Revenue & Expense Input'!O$1,FALSE),"0")+0,IFERROR(($D39-SUMIF($E$2:$Q$2,"ACTUAL",$E39:$Q39))*(VLOOKUP($B39,Assumptions!$B$78:$R$126,MATCH('Revenue & Expense Input'!O$3,Assumptions!$B$78:$R$78,0),FALSE)/(SUMIF(Assumptions!$D$77:$R$77,"BUDGET",Assumptions!$D116:$R116))),"0")+0) -> 0 | P39: 598000 | Q39: 0 | R39: 598000 | S39: 0 | U39: 0 | V39: =IFERROR(U39/X39,"0")+0 -> 0 | W39: =X39-U39 -> 598000 | X39: =D39 -> 598000 | Y39: 598000 | Z39: 0
B40: 8590-7422 | C40: =VLOOKUP(B40,[17]Assumptions!$B$78:$C$125,2,FALSE) -> IN PERSON LEARNING | D40: 235481 | E40: =IF(VLOOKUP("Net Income",'CV Actuals Export'!$A$1:$N$944,'Revenue & Expense Input'!E$1,FALSE)<>0,IFERROR(VLOOKUP('Revenue & Expense Input'!$B40,'CV Actuals Export'!$A$1:$N$944,'Revenue & Expense Input'!E$1,FALSE),"0")+0,IFERROR(($D40-SUMIF($E$2:$Q$2,"ACTUAL",$E40:$Q40))*(VLOOKUP($B40,Assumptions!$B$78:$R$126,MATCH('Revenue & Expense Input'!E$3,Assumptions!$B$78:$R$78,0),FALSE)/(SUMIF(Assumptions!$D$77:$R$77,"BUDGET",Assumptions!$D117:$R117))),"0")+0) -> 0 | F40: =IF(VLOOKUP("Net Income",'CV Actuals Export'!$A$1:$N$944,'Revenue & Expense Input'!F$1,FALSE)<>0,IFERROR(VLOOKUP('Revenue & Expense Input'!$B40,'CV Actuals Export'!$A$1:$N$944,'Revenue & Expense Input'!F$1,FALSE),"0")+0,IFERROR(($D40-SUMIF($E$2:$Q$2,"ACTUAL",$E40:$Q40))*(VLOOKUP($B40,Assumptions!$B$78:$R$126,MATCH('Revenue & Expense Input'!F$3,Assumptions!$B$78:$R$78,0),FALSE)/(SUMIF(Assumptions!$D$77:$R$77,"BUDGET",Assumptions!$D117:$R117))),"0")+0) -> 0 | G40: =IF(VLOOKUP("Net Income",'CV Actuals Export'!$A$1:$N$944,'Revenue & Expense Input'!G$1,FALSE)<>0,IFERROR(VLOOKUP('Revenue & Expense Input'!$B40,'CV Actuals Export'!$A$1:$N$944,'Revenue & Expense Input'!G$1,FALSE),"0")+0,IFERROR(($D40-SUMIF($E$2:$Q$2,"ACTUAL",$E40:$Q40))*(VLOOKUP($B40,Assumptions!$B$78:$R$126,MATCH('Revenue & Expense Input'!G$3,Assumptions!$B$78:$R$78,0),FALSE)/(SUMIF(Assumptions!$D$77:$R$77,"BUDGET",Assumptions!$D117:$R117))),"0")+0) -> 0 | H40: 85406.98 | I40: 20120.02 | J40: 129954 | K40: =IF(VLOOKUP("Net Income",'CV Actuals Export'!$A$1:$N$944,'Revenue & Expense Input'!K$1,FALSE)<>0,IFERROR(VLOOKUP('Revenue & Expense Input'!$B40,'CV Actuals Export'!$A$1:$N$944,'Revenue & Expense Input'!K$1,FALSE),"0")+0,IFERROR(($D40-SUMIF($E$2:$Q$2,"ACTUAL",$E40:$Q40))*(VLOOKUP($B40,Assumptions!$B$78:$R$126,MATCH('Revenue & Expense Input'!K$3,Assumptions!$B$78:$R$78,0),FALSE)/(SUMIF(Assumptions!$D$77:$R$77,"BUDGET",Assumptions!$D113:$R113))),"0")+0) -> 0 | L40: =IF(VLOOKUP("Net Income",'CV Actuals Export'!$A$1:$N$944,'Revenue & Expense Input'!L$1,FALSE)<>0,IFERROR(VLOOKUP('Revenue & Expense Input'!$B40,'CV Actuals Export'!$A$1:$N$944,'Revenue & Expense Input'!L$1,FALSE),"0")+0,IFERROR(($D40-SUMIF($E$2:$Q$2,"ACTUAL",$E40:$Q40))*(VLOOKUP($B40,Assumptions!$B$78:$R$126,MATCH('Revenue & Expense Input'!L$3,Assumptions!$B$78:$R$78,0),FALSE)/(SUMIF(Assumptions!$D$77:$R$77,"BUDGET",Assumptions!$D117:$R117))),"0")+0) -> 0 | M40: =IF(VLOOKUP("Net Income",'CV Actuals Export'!$A$1:$N$944,'Revenue & Expense Input'!M$1,FALSE)<>0,IFERROR(VLOOKUP('Revenue & Expense Input'!$B40,'CV Actuals Export'!$A$1:$N$944,'Revenue & Expense Input'!M$1,FALSE),"0")+0,IFERROR(($D40-SUMIF($E$2:$Q$2,"ACTUAL",$E40:$Q40))*(VLOOKUP($B40,Assumptions!$B$78:$R$126,MATCH('Revenue & Expense Input'!M$3,Assumptions!$B$78:$R$78,0),FALSE)/(SUMIF(Assumptions!$D$77:$R$77,"BUDGET",Assumptions!$D117:$R117))),"0")+0) -> 0 | N40: =IF(VLOOKUP("Net Income",'CV Actuals Export'!$A$1:$N$944,'Revenue & Expense Input'!N$1,FALSE)<>0,IFERROR(VLOOKUP('Revenue & Expense Input'!$B40,'CV Actuals Export'!$A$1:$N$944,'Revenue & Expense Input'!N$1,FALSE),"0")+0,IFERROR(($D40-SUMIF($E$2:$Q$2,"ACTUAL",$E40:$Q40))*(VLOOKUP($B40,Assumptions!$B$78:$R$126,MATCH('Revenue & Expense Input'!N$3,Assumptions!$B$78:$R$78,0),FALSE)/(SUMIF(Assumptions!$D$77:$R$77,"BUDGET",Assumptions!$D117:$R117))),"0")+0) -> 0 | O40: =IF(VLOOKUP("Net Income",'CV Actuals Export'!$A$1:$N$944,'Revenue & Expense Input'!O$1,FALSE)<>0,IFERROR(VLOOKUP('Revenue & Expense Input'!$B40,'CV Actuals Export'!$A$1:$N$944,'Revenue & Expense Input'!O$1,FALSE),"0")+0,IFERROR(($D40-SUMIF($E$2:$Q$2,"ACTUAL",$E40:$Q40))*(VLOOKUP($B40,Assumptions!$B$78:$R$126,MATCH('Revenue & Expense Input'!O$3,Assumptions!$B$78:$R$78,0),FALSE)/(SUMIF(Assumptions!$D$77:$R$77,"BUDGET",Assumptions!$D117:$R117))),"0")+0) -> 0 | P40: =IF(VLOOKUP("Net Income",'CV Actuals Export'!$A$1:$N$944,'Revenue & Expense Input'!P$1,FALSE)<>0,IFERROR(VLOOKUP('Revenue & Expense Input'!$B40,'CV Actuals Export'!$A$1:$N$944,'Revenue & Expense Input'!P$1,FALSE),"0")+0,IFERROR(($D40-SUMIF($E$2:$Q$2,"ACTUAL",$E40:$Q40))*(VLOOKUP($B40,Assumptions!$B$78:$R$126,MATCH('Revenue & Expense Input'!P$3,Assumptions!$B$78:$R$78,0),FALSE)/(SUMIF(Assumptions!$D$77:$R$77,"BUDGET",Assumptions!$D117:$R117))),"0")+0) -> 0 | Q40: =IF($D$5>SUM($E40:$P40),D40-SUM($E40:$P40),0) -> 0 | R40: =SUM(E40:Q40) -> 235481 | S40: =D40-R40 -> 0 | U40: 235481 | V40: =IFERROR(U40/X40,"0")+0 -> 1 | W40: =X40-U40 -> 0 | X40: =D40 -> 235481 | Y40: 0 | Z40: 235481
